Workbook

Sheet ATESTAÇÃO
A4: CONTRATAÇÃO DE EXECUÇÃO DE PAVIMENTO ASFÁLTICO COM CBUQ, EM VIAS DE DIVERSOS MUNICÍPIOS DA REGIÃO METROPOLITANA DE RECIFE/PE, ÁREA DE ATUAÇÃO DA 15ª SUPERINTENDÊNCIA REGIONAL DA CODEVASF.
A5: PLANILHA | G5: QUALIFICAÇÃO TÉCNICA | J5: BDI DIFERENCIADO% = | K5: 0.15
A6: ITEM | B6: ORIGEM COMPOSIÇÃO | C6: CÓDIGO COMPOSIÇÃO | D6: DISCRIMINAÇÃO DOS SERVIÇOS | E6: UND | F6: QTDE | G6: DISCRIMINAÇÃO DOS SERVIÇOS | H6: UND | I6: QTDE (50%) | J6: PREÇO UNITÁRIO COM BDI | K6: PREÇO TOTAL COM BDI | L6: % | M6: % ACM
A7: 1 | B7: Codevasf.Aux | C7: CPU 079 | D7: EXECUÇÃO E COMPACTAÇÃO DE BASE E OU SUB BASE PARA PAVIMENTAÇÃO DE MACADAME HIDRÁULICO - EXCLUSIVE CARGA E TRANSPORTE. | E7: m³ | F7: 4578.26 | G7: EXECUÇÃO E COMPACTAÇÃO DE BASE E OU SUB BASE PARA PAVIMENTAÇÃO | H7: m³ | I7: =(F7+F8)/2 -> 5066.63 | J7: 236.79 | K7: =TRUNC(F7*J7,2) -> 1084086.18 | L7: =K7/$K$31 -> 0.0504 | M7: =SUM(L7:L9) -> 0.154
B8: SINAPI | C8: 96396 | D8: EXECUÇÃO E COMPACTAÇÃO DE BASE E OU SUB BASE PARA PAVIMENTAÇÃO DE BRITA GRADUADA SIMPLES - EXCLUSIVE CARGA E TRANSPORTE. AF_11/2019 | E8: m³ | F8: 5554.99 | J8: 214.19 | K8: =TRUNC(F8*J8,2) -> 1189823.3 | L8: =K8/$K$31 -> 0.0554
B9: SINAPI | C9: 95876 | D9: TRANSPORTE COM CAMINHÃO BASCULANTE DE 14 M³, EM VIA URBANA PAVIMENTADA, DMT ATÉ 30 KM | E9: m³xkm | F9: 392472.87 | J9: 2.64 | K9: =TRUNC(F9*J9,2) -> 1036128.37 | L9: =K9/$K$31 -> 0.0482
A11: 2 | B11: SINAPI | C11: 90747 | D11: ASSENTAMENTO DE TUBO DE PEAD CORRUGADO DE DUPLA PAREDE, DN 600 MM, JUNTA ELÁSTICA INTEGRADA (NÃO INCLUI FORNECIMENTO). AF_01/2021 | E11: m | F11: 1282.88 | G11: FORNECIMENTO E ASSENTAMENTO DE TUBO DE PEAD CORRUGADO DE DUPLA PAREDE, 300MM <=DN<= 600 MM | H11: m | I11: =(F12+F14+F16)/2 -> 924.82 | J11: 22.84 | K11: =TRUNC(F11*J11,2) -> 29300.97 | L11: =K11/$K$31 -> 0.0014 | M11: =SUM(L11:L16) -> 0.1286
B12: SINAPI INS. | C12: 41782 | D12: TUBO CORRUGADO PEAD, PAREDE DUPLA, INTERNA LISA, JEI, DN/DI 600 MM, PARA SANEAMENTO (DRENAGEM/ESGOTO) | E12: m | F12: 1347.02 | J12: 1778.87 | K12: 2396173.46 | L12: 0.1115
B13: SINAPI | C13: 90746 | D13: ASSENTAMENTO DE TUBO DE PEAD CORRUGADO DE DUPLA PAREDE, DN 450 MM, JUNTA ELÁSTICA INTEGRADA (NÃO INCLUI FORNECIMENTO). AF_01/2021 | E13: m | F13: 267.97 | J13: 5.11 | K13: 1369.32 | L13: 0.0001
B14: SINAPI INS. | C14: 41781 | D14: TUBO CORRUGADO PEAD, PAREDE DUPLA, INTERNA LISA, JEI, DN/DI *400* MM, PARA SANEAMENTO (DRENAGEM/ESGOTO) | E14: m | F14: 281.37 | J14: 804.82 | K14: 226452.2 | L14: 0.0105
B15: SINAPI | C15: 94872 | D15: ASSENTAMENTO DE TUBO DE PEAD CORRUGADO DE DUPLA PAREDE, DN 300 MM, JUNTA ELÁSTICA INTEGRADA (NÃO INCLUI FORNECIMENTO). AF_01/2021 | E15: m | F15: 210.7 | J15: 3.41 | K15: 718.48 | L15: 0
B16: SINAPI INS. | C16: 41780 | D16: TUBO CORRUGADO PEAD, PAREDE DUPLA, INTERNA LISA, JEI, DN/DI 300 MM, PARA SANEAMENTO (DRENAGEM/ESGOTO) | E16: m | F16: 221.24 | J16: 496.59 | K16: 109865.57 | L16: 0.0051
A18: 3 | B18: SICRO | C18: 4011463 | D18: Execução de pavimento com aplicação de concreto asfáltico - faixa C - areia e brita comerciais | E18: t | F18: 2772 | G18: Execução de pavimento com aplicação de concreto asfáltico - faixa C - areia e brita comerciais | H18: t | I18: =F18/2 -> 1386 | J18: 235.7 | K18: =TRUNC(F18*J18,2) -> 653360.4 | L18: =K18/$K$31 -> 0.0304 | M18: =SUM(L18:L23) -> 0.109
B19: SICRO | C19: 5914389 | D19: Transporte com caminhão basculante de 10 m³ - rodovia pavimentada | E19: tkm | F19: ='MOMENTO DE TRANSPORTE - PRINC'!K27+'MOMENTO DE TRANSPORTE - AUX'!K20+'MOMENTO DE TRANSPORTE - AUX'!K21+'MOMENTO DE TRANSPORTE - AUX'!K22+'MOMENTO DE TRANSPORTE - AUX'!K24 -> 705056.24 | J19: 0.95 | K19: 669803.42 | L19: 0.0312
B20: SICRO | C20: 5914479 | D20: Transporte com caminhão carroceria de 15 t - rodovia pavimentada | E20: tkm | F20: 20.96 | J20: 0.88 | K20: 18.44 | L20: 0
B21: SICRO | C21: 5914366 | D21: Transporte de cimento ou cal hidratada a granel com caminhão silo de 30 m³ - rodovia pavimentada | E21: tkm | F21: 9534.13 | J21: 0.72 | K21: 6864.57 | L21: 0.0003
B22: CODEVASF | C22: CPU-13 | D22: AQUISIÇÃO DE CIMENTO ASFALTICO CAP 50/70 | E22: t | F22: 175.27 | J22: 5096.76 | K22: 893309.12 | L22: 0.0416
B23: CODEVASF | C23: CPU-17 | D23: TRANSPORTE CAP 50/70 | E23: t | F23: 175.27 | J23: 671.89 | K23: 117762.16 | L23: 0.0055
A25: 4 | B25: SICRO | C25: 2003939 | D25: Meio-fio de concreto - MFC 01 moldado no local com extrusora e concreto usinado - areia e brita comerciais | E25: m | F25: 14436.58 | G25: Meio-fio de concreto - MFC 01 moldado no local com extrusora e concreto usinado - areia e brita comerciais | H25: m | I25: =F25/2 -> 7218.29 | J25: 87.64 | K25: =TRUNC(F25*J25,2) -> 1265221.87 | L25: =K25/$K$31 -> 0.0589 | M25: =L25 -> 0.0589
A27: 5 | B27: SINAPI | C27: 94991 | D27: EXECUÇÃO DE PASSEIO (CALÇADA) OU PISO DE CONCRETO COM CONCRETO MOLDADO IN LOCO, USINADO C20, ACABAMENTO CONVENCIONAL, NÃO ARMADO. AF_08/2022 | E27: m³ | F27: 1176.2 | G27: EXECUÇÃO DE PASSEIO (CALÇADA) OU PISO DE CONCRETO COM CONCRETO MOLDADO IN LOCO, USINADO C20, ACABAMENTO CONVENCIONAL, NÃO ARMADO. AF_08/2022 | H27: m³ | I27: 1176.2 | J27: 841.93 | K27: =TRUNC(F27*J27,2) -> 990278.06 | L27: =K27/$K$31 -> 0.0461 | M27: =L27 -> 0.0461
A29: 6 | B29: SINAPI | C29: 92745 | D29: MURO DE GABIÃO, ENCHIMENTO COM PEDRA DE MÃO TIPO RACHÃO, DE GRAVIDADE, COM GAIOLAS DE COMPRIMENTO IGUAL A 2 M, PARA MUROS COM ALTURA MAIOR QUE 4 M E MENOR OU IGUAL A 6 M  FORNECIMENTO E EXECUÇÃO. AF_12/2015 | E29: M3 | F29: 708.98 | G29: MURO DE GABIÃO, ENCHIMENTO COM PEDRA DE MÃO TIPO RACHÃO, DE GRAVIDADE, COM GAIOLAS DE COMPRIMENTO IGUAL A 2 M, PARA MUROS COM ALTURA MAIOR QUE 4 M E MENOR OU IGUAL A 6 M  FORNECIMENTO E EXECUÇÃO. AF_12/2015 | H29: M3 | I29: =F29/2 -> 354.49 | J29: 1022.64 | K29: =TRUNC(F29*J29,2) -> 725031.3 | L29: =K29/$K$31 -> 0.0337 | M29: =L29 -> 0.0337
K31: 21488436

Sheet RESUMO MODULO TOTAL
A1: CONTRATAÇÃO DE EXECUÇÃO DE PAVIMENTO ASFÁLTICO COM CBUQ, EM VIAS URBANAS DE RECIFE/PE, ÁREA DE ATUAÇÃO DA 15ª SUPERINTENDÊNCIA REGIONAL DA CODEVASF.
G2: SICRO: | H2: ='SINTÉTICO SICRO'!B2 -> Pernambuco - Julho/2023
G3: SINAPI: | H3: =RIGHT('INSUMOS SINAPI'!A3,7) -> 09/2023
G4: Data Base do Orçamento | H4: 2023-09-01
A5: =A1 -> CONTRATAÇÃO DE EXECUÇÃO DE PAVIMENTO ASFÁLTICO COM CBUQ, EM VIAS URBANAS DE RECIFE/PE, ÁREA DE ATUAÇÃO DA 15ª SUPERINTENDÊNCIA REGIONAL DA CODEVASF.
A6: ITEM | B6: ORIGEM COMPOSIÇÃO | C6: CÓDIGO COMPOSIÇÃO | D6: DISCRIMINAÇÃO DOS SERVIÇOS | E6: BDI % = | F6: =BDI!$C$17 -> 0.2339 | G6: BDI DIFERENCIADO% = | H6: =BDI!$C$65 -> 0.15 | I6: =H132 -> 25847943.32
E7: UND | F7: QTDE | G7: PREÇO UNITÁRIO COM BDI | H7: PREÇO TOTAL COM BDI
D8: ADMINISTRAÇÃO DA OBRA
A9: 1 | B9: Codevasf | C9: CPU-02 | D9: Atualização do projeto de drenagem e pavimentação - as built final | E9: m | F9: ='[3]Planilha unificada'!$T$15 -> 4067.42 | G9: =IF(B9="Codevasf",VLOOKUP(C9,'CPU CODEVASF'!E:H,4,0),IF(B9="SICRO",VLOOKUP(C9,'SINTÉTICO SICRO'!A:D,4,0)*(1+$F$6),IF(B9="SINAPI",VLOOKUP('RESUMO MODULO TOTAL'!C9,'COMP Sint. Sinapi'!G:M,5,0)*(1+$F$6),IF(B9="ORSE",VLOOKUP(C9,ORSE!A:E,5,0)*(1+$F$6),IF(B9="COTAÇÃO",VLOOKUP(C9,COTAÇÕES!A:E,5,0)*(1+$H$6),IF(B9="Codevasf.Aux",VLOOKUP(C9,Codevasf.Aux!B:J,9,0)*(1+$F$6),IF(B9="SINAPI INS.",VLOOKUP(C9,'INSUMOS SINAPI'!A:E,5,0)*(1+$H$6)))))))) -> 13.28 | H9: =TRUNC(F9*G9,2) -> 54015.33
A10: 2 | B10: Codevasf | C10: CPU-03 | D10: Administração Local | E10: % | F10: 1 | G10: =IF(B10="Codevasf",VLOOKUP(C10,'CPU CODEVASF'!E:H,4,0),IF(B10="SICRO",VLOOKUP(C10,'SINTÉTICO SICRO'!A:D,4,0)*(1+$F$6),IF(B10="SINAPI",VLOOKUP('RESUMO MODULO TOTAL'!C10,'COMP Sint. Sinapi'!G:M,5,0)*(1+$F$6),IF(B10="ORSE",VLOOKUP(C10,ORSE!A:E,5,0)*(1+$F$6),IF(B10="COTAÇÃO",VLOOKUP(C10,COTAÇÕES!A:E,5,0)*(1+$H$6),IF(B10="Codevasf.Aux",VLOOKUP(C10,Codevasf.Aux!B:J,9,0)*(1+$F$6),IF(B10="SINAPI INS.",VLOOKUP(C10,'INSUMOS SINAPI'!A:E,5,0)*(1+$H$6)))))))) -> 635329.17 | H10: =TRUNC(F10*G10,2) -> 635329.17 | J10: =H10/$H$132 -> 0.0246
A11: 3 | B11: Codevasf | C11: CPU-04 | D11: Canteiro de Obras e Almoxarifado | E11: % | F11: 1 | G11: =IF(B11="Codevasf",VLOOKUP(C11,'CPU CODEVASF'!E:H,4,0),IF(B11="SICRO",VLOOKUP(C11,'SINTÉTICO SICRO'!A:D,4,0)*(1+$F$6),IF(B11="SINAPI",VLOOKUP('RESUMO MODULO TOTAL'!C11,'COMP Sint. Sinapi'!G:M,5,0)*(1+$F$6),IF(B11="ORSE",VLOOKUP(C11,ORSE!A:E,5,0)*(1+$F$6),IF(B11="COTAÇÃO",VLOOKUP(C11,COTAÇÕES!A:E,5,0)*(1+$H$6),IF(B11="Codevasf.Aux",VLOOKUP(C11,Codevasf.Aux!B:J,9,0)*(1+$F$6),IF(B11="SINAPI INS.",VLOOKUP(C11,'INSUMOS SINAPI'!A:E,5,0)*(1+$H$6)))))))) -> 340072.8 | H11: =TRUNC(F11*G11,2) -> 340072.8 | J11: =H11/$H$132 -> 0.0132
A12: 4 | B12: Codevasf | C12: CPU-01 | D12: Placa de Obra em Chapa de Aço Galvanizado | E12: und | F12: 14 | G12: =IF(B12="Codevasf",VLOOKUP(C12,'CPU CODEVASF'!E:H,4,0),IF(B12="SICRO",VLOOKUP(C12,'SINTÉTICO SICRO'!A:D,4,0)*(1+$F$6),IF(B12="SINAPI",VLOOKUP('RESUMO MODULO TOTAL'!C12,'COMP Sint. Sinapi'!G:M,5,0)*(1+$F$6),IF(B12="ORSE",VLOOKUP(C12,ORSE!A:E,5,0)*(1+$F$6),IF(B12="COTAÇÃO",VLOOKUP(C12,COTAÇÕES!A:E,5,0)*(1+$H$6),IF(B12="Codevasf.Aux",VLOOKUP(C12,Codevasf.Aux!B:J,9,0)*(1+$F$6),IF(B12="SINAPI INS.",VLOOKUP(C12,'INSUMOS SINAPI'!A:E,5,0)*(1+$H$6)))))))) -> 1388.69 | H12: =TRUNC(F12*G12,2) -> 19441.66 | J12: =H12/$H$132 -> 0.0008
A13: 5 | B13: Codevasf | C13: CPU-29 | D13: Veículo para apoio a fiscalização da Codevasf | E13: mês | F13: 12 | G13: =IF(B13="Codevasf",VLOOKUP(C13,'CPU CODEVASF'!E:H,4,0),IF(B13="SICRO",VLOOKUP(C13,'SINTÉTICO SICRO'!A:D,4,0)*(1+$F$6),IF(B13="SINAPI",VLOOKUP('RESUMO MODULO TOTAL'!C13,'COMP Sint. Sinapi'!G:M,5,0)*(1+$F$6),IF(B13="ORSE",VLOOKUP(C13,ORSE!A:E,5,0)*(1+$F$6),IF(B13="COTAÇÃO",VLOOKUP(C13,COTAÇÕES!A:E,5,0)*(1+$H$6),IF(B13="Codevasf.Aux",VLOOKUP(C13,Codevasf.Aux!B:J,9,0)*(1+$F$6),IF(B13="SINAPI INS.",VLOOKUP(C13,'INSUMOS SINAPI'!A:E,5,0)*(1+$H$6)))))))) -> 10245.56 | H13: =TRUNC(F13*G13,2) -> 122946.72
D14: SERVIÇOS INICIAIS
A15: =A13+1 -> 6 | B15: Codevasf | C15: CPU-16 | D15: Serviços topográficos para pavimentação, inclusive notas de serviços, acompanhamento e greide | E15: m² | F15: ='[3]Planilha unificada'!$T$79+'[3]Planilha unificada'!$T$82+'[3]Planilha unificada'!$T$85+'[3]Planilha unificada'!$T$87 -> 44047.5 | G15: =IF(B15="Codevasf",VLOOKUP(C15,'CPU CODEVASF'!E:H,4,0),IF(B15="SICRO",VLOOKUP(C15,'SINTÉTICO SICRO'!A:D,4,0)*(1+$F$6),IF(B15="SINAPI",VLOOKUP('RESUMO MODULO TOTAL'!C15,'COMP Sint. Sinapi'!G:M,5,0)*(1+$F$6),IF(B15="ORSE",VLOOKUP(C15,ORSE!A:E,5,0)*(1+$F$6),IF(B15="COTAÇÃO",VLOOKUP(C15,COTAÇÕES!A:E,5,0)*(1+$H$6),IF(B15="Codevasf.Aux",VLOOKUP(C15,Codevasf.Aux!B:J,9,0)*(1+$F$6),IF(B15="SINAPI INS.",VLOOKUP(C15,'INSUMOS SINAPI'!A:E,5,0)*(1+$H$6)))))))) -> 0.55 | H15: =TRUNC(F15*G15,2) -> 24226.12
A16: =A15+1 -> 7 | B16: Codevasf | C16: CPU-22 | D16: Fornecimento e montagem de tela de sinalização laranja (H=1,20m) | E16: m | F16: ='[3]Planilha unificada'!$T$26 -> 9884.69 | G16: =IF(B16="Codevasf",VLOOKUP(C16,'CPU CODEVASF'!E:H,4,0),IF(B16="SICRO",VLOOKUP(C16,'SINTÉTICO SICRO'!A:D,4,0)*(1+$F$6),IF(B16="SINAPI",VLOOKUP('RESUMO MODULO TOTAL'!C16,'COMP Sint. Sinapi'!G:M,5,0)*(1+$F$6),IF(B16="ORSE",VLOOKUP(C16,ORSE!A:E,5,0)*(1+$F$6),IF(B16="COTAÇÃO",VLOOKUP(C16,COTAÇÕES!A:E,5,0)*(1+$H$6),IF(B16="Codevasf.Aux",VLOOKUP(C16,Codevasf.Aux!B:J,9,0)*(1+$F$6),IF(B16="SINAPI INS.",VLOOKUP(C16,'INSUMOS SINAPI'!A:E,5,0)*(1+$H$6)))))))) -> 19.91 | H16: 196804.17
A17: =A16+1 -> 8 | B17: Codevasf | C17: CPU-23 | D17: Fornecimento e implantação de cavalete de sinalização de obras | E17: UND | F17: ='[3]Planilha unificada'!$T$27 -> 35 | G17: =IF(B17="Codevasf",VLOOKUP(C17,'CPU CODEVASF'!E:H,4,0),IF(B17="SICRO",VLOOKUP(C17,'SINTÉTICO SICRO'!A:D,4,0)*(1+$F$6),IF(B17="SINAPI",VLOOKUP('RESUMO MODULO TOTAL'!C17,'COMP Sint. Sinapi'!G:M,5,0)*(1+$F$6),IF(B17="ORSE",VLOOKUP(C17,ORSE!A:E,5,0)*(1+$F$6),IF(B17="COTAÇÃO",VLOOKUP(C17,COTAÇÕES!A:E,5,0)*(1+$H$6),IF(B17="Codevasf.Aux",VLOOKUP(C17,Codevasf.Aux!B:J,9,0)*(1+$F$6),IF(B17="SINAPI INS.",VLOOKUP(C17,'INSUMOS SINAPI'!A:E,5,0)*(1+$H$6)))))))) -> 17.13 | H17: 599.55
A18: 9 | B18: SICRO | C18: 5213835 | D18: Cone plastico para sinalização | E18: unid.dia | F18: =F19 -> 836 | G18: =IF(B18="Codevasf",VLOOKUP(C18,'CPU CODEVASF'!E:H,4,0),IF(B18="SICRO",VLOOKUP(C18,'SINTÉTICO SICRO'!A:D,4,0)*(1+$F$6),IF(B18="SINAPI",VLOOKUP('RESUMO MODULO TOTAL'!C18,'COMP Sint. Sinapi'!G:M,5,0)*(1+$F$6),IF(B18="ORSE",VLOOKUP(C18,ORSE!A:E,5,0)*(1+$F$6),IF(B18="COTAÇÃO",VLOOKUP(C18,COTAÇÕES!A:E,5,0)*(1+$H$6),IF(B18="Codevasf.Aux",VLOOKUP(C18,Codevasf.Aux!B:J,9,0)*(1+$F$6),IF(B18="SINAPI INS.",VLOOKUP(C18,'INSUMOS SINAPI'!A:E,5,0)*(1+$H$6)))))))) -> 1.01 | H18: 844.36
A19: 10 | B19: SICRO | C19: 5213383 | D19: Cavalete zebrado | E19: unid.dia | F19: ='[3]Planilha unificada'!$T$20*22 -> 836 | G19: =IF(B19="Codevasf",VLOOKUP(C19,'CPU CODEVASF'!E:H,4,0),IF(B19="SICRO",VLOOKUP(C19,'SINTÉTICO SICRO'!A:D,4,0)*(1+$F$6),IF(B19="SINAPI",VLOOKUP('RESUMO MODULO TOTAL'!C19,'COMP Sint. Sinapi'!G:M,5,0)*(1+$F$6),IF(B19="ORSE",VLOOKUP(C19,ORSE!A:E,5,0)*(1+$F$6),IF(B19="COTAÇÃO",VLOOKUP(C19,COTAÇÕES!A:E,5,0)*(1+$H$6),IF(B19="Codevasf.Aux",VLOOKUP(C19,Codevasf.Aux!B:J,9,0)*(1+$F$6),IF(B19="SINAPI INS.",VLOOKUP(C19,'INSUMOS SINAPI'!A:E,5,0)*(1+$H$6)))))))) -> 1.01 | H19: 844.36
A20: 11 | B20: SINAPI | C20: ="99061" -> 99061 | D20: LOCAÇÃO COM CAVALETE COM ALTURA DE 0,50 M - 2 UTILIZAÇÕES. AF_10/2018 | E20: UND | F20: ='[3]Planilha unificada'!$T$30 -> 48 | G20: =IF(B20="Codevasf",VLOOKUP(C20,'CPU CODEVASF'!E:H,4,0),IF(B20="SICRO",VLOOKUP(C20,'SINTÉTICO SICRO'!A:D,4,0)*(1+$F$6),IF(B20="SINAPI",VLOOKUP('RESUMO MODULO TOTAL'!C20,'COMP Sint. Sinapi'!G:M,5,0)*(1+$F$6),IF(B20="ORSE",VLOOKUP(C20,ORSE!A:E,5,0)*(1+$F$6),IF(B20="COTAÇÃO",VLOOKUP(C20,COTAÇÕES!A:E,5,0)*(1+$H$6),IF(B20="Codevasf.Aux",VLOOKUP(C20,Codevasf.Aux!B:J,9,0)*(1+$F$6),IF(B20="SINAPI INS.",VLOOKUP(C20,'INSUMOS SINAPI'!A:E,5,0)*(1+$H$6)))))))) -> 133.15 | H20: 6391.2
D21: PROJETO EXECUTIVO E CONTROLE TECNOLÓGICO
A22: 12 | B22: Codevasf | C22: CPU-20 | D22: Projeto Executivo | E22: m² | F22: =F15 -> 44047.5 | G22: =IF(B22="Codevasf",VLOOKUP(C22,'CPU CODEVASF'!E:H,4,0),IF(B22="SICRO",VLOOKUP(C22,'SINTÉTICO SICRO'!A:D,4,0)*(1+$F$6),IF(B22="SINAPI",VLOOKUP('RESUMO MODULO TOTAL'!C22,'COMP Sint. Sinapi'!G:M,5,0)*(1+$F$6),IF(B22="ORSE",VLOOKUP(C22,ORSE!A:E,5,0)*(1+$F$6),IF(B22="COTAÇÃO",VLOOKUP(C22,COTAÇÕES!A:E,5,0)*(1+$H$6),IF(B22="Codevasf.Aux",VLOOKUP(C22,Codevasf.Aux!B:J,9,0)*(1+$F$6),IF(B22="SINAPI INS.",VLOOKUP(C22,'INSUMOS SINAPI'!A:E,5,0)*(1+$H$6)))))))) -> 3.09 | H22: =TRUNC(F22*G22,2) -> 136106.77
A23: 13 | B23: Codevasf | C23: CPU-21 | D23: Controle Tecnológico | E23: m² | F23: =F15 -> 44047.5 | G23: =IF(B23="Codevasf",VLOOKUP(C23,'CPU CODEVASF'!E:H,4,0),IF(B23="SICRO",VLOOKUP(C23,'SINTÉTICO SICRO'!A:D,4,0)*(1+$F$6),IF(B23="SINAPI",VLOOKUP('RESUMO MODULO TOTAL'!C23,'COMP Sint. Sinapi'!G:M,5,0)*(1+$F$6),IF(B23="ORSE",VLOOKUP(C23,ORSE!A:E,5,0)*(1+$F$6),IF(B23="COTAÇÃO",VLOOKUP(C23,COTAÇÕES!A:E,5,0)*(1+$H$6),IF(B23="Codevasf.Aux",VLOOKUP(C23,Codevasf.Aux!B:J,9,0)*(1+$F$6),IF(B23="SINAPI INS.",VLOOKUP(C23,'INSUMOS SINAPI'!A:E,5,0)*(1+$H$6)))))))) -> 5.55 | H23: =TRUNC(F23*G23,2) -> 244463.62
D24: DEMOLIÇÕES | J24: =H24/$H$132 -> 0
A25: =A23+1 -> 14 | B25: ORSE | C25: ="21" -> 21 | D25: Demolição de meio-fio granítico ou pre-moldado | E25: m | F25: ='[3]Planilha unificada'!$T$32 -> 1086.14 | G25: =IF(B25="Codevasf",VLOOKUP(C25,'CPU CODEVASF'!E:H,4,0),IF(B25="SICRO",VLOOKUP(C25,'SINTÉTICO SICRO'!A:D,4,0)*(1+$F$6),IF(B25="SINAPI",VLOOKUP('RESUMO MODULO TOTAL'!C25,'COMP Sint. Sinapi'!G:M,5,0)*(1+$F$6),IF(B25="ORSE",VLOOKUP(C25,ORSE!A:E,5,0)*(1+$F$6),IF(B25="COTAÇÃO",VLOOKUP(C25,COTAÇÕES!A:E,5,0)*(1+$H$6),IF(B25="Codevasf.Aux",VLOOKUP(C25,Codevasf.Aux!B:J,9,0)*(1+$F$6),IF(B25="SINAPI INS.",VLOOKUP(C25,'INSUMOS SINAPI'!A:E,5,0)*(1+$H$6)))))))) -> 14.26 | H25: =TRUNC(F25*G25,2) -> 15488.35 | J25: =H25/$H$132 -> 0.0006
A26: =A25+1 -> 15 | B26: ORSE | C26: 9182 | D26: Demolição de concreto com martelete e compressor | E26: m³ | F26: ='[3]Planilha unificada'!$T$33 -> 258.73 | G26: =IF(B26="Codevasf",VLOOKUP(C26,'CPU CODEVASF'!E:H,4,0),IF(B26="SICRO",VLOOKUP(C26,'SINTÉTICO SICRO'!A:D,4,0)*(1+$F$6),IF(B26="SINAPI",VLOOKUP('RESUMO MODULO TOTAL'!C26,'COMP Sint. Sinapi'!G:M,5,0)*(1+$F$6),IF(B26="ORSE",VLOOKUP(C26,ORSE!A:E,5,0)*(1+$F$6),IF(B26="COTAÇÃO",VLOOKUP(C26,COTAÇÕES!A:E,5,0)*(1+$H$6),IF(B26="Codevasf.Aux",VLOOKUP(C26,Codevasf.Aux!B:J,9,0)*(1+$F$6),IF(B26="SINAPI INS.",VLOOKUP(C26,'INSUMOS SINAPI'!A:E,5,0)*(1+$H$6)))))))) -> 117.8 | H26: 30478.39
A27: =A26+1 -> 16 | B27: ORSE | C27: 7989 | D27: Demolição de pavimentação em paralelepípedo sem reaproveitamento | E27: m² | F27: ='[3]Planilha unificada'!$T$34 -> 237.34 | G27: =IF(B27="Codevasf",VLOOKUP(C27,'CPU CODEVASF'!E:H,4,0),IF(B27="SICRO",VLOOKUP(C27,'SINTÉTICO SICRO'!A:D,4,0)*(1+$F$6),IF(B27="SINAPI",VLOOKUP('RESUMO MODULO TOTAL'!C27,'COMP Sint. Sinapi'!G:M,5,0)*(1+$F$6),IF(B27="ORSE",VLOOKUP(C27,ORSE!A:E,5,0)*(1+$F$6),IF(B27="COTAÇÃO",VLOOKUP(C27,COTAÇÕES!A:E,5,0)*(1+$H$6),IF(B27="Codevasf.Aux",VLOOKUP(C27,Codevasf.Aux!B:J,9,0)*(1+$F$6),IF(B27="SINAPI INS.",VLOOKUP(C27,'INSUMOS SINAPI'!A:E,5,0)*(1+$H$6)))))))) -> 17.09 | H27: 4056.14
A28: 17 | B28: ORSE | C28: 3258 | D28: Demolição de piso em lajota | E28: m² | F28: ='[3]Planilha unificada'!$T$35 -> 375.14 | G28: =IF(B28="Codevasf",VLOOKUP(C28,'CPU CODEVASF'!E:H,4,0),IF(B28="SICRO",VLOOKUP(C28,'SINTÉTICO SICRO'!A:D,4,0)*(1+$F$6),IF(B28="SINAPI",VLOOKUP('RESUMO MODULO TOTAL'!C28,'COMP Sint. Sinapi'!G:M,5,0)*(1+$F$6),IF(B28="ORSE",VLOOKUP(C28,ORSE!A:E,5,0)*(1+$F$6),IF(B28="COTAÇÃO",VLOOKUP(C28,COTAÇÕES!A:E,5,0)*(1+$H$6),IF(B28="Codevasf.Aux",VLOOKUP(C28,Codevasf.Aux!B:J,9,0)*(1+$F$6),IF(B28="SINAPI INS.",VLOOKUP(C28,'INSUMOS SINAPI'!A:E,5,0)*(1+$H$6)))))))) -> 18.37 | H28: 6891.32
A29: 18 | B29: SINAPI | C29: ="97624" -> 97624 | D29: Demolição manual de alvenaria de tijolo maciço (s/ reaproveitamento) | E29: m³ | F29: ='[3]Planilha unificada'!$T$36 -> 162.83 | G29: =IF(B29="Codevasf",VLOOKUP(C29,'CPU CODEVASF'!E:H,4,0),IF(B29="SICRO",VLOOKUP(C29,'SINTÉTICO SICRO'!A:D,4,0)*(1+$F$6),IF(B29="SINAPI",VLOOKUP('RESUMO MODULO TOTAL'!C29,'COMP Sint. Sinapi'!G:M,5,0)*(1+$F$6),IF(B29="ORSE",VLOOKUP(C29,ORSE!A:E,5,0)*(1+$F$6),IF(B29="COTAÇÃO",VLOOKUP(C29,COTAÇÕES!A:E,5,0)*(1+$H$6),IF(B29="Codevasf.Aux",VLOOKUP(C29,Codevasf.Aux!B:J,9,0)*(1+$F$6),IF(B29="SINAPI INS.",VLOOKUP(C29,'INSUMOS SINAPI'!A:E,5,0)*(1+$H$6)))))))) -> 130.15 | H29: 21192.32
A30: 19 | B30: ORSE | C30: 4801 | D30: Demolição de piso em pedra calcárea | E30: m² | F30: ='[3]Planilha unificada'!$T$37 -> 39.94 | G30: =IF(B30="Codevasf",VLOOKUP(C30,'CPU CODEVASF'!E:H,4,0),IF(B30="SICRO",VLOOKUP(C30,'SINTÉTICO SICRO'!A:D,4,0)*(1+$F$6),IF(B30="SINAPI",VLOOKUP('RESUMO MODULO TOTAL'!C30,'COMP Sint. Sinapi'!G:M,5,0)*(1+$F$6),IF(B30="ORSE",VLOOKUP(C30,ORSE!A:E,5,0)*(1+$F$6),IF(B30="COTAÇÃO",VLOOKUP(C30,COTAÇÕES!A:E,5,0)*(1+$H$6),IF(B30="Codevasf.Aux",VLOOKUP(C30,Codevasf.Aux!B:J,9,0)*(1+$F$6),IF(B30="SINAPI INS.",VLOOKUP(C30,'INSUMOS SINAPI'!A:E,5,0)*(1+$H$6)))))))) -> 37.04 | H30: 1479.37
A31: 20 | B31: SINAPI | C31: ="97629" -> 97629 | D31: Demolição de lajes com martele (sem reaproveitamento) | E31: m³ | F31: ='[3]Planilha unificada'!$T$38*2.13 -> 19.17 | G31: =IF(B31="Codevasf",VLOOKUP(C31,'CPU CODEVASF'!E:H,4,0),IF(B31="SICRO",VLOOKUP(C31,'SINTÉTICO SICRO'!A:D,4,0)*(1+$F$6),IF(B31="SINAPI",VLOOKUP('RESUMO MODULO TOTAL'!C31,'COMP Sint. Sinapi'!G:M,5,0)*(1+$F$6),IF(B31="ORSE",VLOOKUP(C31,ORSE!A:E,5,0)*(1+$F$6),IF(B31="COTAÇÃO",VLOOKUP(C31,COTAÇÕES!A:E,5,0)*(1+$H$6),IF(B31="Codevasf.Aux",VLOOKUP(C31,Codevasf.Aux!B:J,9,0)*(1+$F$6),IF(B31="SINAPI INS.",VLOOKUP(C31,'INSUMOS SINAPI'!A:E,5,0)*(1+$H$6)))))))) -> 122.56 | H31: 2349.47
A32: 21 | B32: SINAPI | C32: ="97634" -> 97634 | D32: Demolição de revestimento cerâmico com martele (sem reaproveitamento) | E32: m² | F32: ='[3]Planilha unificada'!$T$39 -> 212.69 | G32: =IF(B32="Codevasf",VLOOKUP(C32,'CPU CODEVASF'!E:H,4,0),IF(B32="SICRO",VLOOKUP(C32,'SINTÉTICO SICRO'!A:D,4,0)*(1+$F$6),IF(B32="SINAPI",VLOOKUP('RESUMO MODULO TOTAL'!C32,'COMP Sint. Sinapi'!G:M,5,0)*(1+$F$6),IF(B32="ORSE",VLOOKUP(C32,ORSE!A:E,5,0)*(1+$F$6),IF(B32="COTAÇÃO",VLOOKUP(C32,COTAÇÕES!A:E,5,0)*(1+$H$6),IF(B32="Codevasf.Aux",VLOOKUP(C32,Codevasf.Aux!B:J,9,0)*(1+$F$6),IF(B32="SINAPI INS.",VLOOKUP(C32,'INSUMOS SINAPI'!A:E,5,0)*(1+$H$6)))))))) -> 9.29 | H32: 1975.89
A33: =A32+1 -> 22 | B33: SINAPI | C33: ="98530" -> 98530 | D33: Corte raso e recorte de árvore | E33: und | F33: ='[3]Planilha unificada'!$T$40 -> 1 | G33: =IF(B33="Codevasf",VLOOKUP(C33,'CPU CODEVASF'!E:H,4,0),IF(B33="SICRO",VLOOKUP(C33,'SINTÉTICO SICRO'!A:D,4,0)*(1+$F$6),IF(B33="SINAPI",VLOOKUP('RESUMO MODULO TOTAL'!C33,'COMP Sint. Sinapi'!G:M,5,0)*(1+$F$6),IF(B33="ORSE",VLOOKUP(C33,ORSE!A:E,5,0)*(1+$F$6),IF(B33="COTAÇÃO",VLOOKUP(C33,COTAÇÕES!A:E,5,0)*(1+$H$6),IF(B33="Codevasf.Aux",VLOOKUP(C33,Codevasf.Aux!B:J,9,0)*(1+$F$6),IF(B33="SINAPI INS.",VLOOKUP(C33,'INSUMOS SINAPI'!A:E,5,0)*(1+$H$6)))))))) -> 152.74 | H33: 152.74
A34: 23 | B34: SINAPI | C34: ="100983" -> 100983 | D34: CARGA, MANOBRA E DESCARGA DE ENTULHO EM CAMINHÃO BASCULANTE 14 M³ | E34: m³ | F34: =F31+F29+F26 -> 440.73 | G34: =IF(B34="Codevasf",VLOOKUP(C34,'CPU CODEVASF'!E:H,4,0),IF(B34="SICRO",VLOOKUP(C34,'SINTÉTICO SICRO'!A:D,4,0)*(1+$F$6),IF(B34="SINAPI",VLOOKUP('RESUMO MODULO TOTAL'!C34,'COMP Sint. Sinapi'!G:M,5,0)*(1+$F$6),IF(B34="ORSE",VLOOKUP(C34,ORSE!A:E,5,0)*(1+$F$6),IF(B34="COTAÇÃO",VLOOKUP(C34,COTAÇÕES!A:E,5,0)*(1+$H$6),IF(B34="Codevasf.Aux",VLOOKUP(C34,Codevasf.Aux!B:J,9,0)*(1+$F$6),IF(B34="SINAPI INS.",VLOOKUP(C34,'INSUMOS SINAPI'!A:E,5,0)*(1+$H$6)))))))) -> 11.38 | H34: 5015.5
A35: 24 | B35: SINAPI | C35: ="95876" -> 95876 | D35: TRANSPORTE COM CAMINHÃO BASCULANTE DE 14 M³, EM VIA URBANA PAVIMENTADA, DMT ATÉ 30 KM | E35: m³xkm | F35: =((F31+F29+F26))*30 -> 13221.9 | G35: =IF(B35="Codevasf",VLOOKUP(C35,'CPU CODEVASF'!E:H,4,0),IF(B35="SICRO",VLOOKUP(C35,'SINTÉTICO SICRO'!A:D,4,0)*(1+$F$6),IF(B35="SINAPI",VLOOKUP('RESUMO MODULO TOTAL'!C35,'COMP Sint. Sinapi'!G:M,5,0)*(1+$F$6),IF(B35="ORSE",VLOOKUP(C35,ORSE!A:E,5,0)*(1+$F$6),IF(B35="COTAÇÃO",VLOOKUP(C35,COTAÇÕES!A:E,5,0)*(1+$H$6),IF(B35="Codevasf.Aux",VLOOKUP(C35,Codevasf.Aux!B:J,9,0)*(1+$F$6),IF(B35="SINAPI INS.",VLOOKUP(C35,'INSUMOS SINAPI'!A:E,5,0)*(1+$H$6)))))))) -> 2.67 | H35: 35302.47
D36: TERRAPLENAGEM E MOVIMENTO DE TERRA
A37: =A35+1 -> 25 | B37: SICRO | C37: 5502166 | D37: Escavação, carga e transporte de material de 1ª categoria - DMT de 1.000 a 1.200 m - caminho de serviço pavimentado- com escavadeira e caminhão basculante de 14 m³ | E37: m³ | F37: ='[3]Planilha unificada'!$T$44 -> 18711.42 | G37: =IF(B37="Codevasf",VLOOKUP(C37,'CPU CODEVASF'!E:H,4,0),IF(B37="SICRO",VLOOKUP(C37,'SINTÉTICO SICRO'!A:D,4,0)*(1+$F$6),IF(B37="SINAPI",VLOOKUP('RESUMO MODULO TOTAL'!C37,'COMP Sint. Sinapi'!G:M,5,0)*(1+$F$6),IF(B37="ORSE",VLOOKUP(C37,ORSE!A:E,5,0)*(1+$F$6),IF(B37="COTAÇÃO",VLOOKUP(C37,COTAÇÕES!A:E,5,0)*(1+$H$6),IF(B37="Codevasf.Aux",VLOOKUP(C37,Codevasf.Aux!B:J,9,0)*(1+$F$6),IF(B37="SINAPI INS.",VLOOKUP(C37,'INSUMOS SINAPI'!A:E,5,0)*(1+$H$6)))))))) -> 7.27 | H37: =TRUNC(F37*G37,2) -> 136032.02
A38: =A37+1 -> 26 | B38: SINAPI | C38: ="96386" -> 96386 | D38: EXECUÇÃO E COMPACTAÇÃO DE ATERRO COM SOLO PREDOMINANTEMENTE ARENOSO - EXCLUSIVE SOLO, ESCAVAÇÃO, CARGA E TRANSPORTE. AF_11/2019 | E38: m³ | F38: ='[3]Planilha unificada'!$T$45 -> 902.11 | G38: =IF(B38="Codevasf",VLOOKUP(C38,'CPU CODEVASF'!E:H,4,0),IF(B38="SICRO",VLOOKUP(C38,'SINTÉTICO SICRO'!A:D,4,0)*(1+$F$6),IF(B38="SINAPI",VLOOKUP('RESUMO MODULO TOTAL'!C38,'COMP Sint. Sinapi'!G:M,5,0)*(1+$F$6),IF(B38="ORSE",VLOOKUP(C38,ORSE!A:E,5,0)*(1+$F$6),IF(B38="COTAÇÃO",VLOOKUP(C38,COTAÇÕES!A:E,5,0)*(1+$H$6),IF(B38="Codevasf.Aux",VLOOKUP(C38,Codevasf.Aux!B:J,9,0)*(1+$F$6),IF(B38="SINAPI INS.",VLOOKUP(C38,'INSUMOS SINAPI'!A:E,5,0)*(1+$H$6)))))))) -> 11.56 | H38: =TRUNC(F38*G38,2) -> 10428.39
A39: =A38+1 -> 27 | B39: SINAPI INS. | C39: 368 | D39: =VLOOKUP(C39,'INSUMOS SINAPI'!A:E,2,0) -> AREIA PARA ATERRO - POSTO JAZIDA/FORNECEDOR (RETIRADO NA JAZIDA, SEM TRANSPORTE) | E39: m³ | F39: =F38*1.25 -> 1127.64 | G39: =IF(B39="Codevasf",VLOOKUP(C39,'CPU CODEVASF'!E:H,4,0),IF(B39="SICRO",VLOOKUP(C39,'SINTÉTICO SICRO'!A:D,4,0)*(1+$F$6),IF(B39="SINAPI",VLOOKUP('RESUMO MODULO TOTAL'!C39,'COMP Sint. Sinapi'!G:M,5,0)*(1+$F$6),IF(B39="ORSE",VLOOKUP(C39,ORSE!A:E,5,0)*(1+$F$6),IF(B39="COTAÇÃO",VLOOKUP(C39,COTAÇÕES!A:E,5,0)*(1+$H$6),IF(B39="Codevasf.Aux",VLOOKUP(C39,Codevasf.Aux!B:J,9,0)*(1+$F$6),IF(B39="SINAPI INS.",VLOOKUP(C39,'INSUMOS SINAPI'!A:E,5,0)*(1+$H$6)))))))) -> 74.75 | H39: =TRUNC(F39*G39,2) -> 84291.09
A40: 28 | B40: SINAPI | C40: ="100983" -> 100983 | D40: CARGA, MANOBRA E DESCARGA DE SOLO EM CAMINHÃO BASCULANTE 14 M³ | E40: m³ | F40: ='[3]Planilha unificada'!$T$46 -> 23389.31 | G40: =IF(B40="Codevasf",VLOOKUP(C40,'CPU CODEVASF'!E:H,4,0),IF(B40="SICRO",VLOOKUP(C40,'SINTÉTICO SICRO'!A:D,4,0)*(1+$F$6),IF(B40="SINAPI",VLOOKUP('RESUMO MODULO TOTAL'!C40,'COMP Sint. Sinapi'!G:M,5,0)*(1+$F$6),IF(B40="ORSE",VLOOKUP(C40,ORSE!A:E,5,0)*(1+$F$6),IF(B40="COTAÇÃO",VLOOKUP(C40,COTAÇÕES!A:E,5,0)*(1+$H$6),IF(B40="Codevasf.Aux",VLOOKUP(C40,Codevasf.Aux!B:J,9,0)*(1+$F$6),IF(B40="SINAPI INS.",VLOOKUP(C40,'INSUMOS SINAPI'!A:E,5,0)*(1+$H$6)))))))) -> 11.38 | H40: =TRUNC(F40*G40,2) -> 266170.34
A41: 29 | B41: SINAPI | C41: ="95876" -> 95876 | D41: TRANSPORTE COM CAMINHÃO BASCULANTE DE 14 M³, EM VIA URBANA PAVIMENTADA, DMT ATÉ 30 KM | E41: m³xkm | F41: =((11405.87))*30 -> 342176.1 | G41: =IF(B41="Codevasf",VLOOKUP(C41,'CPU CODEVASF'!E:H,4,0),IF(B41="SICRO",VLOOKUP(C41,'SINTÉTICO SICRO'!A:D,4,0)*(1+$F$6),IF(B41="SINAPI",VLOOKUP('RESUMO MODULO TOTAL'!C41,'COMP Sint. Sinapi'!G:M,5,0)*(1+$F$6),IF(B41="ORSE",VLOOKUP(C41,ORSE!A:E,5,0)*(1+$F$6),IF(B41="COTAÇÃO",VLOOKUP(C41,COTAÇÕES!A:E,5,0)*(1+$H$6),IF(B41="Codevasf.Aux",VLOOKUP(C41,Codevasf.Aux!B:J,9,0)*(1+$F$6),IF(B41="SINAPI INS.",VLOOKUP(C41,'INSUMOS SINAPI'!A:E,5,0)*(1+$H$6)))))))) -> 2.67 | H41: =TRUNC(F41*G41,2) -> 913610.18 | J41: =H41/$H$132 -> 0.0353
D42: DRENAGEM
A43: 30 | B43: SINAPI | C43: ="90746" -> 90746 | D43: ASSENTAMENTO DE TUBO DE PEAD CORRUGADO DE DUPLA PAREDE, DN 450 MM, JUNTA ELÁSTICA INTEGRADA (NÃO INCLUI FORNECIMENTO). AF_01/2021 | E43: m | F43: ='[3]Planilha unificada'!$T$49 -> 267.97 | G43: =IF(B43="Codevasf",VLOOKUP(C43,'CPU CODEVASF'!E:H,4,0),IF(B43="SICRO",VLOOKUP(C43,'SINTÉTICO SICRO'!A:D,4,0)*(1+$F$6),IF(B43="SINAPI",VLOOKUP('RESUMO MODULO TOTAL'!C43,'COMP Sint. Sinapi'!G:M,5,0)*(1+$F$6),IF(B43="ORSE",VLOOKUP(C43,ORSE!A:E,5,0)*(1+$F$6),IF(B43="COTAÇÃO",VLOOKUP(C43,COTAÇÕES!A:E,5,0)*(1+$H$6),IF(B43="Codevasf.Aux",VLOOKUP(C43,Codevasf.Aux!B:J,9,0)*(1+$F$6),IF(B43="SINAPI INS.",VLOOKUP(C43,'INSUMOS SINAPI'!A:E,5,0)*(1+$H$6)))))))) -> 5.11 | H43: =TRUNC(F43*G43,2) -> 1369.32
A44: =A43+1 -> 31 | B44: SINAPI INS. | C44: 41781 | D44: =VLOOKUP(C44,'INSUMOS SINAPI'!A:E,2,0) -> TUBO CORRUGADO PEAD, PAREDE DUPLA, INTERNA LISA, JEI, DN/DI *400* MM, PARA SANEAMENTO (DRENAGEM/ESGOTO) | E44: m | F44: =F43*1.05 -> 281.37 | G44: =IF(B44="Codevasf",VLOOKUP(C44,'CPU CODEVASF'!E:H,4,0),IF(B44="SICRO",VLOOKUP(C44,'SINTÉTICO SICRO'!A:D,4,0)*(1+$F$6),IF(B44="SINAPI",VLOOKUP('RESUMO MODULO TOTAL'!C44,'COMP Sint. Sinapi'!G:M,5,0)*(1+$F$6),IF(B44="ORSE",VLOOKUP(C44,ORSE!A:E,5,0)*(1+$F$6),IF(B44="COTAÇÃO",VLOOKUP(C44,COTAÇÕES!A:E,5,0)*(1+$H$6),IF(B44="Codevasf.Aux",VLOOKUP(C44,Codevasf.Aux!B:J,9,0)*(1+$F$6),IF(B44="SINAPI INS.",VLOOKUP(C44,'INSUMOS SINAPI'!A:E,5,0)*(1+$H$6)))))))) -> 804.82 | H44: 226452.2
A45: =A44+1 -> 32 | B45: SINAPI | C45: ="94872" -> 94872 | D45: ASSENTAMENTO DE TUBO DE PEAD CORRUGADO DE DUPLA PAREDE, DN 300 MM, JUNTA ELÁSTICA INTEGRADA (NÃO INCLUI FORNECIMENTO). AF_01/2021 | E45: m | F45: ='[3]Planilha unificada'!$T$50 -> 210.7 | G45: =IF(B45="Codevasf",VLOOKUP(C45,'CPU CODEVASF'!E:H,4,0),IF(B45="SICRO",VLOOKUP(C45,'SINTÉTICO SICRO'!A:D,4,0)*(1+$F$6),IF(B45="SINAPI",VLOOKUP('RESUMO MODULO TOTAL'!C45,'COMP Sint. Sinapi'!G:M,5,0)*(1+$F$6),IF(B45="ORSE",VLOOKUP(C45,ORSE!A:E,5,0)*(1+$F$6),IF(B45="COTAÇÃO",VLOOKUP(C45,COTAÇÕES!A:E,5,0)*(1+$H$6),IF(B45="Codevasf.Aux",VLOOKUP(C45,Codevasf.Aux!B:J,9,0)*(1+$F$6),IF(B45="SINAPI INS.",VLOOKUP(C45,'INSUMOS SINAPI'!A:E,5,0)*(1+$H$6)))))))) -> 3.41 | H45: 718.48
A46: 33 | B46: SINAPI INS. | C46: 41780 | D46: =VLOOKUP(C46,'INSUMOS SINAPI'!A:E,2,0) -> TUBO CORRUGADO PEAD, PAREDE DUPLA, INTERNA LISA, JEI, DN/DI 300 MM, PARA SANEAMENTO (DRENAGEM/ESGOTO) | E46: m | F46: =F45*1.05 -> 221.24 | G46: =IF(B46="Codevasf",VLOOKUP(C46,'CPU CODEVASF'!E:H,4,0),IF(B46="SICRO",VLOOKUP(C46,'SINTÉTICO SICRO'!A:D,4,0)*(1+$F$6),IF(B46="SINAPI",VLOOKUP('RESUMO MODULO TOTAL'!C46,'COMP Sint. Sinapi'!G:M,5,0)*(1+$F$6),IF(B46="ORSE",VLOOKUP(C46,ORSE!A:E,5,0)*(1+$F$6),IF(B46="COTAÇÃO",VLOOKUP(C46,COTAÇÕES!A:E,5,0)*(1+$H$6),IF(B46="Codevasf.Aux",VLOOKUP(C46,Codevasf.Aux!B:J,9,0)*(1+$F$6),IF(B46="SINAPI INS.",VLOOKUP(C46,'INSUMOS SINAPI'!A:E,5,0)*(1+$H$6)))))))) -> 496.59 | H46: 109865.57
A47: 34 | B47: SINAPI | C47: ="90747" -> 90747 | D47: ASSENTAMENTO DE TUBO DE PEAD CORRUGADO DE DUPLA PAREDE, DN 600 MM, JUNTA ELÁSTICA INTEGRADA (NÃO INCLUI FORNECIMENTO). AF_01/2021 | E47: m | F47: ='[3]Planilha unificada'!$T$51 -> 1282.88 | G47: =IF(B47="Codevasf",VLOOKUP(C47,'CPU CODEVASF'!E:H,4,0),IF(B47="SICRO",VLOOKUP(C47,'SINTÉTICO SICRO'!A:D,4,0)*(1+$F$6),IF(B47="SINAPI",VLOOKUP('RESUMO MODULO TOTAL'!C47,'COMP Sint. Sinapi'!G:M,5,0)*(1+$F$6),IF(B47="ORSE",VLOOKUP(C47,ORSE!A:E,5,0)*(1+$F$6),IF(B47="COTAÇÃO",VLOOKUP(C47,COTAÇÕES!A:E,5,0)*(1+$H$6),IF(B47="Codevasf.Aux",VLOOKUP(C47,Codevasf.Aux!B:J,9,0)*(1+$F$6),IF(B47="SINAPI INS.",VLOOKUP(C47,'INSUMOS SINAPI'!A:E,5,0)*(1+$H$6)))))))) -> 22.9 | H47: 29377.95
A48: 35 | B48: SINAPI INS. | C48: 41782 | D48: =VLOOKUP(C48,'INSUMOS SINAPI'!A:E,2,0) -> TUBO CORRUGADO PEAD, PAREDE DUPLA, INTERNA LISA, JEI, DN/DI 600 MM, PARA SANEAMENTO (DRENAGEM/ESGOTO) | E48: m | F48: =F47*1.05 -> 1347.02 | G48: =IF(B48="Codevasf",VLOOKUP(C48,'CPU CODEVASF'!E:H,4,0),IF(B48="SICRO",VLOOKUP(C48,'SINTÉTICO SICRO'!A:D,4,0)*(1+$F$6),IF(B48="SINAPI",VLOOKUP('RESUMO MODULO TOTAL'!C48,'COMP Sint. Sinapi'!G:M,5,0)*(1+$F$6),IF(B48="ORSE",VLOOKUP(C48,ORSE!A:E,5,0)*(1+$F$6),IF(B48="COTAÇÃO",VLOOKUP(C48,COTAÇÕES!A:E,5,0)*(1+$H$6),IF(B48="Codevasf.Aux",VLOOKUP(C48,Codevasf.Aux!B:J,9,0)*(1+$F$6),IF(B48="SINAPI INS.",VLOOKUP(C48,'INSUMOS SINAPI'!A:E,5,0)*(1+$H$6)))))))) -> 1778.87 | H48: 2396173.46
A49: 36 | B49: Codevasf.Aux | C49: CPU-036 | D49: CAIXA COM GRELHA DE FIBRA DE VIDRO (PRFV) SIMPLES RETANGULAR, ALVENARIA COM BLOCO DE CONCRETO 22X11X8CM, DE UMA VEZ, DIMENSÕES INTERNAS DE 0,72X0,30X1,00M | E49: und | F49: ='[3]Planilha unificada'!$T$52 -> 79 | G49: =IF(B49="Codevasf",VLOOKUP(C49,'CPU CODEVASF'!E:H,4,0),IF(B49="SICRO",VLOOKUP(C49,'SINTÉTICO SICRO'!A:D,4,0)*(1+$F$6),IF(B49="SINAPI",VLOOKUP('RESUMO MODULO TOTAL'!C49,'COMP Sint. Sinapi'!G:M,5,0)*(1+$F$6),IF(B49="ORSE",VLOOKUP(C49,ORSE!A:E,5,0)*(1+$F$6),IF(B49="COTAÇÃO",VLOOKUP(C49,COTAÇÕES!A:E,5,0)*(1+$H$6),IF(B49="Codevasf.Aux",VLOOKUP(C49,Codevasf.Aux!B:J,9,0)*(1+$F$6),IF(B49="SINAPI INS.",VLOOKUP(C49,'INSUMOS SINAPI'!A:E,5,0)*(1+$H$6)))))))) -> 2887.51 | H49: 228113.29
A50: 37 | B50: Codevasf.Aux | C50: CPU 048 | D50: EXECUÇÃO DE CAIXA DE LIGAÇÃO PARA CANALETA EM ALVENARIA DE BLOCO DE CONCRETO 20X10X10, ASSENTADOS SOBRE LAJE DE CONCRETO ARMADO FCK 15 MPA, DIMENSÕES INTERNAS DE 40X40CM, REVESTIDO COM CHAPISCO E EMBOÇO, COM FUNDO EM LASTRO DE CONCRETO. | E50: und | F50: ='[3]Planilha unificada'!$T$53 -> 4 | G50: =IF(B50="Codevasf",VLOOKUP(C50,'CPU CODEVASF'!E:H,4,0),IF(B50="SICRO",VLOOKUP(C50,'SINTÉTICO SICRO'!A:D,4,0)*(1+$F$6),IF(B50="SINAPI",VLOOKUP('RESUMO MODULO TOTAL'!C50,'COMP Sint. Sinapi'!G:M,5,0)*(1+$F$6),IF(B50="ORSE",VLOOKUP(C50,ORSE!A:E,5,0)*(1+$F$6),IF(B50="COTAÇÃO",VLOOKUP(C50,COTAÇÕES!A:E,5,0)*(1+$H$6),IF(B50="Codevasf.Aux",VLOOKUP(C50,Codevasf.Aux!B:J,9,0)*(1+$F$6),IF(B50="SINAPI INS.",VLOOKUP(C50,'INSUMOS SINAPI'!A:E,5,0)*(1+$H$6)))))))) -> 2251.26 | H50: 9005.04
A51: 38 | B51: Codevasf.Aux | C51: CPU 102 | D51: CONSTRUÇÃO DE CAIXA COLETORA GAVETA EM ALVENARIA DE BLOCOS ESTRUTURAL DE CONCRETO 4,5 MPA, NAS DIMENSÕES INTERNAS 1,00 X 1,00 X 1,00 M, COM APLICAÇÃO DE CHAPISCO E EMBOÇO NAS FACES EXTERNAS E INTERNAS, INCLUINDO LAJE DE CONCRETO ARMADO DE 1,40 X 1,40 COM TAMPA REMOVÍVEL DE 0,80 X 0,80 M E CANTONEIRA DE AÇO, INCLUSIVE MEIO FIO DRENANTE CONFORME PROJETO. TIPO PARA VIAS LOCAIS. | E51: und | F51: ='[3]Planilha unificada'!$T$54 -> 84 | G51: =IF(B51="Codevasf",VLOOKUP(C51,'CPU CODEVASF'!E:H,4,0),IF(B51="SICRO",VLOOKUP(C51,'SINTÉTICO SICRO'!A:D,4,0)*(1+$F$6),IF(B51="SINAPI",VLOOKUP('RESUMO MODULO TOTAL'!C51,'COMP Sint. Sinapi'!G:M,5,0)*(1+$F$6),IF(B51="ORSE",VLOOKUP(C51,ORSE!A:E,5,0)*(1+$F$6),IF(B51="COTAÇÃO",VLOOKUP(C51,COTAÇÕES!A:E,5,0)*(1+$H$6),IF(B51="Codevasf.Aux",VLOOKUP(C51,Codevasf.Aux!B:J,9,0)*(1+$F$6),IF(B51="SINAPI INS.",VLOOKUP(C51,'INSUMOS SINAPI'!A:E,5,0)*(1+$H$6)))))))) -> 4593.54 | H51: 385857.36
A52: 39 | B52: Codevasf.Aux | C52: CPU 097 | D52: CONSTRUÇÃO DE CAIXA COLETORA GAVETA EM ALVENARIA DE BLOCOS ESTRUTURAL DE CONCRETO 4,5 MPA, NAS DIMENSÕES INTERNAS 1,00 X 1,00 X 1,00 M, COM APLICAÇÃO DE CHAPISCO E EMBOÇO NAS FACES EXTERNAS E INTERNAS, INCLUINDO LAJE DE CONCRETO ARMADO DE 1,40 X 1,40 COM TAMPA REMOVÍVEL DE 0,80 X 0,80 M E CANTONEIRA DE AÇO, INCLUSIVE MEIO FIO DRENANTE CONFORME PROJETO. TIPO PARA VIAS LOCAIS. | E52: und | F52: ='[3]Planilha unificada'!$T$55 -> 41 | G52: =IF(B52="Codevasf",VLOOKUP(C52,'CPU CODEVASF'!E:H,4,0),IF(B52="SICRO",VLOOKUP(C52,'SINTÉTICO SICRO'!A:D,4,0)*(1+$F$6),IF(B52="SINAPI",VLOOKUP('RESUMO MODULO TOTAL'!C52,'COMP Sint. Sinapi'!G:M,5,0)*(1+$F$6),IF(B52="ORSE",VLOOKUP(C52,ORSE!A:E,5,0)*(1+$F$6),IF(B52="COTAÇÃO",VLOOKUP(C52,COTAÇÕES!A:E,5,0)*(1+$H$6),IF(B52="Codevasf.Aux",VLOOKUP(C52,Codevasf.Aux!B:J,9,0)*(1+$F$6),IF(B52="SINAPI INS.",VLOOKUP(C52,'INSUMOS SINAPI'!A:E,5,0)*(1+$H$6)))))))) -> 7292.45 | H52: =TRUNC(F52*G52,2) -> 298990.45
A53: 40 | B53: Codevasf.Aux | C53: CPU 112 | D53: ACRÉSCIMO PARA POÇO DE VISITA RETANGULAR PARA DRENAGEM, EM ALVENARIA COM BLOCOS DE CONCRETO, DIMENSÕES INTERNAS = 1,0X1,0M. | E53: m | F53: ='[3]Planilha unificada'!$T$56 -> 5.7 | G53: =IF(B53="Codevasf",VLOOKUP(C53,'CPU CODEVASF'!E:H,4,0),IF(B53="SICRO",VLOOKUP(C53,'SINTÉTICO SICRO'!A:D,4,0)*(1+$F$6),IF(B53="SINAPI",VLOOKUP('RESUMO MODULO TOTAL'!C53,'COMP Sint. Sinapi'!G:M,5,0)*(1+$F$6),IF(B53="ORSE",VLOOKUP(C53,ORSE!A:E,5,0)*(1+$F$6),IF(B53="COTAÇÃO",VLOOKUP(C53,COTAÇÕES!A:E,5,0)*(1+$H$6),IF(B53="Codevasf.Aux",VLOOKUP(C53,Codevasf.Aux!B:J,9,0)*(1+$F$6),IF(B53="SINAPI INS.",VLOOKUP(C53,'INSUMOS SINAPI'!A:E,5,0)*(1+$H$6)))))))) -> 1595.4 | H53: 9093.78
A54: 41 | B54: Codevasf.Aux | C54: CPU 051 | D54: CANALETA EM CONCRETO ARMADO NAS DIMENSÕES 0,40M X 0,40, INCLUINDO LAJE DE TAMPA COM 20CM, CONFORME PROJETO DE CÁLCULO ESTRUTURAL (LINHA D'ÁGUA - TAMPA COM FUROS DN 50MM) | E54: m | F54: ='[3]Planilha unificada'!$T$57 -> 386.73 | G54: =IF(B54="Codevasf",VLOOKUP(C54,'CPU CODEVASF'!E:H,4,0),IF(B54="SICRO",VLOOKUP(C54,'SINTÉTICO SICRO'!A:D,4,0)*(1+$F$6),IF(B54="SINAPI",VLOOKUP('RESUMO MODULO TOTAL'!C54,'COMP Sint. Sinapi'!G:M,5,0)*(1+$F$6),IF(B54="ORSE",VLOOKUP(C54,ORSE!A:E,5,0)*(1+$F$6),IF(B54="COTAÇÃO",VLOOKUP(C54,COTAÇÕES!A:E,5,0)*(1+$H$6),IF(B54="Codevasf.Aux",VLOOKUP(C54,Codevasf.Aux!B:J,9,0)*(1+$F$6),IF(B54="SINAPI INS.",VLOOKUP(C54,'INSUMOS SINAPI'!A:E,5,0)*(1+$H$6)))))))) -> 1731.46 | H54: 669607.52
A55: 42 | B55: SINAPI | C55: ="102738" -> 102738 | D55: BOCA PARA BUEIRO SIMPLES TUBULAR D = 60 CM EM CONCRETO, ALAS COM ESCONSIDADE DE 0°, INCLUINDO FÔRMAS E MATERIAIS. AF_07/2021 | E55: und | F55: ='[3]Planilha unificada'!$T58 -> 2 | G55: =IF(B55="Codevasf",VLOOKUP(C55,'CPU CODEVASF'!E:H,4,0),IF(B55="SICRO",VLOOKUP(C55,'SINTÉTICO SICRO'!A:D,4,0)*(1+$F$6),IF(B55="SINAPI",VLOOKUP('RESUMO MODULO TOTAL'!C55,'COMP Sint. Sinapi'!G:M,5,0)*(1+$F$6),IF(B55="ORSE",VLOOKUP(C55,ORSE!A:E,5,0)*(1+$F$6),IF(B55="COTAÇÃO",VLOOKUP(C55,COTAÇÕES!A:E,5,0)*(1+$H$6),IF(B55="Codevasf.Aux",VLOOKUP(C55,Codevasf.Aux!B:J,9,0)*(1+$F$6),IF(B55="SINAPI INS.",VLOOKUP(C55,'INSUMOS SINAPI'!A:E,5,0)*(1+$H$6)))))))) -> 2790.05 | H55: =TRUNC(F55*G55,2) -> 5580.1
A56: 43 | B56: SINAPI | C56: ="90106" -> 90106 | D56: ESCAVAÇÃO MECANIZADA DE VALA COM PROFUNDIDADE ATÉ 1,5 M (MÉDIA MONTANTE E JUSANTE/UMA COMPOSIÇÃO POR TRECHO), RETROESCAV. (0,26 M3), LARGURA DE 0,8 M A 1,5 M, EM SOLO DE 1A CATEGORIA, LOCAIS COM BAIXO NÍVEL DE INTERFERÊNCIA. AF_02/2021 | E56: m³ | F56: ='[3]Planilha unificada'!$T59 -> 2647.79 | G56: =IF(B56="Codevasf",VLOOKUP(C56,'CPU CODEVASF'!E:H,4,0),IF(B56="SICRO",VLOOKUP(C56,'SINTÉTICO SICRO'!A:D,4,0)*(1+$F$6),IF(B56="SINAPI",VLOOKUP('RESUMO MODULO TOTAL'!C56,'COMP Sint. Sinapi'!G:M,5,0)*(1+$F$6),IF(B56="ORSE",VLOOKUP(C56,ORSE!A:E,5,0)*(1+$F$6),IF(B56="COTAÇÃO",VLOOKUP(C56,COTAÇÕES!A:E,5,0)*(1+$H$6),IF(B56="Codevasf.Aux",VLOOKUP(C56,Codevasf.Aux!B:J,9,0)*(1+$F$6),IF(B56="SINAPI INS.",VLOOKUP(C56,'INSUMOS SINAPI'!A:E,5,0)*(1+$H$6)))))))) -> 10.13 | H56: 26822.11
A57: 44 | B57: SINAPI | C57: ="90091" -> 90091 | D57: ESCAVAÇÃO MECANIZADA DE VALA COM PROF. ATÉ 1,5 M (MÉDIA MONTANTE E JUSANTE/UMA COMPOSIÇÃO POR TRECHO), ESCAVADEIRA (0,8 M3), LARG. DE 1,5 M A 2,5 M, EM SOLO DE 1A CATEGORIA, LOCAIS COM BAIXO NÍVEL DE INTERFERÊNCIA. AF_02/2021 | E57: m³ | F57: ='[3]Planilha unificada'!$T60 -> 1353.72 | G57: =IF(B57="Codevasf",VLOOKUP(C57,'CPU CODEVASF'!E:H,4,0),IF(B57="SICRO",VLOOKUP(C57,'SINTÉTICO SICRO'!A:D,4,0)*(1+$F$6),IF(B57="SINAPI",VLOOKUP('RESUMO MODULO TOTAL'!C57,'COMP Sint. Sinapi'!G:M,5,0)*(1+$F$6),IF(B57="ORSE",VLOOKUP(C57,ORSE!A:E,5,0)*(1+$F$6),IF(B57="COTAÇÃO",VLOOKUP(C57,COTAÇÕES!A:E,5,0)*(1+$H$6),IF(B57="Codevasf.Aux",VLOOKUP(C57,Codevasf.Aux!B:J,9,0)*(1+$F$6),IF(B57="SINAPI INS.",VLOOKUP(C57,'INSUMOS SINAPI'!A:E,5,0)*(1+$H$6)))))))) -> 7.98 | H57: 10802.68 | I57: EXTENSAO | J57: =F44+F46+F48 -> 1849.63
A58: 45 | B58: SINAPI | C58: ="101572" -> 101572 | D58: ESCORAMENTO DE VALA, TIPO PONTALETEAMENTO, COM PROFUNDIDADE DE 1,5 A 3,0 M, LARGURA MENOR QUE 1,5 M. AF_08/2020 | E58: m² | F58: =J58 -> 11097.78 | G58: =IF(B58="Codevasf",VLOOKUP(C58,'CPU CODEVASF'!E:H,4,0),IF(B58="SICRO",VLOOKUP(C58,'SINTÉTICO SICRO'!A:D,4,0)*(1+$F$6),IF(B58="SINAPI",VLOOKUP('RESUMO MODULO TOTAL'!C58,'COMP Sint. Sinapi'!G:M,5,0)*(1+$F$6),IF(B58="ORSE",VLOOKUP(C58,ORSE!A:E,5,0)*(1+$F$6),IF(B58="COTAÇÃO",VLOOKUP(C58,COTAÇÕES!A:E,5,0)*(1+$H$6),IF(B58="Codevasf.Aux",VLOOKUP(C58,Codevasf.Aux!B:J,9,0)*(1+$F$6),IF(B58="SINAPI INS.",VLOOKUP(C58,'INSUMOS SINAPI'!A:E,5,0)*(1+$H$6)))))))) -> 23.23 | H58: =TRUNC(F58*G58,2) -> 257801.42 | J58: =J57*3*2 -> 11097.78
A59: 46 | B59: SINAPI | C59: ="94342" -> 94342 | D59: ATERRO MANUAL DE VALAS COM AREIA PARA ATERRO E COMPACTAÇÃO MECANIZADA. AF_05/2016 | E59: m³ | F59: ='[3]Planilha unificada'!$T61 -> 2644.55 | G59: =IF(B59="Codevasf",VLOOKUP(C59,'CPU CODEVASF'!E:H,4,0),IF(B59="SICRO",VLOOKUP(C59,'SINTÉTICO SICRO'!A:D,4,0)*(1+$F$6),IF(B59="SINAPI",VLOOKUP('RESUMO MODULO TOTAL'!C59,'COMP Sint. Sinapi'!G:M,5,0)*(1+$F$6),IF(B59="ORSE",VLOOKUP(C59,ORSE!A:E,5,0)*(1+$F$6),IF(B59="COTAÇÃO",VLOOKUP(C59,COTAÇÕES!A:E,5,0)*(1+$H$6),IF(B59="Codevasf.Aux",VLOOKUP(C59,Codevasf.Aux!B:J,9,0)*(1+$F$6),IF(B59="SINAPI INS.",VLOOKUP(C59,'INSUMOS SINAPI'!A:E,5,0)*(1+$H$6)))))))) -> 144.21 | H59: 381370.55 | I59: ESCORAMENTO
A60: 47 | B60: SINAPI | C60: ="100983" -> 100983 | D60: CARGA, MANOBRA E DESCARGA DE ENTULHO EM CAMINHÃO BASCULANTE 14 M³ | E60: m³ | F60: ='[3]Planilha unificada'!$T62 -> 4893.85 | G60: =IF(B60="Codevasf",VLOOKUP(C60,'CPU CODEVASF'!E:H,4,0),IF(B60="SICRO",VLOOKUP(C60,'SINTÉTICO SICRO'!A:D,4,0)*(1+$F$6),IF(B60="SINAPI",VLOOKUP('RESUMO MODULO TOTAL'!C60,'COMP Sint. Sinapi'!G:M,5,0)*(1+$F$6),IF(B60="ORSE",VLOOKUP(C60,ORSE!A:E,5,0)*(1+$F$6),IF(B60="COTAÇÃO",VLOOKUP(C60,COTAÇÕES!A:E,5,0)*(1+$H$6),IF(B60="Codevasf.Aux",VLOOKUP(C60,Codevasf.Aux!B:J,9,0)*(1+$F$6),IF(B60="SINAPI INS.",VLOOKUP(C60,'INSUMOS SINAPI'!A:E,5,0)*(1+$H$6)))))))) -> 11.38 | H60: =TRUNC(F60*G60,2) -> 55692.01
A61: 48 | B61: SINAPI | C61: ="95876" -> 95876 | D61: TRANSPORTE COM CAMINHÃO BASCULANTE DE 14 M³, EM VIA URBANA PAVIMENTADA, DMT ATÉ 30 KM | E61: m³xkm | F61: ='[3]Planilha unificada'!$T63 -> 73407.75 | G61: =IF(B61="Codevasf",VLOOKUP(C61,'CPU CODEVASF'!E:H,4,0),IF(B61="SICRO",VLOOKUP(C61,'SINTÉTICO SICRO'!A:D,4,0)*(1+$F$6),IF(B61="SINAPI",VLOOKUP('RESUMO MODULO TOTAL'!C61,'COMP Sint. Sinapi'!G:M,5,0)*(1+$F$6),IF(B61="ORSE",VLOOKUP(C61,ORSE!A:E,5,0)*(1+$F$6),IF(B61="COTAÇÃO",VLOOKUP(C61,COTAÇÕES!A:E,5,0)*(1+$H$6),IF(B61="Codevasf.Aux",VLOOKUP(C61,Codevasf.Aux!B:J,9,0)*(1+$F$6),IF(B61="SINAPI INS.",VLOOKUP(C61,'INSUMOS SINAPI'!A:E,5,0)*(1+$H$6)))))))) -> 2.67 | H61: 195998.69
D62: PAVIMENTAÇÃO
A63: 49 | B63: SICRO | C63: 4011209 | D63: Reguarização e compactação so subleito | E63: m² | F63: ='[3]Planilha unificada'!$T65 -> 29818.53 | G63: =IF(B63="Codevasf",VLOOKUP(C63,'CPU CODEVASF'!E:H,4,0),IF(B63="SICRO",VLOOKUP(C63,'SINTÉTICO SICRO'!A:D,4,0)*(1+$F$6),IF(B63="SINAPI",VLOOKUP('RESUMO MODULO TOTAL'!C63,'COMP Sint. Sinapi'!G:M,5,0)*(1+$F$6),IF(B63="ORSE",VLOOKUP(C63,ORSE!A:E,5,0)*(1+$F$6),IF(B63="COTAÇÃO",VLOOKUP(C63,COTAÇÕES!A:E,5,0)*(1+$H$6),IF(B63="Codevasf.Aux",VLOOKUP(C63,Codevasf.Aux!B:J,9,0)*(1+$F$6),IF(B63="SINAPI INS.",VLOOKUP(C63,'INSUMOS SINAPI'!A:E,5,0)*(1+$H$6)))))))) -> 1.31 | H63: 39062.27
A64: =A63+1 -> 50 | B64: Codevasf.Aux | C64: CPU 079 | D64: EXECUÇÃO E COMPACTAÇÃO DE BASE E OU SUB BASE PARA PAVIMENTAÇÃO DE MACADAME HIDRÁULICO - EXCLUSIVE CARGA E TRANSPORTE. | E64: m³ | F64: ='[3]Planilha unificada'!$T66 -> 4578.26 | G64: =IF(B64="Codevasf",VLOOKUP(C64,'CPU CODEVASF'!E:H,4,0),IF(B64="SICRO",VLOOKUP(C64,'SINTÉTICO SICRO'!A:D,4,0)*(1+$F$6),IF(B64="SINAPI",VLOOKUP('RESUMO MODULO TOTAL'!C64,'COMP Sint. Sinapi'!G:M,5,0)*(1+$F$6),IF(B64="ORSE",VLOOKUP(C64,ORSE!A:E,5,0)*(1+$F$6),IF(B64="COTAÇÃO",VLOOKUP(C64,COTAÇÕES!A:E,5,0)*(1+$H$6),IF(B64="Codevasf.Aux",VLOOKUP(C64,Codevasf.Aux!B:J,9,0)*(1+$F$6),IF(B64="SINAPI INS.",VLOOKUP(C64,'INSUMOS SINAPI'!A:E,5,0)*(1+$H$6)))))))) -> 236.79 | H64: =TRUNC(F64*G64,2) -> 1084086.18 | J64: valor menor que SICRO
A65: =A64+1 -> 51 | B65: SINAPI | C65: ="96396" -> 96396 | D65: EXECUÇÃO E COMPACTAÇÃO DE BASE E OU SUB BASE PARA PAVIMENTAÇÃO DE BRITA GRADUADA SIMPLES - EXCLUSIVE CARGA E TRANSPORTE. AF_11/2019 | E65: m³ | F65: ='[3]Planilha unificada'!$T67 -> 5554.99 | G65: =IF(B65="Codevasf",VLOOKUP(C65,'CPU CODEVASF'!E:H,4,0),IF(B65="SICRO",VLOOKUP(C65,'SINTÉTICO SICRO'!A:D,4,0)*(1+$F$6),IF(B65="SINAPI",VLOOKUP('RESUMO MODULO TOTAL'!C65,'COMP Sint. Sinapi'!G:M,5,0)*(1+$F$6),IF(B65="ORSE",VLOOKUP(C65,ORSE!A:E,5,0)*(1+$F$6),IF(B65="COTAÇÃO",VLOOKUP(C65,COTAÇÕES!A:E,5,0)*(1+$H$6),IF(B65="Codevasf.Aux",VLOOKUP(C65,Codevasf.Aux!B:J,9,0)*(1+$F$6),IF(B65="SINAPI INS.",VLOOKUP(C65,'INSUMOS SINAPI'!A:E,5,0)*(1+$H$6)))))))) -> 222.66 | H65: =TRUNC(F65*G65,2) -> 1236874.07 | J65: valor menor que SICRO
A66: 52 | B66: SICRO | C66: 5503041 | D66: Compactação de aterros a 100% do Proctor intermediário | E66: m³ | F66: ='[3]Planilha unificada'!$T68 -> 210.41 | G66: =IF(B66="Codevasf",VLOOKUP(C66,'CPU CODEVASF'!E:H,4,0),IF(B66="SICRO",VLOOKUP(C66,'SINTÉTICO SICRO'!A:D,4,0)*(1+$F$6),IF(B66="SINAPI",VLOOKUP('RESUMO MODULO TOTAL'!C66,'COMP Sint. Sinapi'!G:M,5,0)*(1+$F$6),IF(B66="ORSE",VLOOKUP(C66,ORSE!A:E,5,0)*(1+$F$6),IF(B66="COTAÇÃO",VLOOKUP(C66,COTAÇÕES!A:E,5,0)*(1+$H$6),IF(B66="Codevasf.Aux",VLOOKUP(C66,Codevasf.Aux!B:J,9,0)*(1+$F$6),IF(B66="SINAPI INS.",VLOOKUP(C66,'INSUMOS SINAPI'!A:E,5,0)*(1+$H$6)))))))) -> 9.77 | H66: 2055.7
A67: 53 | B67: SICRO | C67: 5914351 | D67: Carga, manobra e descarga de agregados ou solos em caminhão basculante de 14 m³ - carga com carregadeira de 3,40 m³ e descarga livre | E67: t | F67: =('[3]Planilha unificada'!$T$69+'[3]Planilha unificada'!$T$70+'[3]Planilha unificada'!$T$71)*1.5 -> 22424.6 | G67: =IF(B67="Codevasf",VLOOKUP(C67,'CPU CODEVASF'!E:H,4,0),IF(B67="SICRO",VLOOKUP(C67,'SINTÉTICO SICRO'!A:D,4,0)*(1+$F$6),IF(B67="SINAPI",VLOOKUP('RESUMO MODULO TOTAL'!C67,'COMP Sint. Sinapi'!G:M,5,0)*(1+$F$6),IF(B67="ORSE",VLOOKUP(C67,ORSE!A:E,5,0)*(1+$F$6),IF(B67="COTAÇÃO",VLOOKUP(C67,COTAÇÕES!A:E,5,0)*(1+$H$6),IF(B67="Codevasf.Aux",VLOOKUP(C67,Codevasf.Aux!B:J,9,0)*(1+$F$6),IF(B67="SINAPI INS.",VLOOKUP(C67,'INSUMOS SINAPI'!A:E,5,0)*(1+$H$6)))))))) -> 2.99 | H67: =TRUNC(F67*G67,2) -> 67049.55
A68: 54 | B68: SINAPI | C68: ="95876" -> 95876 | D68: TRANSPORTE COM CAMINHÃO BASCULANTE DE 14 M³, EM VIA URBANA PAVIMENTADA, DMT ATÉ 30 KM | E68: m³xkm | F68: ='[3]Planilha unificada'!$T$72 -> 392472.87 | G68: =IF(B68="Codevasf",VLOOKUP(C68,'CPU CODEVASF'!E:H,4,0),IF(B68="SICRO",VLOOKUP(C68,'SINTÉTICO SICRO'!A:D,4,0)*(1+$F$6),IF(B68="SINAPI",VLOOKUP('RESUMO MODULO TOTAL'!C68,'COMP Sint. Sinapi'!G:M,5,0)*(1+$F$6),IF(B68="ORSE",VLOOKUP(C68,ORSE!A:E,5,0)*(1+$F$6),IF(B68="COTAÇÃO",VLOOKUP(C68,COTAÇÕES!A:E,5,0)*(1+$H$6),IF(B68="Codevasf.Aux",VLOOKUP(C68,Codevasf.Aux!B:J,9,0)*(1+$F$6),IF(B68="SINAPI INS.",VLOOKUP(C68,'INSUMOS SINAPI'!A:E,5,0)*(1+$H$6)))))))) -> 2.67 | H68: =TRUNC(F68*G68,2) -> 1047902.56
A69: 55 | B69: SICRO | C69: 2003939 | D69: Meio-fio de concreto - MFC 01 moldado no local com extrusora e concreto usinado - areia e brita comerciais | E69: m | F69: ='[3]Planilha unificada'!$T$73+'[3]Planilha unificada'!$T$74+'[3]Planilha unificada'!$T$75+'[3]Planilha unificada'!$T$76 -> 14436.58 | G69: =IF(B69="Codevasf",VLOOKUP(C69,'CPU CODEVASF'!E:H,4,0),IF(B69="SICRO",VLOOKUP(C69,'SINTÉTICO SICRO'!A:D,4,0)*(1+$F$6),IF(B69="SINAPI",VLOOKUP('RESUMO MODULO TOTAL'!C69,'COMP Sint. Sinapi'!G:M,5,0)*(1+$F$6),IF(B69="ORSE",VLOOKUP(C69,ORSE!A:E,5,0)*(1+$F$6),IF(B69="COTAÇÃO",VLOOKUP(C69,COTAÇÕES!A:E,5,0)*(1+$H$6),IF(B69="Codevasf.Aux",VLOOKUP(C69,Codevasf.Aux!B:J,9,0)*(1+$F$6),IF(B69="SINAPI INS.",VLOOKUP(C69,'INSUMOS SINAPI'!A:E,5,0)*(1+$H$6)))))))) -> 86.3 | H69: =TRUNC(F69*G69,2) -> 1245876.85
A70: 56 | B70: SICRO | C70: 4011463 | D70: Execução de pavimento com aplicação de concreto asfáltico - faixa C - areia e brita comerciais | E70: t | F70: ='MC MODULO'!$N$30 -> 5285.7 | G70: =IF(B70="Codevasf",VLOOKUP(C70,'CPU CODEVASF'!E:H,4,0),IF(B70="SICRO",VLOOKUP(C70,'SINTÉTICO SICRO'!A:D,4,0)*(1+$F$6),IF(B70="SINAPI",VLOOKUP('RESUMO MODULO TOTAL'!C70,'COMP Sint. Sinapi'!G:M,5,0)*(1+$F$6),IF(B70="ORSE",VLOOKUP(C70,ORSE!A:E,5,0)*(1+$F$6),IF(B70="COTAÇÃO",VLOOKUP(C70,COTAÇÕES!A:E,5,0)*(1+$H$6),IF(B70="Codevasf.Aux",VLOOKUP(C70,Codevasf.Aux!B:J,9,0)*(1+$F$6),IF(B70="SINAPI INS.",VLOOKUP(C70,'INSUMOS SINAPI'!A:E,5,0)*(1+$H$6)))))))) -> 223.92 | H70: =TRUNC(F70*G70,2) -> 1183573.94
A71: 57 | B71: SICRO | C71: 4011351 | D71: Imprimação com asfalto diluído | E71: m² | F71: ='MC MODULO'!$N$34 -> 44047.5 | G71: =IF(B71="Codevasf",VLOOKUP(C71,'CPU CODEVASF'!E:H,4,0),IF(B71="SICRO",VLOOKUP(C71,'SINTÉTICO SICRO'!A:D,4,0)*(1+$F$6),IF(B71="SINAPI",VLOOKUP('RESUMO MODULO TOTAL'!C71,'COMP Sint. Sinapi'!G:M,5,0)*(1+$F$6),IF(B71="ORSE",VLOOKUP(C71,ORSE!A:E,5,0)*(1+$F$6),IF(B71="COTAÇÃO",VLOOKUP(C71,COTAÇÕES!A:E,5,0)*(1+$H$6),IF(B71="Codevasf.Aux",VLOOKUP(C71,Codevasf.Aux!B:J,9,0)*(1+$F$6),IF(B71="SINAPI INS.",VLOOKUP(C71,'INSUMOS SINAPI'!A:E,5,0)*(1+$H$6)))))))) -> 0.43 | H71: =TRUNC(F71*G71,2) -> 18940.42
A72: 58 | B72: SICRO | C72: 4011353 | D72: Pintura de ligação | E72: m² | F72: ='MC MODULO'!$N$38 -> 44047.5 | G72: =IF(B72="Codevasf",VLOOKUP(C72,'CPU CODEVASF'!E:H,4,0),IF(B72="SICRO",VLOOKUP(C72,'SINTÉTICO SICRO'!A:D,4,0)*(1+$F$6),IF(B72="SINAPI",VLOOKUP('RESUMO MODULO TOTAL'!C72,'COMP Sint. Sinapi'!G:M,5,0)*(1+$F$6),IF(B72="ORSE",VLOOKUP(C72,ORSE!A:E,5,0)*(1+$F$6),IF(B72="COTAÇÃO",VLOOKUP(C72,COTAÇÕES!A:E,5,0)*(1+$H$6),IF(B72="Codevasf.Aux",VLOOKUP(C72,Codevasf.Aux!B:J,9,0)*(1+$F$6),IF(B72="SINAPI INS.",VLOOKUP(C72,'INSUMOS SINAPI'!A:E,5,0)*(1+$H$6)))))))) -> 0.33 | H72: =TRUNC(F72*G72,2) -> 14535.67
A73: 59 | B73: CODEVASF | C73: CPU-26 | D73: EXECUÇÃO DE PAVIMENTO EM PISO INTERTRAVADO | E73: m² | F73: ='[3]Planilha unificada'!$T$82 -> 275.72 | G73: =IF(B73="Codevasf",VLOOKUP(C73,'CPU CODEVASF'!E:H,4,0),IF(B73="SICRO",VLOOKUP(C73,'SINTÉTICO SICRO'!A:D,4,0)*(1+$F$6),IF(B73="SINAPI",VLOOKUP('RESUMO MODULO TOTAL'!C73,'COMP Sint. Sinapi'!G:M,5,0)*(1+$F$6),IF(B73="ORSE",VLOOKUP(C73,ORSE!A:E,5,0)*(1+$F$6),IF(B73="COTAÇÃO",VLOOKUP(C73,COTAÇÕES!A:E,5,0)*(1+$H$6),IF(B73="Codevasf.Aux",VLOOKUP(C73,Codevasf.Aux!B:J,9,0)*(1+$F$6),IF(B73="SINAPI INS.",VLOOKUP(C73,'INSUMOS SINAPI'!A:E,5,0)*(1+$H$6)))))))) -> 26.49 | H73: =TRUNC(F73*G73,2) -> 7303.82
A74: 60 | B74: SINAPI INS. | C74: ='CPU CODEVASF'!C232 -> 36170 | D74: =VLOOKUP(C74,'INSUMOS SINAPI'!A:E,2,0) -> BLOQUETE/PISO INTERTRAVADO DE CONCRETO - MODELO ONDA/16 FACES/RETANGULAR/TIJOLINHO/PAVER/HOLANDES/PARALELEPIPEDO, *22 CM X 11* CM, E = 8 CM, RESISTENCIA DE 35 MPA (NBR 9781), COR NATURAL | E74: m² | F74: =F73*'CPU CODEVASF'!F232 -> 279.33 | G74: =IF(B74="Codevasf",VLOOKUP(C74,'CPU CODEVASF'!E:H,4,0),IF(B74="SICRO",VLOOKUP(C74,'SINTÉTICO SICRO'!A:D,4,0)*(1+$F$6),IF(B74="SINAPI",VLOOKUP('RESUMO MODULO TOTAL'!C74,'COMP Sint. Sinapi'!G:M,5,0)*(1+$F$6),IF(B74="ORSE",VLOOKUP(C74,ORSE!A:E,5,0)*(1+$F$6),IF(B74="COTAÇÃO",VLOOKUP(C74,COTAÇÕES!A:E,5,0)*(1+$H$6),IF(B74="Codevasf.Aux",VLOOKUP(C74,Codevasf.Aux!B:J,9,0)*(1+$F$6),IF(B74="SINAPI INS.",VLOOKUP(C74,'INSUMOS SINAPI'!A:E,5,0)*(1+$H$6)))))))) -> 62.96 | H74: =TRUNC(F74*G74,2) -> 17586.61 | I74: TRANSPORTE | J74: =ROUND(F74*45,0) -> 12570 | K74: =J74*3.5/1000 -> 44 | L74: TONELADAS | N74: 3,5KG/PEDRA
A75: 61 | B75: CODEVASF | C75: CPU-28 | D75: TRANSPORTE COM CAMINHÃO CARROCERIA COM GUINDAUTO (MUNCK), MOMENTO MÁXIMO DE CARGA 11,7 TM, EM VIA URBANA PAVIMENTADA, DMT ATÉ 30KM (UNIDADE: TXKM). AF_07/2020 | E75: TXKM | F75: =K75 -> 1320 | G75: =IF(B75="Codevasf",VLOOKUP(C75,'CPU CODEVASF'!E:H,4,0),IF(B75="SICRO",VLOOKUP(C75,'SINTÉTICO SICRO'!A:D,4,0)*(1+$F$6),IF(B75="SINAPI",VLOOKUP('RESUMO MODULO TOTAL'!C75,'COMP Sint. Sinapi'!G:M,5,0)*(1+$F$6),IF(B75="ORSE",VLOOKUP(C75,ORSE!A:E,5,0)*(1+$F$6),IF(B75="COTAÇÃO",VLOOKUP(C75,COTAÇÕES!A:E,5,0)*(1+$H$6),IF(B75="Codevasf.Aux",VLOOKUP(C75,Codevasf.Aux!B:J,9,0)*(1+$F$6),IF(B75="SINAPI INS.",VLOOKUP(C75,'INSUMOS SINAPI'!A:E,5,0)*(1+$H$6)))))))) -> 3.6 | H75: =TRUNC(F75*G75,2) -> 4752 | K75: =K74*30 -> 1320 | L75: DMT
A76: 62 | B76: CODEVASF | C76: CPU-27 | D76: EXECUÇÃO DE PAVIMENTO EM PARALELEPÍPEDOS, REJUNTAMENTO COM ARGAMASSA TRAÇO 1:3 (CIMENTO E AREIA) - exclusive paralelo | E76: m² | F76: ='[3]Planilha unificada'!$T$85 -> 3140.86 | G76: =IF(B76="Codevasf",VLOOKUP(C76,'CPU CODEVASF'!E:H,4,0),IF(B76="SICRO",VLOOKUP(C76,'SINTÉTICO SICRO'!A:D,4,0)*(1+$F$6),IF(B76="SINAPI",VLOOKUP('RESUMO MODULO TOTAL'!C76,'COMP Sint. Sinapi'!G:M,5,0)*(1+$F$6),IF(B76="ORSE",VLOOKUP(C76,ORSE!A:E,5,0)*(1+$F$6),IF(B76="COTAÇÃO",VLOOKUP(C76,COTAÇÕES!A:E,5,0)*(1+$H$6),IF(B76="Codevasf.Aux",VLOOKUP(C76,Codevasf.Aux!B:J,9,0)*(1+$F$6),IF(B76="SINAPI INS.",VLOOKUP(C76,'INSUMOS SINAPI'!A:E,5,0)*(1+$H$6)))))))) -> 55.22 | H76: =TRUNC(F76*G76,2) -> 173438.28
A77: 63 | B77: SINAPI INS. | C77: ='CPU CODEVASF'!C247 -> 4385 | D77: =VLOOKUP(C77,'INSUMOS SINAPI'!A:E,2,0) -> PARALELEPIPEDO GRANITICO OU BASALTICO, PARA PAVIMENTACAO, SEM FRETE (VARIACAO REGIONAL DE PECAS POR M2) | E77: mil | F77: =F76*'CPU CODEVASF'!$F$247 -> 103.65 | G77: =IF(B77="Codevasf",VLOOKUP(C77,'CPU CODEVASF'!E:H,4,0),IF(B77="SICRO",VLOOKUP(C77,'SINTÉTICO SICRO'!A:D,4,0)*(1+$F$6),IF(B77="SINAPI",VLOOKUP('RESUMO MODULO TOTAL'!C77,'COMP Sint. Sinapi'!G:M,5,0)*(1+$F$6),IF(B77="ORSE",VLOOKUP(C77,ORSE!A:E,5,0)*(1+$F$6),IF(B77="COTAÇÃO",VLOOKUP(C77,COTAÇÕES!A:E,5,0)*(1+$H$6),IF(B77="Codevasf.Aux",VLOOKUP(C77,Codevasf.Aux!B:J,9,0)*(1+$F$6),IF(B77="SINAPI INS.",VLOOKUP(C77,'INSUMOS SINAPI'!A:E,5,0)*(1+$H$6)))))))) -> 1120.96 | H77: =TRUNC(F77*G77,2) -> 116187.5
A78: =A77+1 -> 64 | B78: SINAPI | C78: ="95876" -> 95876 | D78: TRANSPORTE COM CAMINHÃO BASCULANTE DE 14 M³, EM VIA URBANA PAVIMENTADA, DMT ATÉ 30 KM | E78: m³xkm | F78: =F76*0.1*30 -> 9422.58 | G78: =IF(B78="Codevasf",VLOOKUP(C78,'CPU CODEVASF'!E:H,4,0),IF(B78="SICRO",VLOOKUP(C78,'SINTÉTICO SICRO'!A:D,4,0)*(1+$F$6),IF(B78="SINAPI",VLOOKUP('RESUMO MODULO TOTAL'!C78,'COMP Sint. Sinapi'!G:M,5,0)*(1+$F$6),IF(B78="ORSE",VLOOKUP(C78,ORSE!A:E,5,0)*(1+$F$6),IF(B78="COTAÇÃO",VLOOKUP(C78,COTAÇÕES!A:E,5,0)*(1+$H$6),IF(B78="Codevasf.Aux",VLOOKUP(C78,Codevasf.Aux!B:J,9,0)*(1+$F$6),IF(B78="SINAPI INS.",VLOOKUP(C78,'INSUMOS SINAPI'!A:E,5,0)*(1+$H$6)))))))) -> 2.67 | H78: =TRUNC(F78*G78,2) -> 25158.28
D79: AQUISIÇÃO E TRANSPORTE DO MATERIAL BETUMINOSO | I79: ATUALIZAR PREÇO | J79: =H79/$H$132 -> 0
A80: =A78+1 -> 65 | B80: CODEVASF | C80: CPU-13 | D80: AQUISIÇÃO DE CIMENTO ASFALTICO CAP 50/70 | E80: t | F80: =' CONSUMO DE MAT. B TOTAL'!P12 -> 334.22 | G80: =IF(B80="Codevasf",VLOOKUP(C80,'CPU CODEVASF'!E:H,4,0),IF(B80="SICRO",VLOOKUP(C80,'SINTÉTICO SICRO'!A:D,4,0)*(1+$F$6),IF(B80="SINAPI",VLOOKUP('RESUMO MODULO TOTAL'!C80,'COMP Sint. Sinapi'!G:M,5,0)*(1+$F$6),IF(B80="ORSE",VLOOKUP(C80,ORSE!A:E,5,0)*(1+$F$6),IF(B80="COTAÇÃO",VLOOKUP(C80,COTAÇÕES!A:E,5,0)*(1+$H$6),IF(B80="Codevasf.Aux",VLOOKUP(C80,Codevasf.Aux!B:J,9,0)*(1+$F$6),IF(B80="SINAPI INS.",VLOOKUP(C80,'INSUMOS SINAPI'!A:E,5,0)*(1+$H$6)))))))) -> 5096.76 | H80: =TRUNC(F80*G80,2) -> 1703439.12 | J80: 0.0659
A81: =A80+1 -> 66 | B81: CODEVASF | C81: CPU-17 | D81: TRANSPORTE CAP 50/70 | E81: t | F81: =' CONSUMO DE MAT. B TOTAL'!P12 -> 334.22 | G81: =IF(B81="Codevasf",VLOOKUP(C81,'CPU CODEVASF'!E:H,4,0),IF(B81="SICRO",VLOOKUP(C81,'SINTÉTICO SICRO'!A:D,4,0)*(1+$F$6),IF(B81="SINAPI",VLOOKUP('RESUMO MODULO TOTAL'!C81,'COMP Sint. Sinapi'!G:M,5,0)*(1+$F$6),IF(B81="ORSE",VLOOKUP(C81,ORSE!A:E,5,0)*(1+$F$6),IF(B81="COTAÇÃO",VLOOKUP(C81,COTAÇÕES!A:E,5,0)*(1+$H$6),IF(B81="Codevasf.Aux",VLOOKUP(C81,Codevasf.Aux!B:J,9,0)*(1+$F$6),IF(B81="SINAPI INS.",VLOOKUP(C81,'INSUMOS SINAPI'!A:E,5,0)*(1+$H$6)))))))) -> 671.32 | H81: 224368.57 | J81: 0.0087
A82: =A81+1 -> 67 | B82: CODEVASF | C82: CPU-14 | D82: AQUISIÇÃO DE CM-30 | E82: t | F82: =' CONSUMO DE MAT. B TOTAL'!P8 -> 48.63 | G82: =IF(B82="Codevasf",VLOOKUP(C82,'CPU CODEVASF'!E:H,4,0),IF(B82="SICRO",VLOOKUP(C82,'SINTÉTICO SICRO'!A:D,4,0)*(1+$F$6),IF(B82="SINAPI",VLOOKUP('RESUMO MODULO TOTAL'!C82,'COMP Sint. Sinapi'!G:M,5,0)*(1+$F$6),IF(B82="ORSE",VLOOKUP(C82,ORSE!A:E,5,0)*(1+$F$6),IF(B82="COTAÇÃO",VLOOKUP(C82,COTAÇÕES!A:E,5,0)*(1+$H$6),IF(B82="Codevasf.Aux",VLOOKUP(C82,Codevasf.Aux!B:J,9,0)*(1+$F$6),IF(B82="SINAPI INS.",VLOOKUP(C82,'INSUMOS SINAPI'!A:E,5,0)*(1+$H$6)))))))) -> 6302.73 | H82: 306501.75 | J82: 0.0119
A83: 68 | B83: CODEVASF | C83: CPU-18 | D83: TRANSPORTE DE CM-30 | E83: t | F83: =' CONSUMO DE MAT. B TOTAL'!P8 -> 48.63 | G83: =IF(B83="Codevasf",VLOOKUP(C83,'CPU CODEVASF'!E:H,4,0),IF(B83="SICRO",VLOOKUP(C83,'SINTÉTICO SICRO'!A:D,4,0)*(1+$F$6),IF(B83="SINAPI",VLOOKUP('RESUMO MODULO TOTAL'!C83,'COMP Sint. Sinapi'!G:M,5,0)*(1+$F$6),IF(B83="ORSE",VLOOKUP(C83,ORSE!A:E,5,0)*(1+$F$6),IF(B83="COTAÇÃO",VLOOKUP(C83,COTAÇÕES!A:E,5,0)*(1+$H$6),IF(B83="Codevasf.Aux",VLOOKUP(C83,Codevasf.Aux!B:J,9,0)*(1+$F$6),IF(B83="SINAPI INS.",VLOOKUP(C83,'INSUMOS SINAPI'!A:E,5,0)*(1+$H$6)))))))) -> 537.01 | H83: 26114.79 | J83: 0.001
A84: 69 | B84: CODEVASF | C84: CPU-15 | D84: AQUISIÇÃO DE EMULSÃO ASFÁLTICA RR-1C | E84: t | F84: =' CONSUMO DE MAT. B TOTAL'!P10 -> 17.62 | G84: =IF(B84="Codevasf",VLOOKUP(C84,'CPU CODEVASF'!E:H,4,0),IF(B84="SICRO",VLOOKUP(C84,'SINTÉTICO SICRO'!A:D,4,0)*(1+$F$6),IF(B84="SINAPI",VLOOKUP('RESUMO MODULO TOTAL'!C84,'COMP Sint. Sinapi'!G:M,5,0)*(1+$F$6),IF(B84="ORSE",VLOOKUP(C84,ORSE!A:E,5,0)*(1+$F$6),IF(B84="COTAÇÃO",VLOOKUP(C84,COTAÇÕES!A:E,5,0)*(1+$H$6),IF(B84="Codevasf.Aux",VLOOKUP(C84,Codevasf.Aux!B:J,9,0)*(1+$F$6),IF(B84="SINAPI INS.",VLOOKUP(C84,'INSUMOS SINAPI'!A:E,5,0)*(1+$H$6)))))))) -> 3717.59 | H84: 65503.93 | J84: 0.0025
A85: 70 | B85: CODEVASF | C85: CPU-19 | D85: TRANSPORTE RR-1C | E85: t | F85: =' CONSUMO DE MAT. B TOTAL'!P10 -> 17.62 | G85: =IF(B85="Codevasf",VLOOKUP(C85,'CPU CODEVASF'!E:H,4,0),IF(B85="SICRO",VLOOKUP(C85,'SINTÉTICO SICRO'!A:D,4,0)*(1+$F$6),IF(B85="SINAPI",VLOOKUP('RESUMO MODULO TOTAL'!C85,'COMP Sint. Sinapi'!G:M,5,0)*(1+$F$6),IF(B85="ORSE",VLOOKUP(C85,ORSE!A:E,5,0)*(1+$F$6),IF(B85="COTAÇÃO",VLOOKUP(C85,COTAÇÕES!A:E,5,0)*(1+$H$6),IF(B85="Codevasf.Aux",VLOOKUP(C85,Codevasf.Aux!B:J,9,0)*(1+$F$6),IF(B85="SINAPI INS.",VLOOKUP(C85,'INSUMOS SINAPI'!A:E,5,0)*(1+$H$6)))))))) -> 663.58 | H85: 11692.27 | J85: 0.0005
D86: PASSEIOS
A87: 71 | B87: SINAPI | C87: ="97084" -> 97084 | D87: COMPACTAÇÃO MECÂNICA DE SOLO PARA EXECUÇÃO DE RADIER, PISO DE CONCRETO OU LAJE SOBRE SOLO, COM COMPACTADOR DE SOLOS TIPO PLACA VIBRATÓRIA. AF_09/2021 | E87: m² | F87: ='[3]Planilha unificada'!$T$87 -> 19603.49 | G87: =IF(B87="Codevasf",VLOOKUP(C87,'CPU CODEVASF'!E:H,4,0),IF(B87="SICRO",VLOOKUP(C87,'SINTÉTICO SICRO'!A:D,4,0)*(1+$F$6),IF(B87="SINAPI",VLOOKUP('RESUMO MODULO TOTAL'!C87,'COMP Sint. Sinapi'!G:M,5,0)*(1+$F$6),IF(B87="ORSE",VLOOKUP(C87,ORSE!A:E,5,0)*(1+$F$6),IF(B87="COTAÇÃO",VLOOKUP(C87,COTAÇÕES!A:E,5,0)*(1+$H$6),IF(B87="Codevasf.Aux",VLOOKUP(C87,Codevasf.Aux!B:J,9,0)*(1+$F$6),IF(B87="SINAPI INS.",VLOOKUP(C87,'INSUMOS SINAPI'!A:E,5,0)*(1+$H$6)))))))) -> 0.83 | H87: =TRUNC(F87*G87,2) -> 16270.89
A88: 72 | B88: SINAPI | C88: ="94991" -> 94991 | D88: EXECUÇÃO DE PASSEIO (CALÇADA) OU PISO DE CONCRETO COM CONCRETO MOLDADO IN LOCO, USINADO C20, ACABAMENTO CONVENCIONAL, NÃO ARMADO. AF_08/2022 | E88: m³ | F88: ='[3]Planilha unificada'!$T$88 -> 1176.2 | G88: =IF(B88="Codevasf",VLOOKUP(C88,'CPU CODEVASF'!E:H,4,0),IF(B88="SICRO",VLOOKUP(C88,'SINTÉTICO SICRO'!A:D,4,0)*(1+$F$6),IF(B88="SINAPI",VLOOKUP('RESUMO MODULO TOTAL'!C88,'COMP Sint. Sinapi'!G:M,5,0)*(1+$F$6),IF(B88="ORSE",VLOOKUP(C88,ORSE!A:E,5,0)*(1+$F$6),IF(B88="COTAÇÃO",VLOOKUP(C88,COTAÇÕES!A:E,5,0)*(1+$H$6),IF(B88="Codevasf.Aux",VLOOKUP(C88,Codevasf.Aux!B:J,9,0)*(1+$F$6),IF(B88="SINAPI INS.",VLOOKUP(C88,'INSUMOS SINAPI'!A:E,5,0)*(1+$H$6)))))))) -> 827.19 | H88: =TRUNC(F88*G88,2) -> 972940.87
D89: SINALIZAÇÃO | J89: =H89/$H$132 -> 0
A90: 73 | B90: SINAPI | C90: ="103696" -> 103696 | D90: FORNECIMENTO E INSTALAÇÃO DE SUPORTE DE MADEIRA PARA PLACAS DE SINALIZAÇÃO EM CONCRETO, COM H= DE 2,5 M E SEÇÃO DE 7,5 X 7,5 CM. AF_03/2022 | E90: und | F90: ='[3]Planilha unificada'!$T$90 -> 193 | G90: =IF(B90="Codevasf",VLOOKUP(C90,'CPU CODEVASF'!E:H,4,0),IF(B90="SICRO",VLOOKUP(C90,'SINTÉTICO SICRO'!A:D,4,0)*(1+$F$6),IF(B90="SINAPI",VLOOKUP('RESUMO MODULO TOTAL'!C90,'COMP Sint. Sinapi'!G:M,5,0)*(1+$F$6),IF(B90="ORSE",VLOOKUP(C90,ORSE!A:E,5,0)*(1+$F$6),IF(B90="COTAÇÃO",VLOOKUP(C90,COTAÇÕES!A:E,5,0)*(1+$H$6),IF(B90="Codevasf.Aux",VLOOKUP(C90,Codevasf.Aux!B:J,9,0)*(1+$F$6),IF(B90="SINAPI INS.",VLOOKUP(C90,'INSUMOS SINAPI'!A:E,5,0)*(1+$H$6)))))))) -> 166.81 | H90: =TRUNC(F90*G90,2) -> 32194.33 | J90: =H90/$H$132 -> 0.0012
A91: =A90+1 -> 74 | B91: Codevasf.Aux | C91: CPU 002 | D91: Suporte metálico galvanizado para placa de advertência ou regulamentação - lado ou diâmetro de 0,60 m - fornecimento e implantação | E91: m² | F91: ='[3]Planilha unificada'!$T$91 -> 123.01 | G91: =IF(B91="Codevasf",VLOOKUP(C91,'CPU CODEVASF'!E:H,4,0),IF(B91="SICRO",VLOOKUP(C91,'SINTÉTICO SICRO'!A:D,4,0)*(1+$F$6),IF(B91="SINAPI",VLOOKUP('RESUMO MODULO TOTAL'!C91,'COMP Sint. Sinapi'!G:M,5,0)*(1+$F$6),IF(B91="ORSE",VLOOKUP(C91,ORSE!A:E,5,0)*(1+$F$6),IF(B91="COTAÇÃO",VLOOKUP(C91,COTAÇÕES!A:E,5,0)*(1+$H$6),IF(B91="Codevasf.Aux",VLOOKUP(C91,Codevasf.Aux!B:J,9,0)*(1+$F$6),IF(B91="SINAPI INS.",VLOOKUP(C91,'INSUMOS SINAPI'!A:E,5,0)*(1+$H$6)))))))) -> 918.49 | H91: =TRUNC(F91*G91,2) -> 112983.45 | J91: =H91/$H$132 -> 0.0044
A92: =A91+1 -> 75 | B92: Codevasf.Aux | C92: CPU 132 | D92: INSTALAÇÃO E FORNECIMENTO DE PLACA PARA IDENTIFICAÇÃO DE LOGRADOURO EM CHAPA METÁLICA, NA COR AZUL, COM DIMENSÕES 45 X 20CM. | E92: und | F92: ='[3]Planilha unificada'!$T$92 -> 48 | G92: =IF(B92="Codevasf",VLOOKUP(C92,'CPU CODEVASF'!E:H,4,0),IF(B92="SICRO",VLOOKUP(C92,'SINTÉTICO SICRO'!A:D,4,0)*(1+$F$6),IF(B92="SINAPI",VLOOKUP('RESUMO MODULO TOTAL'!C92,'COMP Sint. Sinapi'!G:M,5,0)*(1+$F$6),IF(B92="ORSE",VLOOKUP(C92,ORSE!A:E,5,0)*(1+$F$6),IF(B92="COTAÇÃO",VLOOKUP(C92,COTAÇÕES!A:E,5,0)*(1+$H$6),IF(B92="Codevasf.Aux",VLOOKUP(C92,Codevasf.Aux!B:J,9,0)*(1+$F$6),IF(B92="SINAPI INS.",VLOOKUP(C92,'INSUMOS SINAPI'!A:E,5,0)*(1+$H$6)))))))) -> 142.21 | H92: 6826.08 | J92: =H92/$H$132 -> 0.0003
A93: 76 | B93: SICRO | C93: 5213400 | D93: Pintura de faixa com tinta acrílica - espessura de 0,4 mm | E93: m² | F93: ='[3]Planilha unificada'!$T$93 -> 971.97 | G93: =IF(B93="Codevasf",VLOOKUP(C93,'CPU CODEVASF'!E:H,4,0),IF(B93="SICRO",VLOOKUP(C93,'SINTÉTICO SICRO'!A:D,4,0)*(1+$F$6),IF(B93="SINAPI",VLOOKUP('RESUMO MODULO TOTAL'!C93,'COMP Sint. Sinapi'!G:M,5,0)*(1+$F$6),IF(B93="ORSE",VLOOKUP(C93,ORSE!A:E,5,0)*(1+$F$6),IF(B93="COTAÇÃO",VLOOKUP(C93,COTAÇÕES!A:E,5,0)*(1+$H$6),IF(B93="Codevasf.Aux",VLOOKUP(C93,Codevasf.Aux!B:J,9,0)*(1+$F$6),IF(B93="SINAPI INS.",VLOOKUP(C93,'INSUMOS SINAPI'!A:E,5,0)*(1+$H$6)))))))) -> 37.99 | H93: 36925.14
A94: 77 | B94: SINAPI | C94: ="102512" -> 102512 | D94: PINTURA DE EIXO VIÁRIO SOBRE ASFALTO COM TINTA RETRORREFLETIVA A BASE DE RESINA ACRÍLICA COM MICROESFERAS DE VIDRO, APLICAÇÃO MECÂNICA COM DEMARCADORA AUTOPROPELIDA. AF_05/2021 | E94: m | F94: ='[3]Planilha unificada'!$T$94 -> 8504.39 | G94: =IF(B94="Codevasf",VLOOKUP(C94,'CPU CODEVASF'!E:H,4,0),IF(B94="SICRO",VLOOKUP(C94,'SINTÉTICO SICRO'!A:D,4,0)*(1+$F$6),IF(B94="SINAPI",VLOOKUP('RESUMO MODULO TOTAL'!C94,'COMP Sint. Sinapi'!G:M,5,0)*(1+$F$6),IF(B94="ORSE",VLOOKUP(C94,ORSE!A:E,5,0)*(1+$F$6),IF(B94="COTAÇÃO",VLOOKUP(C94,COTAÇÕES!A:E,5,0)*(1+$H$6),IF(B94="Codevasf.Aux",VLOOKUP(C94,Codevasf.Aux!B:J,9,0)*(1+$F$6),IF(B94="SINAPI INS.",VLOOKUP(C94,'INSUMOS SINAPI'!A:E,5,0)*(1+$H$6)))))))) -> 7.03 | H94: =TRUNC(F94*G94,2) -> 59785.86
D95: SERVIÇOS COMPLEMENTARES | J95: =H95/$H$132 -> 0
A96: 78 | B96: Codevasf.Aux | C96: CPU 045 | D96: PISO TÁTIL DIRECIONAL E/OU ALERTA, DE CONCRETO, NA COR NATURAL, P/PORTADORES DE DEFICIÊNCIA MOTORA OU VISUAL, DIMENSÕES 40X40CM, APLICADO COM ARGAMASSA INDUSTRIALIZADA AC-II, REJUNTADO, EXCLUSIVE REGULARIZAÇÃO DE BASE. | E96: M2 | F96: ='[3]Planilha unificada'!$T96 -> 229.02 | G96: =IF(B96="Codevasf",VLOOKUP(C96,'CPU CODEVASF'!E:H,4,0),IF(B96="SICRO",VLOOKUP(C96,'SINTÉTICO SICRO'!A:D,4,0)*(1+$F$6),IF(B96="SINAPI",VLOOKUP('RESUMO MODULO TOTAL'!C96,'COMP Sint. Sinapi'!G:M,5,0)*(1+$F$6),IF(B96="ORSE",VLOOKUP(C96,ORSE!A:E,5,0)*(1+$F$6),IF(B96="COTAÇÃO",VLOOKUP(C96,COTAÇÕES!A:E,5,0)*(1+$H$6),IF(B96="Codevasf.Aux",VLOOKUP(C96,Codevasf.Aux!B:J,9,0)*(1+$F$6),IF(B96="SINAPI INS.",VLOOKUP(C96,'INSUMOS SINAPI'!A:E,5,0)*(1+$H$6)))))))) -> 179.68 | H96: =TRUNC(F96*G96,2) -> 41150.31 | J96: =H96/$H$132 -> 0.0016
A97: =A96+1 -> 79 | B97: Codevasf.Aux | C97: CPU 046 | D97: PISO TÁTIL DIRECIONAL E/OU ALERTA, DE CONCRETO, NA COR NATURAL P/PORTADORES DE DEFICIÊNCIA MOTORA OU VISUAL, DIMENSÕES 25X25CM, APLICADO COM ARGAMASSA INDUSTRIALIZADA AC-II, REJUNTADO, EXCLUSIVE REGULARIZAÇÃO DE BASE. | E97: M2 | F97: ='[3]Planilha unificada'!$T97 -> 282.03 | G97: =IF(B97="Codevasf",VLOOKUP(C97,'CPU CODEVASF'!E:H,4,0),IF(B97="SICRO",VLOOKUP(C97,'SINTÉTICO SICRO'!A:D,4,0)*(1+$F$6),IF(B97="SINAPI",VLOOKUP('RESUMO MODULO TOTAL'!C97,'COMP Sint. Sinapi'!G:M,5,0)*(1+$F$6),IF(B97="ORSE",VLOOKUP(C97,ORSE!A:E,5,0)*(1+$F$6),IF(B97="COTAÇÃO",VLOOKUP(C97,COTAÇÕES!A:E,5,0)*(1+$H$6),IF(B97="Codevasf.Aux",VLOOKUP(C97,Codevasf.Aux!B:J,9,0)*(1+$F$6),IF(B97="SINAPI INS.",VLOOKUP(C97,'INSUMOS SINAPI'!A:E,5,0)*(1+$H$6)))))))) -> 197.98 | H97: =TRUNC(F97*G97,2) -> 55836.29
A98: =A97+1 -> 80 | B98: Codevasf.Aux | C98: CPU 043 | D98: REBAIXAMENTO DE PENA D'ÁGUA, INCLUINDO COMPLEMENTO DE TUBULAÇÃO, CONEXÕES, ESCAVAÇÃO E REATERRO. | E98: UN | F98: ='[3]Planilha unificada'!$T98 -> 476 | G98: =IF(B98="Codevasf",VLOOKUP(C98,'CPU CODEVASF'!E:H,4,0),IF(B98="SICRO",VLOOKUP(C98,'SINTÉTICO SICRO'!A:D,4,0)*(1+$F$6),IF(B98="SINAPI",VLOOKUP('RESUMO MODULO TOTAL'!C98,'COMP Sint. Sinapi'!G:M,5,0)*(1+$F$6),IF(B98="ORSE",VLOOKUP(C98,ORSE!A:E,5,0)*(1+$F$6),IF(B98="COTAÇÃO",VLOOKUP(C98,COTAÇÕES!A:E,5,0)*(1+$H$6),IF(B98="Codevasf.Aux",VLOOKUP(C98,Codevasf.Aux!B:J,9,0)*(1+$F$6),IF(B98="SINAPI INS.",VLOOKUP(C98,'INSUMOS SINAPI'!A:E,5,0)*(1+$H$6)))))))) -> 148.49 | H98: 70681.24
A99: 81 | B99: Codevasf.Aux | C99: CPU 044 | D99: IMPLANTAÇÃO DE DISTRIBUIDOR, INCLUSIVE TUBULAÇÃO DE 50MM, CONEXÕES, ESCAVAÇÃO, ESCORAMENTO E ATERRO. | E99: M | F99: ='[3]Planilha unificada'!$T99 -> 6099.69 | G99: =IF(B99="Codevasf",VLOOKUP(C99,'CPU CODEVASF'!E:H,4,0),IF(B99="SICRO",VLOOKUP(C99,'SINTÉTICO SICRO'!A:D,4,0)*(1+$F$6),IF(B99="SINAPI",VLOOKUP('RESUMO MODULO TOTAL'!C99,'COMP Sint. Sinapi'!G:M,5,0)*(1+$F$6),IF(B99="ORSE",VLOOKUP(C99,ORSE!A:E,5,0)*(1+$F$6),IF(B99="COTAÇÃO",VLOOKUP(C99,COTAÇÕES!A:E,5,0)*(1+$H$6),IF(B99="Codevasf.Aux",VLOOKUP(C99,Codevasf.Aux!B:J,9,0)*(1+$F$6),IF(B99="SINAPI INS.",VLOOKUP(C99,'INSUMOS SINAPI'!A:E,5,0)*(1+$H$6)))))))) -> 128.61 | H99: 784481.13
A100: 82 | B100: Codevasf.Aux | C100: CPU 041 | D100: ASSENTAMENTO DE GUIA (MEIO-FIO) EM TRECHO RETO, CONFECCIONADA EM CONCRETO PRÉ-FABRICADO, DIMENSÕES 100x15x30 CM (COMPRIMENTO X BASE INFERIOR X BASE SUPERIOR X ALTURA). | E100: M | F100: ='[3]Planilha unificada'!$T100 -> 1485.6 | G100: =IF(B100="Codevasf",VLOOKUP(C100,'CPU CODEVASF'!E:H,4,0),IF(B100="SICRO",VLOOKUP(C100,'SINTÉTICO SICRO'!A:D,4,0)*(1+$F$6),IF(B100="SINAPI",VLOOKUP('RESUMO MODULO TOTAL'!C100,'COMP Sint. Sinapi'!G:M,5,0)*(1+$F$6),IF(B100="ORSE",VLOOKUP(C100,ORSE!A:E,5,0)*(1+$F$6),IF(B100="COTAÇÃO",VLOOKUP(C100,COTAÇÕES!A:E,5,0)*(1+$H$6),IF(B100="Codevasf.Aux",VLOOKUP(C100,Codevasf.Aux!B:J,9,0)*(1+$F$6),IF(B100="SINAPI INS.",VLOOKUP(C100,'INSUMOS SINAPI'!A:E,5,0)*(1+$H$6)))))))) -> 118.18 | H100: 175568.2
A101: 83 | B101: SINAPI | C101: ="98504" -> 98504 | D101: PLANTIO DE GRAMA BATATAIS EM PLACAS. AF_05/2018 | E101: M2 | F101: ='[3]Planilha unificada'!$T101 -> 141.09 | G101: =IF(B101="Codevasf",VLOOKUP(C101,'CPU CODEVASF'!E:H,4,0),IF(B101="SICRO",VLOOKUP(C101,'SINTÉTICO SICRO'!A:D,4,0)*(1+$F$6),IF(B101="SINAPI",VLOOKUP('RESUMO MODULO TOTAL'!C101,'COMP Sint. Sinapi'!G:M,5,0)*(1+$F$6),IF(B101="ORSE",VLOOKUP(C101,ORSE!A:E,5,0)*(1+$F$6),IF(B101="COTAÇÃO",VLOOKUP(C101,COTAÇÕES!A:E,5,0)*(1+$H$6),IF(B101="Codevasf.Aux",VLOOKUP(C101,Codevasf.Aux!B:J,9,0)*(1+$F$6),IF(B101="SINAPI INS.",VLOOKUP(C101,'INSUMOS SINAPI'!A:E,5,0)*(1+$H$6)))))))) -> 18.89 | H101: =TRUNC(F101*G101,2) -> 2665.19
A102: 84 | B102: SINAPI | C102: ="98520" -> 98520 | D102: APLICAÇÃO DE ADUBO EM SOLO. AF_05/2018 | E102: M2 | F102: ='[3]Planilha unificada'!$T102 -> 141.16 | G102: =IF(B102="Codevasf",VLOOKUP(C102,'CPU CODEVASF'!E:H,4,0),IF(B102="SICRO",VLOOKUP(C102,'SINTÉTICO SICRO'!A:D,4,0)*(1+$F$6),IF(B102="SINAPI",VLOOKUP('RESUMO MODULO TOTAL'!C102,'COMP Sint. Sinapi'!G:M,5,0)*(1+$F$6),IF(B102="ORSE",VLOOKUP(C102,ORSE!A:E,5,0)*(1+$F$6),IF(B102="COTAÇÃO",VLOOKUP(C102,COTAÇÕES!A:E,5,0)*(1+$H$6),IF(B102="Codevasf.Aux",VLOOKUP(C102,Codevasf.Aux!B:J,9,0)*(1+$F$6),IF(B102="SINAPI INS.",VLOOKUP(C102,'INSUMOS SINAPI'!A:E,5,0)*(1+$H$6)))))))) -> 5.56 | H102: 784.84
A103: 85 | B103: Codevasf.Aux | C103: 90695 | D103: TUBO DE PVC PARA REDE COLETORA DE ESGOTO DE PAREDE MACIÇA, DN 150 MM, JUNTA ELÁSTICA - ASSENTAMENTO. AF_01/2021 | E103: M | F103: ='[3]Planilha unificada'!$T103 -> 5866.13 | G103: =IF(B103="Codevasf",VLOOKUP(C103,'CPU CODEVASF'!E:H,4,0),IF(B103="SICRO",VLOOKUP(C103,'SINTÉTICO SICRO'!A:D,4,0)*(1+$F$6),IF(B103="SINAPI",VLOOKUP('RESUMO MODULO TOTAL'!C103,'COMP Sint. Sinapi'!G:M,5,0)*(1+$F$6),IF(B103="ORSE",VLOOKUP(C103,ORSE!A:E,5,0)*(1+$F$6),IF(B103="COTAÇÃO",VLOOKUP(C103,COTAÇÕES!A:E,5,0)*(1+$H$6),IF(B103="Codevasf.Aux",VLOOKUP(C103,Codevasf.Aux!B:J,9,0)*(1+$F$6),IF(B103="SINAPI INS.",VLOOKUP(C103,'INSUMOS SINAPI'!A:E,5,0)*(1+$H$6)))))))) -> 7.32 | H103: 42940.07
A104: 86 | B104: SINAPI INS. | C104: 41936 | D104: 'TUBO DE PVC PARA REDE COLETORA DE ESGOTO DE PAREDE MACIÇA, DN 150 MM, JUNTA ELÁSTICA - FORNECIMENTO | F104: =F103*Codevasf.Aux!E205 -> 6159.44 | G104: =IF(B104="Codevasf",VLOOKUP(C104,'CPU CODEVASF'!E:H,4,0),IF(B104="SICRO",VLOOKUP(C104,'SINTÉTICO SICRO'!A:D,4,0)*(1+$F$6),IF(B104="SINAPI",VLOOKUP('RESUMO MODULO TOTAL'!C104,'COMP Sint. Sinapi'!G:M,5,0)*(1+$F$6),IF(B104="ORSE",VLOOKUP(C104,ORSE!A:E,5,0)*(1+$F$6),IF(B104="COTAÇÃO",VLOOKUP(C104,COTAÇÕES!A:E,5,0)*(1+$H$6),IF(B104="Codevasf.Aux",VLOOKUP(C104,Codevasf.Aux!B:J,9,0)*(1+$F$6),IF(B104="SINAPI INS.",VLOOKUP(C104,'INSUMOS SINAPI'!A:E,5,0)*(1+$H$6)))))))) -> 100.22 | H104: =TRUNC(F104*G104,2) -> 617299.07
A105: 87 | B105: Codevasf.Aux | C105: CPU 080 | D105: CAIXA ENTERRADA HIDRÁULICA RETANGULAR, EM ALVENARIA COM BLOCOS DE CONCRETO, DIMENSÕES INTERNAS: 0,4X0,4X0,4 M PARA REDE DE ESGOTO. | E105: UN | F105: ='[3]Planilha unificada'!$T104 -> 476 | G105: =IF(B105="Codevasf",VLOOKUP(C105,'CPU CODEVASF'!E:H,4,0),IF(B105="SICRO",VLOOKUP(C105,'SINTÉTICO SICRO'!A:D,4,0)*(1+$F$6),IF(B105="SINAPI",VLOOKUP('RESUMO MODULO TOTAL'!C105,'COMP Sint. Sinapi'!G:M,5,0)*(1+$F$6),IF(B105="ORSE",VLOOKUP(C105,ORSE!A:E,5,0)*(1+$F$6),IF(B105="COTAÇÃO",VLOOKUP(C105,COTAÇÕES!A:E,5,0)*(1+$H$6),IF(B105="Codevasf.Aux",VLOOKUP(C105,Codevasf.Aux!B:J,9,0)*(1+$F$6),IF(B105="SINAPI INS.",VLOOKUP(C105,'INSUMOS SINAPI'!A:E,5,0)*(1+$H$6)))))))) -> 409.4 | H105: 194874.4
A106: 88 | B106: SINAPI | C106: ="97906" -> 97906 | D106: CAIXA ENTERRADA HIDRÁULICA RETANGULAR, EM ALVENARIA COM BLOCOS DE CONCRETO, DIMENSÕES INTERNAS: 0,6X0,6X0,6 M PARA REDE DE ESGOTO. AF_12/2020 | E106: UN | F106: ='[3]Planilha unificada'!$T105 -> 29 | G106: =IF(B106="Codevasf",VLOOKUP(C106,'CPU CODEVASF'!E:H,4,0),IF(B106="SICRO",VLOOKUP(C106,'SINTÉTICO SICRO'!A:D,4,0)*(1+$F$6),IF(B106="SINAPI",VLOOKUP('RESUMO MODULO TOTAL'!C106,'COMP Sint. Sinapi'!G:M,5,0)*(1+$F$6),IF(B106="ORSE",VLOOKUP(C106,ORSE!A:E,5,0)*(1+$F$6),IF(B106="COTAÇÃO",VLOOKUP(C106,COTAÇÕES!A:E,5,0)*(1+$H$6),IF(B106="Codevasf.Aux",VLOOKUP(C106,Codevasf.Aux!B:J,9,0)*(1+$F$6),IF(B106="SINAPI INS.",VLOOKUP(C106,'INSUMOS SINAPI'!A:E,5,0)*(1+$H$6)))))))) -> 533.92 | H106: 15483.68
A107: 89 | B107: SINAPI | C107: ="90105" -> 90105 | D107: ESCAVAÇÃO MECANIZADA DE VALA COM PROFUNDIDADE ATÉ 1,5 M (MÉDIA MONTANTE E JUSANTE/UMA COMPOSIÇÃO POR TRECHO), RETROESCAV. (0,26 M3), LARGURA MENOR QUE 0,8 M, EM SOLO DE 1A CATEGORIA, LOCAIS COM BAIXO NÍVEL DE INTERFERÊNCIA. AF_02/2021 | E107: M3 | F107: ='[3]Planilha unificada'!$T106 -> 1034 | G107: =IF(B107="Codevasf",VLOOKUP(C107,'CPU CODEVASF'!E:H,4,0),IF(B107="SICRO",VLOOKUP(C107,'SINTÉTICO SICRO'!A:D,4,0)*(1+$F$6),IF(B107="SINAPI",VLOOKUP('RESUMO MODULO TOTAL'!C107,'COMP Sint. Sinapi'!G:M,5,0)*(1+$F$6),IF(B107="ORSE",VLOOKUP(C107,ORSE!A:E,5,0)*(1+$F$6),IF(B107="COTAÇÃO",VLOOKUP(C107,COTAÇÕES!A:E,5,0)*(1+$H$6),IF(B107="Codevasf.Aux",VLOOKUP(C107,Codevasf.Aux!B:J,9,0)*(1+$F$6),IF(B107="SINAPI INS.",VLOOKUP(C107,'INSUMOS SINAPI'!A:E,5,0)*(1+$H$6)))))))) -> 11.92 | H107: 12325.28
A108: 90 | B108: SINAPI | C108: ="90106" -> 90106 | D108: ESCAVAÇÃO MECANIZADA DE VALA COM PROFUNDIDADE ATÉ 1,5 M (MÉDIA MONTANTE E JUSANTE/UMA COMPOSIÇÃO POR TRECHO), RETROESCAV. (0,26 M3), LARGURA DE 0,8 M A 1,5 M, EM SOLO DE 1A CATEGORIA, LOCAIS COM BAIXO NÍVEL DE INTERFERÊNCIA. AF_02/2021 | E108: M3 | F108: ='[3]Planilha unificada'!$T107 -> 1002.46 | G108: =IF(B108="Codevasf",VLOOKUP(C108,'CPU CODEVASF'!E:H,4,0),IF(B108="SICRO",VLOOKUP(C108,'SINTÉTICO SICRO'!A:D,4,0)*(1+$F$6),IF(B108="SINAPI",VLOOKUP('RESUMO MODULO TOTAL'!C108,'COMP Sint. Sinapi'!G:M,5,0)*(1+$F$6),IF(B108="ORSE",VLOOKUP(C108,ORSE!A:E,5,0)*(1+$F$6),IF(B108="COTAÇÃO",VLOOKUP(C108,COTAÇÕES!A:E,5,0)*(1+$H$6),IF(B108="Codevasf.Aux",VLOOKUP(C108,Codevasf.Aux!B:J,9,0)*(1+$F$6),IF(B108="SINAPI INS.",VLOOKUP(C108,'INSUMOS SINAPI'!A:E,5,0)*(1+$H$6)))))))) -> 10.13 | H108: 10154.91
A109: 91 | B109: SINAPI | C109: ="94342" -> 94342 | D109: ATERRO MANUAL DE VALAS COM AREIA PARA ATERRO E COMPACTAÇÃO MECANIZADA. AF_05/2016 | E109: M3 | F109: ='[3]Planilha unificada'!$T$108 -> 1345.68 | G109: =IF(B109="Codevasf",VLOOKUP(C109,'CPU CODEVASF'!E:H,4,0),IF(B109="SICRO",VLOOKUP(C109,'SINTÉTICO SICRO'!A:D,4,0)*(1+$F$6),IF(B109="SINAPI",VLOOKUP('RESUMO MODULO TOTAL'!C109,'COMP Sint. Sinapi'!G:M,5,0)*(1+$F$6),IF(B109="ORSE",VLOOKUP(C109,ORSE!A:E,5,0)*(1+$F$6),IF(B109="COTAÇÃO",VLOOKUP(C109,COTAÇÕES!A:E,5,0)*(1+$H$6),IF(B109="Codevasf.Aux",VLOOKUP(C109,Codevasf.Aux!B:J,9,0)*(1+$F$6),IF(B109="SINAPI INS.",VLOOKUP(C109,'INSUMOS SINAPI'!A:E,5,0)*(1+$H$6)))))))) -> 144.21 | H109: =TRUNC(F109*G109,2) -> 194060.51
A110: 92 | B110: SINAPI | C110: ="100974" -> 100974 | D110: CARGA, MANOBRA E DESCARGA DE SOLOS E MATERIAIS GRANULARES EM CAMINHÃO BASCULANTE 10 M³ - CARGA COM PÁ CARREGADEIRA (CAÇAMBA DE 1,7 A 2,8 M³ / 128 HP) E DESCARGA LIVRE (UNIDADE: M3). AF_07/2020 | E110: M3 | F110: ='[3]Planilha unificada'!$T$109 -> 1952.56 | G110: =IF(B110="Codevasf",VLOOKUP(C110,'CPU CODEVASF'!E:H,4,0),IF(B110="SICRO",VLOOKUP(C110,'SINTÉTICO SICRO'!A:D,4,0)*(1+$F$6),IF(B110="SINAPI",VLOOKUP('RESUMO MODULO TOTAL'!C110,'COMP Sint. Sinapi'!G:M,5,0)*(1+$F$6),IF(B110="ORSE",VLOOKUP(C110,ORSE!A:E,5,0)*(1+$F$6),IF(B110="COTAÇÃO",VLOOKUP(C110,COTAÇÕES!A:E,5,0)*(1+$H$6),IF(B110="Codevasf.Aux",VLOOKUP(C110,Codevasf.Aux!B:J,9,0)*(1+$F$6),IF(B110="SINAPI INS.",VLOOKUP(C110,'INSUMOS SINAPI'!A:E,5,0)*(1+$H$6)))))))) -> 10.99 | H110: 21458.63
A111: 93 | B111: SINAPI | C111: ="95874" -> 95874 | D111: TRANSPORTE COM CAMINHÃO BASCULANTE DE 14 M³, EM VIA URBANA PAVIMENTADA, DMT ATÉ 30 KM (UNIDADE: M3XKM). AF_07/2020 | E111: M3XKM | F111: ='[3]Planilha unificada'!$T$110 -> 29288.4 | G111: =IF(B111="Codevasf",VLOOKUP(C111,'CPU CODEVASF'!E:H,4,0),IF(B111="SICRO",VLOOKUP(C111,'SINTÉTICO SICRO'!A:D,4,0)*(1+$F$6),IF(B111="SINAPI",VLOOKUP('RESUMO MODULO TOTAL'!C111,'COMP Sint. Sinapi'!G:M,5,0)*(1+$F$6),IF(B111="ORSE",VLOOKUP(C111,ORSE!A:E,5,0)*(1+$F$6),IF(B111="COTAÇÃO",VLOOKUP(C111,COTAÇÕES!A:E,5,0)*(1+$H$6),IF(B111="Codevasf.Aux",VLOOKUP(C111,Codevasf.Aux!B:J,9,0)*(1+$F$6),IF(B111="SINAPI INS.",VLOOKUP(C111,'INSUMOS SINAPI'!A:E,5,0)*(1+$H$6)))))))) -> 12.46 | H111: 364933.46
D112: CONSTRUÇÃO DE MURO DE ARRIMO | J112: =H112/$H$132 -> 0
A113: 94 | B113: SINAPI | C113: ="90102" -> 90102 | D113: ESCAVAÇÃO MECANIZADA DE VALA COM PROF. MAIOR QUE 1,5 M ATÉ 3,0 M (MÉDIA MONTANTE E JUSANTE/UMA COMPOSIÇÃO POR TRECHO), RETROESCAV. (0,26 M3), LARGURA DE 0,8 M A 1,5 M, EM SOLO DE 1A CATEGORIA, EM LOCAIS COM ALTO NÍVEL DE INTERFERÊNCIA. AF_02/2021 | E113: M3 | F113: ='[3]Planilha unificada'!$T112 -> 33.08 | G113: =IF(B113="Codevasf",VLOOKUP(C113,'CPU CODEVASF'!E:H,4,0),IF(B113="SICRO",VLOOKUP(C113,'SINTÉTICO SICRO'!A:D,4,0)*(1+$F$6),IF(B113="SINAPI",VLOOKUP('RESUMO MODULO TOTAL'!C113,'COMP Sint. Sinapi'!G:M,5,0)*(1+$F$6),IF(B113="ORSE",VLOOKUP(C113,ORSE!A:E,5,0)*(1+$F$6),IF(B113="COTAÇÃO",VLOOKUP(C113,COTAÇÕES!A:E,5,0)*(1+$H$6),IF(B113="Codevasf.Aux",VLOOKUP(C113,Codevasf.Aux!B:J,9,0)*(1+$F$6),IF(B113="SINAPI INS.",VLOOKUP(C113,'INSUMOS SINAPI'!A:E,5,0)*(1+$H$6)))))))) -> 16.51 | H113: =TRUNC(F113*G113,2) -> 546.15
A114: =A113+1 -> 95 | B114: SINAPI | C114: ="102312" -> 102312 | D114: ESCAVAÇÃO MECANIZADA DE VALA COM PROF. DE 3,0 M ATÉ 4,5 M (MÉDIA MONTANTE E JUSANTE/UMA COMPOSIÇÃO POR TRECHO), ESCAVADEIRA (1,2 M3), LARG. DE 1,5 M A 2,5 M, EM SOLO DE 2A CATEGORIA, EM LOCAIS COM ALTO NÍVEL DE INTERFERÊNCIA. AF_02/2021 | E114: M3 | F114: ='[3]Planilha unificada'!$T113 -> 250.6 | G114: =IF(B114="Codevasf",VLOOKUP(C114,'CPU CODEVASF'!E:H,4,0),IF(B114="SICRO",VLOOKUP(C114,'SINTÉTICO SICRO'!A:D,4,0)*(1+$F$6),IF(B114="SINAPI",VLOOKUP('RESUMO MODULO TOTAL'!C114,'COMP Sint. Sinapi'!G:M,5,0)*(1+$F$6),IF(B114="ORSE",VLOOKUP(C114,ORSE!A:E,5,0)*(1+$F$6),IF(B114="COTAÇÃO",VLOOKUP(C114,COTAÇÕES!A:E,5,0)*(1+$H$6),IF(B114="Codevasf.Aux",VLOOKUP(C114,Codevasf.Aux!B:J,9,0)*(1+$F$6),IF(B114="SINAPI INS.",VLOOKUP(C114,'INSUMOS SINAPI'!A:E,5,0)*(1+$H$6)))))))) -> 15.44 | H114: =TRUNC(F114*G114,2) -> 3869.26
A115: =A114+1 -> 96 | B115: SINAPI | C115: ="93382" -> 93382 | D115: REATERRO MANUAL DE VALAS COM COMPACTAÇÃO MECANIZADA. AF_04/2016 | E115: M3 | F115: ='[3]Planilha unificada'!$T114 -> 23.77 | G115: =IF(B115="Codevasf",VLOOKUP(C115,'CPU CODEVASF'!E:H,4,0),IF(B115="SICRO",VLOOKUP(C115,'SINTÉTICO SICRO'!A:D,4,0)*(1+$F$6),IF(B115="SINAPI",VLOOKUP('RESUMO MODULO TOTAL'!C115,'COMP Sint. Sinapi'!G:M,5,0)*(1+$F$6),IF(B115="ORSE",VLOOKUP(C115,ORSE!A:E,5,0)*(1+$F$6),IF(B115="COTAÇÃO",VLOOKUP(C115,COTAÇÕES!A:E,5,0)*(1+$H$6),IF(B115="Codevasf.Aux",VLOOKUP(C115,Codevasf.Aux!B:J,9,0)*(1+$F$6),IF(B115="SINAPI INS.",VLOOKUP(C115,'INSUMOS SINAPI'!A:E,5,0)*(1+$H$6)))))))) -> 32.82 | H115: 780.13
A116: 97 | B116: SINAPI | C116: ="100974" -> 100974 | D116: CARGA, MANOBRA E DESCARGA DE SOLOS E MATERIAIS GRANULARES EM CAMINHÃO BASCULANTE 10 M³ - CARGA COM PÁ CARREGADEIRA (CAÇAMBA DE 1,7 A 2,8 M³ / 128 HP) E DESCARGA LIVRE (UNIDADE: M3). AF_07/2020 | E116: M3 | F116: ='[3]Planilha unificada'!$T115 -> 324.89 | G116: =IF(B116="Codevasf",VLOOKUP(C116,'CPU CODEVASF'!E:H,4,0),IF(B116="SICRO",VLOOKUP(C116,'SINTÉTICO SICRO'!A:D,4,0)*(1+$F$6),IF(B116="SINAPI",VLOOKUP('RESUMO MODULO TOTAL'!C116,'COMP Sint. Sinapi'!G:M,5,0)*(1+$F$6),IF(B116="ORSE",VLOOKUP(C116,ORSE!A:E,5,0)*(1+$F$6),IF(B116="COTAÇÃO",VLOOKUP(C116,COTAÇÕES!A:E,5,0)*(1+$H$6),IF(B116="Codevasf.Aux",VLOOKUP(C116,Codevasf.Aux!B:J,9,0)*(1+$F$6),IF(B116="SINAPI INS.",VLOOKUP(C116,'INSUMOS SINAPI'!A:E,5,0)*(1+$H$6)))))))) -> 10.99 | H116: 3570.54
A117: 98 | B117: SINAPI | C117: ="95876" -> 95876 | D117: TRANSPORTE COM CAMINHÃO BASCULANTE DE 14 M³, EM VIA URBANA PAVIMENTADA, DMT ATÉ 30 KM (UNIDADE: M3XKM). AF_07/2020 | E117: M3XKM | F117: ='[3]Planilha unificada'!$T116 -> 4873.35 | G117: =IF(B117="Codevasf",VLOOKUP(C117,'CPU CODEVASF'!E:H,4,0),IF(B117="SICRO",VLOOKUP(C117,'SINTÉTICO SICRO'!A:D,4,0)*(1+$F$6),IF(B117="SINAPI",VLOOKUP('RESUMO MODULO TOTAL'!C117,'COMP Sint. Sinapi'!G:M,5,0)*(1+$F$6),IF(B117="ORSE",VLOOKUP(C117,ORSE!A:E,5,0)*(1+$F$6),IF(B117="COTAÇÃO",VLOOKUP(C117,COTAÇÕES!A:E,5,0)*(1+$H$6),IF(B117="Codevasf.Aux",VLOOKUP(C117,Codevasf.Aux!B:J,9,0)*(1+$F$6),IF(B117="SINAPI INS.",VLOOKUP(C117,'INSUMOS SINAPI'!A:E,5,0)*(1+$H$6)))))))) -> 2.67 | H117: 13011.84
A118: 99 | B118: SINAPI | C118: ="101584" -> 101584 | D118: ESCORAMENTO DE VALA, TIPO CONTÍNUO, COM PROFUNDIDADE DE 1,5 M A 3,0 M, LARGURA MENOR QUE 1,5 M. AF_08/2020 | E118: M2 | F118: ='[3]Planilha unificada'!$T117 -> 33.15 | G118: =IF(B118="Codevasf",VLOOKUP(C118,'CPU CODEVASF'!E:H,4,0),IF(B118="SICRO",VLOOKUP(C118,'SINTÉTICO SICRO'!A:D,4,0)*(1+$F$6),IF(B118="SINAPI",VLOOKUP('RESUMO MODULO TOTAL'!C118,'COMP Sint. Sinapi'!G:M,5,0)*(1+$F$6),IF(B118="ORSE",VLOOKUP(C118,ORSE!A:E,5,0)*(1+$F$6),IF(B118="COTAÇÃO",VLOOKUP(C118,COTAÇÕES!A:E,5,0)*(1+$H$6),IF(B118="Codevasf.Aux",VLOOKUP(C118,Codevasf.Aux!B:J,9,0)*(1+$F$6),IF(B118="SINAPI INS.",VLOOKUP(C118,'INSUMOS SINAPI'!A:E,5,0)*(1+$H$6)))))))) -> 73.23 | H118: 2427.57
A119: 100 | B119: SINAPI | C119: ="101586" -> 101586 | D119: ESCORAMENTO DE VALA, TIPO CONTÍNUO, COM PROFUNDIDADE DE 3,0 A 4,5 M, LARGURA MENOR QUE 1,5 M. AF_08/2020 | E119: M2 | F119: ='[3]Planilha unificada'!$T118 -> 97.79 | G119: =IF(B119="Codevasf",VLOOKUP(C119,'CPU CODEVASF'!E:H,4,0),IF(B119="SICRO",VLOOKUP(C119,'SINTÉTICO SICRO'!A:D,4,0)*(1+$F$6),IF(B119="SINAPI",VLOOKUP('RESUMO MODULO TOTAL'!C119,'COMP Sint. Sinapi'!G:M,5,0)*(1+$F$6),IF(B119="ORSE",VLOOKUP(C119,ORSE!A:E,5,0)*(1+$F$6),IF(B119="COTAÇÃO",VLOOKUP(C119,COTAÇÕES!A:E,5,0)*(1+$H$6),IF(B119="Codevasf.Aux",VLOOKUP(C119,Codevasf.Aux!B:J,9,0)*(1+$F$6),IF(B119="SINAPI INS.",VLOOKUP(C119,'INSUMOS SINAPI'!A:E,5,0)*(1+$H$6)))))))) -> 64.08 | H119: 6266.38
A120: 101 | B120: SINAPI | C120: ="97084" -> 97084 | D120: COMPACTAÇÃO MECÂNICA DE SOLO PARA EXECUÇÃO DE RADIER, PISO DE CONCRETO OU LAJE SOBRE SOLO, COM COMPACTADOR DE SOLOS TIPO PLACA VIBRATÓRIA. AF_09/2021 | E120: M2 | F120: ='[3]Planilha unificada'!$T119 -> 362.31 | G120: =IF(B120="Codevasf",VLOOKUP(C120,'CPU CODEVASF'!E:H,4,0),IF(B120="SICRO",VLOOKUP(C120,'SINTÉTICO SICRO'!A:D,4,0)*(1+$F$6),IF(B120="SINAPI",VLOOKUP('RESUMO MODULO TOTAL'!C120,'COMP Sint. Sinapi'!G:M,5,0)*(1+$F$6),IF(B120="ORSE",VLOOKUP(C120,ORSE!A:E,5,0)*(1+$F$6),IF(B120="COTAÇÃO",VLOOKUP(C120,COTAÇÕES!A:E,5,0)*(1+$H$6),IF(B120="Codevasf.Aux",VLOOKUP(C120,Codevasf.Aux!B:J,9,0)*(1+$F$6),IF(B120="SINAPI INS.",VLOOKUP(C120,'INSUMOS SINAPI'!A:E,5,0)*(1+$H$6)))))))) -> 0.83 | H120: 300.71
A121: 102 | B121: SINAPI | C121: ="94968" -> 94968 | D121: CONCRETO MAGRO PARA LASTRO, TRAÇO 1:4,5:4,5 (EM MASSA SECA DE CIMENTO/ AREIA MÉDIA/ BRITA 1) - PREPARO MECÂNICO COM BETONEIRA 600 L. AF_05/2021 | E121: M3 | F121: ='[3]Planilha unificada'!$T120 -> 14.63 | G121: =IF(B121="Codevasf",VLOOKUP(C121,'CPU CODEVASF'!E:H,4,0),IF(B121="SICRO",VLOOKUP(C121,'SINTÉTICO SICRO'!A:D,4,0)*(1+$F$6),IF(B121="SINAPI",VLOOKUP('RESUMO MODULO TOTAL'!C121,'COMP Sint. Sinapi'!G:M,5,0)*(1+$F$6),IF(B121="ORSE",VLOOKUP(C121,ORSE!A:E,5,0)*(1+$F$6),IF(B121="COTAÇÃO",VLOOKUP(C121,COTAÇÕES!A:E,5,0)*(1+$H$6),IF(B121="Codevasf.Aux",VLOOKUP(C121,Codevasf.Aux!B:J,9,0)*(1+$F$6),IF(B121="SINAPI INS.",VLOOKUP(C121,'INSUMOS SINAPI'!A:E,5,0)*(1+$H$6)))))))) -> 500.63 | H121: 7324.21
A122: =A121+1 -> 103 | B122: SINAPI | C122: ="96620" -> 96620 | D122: LASTRO DE CONCRETO MAGRO, APLICADO EM PISOS, LAJES SOBRE SOLO OU RADIERS. AF_08/2017 | E122: M3 | F122: ='[3]Planilha unificada'!$T121 -> 3.48 | G122: =IF(B122="Codevasf",VLOOKUP(C122,'CPU CODEVASF'!E:H,4,0),IF(B122="SICRO",VLOOKUP(C122,'SINTÉTICO SICRO'!A:D,4,0)*(1+$F$6),IF(B122="SINAPI",VLOOKUP('RESUMO MODULO TOTAL'!C122,'COMP Sint. Sinapi'!G:M,5,0)*(1+$F$6),IF(B122="ORSE",VLOOKUP(C122,ORSE!A:E,5,0)*(1+$F$6),IF(B122="COTAÇÃO",VLOOKUP(C122,COTAÇÕES!A:E,5,0)*(1+$H$6),IF(B122="Codevasf.Aux",VLOOKUP(C122,Codevasf.Aux!B:J,9,0)*(1+$F$6),IF(B122="SINAPI INS.",VLOOKUP(C122,'INSUMOS SINAPI'!A:E,5,0)*(1+$H$6)))))))) -> 782.48 | H122: 2723.03
A123: 104 | B123: SINAPI | C123: ="92745" -> 92745 | D123: MURO DE GABIÃO, ENCHIMENTO COM PEDRA DE MÃO TIPO RACHÃO, DE GRAVIDADE, COM GAIOLAS DE COMPRIMENTO IGUAL A 2 M, PARA MUROS COM ALTURA MAIOR QUE 4 M E MENOR OU IGUAL A 6 M  FORNECIMENTO E EXECUÇÃO. AF_12/2015 | E123: M3 | F123: ='[3]Planilha unificada'!$T122 -> 708.98 | G123: =IF(B123="Codevasf",VLOOKUP(C123,'CPU CODEVASF'!E:H,4,0),IF(B123="SICRO",VLOOKUP(C123,'SINTÉTICO SICRO'!A:D,4,0)*(1+$F$6),IF(B123="SINAPI",VLOOKUP('RESUMO MODULO TOTAL'!C123,'COMP Sint. Sinapi'!G:M,5,0)*(1+$F$6),IF(B123="ORSE",VLOOKUP(C123,ORSE!A:E,5,0)*(1+$F$6),IF(B123="COTAÇÃO",VLOOKUP(C123,COTAÇÕES!A:E,5,0)*(1+$H$6),IF(B123="Codevasf.Aux",VLOOKUP(C123,Codevasf.Aux!B:J,9,0)*(1+$F$6),IF(B123="SINAPI INS.",VLOOKUP(C123,'INSUMOS SINAPI'!A:E,5,0)*(1+$H$6)))))))) -> 1029.53 | H123: =TRUNC(F123*G123,2) -> 729916.17 | I123: GABIAO
A124: 105 | B124: SINAPI | C124: ="95876" -> 95876 | D124: TRANSPORTE COM CAMINHÃO BASCULANTE DE 14 M³, EM VIA URBANA PAVIMENTADA, DMT ATÉ 30 KM | E124: m³xkm | F124: =(1.3*F123*30) -> 27650.22 | G124: =IF(B124="Codevasf",VLOOKUP(C124,'CPU CODEVASF'!E:H,4,0),IF(B124="SICRO",VLOOKUP(C124,'SINTÉTICO SICRO'!A:D,4,0)*(1+$F$6),IF(B124="SINAPI",VLOOKUP('RESUMO MODULO TOTAL'!C124,'COMP Sint. Sinapi'!G:M,5,0)*(1+$F$6),IF(B124="ORSE",VLOOKUP(C124,ORSE!A:E,5,0)*(1+$F$6),IF(B124="COTAÇÃO",VLOOKUP(C124,COTAÇÕES!A:E,5,0)*(1+$H$6),IF(B124="Codevasf.Aux",VLOOKUP(C124,Codevasf.Aux!B:J,9,0)*(1+$F$6),IF(B124="SINAPI INS.",VLOOKUP(C124,'INSUMOS SINAPI'!A:E,5,0)*(1+$H$6)))))))) -> 2.67 | H124: =TRUNC(F124*G124,2) -> 73826.08
A125: 106 | B125: Codevasf.Aux | C125: CPU 055 | D125: DRENO BARBACÃ, DN 100 MM. | E125: M | F125: ='[3]Planilha unificada'!$T123 -> 5649.73 | G125: =IF(B125="Codevasf",VLOOKUP(C125,'CPU CODEVASF'!E:H,4,0),IF(B125="SICRO",VLOOKUP(C125,'SINTÉTICO SICRO'!A:D,4,0)*(1+$F$6),IF(B125="SINAPI",VLOOKUP('RESUMO MODULO TOTAL'!C125,'COMP Sint. Sinapi'!G:M,5,0)*(1+$F$6),IF(B125="ORSE",VLOOKUP(C125,ORSE!A:E,5,0)*(1+$F$6),IF(B125="COTAÇÃO",VLOOKUP(C125,COTAÇÕES!A:E,5,0)*(1+$H$6),IF(B125="Codevasf.Aux",VLOOKUP(C125,Codevasf.Aux!B:J,9,0)*(1+$F$6),IF(B125="SINAPI INS.",VLOOKUP(C125,'INSUMOS SINAPI'!A:E,5,0)*(1+$H$6)))))))) -> 49.05 | H125: =TRUNC(F125*G125,2) -> 277119.25
A126: =A125+1 -> 107 | B126: SINAPI | C126: ="102716" -> 102716 | D126: ENCHIMENTO DE AREIA PARA DRENO, LANÇAMENTO MECANIZADO. AF_07/2021 | E126: M3 | F126: ='[3]Planilha unificada'!$T124 -> 57.04 | G126: =IF(B126="Codevasf",VLOOKUP(C126,'CPU CODEVASF'!E:H,4,0),IF(B126="SICRO",VLOOKUP(C126,'SINTÉTICO SICRO'!A:D,4,0)*(1+$F$6),IF(B126="SINAPI",VLOOKUP('RESUMO MODULO TOTAL'!C126,'COMP Sint. Sinapi'!G:M,5,0)*(1+$F$6),IF(B126="ORSE",VLOOKUP(C126,ORSE!A:E,5,0)*(1+$F$6),IF(B126="COTAÇÃO",VLOOKUP(C126,COTAÇÕES!A:E,5,0)*(1+$H$6),IF(B126="Codevasf.Aux",VLOOKUP(C126,Codevasf.Aux!B:J,9,0)*(1+$F$6),IF(B126="SINAPI INS.",VLOOKUP(C126,'INSUMOS SINAPI'!A:E,5,0)*(1+$H$6)))))))) -> 212.37 | H126: 12113.58
A127: 108 | B127: SINAPI | C127: ="102717" -> 102717 | D127: ENCHIMENTO DE BRITA PARA DRENO, LANÇAMENTO MECANIZADO. AF_07/2021 | E127: M3 | F127: ='[3]Planilha unificada'!$T125 -> 57.04 | G127: =IF(B127="Codevasf",VLOOKUP(C127,'CPU CODEVASF'!E:H,4,0),IF(B127="SICRO",VLOOKUP(C127,'SINTÉTICO SICRO'!A:D,4,0)*(1+$F$6),IF(B127="SINAPI",VLOOKUP('RESUMO MODULO TOTAL'!C127,'COMP Sint. Sinapi'!G:M,5,0)*(1+$F$6),IF(B127="ORSE",VLOOKUP(C127,ORSE!A:E,5,0)*(1+$F$6),IF(B127="COTAÇÃO",VLOOKUP(C127,COTAÇÕES!A:E,5,0)*(1+$H$6),IF(B127="Codevasf.Aux",VLOOKUP(C127,Codevasf.Aux!B:J,9,0)*(1+$F$6),IF(B127="SINAPI INS.",VLOOKUP(C127,'INSUMOS SINAPI'!A:E,5,0)*(1+$H$6)))))))) -> 176.19 | H127: 10049.87
D128: MOMENTO DE TRANSPORTE | J128: =H128/$H$132 -> 0
A129: 109 | B129: SICRO | C129: 5914389 | D129: =IF(B129="CODEVASF",VLOOKUP(C129,'CPU CODEVASF'!E:H,2,FALSE),VLOOKUP(C129,'SINTÉTICO SICRO'!A:D,2,FALSE)) -> Transporte com caminhão basculante de 10 m³ - rodovia pavimentada | E129: tkm | F129: =ROUND(SUMIF('MOMENTO DE TRANSPORTE - PRINC'!A:A,'RESUMO MODULO TOTAL'!C129,'MOMENTO DE TRANSPORTE - PRINC'!K:K)+SUMIF('MOMENTO DE TRANSPORTE - AUX'!A:A,'RESUMO MODULO TOTAL'!C129,'MOMENTO DE TRANSPORTE - AUX'!K:K),2) -> 4053901.12 | G129: =IF(B129="Codevasf",VLOOKUP(C129,'CPU CODEVASF'!E:H,4,0),IF(B129="SICRO",VLOOKUP(C129,'SINTÉTICO SICRO'!A:D,4,0)*(1+$F$6),IF(B129="SINAPI",VLOOKUP('RESUMO MODULO TOTAL'!C129,'COMP Sint. Sinapi'!G:M,5,0)*(1+$F$6),IF(B129="ORSE",VLOOKUP(C129,ORSE!A:E,5,0)*(1+$F$6),IF(B129="COTAÇÃO",VLOOKUP(C129,COTAÇÕES!A:E,5,0)*(1+$H$6),IF(B129="Codevasf.Aux",VLOOKUP(C129,Codevasf.Aux!B:J,9,0)*(1+$F$6),IF(B129="SINAPI INS.",VLOOKUP(C129,'INSUMOS SINAPI'!A:E,5,0)*(1+$H$6)))))))) -> 0.89 | H129: =TRUNC(F129*G129,2) -> 3607971.99 | J129: =H129/$H$132 -> 0.1396
A130: =A129+1 -> 110 | B130: SICRO | C130: 5914479 | D130: =IF(B130="CODEVASF",VLOOKUP(C130,'CPU CODEVASF'!E:H,2,FALSE),VLOOKUP(C130,'SINTÉTICO SICRO'!A:D,2,FALSE)) -> Transporte com caminhão carroceria de 15 t - rodovia pavimentada | E130: tkm | F130: =ROUND(SUMIF('MOMENTO DE TRANSPORTE - PRINC'!A:A,'RESUMO MODULO TOTAL'!C130,'MOMENTO DE TRANSPORTE - PRINC'!K:K)+SUMIF('MOMENTO DE TRANSPORTE - AUX'!A:A,'RESUMO MODULO TOTAL'!C130,'MOMENTO DE TRANSPORTE - AUX'!K:K),2) -> 62.89 | G130: =IF(B130="Codevasf",VLOOKUP(C130,'CPU CODEVASF'!E:H,4,0),IF(B130="SICRO",VLOOKUP(C130,'SINTÉTICO SICRO'!A:D,4,0)*(1+$F$6),IF(B130="SINAPI",VLOOKUP('RESUMO MODULO TOTAL'!C130,'COMP Sint. Sinapi'!G:M,5,0)*(1+$F$6),IF(B130="ORSE",VLOOKUP(C130,ORSE!A:E,5,0)*(1+$F$6),IF(B130="COTAÇÃO",VLOOKUP(C130,COTAÇÕES!A:E,5,0)*(1+$H$6),IF(B130="Codevasf.Aux",VLOOKUP(C130,Codevasf.Aux!B:J,9,0)*(1+$F$6),IF(B130="SINAPI INS.",VLOOKUP(C130,'INSUMOS SINAPI'!A:E,5,0)*(1+$H$6)))))))) -> 0.81 | H130: 50.94 | J130: =H130/$H$132 -> 0
A131: =A130+1 -> 111 | B131: SICRO | C131: 5914366 | D131: =IF(B131="CODEVASF",VLOOKUP(C131,'CPU CODEVASF'!E:H,2,FALSE),VLOOKUP(C131,'SINTÉTICO SICRO'!A:D,2,FALSE)) -> Transporte de cimento ou cal hidratada a granel com caminhão silo de 30 m³ - rodovia pavimentada | E131: tkm | F131: =ROUND(SUMIF('MOMENTO DE TRANSPORTE - PRINC'!A:A,'RESUMO MODULO TOTAL'!C131,'MOMENTO DE TRANSPORTE - PRINC'!K:K)+SUMIF('MOMENTO DE TRANSPORTE - AUX'!A:A,'RESUMO MODULO TOTAL'!C131,'MOMENTO DE TRANSPORTE - AUX'!K:K),2) -> 24239.8 | G131: =IF(B131="Codevasf",VLOOKUP(C131,'CPU CODEVASF'!E:H,4,0),IF(B131="SICRO",VLOOKUP(C131,'SINTÉTICO SICRO'!A:D,4,0)*(1+$F$6),IF(B131="SINAPI",VLOOKUP('RESUMO MODULO TOTAL'!C131,'COMP Sint. Sinapi'!G:M,5,0)*(1+$F$6),IF(B131="ORSE",VLOOKUP(C131,ORSE!A:E,5,0)*(1+$F$6),IF(B131="COTAÇÃO",VLOOKUP(C131,COTAÇÕES!A:E,5,0)*(1+$H$6),IF(B131="Codevasf.Aux",VLOOKUP(C131,Codevasf.Aux!B:J,9,0)*(1+$F$6),IF(B131="SINAPI INS.",VLOOKUP(C131,'INSUMOS SINAPI'!A:E,5,0)*(1+$H$6)))))))) -> 0.65 | H131: 15755.87 | J131: =H131/$H$132 -> 0.0006
A132: VALOR TOTAL DO SRP | H132: =SUM(H9:H131) -> 25847943.32
A133: Obs.: Os valores estão apresentados com apenas 2 casas decimais, mas os valores da presente planilha foram calculados utilizando a precisão de 6 casas decimais.

Sheet Planilha2
A1: CONTRATAÇÃO DE EXECUÇÃO DE PAVIMENTO ASFÁLTICO COM CBUQ, EM VIAS URBANAS DE RECIFE/PE, ÁREA DE ATUAÇÃO DA 15ª SUPERINTENDÊNCIA REGIONAL DA CODEVASF.
G2: SICRO: | H2: ='SINTÉTICO SICRO'!B2 -> Pernambuco - Julho/2023
G3: SINAPI: | H3: =RIGHT('INSUMOS SINAPI'!A3,7) -> 09/2023
G4: Data Base do Orçamento | H4: 2023-09-01
A5: =A1 -> CONTRATAÇÃO DE EXECUÇÃO DE PAVIMENTO ASFÁLTICO COM CBUQ, EM VIAS URBANAS DE RECIFE/PE, ÁREA DE ATUAÇÃO DA 15ª SUPERINTENDÊNCIA REGIONAL DA CODEVASF.
A6: ITEM | B6: ORIGEM COMPOSIÇÃO | C6: CÓDIGO COMPOSIÇÃO | D6: DISCRIMINAÇÃO DOS SERVIÇOS | E6: BDI % = | F6: =BDI!$C$17 -> 0.2339 | G6: BDI DIFERENCIADO% = | H6: =BDI!$C$65 -> 0.15 | I6: =H132 -> 0
E7: UND | F7: QTDE | G7: PREÇO UNITÁRIO COM BDI | H7: PREÇO TOTAL COM BDI
D8: ADMINISTRAÇÃO DA OBRA
A9: 1 | B9: Codevasf | C9: CPU-02 | D9: Atualização do projeto de drenagem e pavimentação - as built final | E9: m | F9: ='[3]Planilha unificada'!$T$15 -> 4067.42
A10: 2 | B10: Codevasf | C10: CPU-03 | D10: Administração Local | E10: % | F10: 1 | J10: =H10/$H$132 -> 
A11: 3 | B11: Codevasf | C11: CPU-04 | D11: Canteiro de Obras e Almoxarifado | E11: % | F11: 1 | J11: =H11/$H$132 -> 
A12: 4 | B12: Codevasf | C12: CPU-01 | D12: Placa de Obra em Chapa de Aço Galvanizado | E12: und | F12: 14 | J12: =H12/$H$132 -> 
A13: 5 | B13: Codevasf | C13: CPU-29 | D13: Veículo para apoio a fiscalização da Codevasf | E13: mês | F13: 12
D14: SERVIÇOS INICIAIS
A15: =A13+1 -> 6 | B15: Codevasf | C15: CPU-16 | D15: Serviços topográficos para pavimentação, inclusive notas de serviços, acompanhamento e greide | E15: m² | F15: ='[3]Planilha unificada'!$T$79+'[3]Planilha unificada'!$T$82+'[3]Planilha unificada'!$T$85+'[3]Planilha unificada'!$T$87 -> 44047.5
A16: =A15+1 -> 7 | B16: Codevasf | C16: CPU-22 | D16: Fornecimento e montagem de tela de sinalização laranja (H=1,20m) | E16: m | F16: ='[3]Planilha unificada'!$T$26 -> 9884.69
A17: =A16+1 -> 8 | B17: Codevasf | C17: CPU-23 | D17: Fornecimento e implantação de cavalete de sinalização de obras | E17: UND | F17: ='[3]Planilha unificada'!$T$27 -> 35
A18: 9 | B18: SICRO | C18: 5213835 | D18: Cone plastico para sinalização | E18: unid.dia | F18: =F19 -> 836
A19: 10 | B19: SICRO | C19: 5213383 | D19: Cavalete zebrado | E19: unid.dia | F19: ='[3]Planilha unificada'!$T$20*22 -> 836
A20: 11 | B20: SINAPI | C20: ="99061" -> 99061 | D20: LOCAÇÃO COM CAVALETE COM ALTURA DE 0,50 M - 2 UTILIZAÇÕES. AF_10/2018 | E20: UND | F20: ='[3]Planilha unificada'!$T$30 -> 48
D21: PROJETO EXECUTIVO E CONTROLE TECNOLÓGICO
A22: 12 | B22: Codevasf | C22: CPU-20 | D22: Projeto Executivo | E22: m² | F22: =F15 -> 44047.5
A23: 13 | B23: Codevasf | C23: CPU-21 | D23: Controle Tecnológico | E23: m² | F23: =F15 -> 44047.5
D24: DEMOLIÇÕES | J24: =H24/$H$132 -> 
A25: =A23+1 -> 14 | B25: ORSE | C25: ="21" -> 21 | D25: Demolição de meio-fio granítico ou pre-moldado | E25: m | F25: ='[3]Planilha unificada'!$T$32 -> 1086.14 | J25: =H25/$H$132 -> 
A26: =A25+1 -> 15 | B26: ORSE | C26: 9182 | D26: Demolição de concreto com martelete e compressor | E26: m³ | F26: ='[3]Planilha unificada'!$T$33 -> 258.73
A27: =A26+1 -> 16 | B27: ORSE | C27: 7989 | D27: Demolição de pavimentação em paralelepípedo sem reaproveitamento | E27: m² | F27: ='[3]Planilha unificada'!$T$34 -> 237.34
A28: 17 | B28: ORSE | C28: 3258 | D28: Demolição de piso em lajota | E28: m² | F28: ='[3]Planilha unificada'!$T$35 -> 375.14
A29: 18 | B29: SINAPI | C29: ="97624" -> 97624 | D29: Demolição manual de alvenaria de tijolo maciço (s/ reaproveitamento) | E29: m³ | F29: ='[3]Planilha unificada'!$T$36 -> 162.83
A30: 19 | B30: ORSE | C30: 4801 | D30: Demolição de piso em pedra calcárea | E30: m² | F30: ='[3]Planilha unificada'!$T$37 -> 39.94
A31: 20 | B31: SINAPI | C31: ="97629" -> 97629 | D31: Demolição de lajes com martele (sem reaproveitamento) | E31: m³ | F31: ='[3]Planilha unificada'!$T$38*2.13 -> 19.17
A32: 21 | B32: SINAPI | C32: ="97634" -> 97634 | D32: Demolição de revestimento cerâmico com martele (sem reaproveitamento) | E32: m² | F32: ='[3]Planilha unificada'!$T$39 -> 212.69
A33: =A32+1 -> 22 | B33: SINAPI | C33: ="98530" -> 98530 | D33: Corte raso e recorte de árvore | E33: und | F33: ='[3]Planilha unificada'!$T$40 -> 1
A34: 23 | B34: SINAPI | C34: ="100983" -> 100983 | D34: CARGA, MANOBRA E DESCARGA DE ENTULHO EM CAMINHÃO BASCULANTE 14 M³ | E34: m³ | F34: =F31+F29+F26 -> 440.73
A35: 24 | B35: SINAPI | C35: ="95876" -> 95876 | D35: TRANSPORTE COM CAMINHÃO BASCULANTE DE 14 M³, EM VIA URBANA PAVIMENTADA, DMT ATÉ 30 KM | E35: m³xkm | F35: =((F31+F29+F26))*30 -> 13221.9
D36: TERRAPLENAGEM E MOVIMENTO DE TERRA
A37: =A35+1 -> 25 | B37: SICRO | C37: 5502166 | D37: Escavação, carga e transporte de material de 1ª categoria - DMT de 1.000 a 1.200 m - caminho de serviço pavimentado- com escavadeira e caminhão basculante de 14 m³ | E37: m³ | F37: ='[3]Planilha unificada'!$T$44 -> 18711.42
A38: =A37+1 -> 26 | B38: SINAPI | C38: ="96386" -> 96386 | D38: EXECUÇÃO E COMPACTAÇÃO DE ATERRO COM SOLO PREDOMINANTEMENTE ARENOSO - EXCLUSIVE SOLO, ESCAVAÇÃO, CARGA E TRANSPORTE. AF_11/2019 | E38: m³ | F38: ='[3]Planilha unificada'!$T$45 -> 902.11
A39: =A38+1 -> 27 | B39: SINAPI INS. | C39: 368 | D39: =VLOOKUP(C39,'INSUMOS SINAPI'!A:E,2,0) -> AREIA PARA ATERRO - POSTO JAZIDA/FORNECEDOR (RETIRADO NA JAZIDA, SEM TRANSPORTE) | E39: m³ | F39: =F38*1.25 -> 1127.64
A40: 28 | B40: SINAPI | C40: ="100983" -> 100983 | D40: CARGA, MANOBRA E DESCARGA DE SOLO EM CAMINHÃO BASCULANTE 14 M³ | E40: m³ | F40: ='[3]Planilha unificada'!$T$46 -> 23389.31
A41: 29 | B41: SINAPI | C41: ="95876" -> 95876 | D41: TRANSPORTE COM CAMINHÃO BASCULANTE DE 14 M³, EM VIA URBANA PAVIMENTADA, DMT ATÉ 30 KM | E41: m³xkm | F41: =((11405.87))*30 -> 342176.1 | J41: =H41/$H$132 -> 
D42: DRENAGEM
A43: 30 | B43: SINAPI | C43: ="90746" -> 90746 | D43: ASSENTAMENTO DE TUBO DE PEAD CORRUGADO DE DUPLA PAREDE, DN 450 MM, JUNTA ELÁSTICA INTEGRADA (NÃO INCLUI FORNECIMENTO). AF_01/2021 | E43: m | F43: ='[3]Planilha unificada'!$T$49 -> 267.97
A44: =A43+1 -> 31 | B44: SINAPI INS. | C44: 41781 | D44: =VLOOKUP(C44,'INSUMOS SINAPI'!A:E,2,0) -> TUBO CORRUGADO PEAD, PAREDE DUPLA, INTERNA LISA, JEI, DN/DI *400* MM, PARA SANEAMENTO (DRENAGEM/ESGOTO) | E44: m | F44: =F43*1.05 -> 281.37
A45: =A44+1 -> 32 | B45: SINAPI | C45: ="94872" -> 94872 | D45: ASSENTAMENTO DE TUBO DE PEAD CORRUGADO DE DUPLA PAREDE, DN 300 MM, JUNTA ELÁSTICA INTEGRADA (NÃO INCLUI FORNECIMENTO). AF_01/2021 | E45: m | F45: ='[3]Planilha unificada'!$T$50 -> 210.7
A46: 33 | B46: SINAPI INS. | C46: 41780 | D46: =VLOOKUP(C46,'INSUMOS SINAPI'!A:E,2,0) -> TUBO CORRUGADO PEAD, PAREDE DUPLA, INTERNA LISA, JEI, DN/DI 300 MM, PARA SANEAMENTO (DRENAGEM/ESGOTO) | E46: m | F46: =F45*1.05 -> 221.24
A47: 34 | B47: SINAPI | C47: ="90747" -> 90747 | D47: ASSENTAMENTO DE TUBO DE PEAD CORRUGADO DE DUPLA PAREDE, DN 600 MM, JUNTA ELÁSTICA INTEGRADA (NÃO INCLUI FORNECIMENTO). AF_01/2021 | E47: m | F47: ='[3]Planilha unificada'!$T$51 -> 1282.88
A48: 35 | B48: SINAPI INS. | C48: 41782 | D48: =VLOOKUP(C48,'INSUMOS SINAPI'!A:E,2,0) -> TUBO CORRUGADO PEAD, PAREDE DUPLA, INTERNA LISA, JEI, DN/DI 600 MM, PARA SANEAMENTO (DRENAGEM/ESGOTO) | E48: m | F48: =F47*1.05 -> 1347.02
A49: 36 | B49: Codevasf.Aux | C49: CPU-036 | D49: CAIXA COM GRELHA DE FIBRA DE VIDRO (PRFV) SIMPLES RETANGULAR, ALVENARIA COM BLOCO DE CONCRETO 22X11X8CM, DE UMA VEZ, DIMENSÕES INTERNAS DE 0,72X0,30X1,00M | E49: und | F49: ='[3]Planilha unificada'!$T$52 -> 79
A50: 37 | B50: Codevasf.Aux | C50: CPU 048 | D50: EXECUÇÃO DE CAIXA DE LIGAÇÃO PARA CANALETA EM ALVENARIA DE BLOCO DE CONCRETO 20X10X10, ASSENTADOS SOBRE LAJE DE CONCRETO ARMADO FCK 15 MPA, DIMENSÕES INTERNAS DE 40X40CM, REVESTIDO COM CHAPISCO E EMBOÇO, COM FUNDO EM LASTRO DE CONCRETO. | E50: und | F50: ='[3]Planilha unificada'!$T$53 -> 4
A51: 38 | B51: Codevasf.Aux | C51: CPU 102 | D51: CONSTRUÇÃO DE CAIXA COLETORA GAVETA EM ALVENARIA DE BLOCOS ESTRUTURAL DE CONCRETO 4,5 MPA, NAS DIMENSÕES INTERNAS 1,00 X 1,00 X 1,00 M, COM APLICAÇÃO DE CHAPISCO E EMBOÇO NAS FACES EXTERNAS E INTERNAS, INCLUINDO LAJE DE CONCRETO ARMADO DE 1,40 X 1,40 COM TAMPA REMOVÍVEL DE 0,80 X 0,80 M E CANTONEIRA DE AÇO, INCLUSIVE MEIO FIO DRENANTE CONFORME PROJETO. TIPO PARA VIAS LOCAIS. | E51: und | F51: ='[3]Planilha unificada'!$T$54 -> 84
A52: 39 | B52: Codevasf.Aux | C52: CPU 097 | D52: CONSTRUÇÃO DE CAIXA COLETORA GAVETA EM ALVENARIA DE BLOCOS ESTRUTURAL DE CONCRETO 4,5 MPA, NAS DIMENSÕES INTERNAS 1,00 X 1,00 X 1,00 M, COM APLICAÇÃO DE CHAPISCO E EMBOÇO NAS FACES EXTERNAS E INTERNAS, INCLUINDO LAJE DE CONCRETO ARMADO DE 1,40 X 1,40 COM TAMPA REMOVÍVEL DE 0,80 X 0,80 M E CANTONEIRA DE AÇO, INCLUSIVE MEIO FIO DRENANTE CONFORME PROJETO. TIPO PARA VIAS LOCAIS. | E52: und | F52: ='[3]Planilha unificada'!$T$55 -> 41
A53: 40 | B53: Codevasf.Aux | C53: CPU 112 | D53: ACRÉSCIMO PARA POÇO DE VISITA RETANGULAR PARA DRENAGEM, EM ALVENARIA COM BLOCOS DE CONCRETO, DIMENSÕES INTERNAS = 1,0X1,0M. | E53: m | F53: ='[3]Planilha unificada'!$T$56 -> 5.7
A54: 41 | B54: Codevasf.Aux | C54: CPU 051 | D54: CANALETA EM CONCRETO ARMADO NAS DIMENSÕES 0,40M X 0,40, INCLUINDO LAJE DE TAMPA COM 20CM, CONFORME PROJETO DE CÁLCULO ESTRUTURAL (LINHA D'ÁGUA - TAMPA COM FUROS DN 50MM) | E54: m | F54: ='[3]Planilha unificada'!$T$57 -> 386.73
A55: 42 | B55: SINAPI | C55: ="102738" -> 102738 | D55: BOCA PARA BUEIRO SIMPLES TUBULAR D = 60 CM EM CONCRETO, ALAS COM ESCONSIDADE DE 0°, INCLUINDO FÔRMAS E MATERIAIS. AF_07/2021 | E55: und | F55: ='[3]Planilha unificada'!$T58 -> 2
A56: 43 | B56: SINAPI | C56: ="90106" -> 90106 | D56: ESCAVAÇÃO MECANIZADA DE VALA COM PROFUNDIDADE ATÉ 1,5 M (MÉDIA MONTANTE E JUSANTE/UMA COMPOSIÇÃO POR TRECHO), RETROESCAV. (0,26 M3), LARGURA DE 0,8 M A 1,5 M, EM SOLO DE 1A CATEGORIA, LOCAIS COM BAIXO NÍVEL DE INTERFERÊNCIA. AF_02/2021 | E56: m³ | F56: ='[3]Planilha unificada'!$T59 -> 2647.79
A57: 44 | B57: SINAPI | C57: ="90091" -> 90091 | D57: ESCAVAÇÃO MECANIZADA DE VALA COM PROF. ATÉ 1,5 M (MÉDIA MONTANTE E JUSANTE/UMA COMPOSIÇÃO POR TRECHO), ESCAVADEIRA (0,8 M3), LARG. DE 1,5 M A 2,5 M, EM SOLO DE 1A CATEGORIA, LOCAIS COM BAIXO NÍVEL DE INTERFERÊNCIA. AF_02/2021 | E57: m³ | F57: ='[3]Planilha unificada'!$T60 -> 1353.72 | I57: EXTENSAO | J57: =F44+F46+F48 -> 1849.63
A58: 45 | B58: SINAPI | C58: ="101572" -> 101572 | D58: ESCORAMENTO DE VALA, TIPO PONTALETEAMENTO, COM PROFUNDIDADE DE 1,5 A 3,0 M, LARGURA MENOR QUE 1,5 M. AF_08/2020 | E58: m² | F58: =J58 -> 11097.78 | J58: =J57*3*2 -> 11097.78
A59: 46 | B59: SINAPI | C59: ="94342" -> 94342 | D59: ATERRO MANUAL DE VALAS COM AREIA PARA ATERRO E COMPACTAÇÃO MECANIZADA. AF_05/2016 | E59: m³ | F59: ='[3]Planilha unificada'!$T61 -> 2644.55 | I59: ESCORAMENTO
A60: 47 | B60: SINAPI | C60: ="100983" -> 100983 | D60: CARGA, MANOBRA E DESCARGA DE ENTULHO EM CAMINHÃO BASCULANTE 14 M³ | E60: m³ | F60: ='[3]Planilha unificada'!$T62 -> 4893.85
A61: 48 | B61: SINAPI | C61: ="95876" -> 95876 | D61: TRANSPORTE COM CAMINHÃO BASCULANTE DE 14 M³, EM VIA URBANA PAVIMENTADA, DMT ATÉ 30 KM | E61: m³xkm | F61: ='[3]Planilha unificada'!$T63 -> 73407.75
D62: PAVIMENTAÇÃO
A63: 49 | B63: SICRO | C63: 4011209 | D63: Reguarização e compactação so subleito | E63: m² | F63: ='[3]Planilha unificada'!$T65 -> 29818.53
A64: =A63+1 -> 50 | B64: Codevasf.Aux | C64: CPU 079 | D64: EXECUÇÃO E COMPACTAÇÃO DE BASE E OU SUB BASE PARA PAVIMENTAÇÃO DE MACADAME HIDRÁULICO - EXCLUSIVE CARGA E TRANSPORTE. | E64: m³ | F64: ='[3]Planilha unificada'!$T66 -> 4578.26 | J64: valor menor que SICRO
A65: =A64+1 -> 51 | B65: SINAPI | C65: ="96396" -> 96396 | D65: EXECUÇÃO E COMPACTAÇÃO DE BASE E OU SUB BASE PARA PAVIMENTAÇÃO DE BRITA GRADUADA SIMPLES - EXCLUSIVE CARGA E TRANSPORTE. AF_11/2019 | E65: m³ | F65: ='[3]Planilha unificada'!$T67 -> 5554.99 | J65: valor menor que SICRO
A66: 52 | B66: SICRO | C66: 5503041 | D66: Compactação de aterros a 100% do Proctor intermediário | E66: m³ | F66: ='[3]Planilha unificada'!$T68 -> 210.41
A67: 53 | B67: SICRO | C67: 5914351 | D67: Carga, manobra e descarga de agregados ou solos em caminhão basculante de 14 m³ - carga com carregadeira de 3,40 m³ e descarga livre | E67: t | F67: =('[3]Planilha unificada'!$T$69+'[3]Planilha unificada'!$T$70+'[3]Planilha unificada'!$T$71)*1.5 -> 22424.6
A68: 54 | B68: SINAPI | C68: ="95876" -> 95876 | D68: TRANSPORTE COM CAMINHÃO BASCULANTE DE 14 M³, EM VIA URBANA PAVIMENTADA, DMT ATÉ 30 KM | E68: m³xkm | F68: ='[3]Planilha unificada'!$T$72 -> 392472.87
A69: 55 | B69: SICRO | C69: 2003939 | D69: Meio-fio de concreto - MFC 01 moldado no local com extrusora e concreto usinado - areia e brita comerciais | E69: m | F69: ='[3]Planilha unificada'!$T$73+'[3]Planilha unificada'!$T$74+'[3]Planilha unificada'!$T$75+'[3]Planilha unificada'!$T$76 -> 14436.58
A70: 56 | B70: SICRO | C70: 4011463 | D70: Execução de pavimento com aplicação de concreto asfáltico - faixa C - areia e brita comerciais | E70: t | F70: ='MC MODULO'!$N$30 -> 5285.7
A71: 57 | B71: SICRO | C71: 4011351 | D71: Imprimação com asfalto diluído | E71: m² | F71: ='MC MODULO'!$N$34 -> 44047.5
A72: 58 | B72: SICRO | C72: 4011353 | D72: Pintura de ligação | E72: m² | F72: ='MC MODULO'!$N$38 -> 44047.5
A73: 59 | B73: CODEVASF | C73: CPU-26 | D73: EXECUÇÃO DE PAVIMENTO EM PISO INTERTRAVADO | E73: m² | F73: ='[3]Planilha unificada'!$T$82 -> 275.72
A74: 60 | B74: SINAPI INS. | C74: ='CPU CODEVASF'!C232 -> 36170 | D74: =VLOOKUP(C74,'INSUMOS SINAPI'!A:E,2,0) -> BLOQUETE/PISO INTERTRAVADO DE CONCRETO - MODELO ONDA/16 FACES/RETANGULAR/TIJOLINHO/PAVER/HOLANDES/PARALELEPIPEDO, *22 CM X 11* CM, E = 8 CM, RESISTENCIA DE 35 MPA (NBR 9781), COR NATURAL | E74: m² | F74: =F73*'CPU CODEVASF'!F232 -> 279.33 | I74: TRANSPORTE | J74: =ROUND(F74*45,0) -> 12570 | K74: =J74*3.5/1000 -> 44 | L74: TONELADAS | N74: 3,5KG/PEDRA
A75: 61 | B75: CODEVASF | C75: CPU-28 | D75: TRANSPORTE COM CAMINHÃO CARROCERIA COM GUINDAUTO (MUNCK), MOMENTO MÁXIMO DE CARGA 11,7 TM, EM VIA URBANA PAVIMENTADA, DMT ATÉ 30KM (UNIDADE: TXKM). AF_07/2020 | E75: TXKM | F75: =K75 -> 1320 | K75: =K74*30 -> 1320 | L75: DMT
A76: 62 | B76: CODEVASF | C76: CPU-27 | D76: EXECUÇÃO DE PAVIMENTO EM PARALELEPÍPEDOS, REJUNTAMENTO COM ARGAMASSA TRAÇO 1:3 (CIMENTO E AREIA) - exclusive paralelo | E76: m² | F76: ='[3]Planilha unificada'!$T$85 -> 3140.86
A77: 63 | B77: SINAPI INS. | C77: ='CPU CODEVASF'!C247 -> 4385 | D77: =VLOOKUP(C77,'INSUMOS SINAPI'!A:E,2,0) -> PARALELEPIPEDO GRANITICO OU BASALTICO, PARA PAVIMENTACAO, SEM FRETE (VARIACAO REGIONAL DE PECAS POR M2) | E77: mil | F77: =F76*'CPU CODEVASF'!$F$247 -> 103.65
A78: =A77+1 -> 64 | B78: SINAPI | C78: ="95876" -> 95876 | D78: TRANSPORTE COM CAMINHÃO BASCULANTE DE 14 M³, EM VIA URBANA PAVIMENTADA, DMT ATÉ 30 KM | E78: m³xkm | F78: =F76*0.1*30 -> 9422.58
D79: AQUISIÇÃO E TRANSPORTE DO MATERIAL BETUMINOSO | I79: ATUALIZAR PREÇO | J79: =H79/$H$132 -> 
A80: =A78+1 -> 65 | B80: CODEVASF | C80: CPU-13 | D80: AQUISIÇÃO DE CIMENTO ASFALTICO CAP 50/70 | E80: t | F80: =' CONSUMO DE MAT. B TOTAL'!P12 -> 334.22
A81: =A80+1 -> 66 | B81: CODEVASF | C81: CPU-17 | D81: TRANSPORTE CAP 50/70 | E81: t | F81: =' CONSUMO DE MAT. B TOTAL'!P12 -> 334.22
A82: =A81+1 -> 67 | B82: CODEVASF | C82: CPU-14 | D82: AQUISIÇÃO DE CM-30 | E82: t | F82: =' CONSUMO DE MAT. B TOTAL'!P8 -> 48.63
A83: 68 | B83: CODEVASF | C83: CPU-18 | D83: TRANSPORTE DE CM-30 | E83: t | F83: =' CONSUMO DE MAT. B TOTAL'!P8 -> 48.63
A84: 69 | B84: CODEVASF | C84: CPU-15 | D84: AQUISIÇÃO DE EMULSÃO ASFÁLTICA RR-1C | E84: t | F84: =' CONSUMO DE MAT. B TOTAL'!P10 -> 17.62
A85: 70 | B85: CODEVASF | C85: CPU-19 | D85: TRANSPORTE RR-1C | E85: t | F85: =' CONSUMO DE MAT. B TOTAL'!P10 -> 17.62
D86: PASSEIOS
A87: 71 | B87: SINAPI | C87: ="97084" -> 97084 | D87: COMPACTAÇÃO MECÂNICA DE SOLO PARA EXECUÇÃO DE RADIER, PISO DE CONCRETO OU LAJE SOBRE SOLO, COM COMPACTADOR DE SOLOS TIPO PLACA VIBRATÓRIA. AF_09/2021 | E87: m² | F87: ='[3]Planilha unificada'!$T$87 -> 19603.49
A88: 72 | B88: SINAPI | C88: ="94991" -> 94991 | D88: EXECUÇÃO DE PASSEIO (CALÇADA) OU PISO DE CONCRETO COM CONCRETO MOLDADO IN LOCO, USINADO C20, ACABAMENTO CONVENCIONAL, NÃO ARMADO. AF_08/2022 | E88: m³ | F88: ='[3]Planilha unificada'!$T$88 -> 1176.2
D89: SINALIZAÇÃO | J89: =H89/$H$132 -> 
A90: 73 | B90: SINAPI | C90: ="103696" -> 103696 | D90: FORNECIMENTO E INSTALAÇÃO DE SUPORTE DE MADEIRA PARA PLACAS DE SINALIZAÇÃO EM CONCRETO, COM H= DE 2,5 M E SEÇÃO DE 7,5 X 7,5 CM. AF_03/2022 | E90: und | F90: ='[3]Planilha unificada'!$T$90 -> 193 | J90: =H90/$H$132 -> 
A91: =A90+1 -> 74 | B91: Codevasf.Aux | C91: CPU 002 | D91: Suporte metálico galvanizado para placa de advertência ou regulamentação - lado ou diâmetro de 0,60 m - fornecimento e implantação | E91: m² | F91: ='[3]Planilha unificada'!$T$91 -> 123.01 | J91: =H91/$H$132 -> 
A92: =A91+1 -> 75 | B92: Codevasf.Aux | C92: CPU 132 | D92: INSTALAÇÃO E FORNECIMENTO DE PLACA PARA IDENTIFICAÇÃO DE LOGRADOURO EM CHAPA METÁLICA, NA COR AZUL, COM DIMENSÕES 45 X 20CM. | E92: und | F92: ='[3]Planilha unificada'!$T$92 -> 48 | J92: =H92/$H$132 -> 
A93: 76 | B93: SICRO | C93: 5213400 | D93: Pintura de faixa com tinta acrílica - espessura de 0,4 mm | E93: m² | F93: ='[3]Planilha unificada'!$T$93 -> 971.97
A94: 77 | B94: SINAPI | C94: ="102512" -> 102512 | D94: PINTURA DE EIXO VIÁRIO SOBRE ASFALTO COM TINTA RETRORREFLETIVA A BASE DE RESINA ACRÍLICA COM MICROESFERAS DE VIDRO, APLICAÇÃO MECÂNICA COM DEMARCADORA AUTOPROPELIDA. AF_05/2021 | E94: m | F94: ='[3]Planilha unificada'!$T$94 -> 8504.39
D95: SERVIÇOS COMPLEMENTARES | J95: =H95/$H$132 -> 
A96: 78 | B96: Codevasf.Aux | C96: CPU 045 | D96: PISO TÁTIL DIRECIONAL E/OU ALERTA, DE CONCRETO, NA COR NATURAL, P/PORTADORES DE DEFICIÊNCIA MOTORA OU VISUAL, DIMENSÕES 40X40CM, APLICADO COM ARGAMASSA INDUSTRIALIZADA AC-II, REJUNTADO, EXCLUSIVE REGULARIZAÇÃO DE BASE. | E96: M2 | F96: ='[3]Planilha unificada'!$T96 -> 229.02 | J96: =H96/$H$132 -> 
A97: =A96+1 -> 79 | B97: Codevasf.Aux | C97: CPU 046 | D97: PISO TÁTIL DIRECIONAL E/OU ALERTA, DE CONCRETO, NA COR NATURAL P/PORTADORES DE DEFICIÊNCIA MOTORA OU VISUAL, DIMENSÕES 25X25CM, APLICADO COM ARGAMASSA INDUSTRIALIZADA AC-II, REJUNTADO, EXCLUSIVE REGULARIZAÇÃO DE BASE. | E97: M2 | F97: ='[3]Planilha unificada'!$T97 -> 282.03
A98: =A97+1 -> 80 | B98: Codevasf.Aux | C98: CPU 043 | D98: REBAIXAMENTO DE PENA D'ÁGUA, INCLUINDO COMPLEMENTO DE TUBULAÇÃO, CONEXÕES, ESCAVAÇÃO E REATERRO. | E98: UN | F98: ='[3]Planilha unificada'!$T98 -> 476
A99: 81 | B99: Codevasf.Aux | C99: CPU 044 | D99: IMPLANTAÇÃO DE DISTRIBUIDOR, INCLUSIVE TUBULAÇÃO DE 50MM, CONEXÕES, ESCAVAÇÃO, ESCORAMENTO E ATERRO. | E99: M | F99: ='[3]Planilha unificada'!$T99 -> 6099.69
A100: 82 | B100: Codevasf.Aux | C100: CPU 041 | D100: ASSENTAMENTO DE GUIA (MEIO-FIO) EM TRECHO RETO, CONFECCIONADA EM CONCRETO PRÉ-FABRICADO, DIMENSÕES 100x15x30 CM (COMPRIMENTO X BASE INFERIOR X BASE SUPERIOR X ALTURA). | E100: M | F100: ='[3]Planilha unificada'!$T100 -> 1485.6
A101: 83 | B101: SINAPI | C101: ="98504" -> 98504 | D101: PLANTIO DE GRAMA BATATAIS EM PLACAS. AF_05/2018 | E101: M2 | F101: ='[3]Planilha unificada'!$T101 -> 141.09
A102: 84 | B102: SINAPI | C102: ="98520" -> 98520 | D102: APLICAÇÃO DE ADUBO EM SOLO. AF_05/2018 | E102: M2 | F102: ='[3]Planilha unificada'!$T102 -> 141.16
A103: 85 | B103: Codevasf.Aux | C103: 90695 | D103: TUBO DE PVC PARA REDE COLETORA DE ESGOTO DE PAREDE MACIÇA, DN 150 MM, JUNTA ELÁSTICA - ASSENTAMENTO. AF_01/2021 | E103: M | F103: ='[3]Planilha unificada'!$T103 -> 5866.13
A104: 86 | B104: SINAPI INS. | C104: 41936 | D104: 'TUBO DE PVC PARA REDE COLETORA DE ESGOTO DE PAREDE MACIÇA, DN 150 MM, JUNTA ELÁSTICA - FORNECIMENTO | F104: =F103*Codevasf.Aux!E205 -> 6159.44
A105: 87 | B105: Codevasf.Aux | C105: CPU 080 | D105: CAIXA ENTERRADA HIDRÁULICA RETANGULAR, EM ALVENARIA COM BLOCOS DE CONCRETO, DIMENSÕES INTERNAS: 0,4X0,4X0,4 M PARA REDE DE ESGOTO. | E105: UN | F105: ='[3]Planilha unificada'!$T104 -> 476
A106: 88 | B106: SINAPI | C106: ="97906" -> 97906 | D106: CAIXA ENTERRADA HIDRÁULICA RETANGULAR, EM ALVENARIA COM BLOCOS DE CONCRETO, DIMENSÕES INTERNAS: 0,6X0,6X0,6 M PARA REDE DE ESGOTO. AF_12/2020 | E106: UN | F106: ='[3]Planilha unificada'!$T105 -> 29
A107: 89 | B107: SINAPI | C107: ="90105" -> 90105 | D107: ESCAVAÇÃO MECANIZADA DE VALA COM PROFUNDIDADE ATÉ 1,5 M (MÉDIA MONTANTE E JUSANTE/UMA COMPOSIÇÃO POR TRECHO), RETROESCAV. (0,26 M3), LARGURA MENOR QUE 0,8 M, EM SOLO DE 1A CATEGORIA, LOCAIS COM BAIXO NÍVEL DE INTERFERÊNCIA. AF_02/2021 | E107: M3 | F107: ='[3]Planilha unificada'!$T106 -> 1034
A108: 90 | B108: SINAPI | C108: ="90106" -> 90106 | D108: ESCAVAÇÃO MECANIZADA DE VALA COM PROFUNDIDADE ATÉ 1,5 M (MÉDIA MONTANTE E JUSANTE/UMA COMPOSIÇÃO POR TRECHO), RETROESCAV. (0,26 M3), LARGURA DE 0,8 M A 1,5 M, EM SOLO DE 1A CATEGORIA, LOCAIS COM BAIXO NÍVEL DE INTERFERÊNCIA. AF_02/2021 | E108: M3 | F108: ='[3]Planilha unificada'!$T107 -> 1002.46
A109: 91 | B109: SINAPI | C109: ="94342" -> 94342 | D109: ATERRO MANUAL DE VALAS COM AREIA PARA ATERRO E COMPACTAÇÃO MECANIZADA. AF_05/2016 | E109: M3 | F109: ='[3]Planilha unificada'!$T$108 -> 1345.68
A110: 92 | B110: SINAPI | C110: ="100974" -> 100974 | D110: CARGA, MANOBRA E DESCARGA DE SOLOS E MATERIAIS GRANULARES EM CAMINHÃO BASCULANTE 10 M³ - CARGA COM PÁ CARREGADEIRA (CAÇAMBA DE 1,7 A 2,8 M³ / 128 HP) E DESCARGA LIVRE (UNIDADE: M3). AF_07/2020 | E110: M3 | F110: ='[3]Planilha unificada'!$T$109 -> 1952.56
A111: 93 | B111: SINAPI | C111: ="95874" -> 95874 | D111: TRANSPORTE COM CAMINHÃO BASCULANTE DE 14 M³, EM VIA URBANA PAVIMENTADA, DMT ATÉ 30 KM (UNIDADE: M3XKM). AF_07/2020 | E111: M3XKM | F111: ='[3]Planilha unificada'!$T$110 -> 29288.4
D112: CONSTRUÇÃO DE MURO DE ARRIMO | J112: =H112/$H$132 -> 
A113: 94 | B113: SINAPI | C113: ="90102" -> 90102 | D113: ESCAVAÇÃO MECANIZADA DE VALA COM PROF. MAIOR QUE 1,5 M ATÉ 3,0 M (MÉDIA MONTANTE E JUSANTE/UMA COMPOSIÇÃO POR TRECHO), RETROESCAV. (0,26 M3), LARGURA DE 0,8 M A 1,5 M, EM SOLO DE 1A CATEGORIA, EM LOCAIS COM ALTO NÍVEL DE INTERFERÊNCIA. AF_02/2021 | E113: M3 | F113: ='[3]Planilha unificada'!$T112 -> 33.08
A114: =A113+1 -> 95 | B114: SINAPI | C114: ="102312" -> 102312 | D114: ESCAVAÇÃO MECANIZADA DE VALA COM PROF. DE 3,0 M ATÉ 4,5 M (MÉDIA MONTANTE E JUSANTE/UMA COMPOSIÇÃO POR TRECHO), ESCAVADEIRA (1,2 M3), LARG. DE 1,5 M A 2,5 M, EM SOLO DE 2A CATEGORIA, EM LOCAIS COM ALTO NÍVEL DE INTERFERÊNCIA. AF_02/2021 | E114: M3 | F114: ='[3]Planilha unificada'!$T113 -> 250.6
A115: =A114+1 -> 96 | B115: SINAPI | C115: ="93382" -> 93382 | D115: REATERRO MANUAL DE VALAS COM COMPACTAÇÃO MECANIZADA. AF_04/2016 | E115: M3 | F115: ='[3]Planilha unificada'!$T114 -> 23.77
A116: 97 | B116: SINAPI | C116: ="100974" -> 100974 | D116: CARGA, MANOBRA E DESCARGA DE SOLOS E MATERIAIS GRANULARES EM CAMINHÃO BASCULANTE 10 M³ - CARGA COM PÁ CARREGADEIRA (CAÇAMBA DE 1,7 A 2,8 M³ / 128 HP) E DESCARGA LIVRE (UNIDADE: M3). AF_07/2020 | E116: M3 | F116: ='[3]Planilha unificada'!$T115 -> 324.89
A117: 98 | B117: SINAPI | C117: ="95876" -> 95876 | D117: TRANSPORTE COM CAMINHÃO BASCULANTE DE 14 M³, EM VIA URBANA PAVIMENTADA, DMT ATÉ 30 KM (UNIDADE: M3XKM). AF_07/2020 | E117: M3XKM | F117: ='[3]Planilha unificada'!$T116 -> 4873.35
A118: 99 | B118: SINAPI | C118: ="101584" -> 101584 | D118: ESCORAMENTO DE VALA, TIPO CONTÍNUO, COM PROFUNDIDADE DE 1,5 M A 3,0 M, LARGURA MENOR QUE 1,5 M. AF_08/2020 | E118: M2 | F118: ='[3]Planilha unificada'!$T117 -> 33.15
A119: 100 | B119: SINAPI | C119: ="101586" -> 101586 | D119: ESCORAMENTO DE VALA, TIPO CONTÍNUO, COM PROFUNDIDADE DE 3,0 A 4,5 M, LARGURA MENOR QUE 1,5 M. AF_08/2020 | E119: M2 | F119: ='[3]Planilha unificada'!$T118 -> 97.79
A120: 101 | B120: SINAPI | C120: ="97084" -> 97084 | D120: COMPACTAÇÃO MECÂNICA DE SOLO PARA EXECUÇÃO DE RADIER, PISO DE CONCRETO OU LAJE SOBRE SOLO, COM COMPACTADOR DE SOLOS TIPO PLACA VIBRATÓRIA. AF_09/2021 | E120: M2 | F120: ='[3]Planilha unificada'!$T119 -> 362.31
A121: 102 | B121: SINAPI | C121: ="94968" -> 94968 | D121: CONCRETO MAGRO PARA LASTRO, TRAÇO 1:4,5:4,5 (EM MASSA SECA DE CIMENTO/ AREIA MÉDIA/ BRITA 1) - PREPARO MECÂNICO COM BETONEIRA 600 L. AF_05/2021 | E121: M3 | F121: ='[3]Planilha unificada'!$T120 -> 14.63
A122: =A121+1 -> 103 | B122: SINAPI | C122: ="96620" -> 96620 | D122: LASTRO DE CONCRETO MAGRO, APLICADO EM PISOS, LAJES SOBRE SOLO OU RADIERS. AF_08/2017 | E122: M3 | F122: ='[3]Planilha unificada'!$T121 -> 3.48
A123: 104 | B123: SINAPI | C123: ="92745" -> 92745 | D123: MURO DE GABIÃO, ENCHIMENTO COM PEDRA DE MÃO TIPO RACHÃO, DE GRAVIDADE, COM GAIOLAS DE COMPRIMENTO IGUAL A 2 M, PARA MUROS COM ALTURA MAIOR QUE 4 M E MENOR OU IGUAL A 6 M  FORNECIMENTO E EXECUÇÃO. AF_12/2015 | E123: M3 | F123: ='[3]Planilha unificada'!$T122 -> 708.98 | I123: GABIAO
A124: 105 | B124: SINAPI | C124: ="95876" -> 95876 | D124: TRANSPORTE COM CAMINHÃO BASCULANTE DE 14 M³, EM VIA URBANA PAVIMENTADA, DMT ATÉ 30 KM | E124: m³xkm | F124: =(1.3*F123*30) -> 27650.22
A125: 106 | B125: Codevasf.Aux | C125: CPU 055 | D125: DRENO BARBACÃ, DN 100 MM. | E125: M | F125: ='[3]Planilha unificada'!$T123 -> 5649.73
A126: =A125+1 -> 107 | B126: SINAPI | C126: ="102716" -> 102716 | D126: ENCHIMENTO DE AREIA PARA DRENO, LANÇAMENTO MECANIZADO. AF_07/2021 | E126: M3 | F126: ='[3]Planilha unificada'!$T124 -> 57.04
A127: 108 | B127: SINAPI | C127: ="102717" -> 102717 | D127: ENCHIMENTO DE BRITA PARA DRENO, LANÇAMENTO MECANIZADO. AF_07/2021 | E127: M3 | F127: ='[3]Planilha unificada'!$T125 -> 57.04
D128: MOMENTO DE TRANSPORTE | J128: =H128/$H$132 -> 
A129: 109 | B129: SICRO | C129: 5914389 | D129: =IF(B129="CODEVASF",VLOOKUP(C129,'CPU CODEVASF'!E:H,2,FALSE),VLOOKUP(C129,'SINTÉTICO SICRO'!A:D,2,FALSE)) -> Transporte com caminhão basculante de 10 m³ - rodovia pavimentada | E129: tkm | F129: =ROUND(SUMIF('MOMENTO DE TRANSPORTE - PRINC'!A:A,'RESUMO MODULO TOTAL'!C129,'MOMENTO DE TRANSPORTE - PRINC'!K:K)+SUMIF('MOMENTO DE TRANSPORTE - AUX'!A:A,'RESUMO MODULO TOTAL'!C129,'MOMENTO DE TRANSPORTE - AUX'!K:K),2) -> 4053901.12 | J129: =H129/$H$132 -> 
A130: =A129+1 -> 110 | B130: SICRO | C130: 5914479 | D130: =IF(B130="CODEVASF",VLOOKUP(C130,'CPU CODEVASF'!E:H,2,FALSE),VLOOKUP(C130,'SINTÉTICO SICRO'!A:D,2,FALSE)) -> Transporte com caminhão carroceria de 15 t - rodovia pavimentada | E130: tkm | F130: =ROUND(SUMIF('MOMENTO DE TRANSPORTE - PRINC'!A:A,'RESUMO MODULO TOTAL'!C130,'MOMENTO DE TRANSPORTE - PRINC'!K:K)+SUMIF('MOMENTO DE TRANSPORTE - AUX'!A:A,'RESUMO MODULO TOTAL'!C130,'MOMENTO DE TRANSPORTE - AUX'!K:K),2) -> 62.89 | J130: =H130/$H$132 -> 
A131: =A130+1 -> 111 | B131: SICRO | C131: 5914366 | D131: =IF(B131="CODEVASF",VLOOKUP(C131,'CPU CODEVASF'!E:H,2,FALSE),VLOOKUP(C131,'SINTÉTICO SICRO'!A:D,2,FALSE)) -> Transporte de cimento ou cal hidratada a granel com caminhão silo de 30 m³ - rodovia pavimentada | E131: tkm | F131: =ROUND(SUMIF('MOMENTO DE TRANSPORTE - PRINC'!A:A,'RESUMO MODULO TOTAL'!C131,'MOMENTO DE TRANSPORTE - PRINC'!K:K)+SUMIF('MOMENTO DE TRANSPORTE - AUX'!A:A,'RESUMO MODULO TOTAL'!C131,'MOMENTO DE TRANSPORTE - AUX'!K:K),2) -> 24239.8 | J131: =H131/$H$132 -> 
A132: VALOR TOTAL DO SRP
A133: Obs.: Os valores estão apresentados com apenas 2 casas decimais, mas os valores da presente planilha foram calculados utilizando a precisão de 6 casas decimais.

Sheet CPU CODEVASF
A4: ='RESUMO MODULO TOTAL'!A1 -> CONTRATAÇÃO DE EXECUÇÃO DE PAVIMENTO ASFÁLTICO COM CBUQ, EM VIAS URBANAS DE RECIFE/PE, ÁREA DE ATUAÇÃO DA 15ª SUPERINTENDÊNCIA REGIONAL DA CODEVASF.
A5: Tabelas de Referência: SICRO/PE 07/2023; SINAPI/PE 09/2023; ORSE 09/2023 e ANP 10/2023. VALORES NÃO DESONERADOS Data base deste orçamento: Setembro/2023. | F5: BDI %: | G5: =BDI!$C$17 -> 0.2339
E6: Encargos Sociais: | G6: Horista | H6: Mensalista
G7: 1.1455 | H7: 0.7011
A8: COMPOSIÇÕES DE CUSTO UNITARIO
A9: CPU-01 | B9: CODEVASF | C9: 74209/1 | D9: PLACA DE OBRA EM CHAPA DE ACO GALVANIZADO | E9: und | F9: COEF. | G9: PRECO UNITÁRIO (R$) | H9: TOTAL (R$)
A11: INS. SINAPI | B11: SINAPI | C11: 5075 | D11: PREGO 18X30. | E11: kg | F11: 0.11 | G11: =IFERROR(VLOOKUP(C11,'INSUMOS SINAPI'!A:E,5,FALSE),VLOOKUP(C11,'COMP Sint. Sinapi'!G:K,5,FALSE)) -> 18,31 | H11: =TRUNC(F11*G11,2) -> 2.01
A12: INS. SINAPI | B12: SINAPI | C12: 4491 | D12: PECA DE MADEIRA NATIVA / REGIONAL 7,5 X 7,5CM (3X3) NAO APARELHADA (P/FORMA) | E12: m | F12: 4 | G12: =IFERROR(VLOOKUP(C12,'INSUMOS SINAPI'!A:E,5,FALSE),VLOOKUP(C12,'COMP Sint. Sinapi'!G:K,5,FALSE)) -> 10,58 | H12: =TRUNC(F12*G12,2) -> 42.32
A13: INS. SINAPI | B13: SINAPI | C13: 4417 | D13: PECA DE MADEIRA DE LEI *2,5 X 7,5* CM (1" X 3"), NÃO APARELHADA, (P/TELHADO) | E13: m | F13: 1 | G13: =IFERROR(VLOOKUP(C13,'INSUMOS SINAPI'!A:E,5,FALSE),VLOOKUP(C13,'COMP Sint. Sinapi'!G:K,5,FALSE)) -> 8,43 | H13: =TRUNC(F13*G13,2) -> 8.43
A14: INS. SINAPI | B14: SINAPI | C14: 4813 | D14: PLACA DE OBRA (PARA CONSTRUCAO CIVIL) EM CHAPA GALVANIZADA *Nº 22*, DE *2,0 X 1,125* M | E14: m² | F14: 4 | G14: =IFERROR(VLOOKUP(C14,'INSUMOS SINAPI'!A:E,5,FALSE),VLOOKUP(C14,'COMP Sint. Sinapi'!G:K,5,FALSE)) -> 250,00 | H14: 1000
A15: INS. SINAPI | B15: SINAPI | C15: 370 | D15: AREIA MÉDIA | E15: m³ | F15: 0.0049 | G15: =IFERROR(VLOOKUP(C15,'INSUMOS SINAPI'!A:E,5,FALSE),VLOOKUP(C15,'COMP Sint. Sinapi'!G:K,5,FALSE)) -> 130,00 | H15: 0.63
A16: INS. SINAPI | B16: SINAPI | C16: 1379 | D16: CIMENTO PORTLAND COMPOSTO CP II-32 | E16: kg | F16: 1.5 | G16: =IFERROR(VLOOKUP(C16,'INSUMOS SINAPI'!A:E,5,FALSE),VLOOKUP(C16,'COMP Sint. Sinapi'!G:K,5,FALSE)) -> 0,70 | H16: 1.05
A17: INS. SINAPI | B17: SINAPI | C17: 4718 | D17: PEDRA BRITADA Nº 2 | E17: m³ | F17: 0.0098 | G17: =IFERROR(VLOOKUP(C17,'INSUMOS SINAPI'!A:E,5,FALSE),VLOOKUP(C17,'COMP Sint. Sinapi'!G:K,5,FALSE)) -> 105,03 | H17: 1.02
A18: COMP. SINAPI | B18: SINAPI | C18: ="87445" -> 87445 | D18: BETONEIRA CAPACIDADE NOMINAL 400 L, CAPACIDADE DE MISTURA 310 L, MOTOR A DIESEL POTÊNCIA 5,0 HP, SEM CARREGADOR MECANICO (LOCACAO) | E18: h | F18: 0.0065 | G18: =IFERROR(VLOOKUP(C18,'INSUMOS SINAPI'!A:E,5,FALSE),VLOOKUP(C18,'COMP Sint. Sinapi'!G:K,5,FALSE)) -> 5,64 | H18: 0.03
A19: COMP. SINAPI | B19: SINAPI | C19: ="88262" -> 88262 | D19: CARPINTEIRO DE FORMAS COM ENCARGOS COMPLEMENTARES | E19: h | F19: 1 | G19: =IFERROR(VLOOKUP(C19,'INSUMOS SINAPI'!A:E,5,FALSE),VLOOKUP(C19,'COMP Sint. Sinapi'!G:K,5,FALSE)) -> 26,13 | H19: 26.13
A20: COMP. SINAPI | B20: SINAPI | C20: ="88316" -> 88316 | D20: SERVENTE COM ENCARGOS COMPLEMENTARES | E20: h | F20: 2.06 | G20: =IFERROR(VLOOKUP(C20,'INSUMOS SINAPI'!A:E,5,FALSE),VLOOKUP(C20,'COMP Sint. Sinapi'!G:K,5,FALSE)) -> 21,28 | H20: 43.83
E21: Sub total: | H21: =SUM(H11:H20) -> 1125.45
F22: BDI | G22: =BDI!$C$17 -> 0.2339 | H22: =TRUNC(H21*G22,2) -> 263.24
G23: Total Serviços: | H23: =H21+H22 -> 1388.69
E24: =A9 -> CPU-01 | F24: PREÇO UNITÁRIO TOTAL: | H24: =H23 -> 1388.69 | I24: =H21 -> 1125.45
A26: CPU-02 | B26: CODEVASF | C26: Propria | D26: ATUALIZAÇÃO DO PROJETO DE DRENAGEM E PAVIMENTAÇÃO - AS BUILT FINAL (*Admitido via com largura média de 10m²) | E26: m | F26: COEF. | G26: PRECO UNITÁRIO (R$) | H26: TOTAL (R$)
A28: COMP. SINAPI | B28: SINAPI | C28: ="90773" -> 90773 | D28: =VLOOKUP(C28,'COMP Sint. Sinapi'!G:K,2,0) -> DESENHISTA COPISTA COM ENCARGOS COMPLEMENTARES | E28: H | F28: 0.58 | G28: =IFERROR(VLOOKUP(C28,'INSUMOS SINAPI'!A:E,5,FALSE),VLOOKUP(C28,'COMP Sint. Sinapi'!G:K,5,FALSE)) -> 18,58 | H28: =TRUNC(F28*G28,2) -> 10.77
E29: Sub total: | H29: =SUM(H28:H28) -> 10.77
F30: BDI | G30: =BDI!$C$17 -> 0.2339 | H30: =TRUNC(H29*G30,2) -> 2.51
G31: Total Serviços: | H31: =H29+H30 -> 13.28
E32: CPU-02 | F32: PREÇO UNITÁRIO TOTAL: | H32: =H31 -> 13.28 | I32: =H29 -> 10.77
G33: PREÇO POR M²: | H33: =TRUNC(H32/('MC MODULO'!$J$7*'MC MODULO'!$J$6),2) -> 0
A34: CPU-03 | B34: CODEVASF | D34: ADMINISTRAÇÃO DA OBRA | E34: m2 | F34: COEF. | G34: PRECO UNITÁRIO (R$) | H34: TOTAL (R$)
A36: COMP. SINAPI | B36: SINAPI | C36: ="93565" -> 93565 | D36: ENGENHEIRO CIVIL DE OBRA JUNIOR COM ENCARGOS COMPLEMENTARES | E36: MÊS | F36: 13 | G36: =IFERROR(VLOOKUP(C36,'INSUMOS SINAPI'!A:E,5,FALSE),VLOOKUP(C36,'COMP Sint. Sinapi'!G:K,5,FALSE)) -> 19.758,88 | H36: =TRUNC(F36*G36,2) -> 256865.44
A37: COMP. SINAPI | B37: SINAPI | C37: ="93572" -> 93572 | D37: ENCARREGADO GERAL DE OBRAS COM ENCARGOS COMPLEMENTARES | E37: MÊS | F37: 13 | G37: =IFERROR(VLOOKUP(C37,'INSUMOS SINAPI'!A:E,5,FALSE),VLOOKUP(C37,'COMP Sint. Sinapi'!G:K,5,FALSE)) -> 6.786,45 | H37: =TRUNC(F37*G37,2) -> 88223.85
A38: COMP. SINAPI | B38: SINAPI | C38: ="100321" -> 100321 | D38: TÉCNICO EM SEGURANÇA DO TRABALHO COM ENCARGOS COMPLEMENTARES | E38: MÊS | F38: =F36 -> 13 | G38: =IFERROR(VLOOKUP(C38,'INSUMOS SINAPI'!A:E,5,FALSE),VLOOKUP(C38,'COMP Sint. Sinapi'!G:K,5,FALSE)) -> 4.824,36 | H38: =TRUNC(F38*G38,2) -> 62716.68
A39: COMP. SINAPI | B39: SINAPI | C39: ="93566" -> 93566 | D39: AUXILIAR DE ESCRITORIO COM ENCARGOS COMPLEMENTARES | E39: MÊS | F39: 13 | G39: =IFERROR(VLOOKUP(C39,'INSUMOS SINAPI'!A:E,5,FALSE),VLOOKUP(C39,'COMP Sint. Sinapi'!G:K,5,FALSE)) -> 3.158,58 | H39: =TRUNC(F39*G39,2) -> 41061.54
A40: INS. SINAPI | B40: SINAPI | C40: 14250 | D40: ENERGIA | E40: KW/H | F40: =100*13 -> 1300 | G40: =IFERROR(VLOOKUP(C40,'INSUMOS SINAPI'!A:E,5,FALSE),VLOOKUP(C40,'COMP Sint. Sinapi'!G:K,5,FALSE)) -> 0,97 | H40: 1261
A41: INS. SINAPI | B41: SINAPI | C41: 44480 | D41: ÁGUA TARIFA "A" ENTRE 0 E 20M3 FORNECIMENTO D'AGUA | E41: M3 | F41: =8.311876*14 -> 116.366264 | G41: =IFERROR(VLOOKUP(C41,'INSUMOS SINAPI'!A:E,5,FALSE),VLOOKUP(C41,'COMP Sint. Sinapi'!G:K,5,FALSE)) -> 18,35 | H41: 2135.32
A42: INSUMO | B42: ORSE | C42: 4415 | D42: VEÍCULO LEVE - VOLKSWAGEN:GOL 1000 - AUTOMÓVEL ATÉ 100 HP | E42: h | F42: =(8*22)*27 -> 4752 | G42: 13.18 | H42: 62631.36
E43: ADM. LOCAL : | H43: =SUM(H36:H42) -> 514895.19
G45: =BDI!$C$17 -> 0.2339 | H45: =TRUNC(G45*H43,2) -> 120433.98
E46: CPU-03 | F46: PREÇO TOTAL: | H46: =H43+H45 -> 635329.17 | I46: =H43 -> 514895.19
G47: PREÇO POR M²: | H47: =TRUNC(H46/('MC MODULO'!$C$7*'MC MODULO'!$C$6),2) -> 90.76 | I47: =H43/(('MC MODULO'!$C$7*'MC MODULO'!$C$6)) -> 73.56
A48: CPU-04 | B48: CODEVASF | D48: CANTEIRO DE OBRAS E ALMOXARIFADO | E48: und | F48: COEF. | G48: PRECO UNITÁRIO (R$) | H48: TOTAL (R$)
A50: INS. SINAPI | B50: SINAPI | C50: 10775 | D50: LOCACAO DE CONTAINER 2,30 X 6,00 M, ALT. 2,50 M, COM 1 SANITARIO, PARA ESCRITORIO, COMPLETO, SEM DIVISORIAS INTERNAS (NAO INCLUI MOBILIZACAO/DESMOBILIZACAO) | E50: mês | F50: 38 | G50: =IFERROR(VLOOKUP(C50,'INSUMOS SINAPI'!A:E,5,FALSE),VLOOKUP(C50,'COMP Sint. Sinapi'!G:K,5,FALSE)) -> 890,00 | H50: =TRUNC(F50*G50,2) -> 33820
A51: INSUMO | B51: ORSE | C51: 4656 | D51: LOCAÇÃO DE SANITÁRIO QUÍMICO | E51: mês | F51: 38 | G51: 956.58 | H51: =TRUNC(F51*G51,2) -> 36350.04
A52: INSUMO | B52: COTAÇÃO | C52: COT.029 | D52: FORNECIMENTO DE AGUA MINERAL EM BUJÃO DE 20 LITROS. | E52: UN | F52: 836 | G52: =VLOOKUP(C52,Planilha1!A:E,5,0) -> 7.33 | H52: =TRUNC(F52*G52,2) -> 6127.88
A53: COMP. SINAPI | B53: SINAPI | C53: ="88326" -> 88326 | D53: =VLOOKUP(C53,'COMP Sint. Sinapi'!G:K,2,0) -> VIGIA NOTURNO COM ENCARGOS COMPLEMENTARES | E53: =VLOOKUP(C53,'COMP Sint. Sinapi'!G:K,3,0) -> H | F53: =(178*3)*14 -> 7476 | G53: =VLOOKUP(C53,'COMP Sint. Sinapi'!G:K,5,0) -> 26,66 | H53: =TRUNC(F53*G53,2) -> 199310.16
E54: Sub total: | H54: =SUM(H50:H53) -> 275608.08
F55: BDI | G55: =BDI!$C$17 -> 0.2339 | H55: =TRUNC(H54*G55,2) -> 64464.72
G56: Total Serviços: | H56: =H54+H55 -> 340072.8
E57: =A48 -> CPU-04 | F57: PREÇO UNITÁRIO TOTAL: | H57: =H56 -> 340072.8 | I57: =H54 -> 275608.08
A59: CPU-11 | B59: CODEVASF | D59: LIMPEZA GERAL | E59: UNID | F59: COEF. | G59: PRECO UNITÁRIO (R$) | H59: TOTAL (R$)
A61: COMP. SINAPI | B61: SINAPI | C61: ="88316" -> 88316 | D61: SERVENTE COM ENCARGOS COMPLEMENTARES | E61: H | F61: 0.05 | G61: =IFERROR(VLOOKUP(C61,'INSUMOS SINAPI'!A:E,5,FALSE),VLOOKUP(C61,'COMP Sint. Sinapi'!G:K,5,FALSE)) -> 21,28 | H61: =TRUNC(F61*G61,2) -> 1.06
E62: Sub total: | H62: =SUM(H61:H61) -> 1.06
F63: BDI | G63: =BDI!$C$17 -> 0.2339 | H63: =TRUNC(H62*G63,2) -> 0.24
G64: Total Serviços: | H64: =H62+H63 -> 1.3
E65: =A59 -> CPU-11 | F65: PREÇO UNITÁRIO TOTAL: | H65: =H64 -> 1.3 | I65: =H62 -> 1.06
A67: CPU-12 | B67: CODEVASF | D67: Correção de vazamentos no ramal na rua sem pavimento com fornecimento do material hidráulico | E67: M | F67: COEF. | G67: PRECO UNITÁRIO (R$) | H67: TOTAL (R$)
A69: COMP. SINAPI | B69: SINAPI | C69: ="88316" -> 88316 | D69: SERVENTE COM ENCARGOS COMPLEMENTARES | E69: H | F69: 0.2 | G69: =IFERROR(VLOOKUP(C69,'INSUMOS SINAPI'!A:E,5,FALSE),VLOOKUP(C69,'COMP Sint. Sinapi'!G:K,5,FALSE)) -> 21,28 | H69: =TRUNC(F69*G69,2) -> 4.25
A70: COMP. SINAPI | B70: SINAPI | C70: ="88267" -> 88267 | D70: ENCANADOR OU BOMBEIRO HIDRÁULICO COM ENCARGOS COMPLEMENTARES | E70: H | F70: 0.1 | G70: =IFERROR(VLOOKUP(C70,'INSUMOS SINAPI'!A:E,5,FALSE),VLOOKUP(C70,'COMP Sint. Sinapi'!G:K,5,FALSE)) -> 25,76 | H70: =TRUNC(F70*G70,2) -> 2.57
A71: INS. SINAPI | B71: SINAPI | C71: 9867 | D71: TUBO PVC, SOLDAVEL, DN 20 MM, AGUA FRIA (NBR-5648) | E71: m | F71: 1 | G71: =IFERROR(VLOOKUP(C71,'INSUMOS SINAPI'!A:E,5,FALSE),VLOOKUP(C71,'COMP Sint. Sinapi'!G:K,5,FALSE)) -> 4,06 | H71: 4.06
A72: INSUMO | B72: ORSE | C72: 10585 | D72: Arco de serra | E72: un | F72: 0.1 | G72: 22.49 | H72: 2.24
A73: INS. SINAPI | B73: SINAPI | C73: 3859 | D73: LUVA SOLDAVEL COM ROSCA, PVC, 20 MM X 1/2", PARA AGUA FRIA PREDIAL | E73: un | F73: 2 | G73: =IFERROR(VLOOKUP(C73,'INSUMOS SINAPI'!A:E,5,FALSE),VLOOKUP(C73,'COMP Sint. Sinapi'!G:K,5,FALSE)) -> 1,46 | H73: 2.92
E74: Sub total: | H74: =SUM(H69:H73) -> 16.04
F75: BDI | G75: =BDI!$C$17 -> 0.2339 | H75: =TRUNC(H74*G75,2) -> 3.75
G76: Total Serviços: | H76: =H74+H75 -> 19.79
E77: =A67 -> CPU-12 | F77: PREÇO UNITÁRIO TOTAL: | H77: =H76 -> 19.79 | I77: =H74 -> 16.04
A79: CPU-13 | B79: CODEVASF | D79: AQUISIÇÃO DE CIMENTO ASFALTICO CAP 50/70 | E79: t | F79: COEF. | G79: PRECO UNITÁRIO (R$) | H79: TOTAL (R$)
A81: COMPOSIÇÃO | D81: CIMENTO ASFALTICO 50/70 | E81: t | F81: 1 | G81: =RESUMO_Transp!V17 -> 4431.97 | H81: =TRUNC(F81*G81,2) -> 4431.97
E82: Sub total: | H82: =SUM(H81) -> 4431.97
F83: BDI | G83: 0.15 | H83: =TRUNC(H82*G83,2) -> 664.79
G84: Total Serviços: | H84: =H82+H83 -> 5096.76
E85: =A79 -> CPU-13 | F85: PREÇO UNITÁRIO TOTAL: | H85: =H84 -> 5096.76 | I85: =H82 -> 4431.97
A87: CPU-14 | B87: CODEVASF | D87: AQUISIÇÃO DE CM-30 | E87: t | F87: COEF. | G87: PRECO UNITÁRIO (R$) | H87: TOTAL (R$)
A89: COMPOSIÇÃO | D89: CM-30 | E89: t | F89: 1 | G89: =RESUMO_Transp!V22 -> 5480.64 | H89: =TRUNC(F89*G89,2) -> 5480.64
E90: Sub total: | H90: =SUM(H89) -> 5480.64
F91: BDI | G91: 0.15 | H91: =TRUNC(H90*G91,2) -> 822.09
G92: Total Serviços: | H92: =H90+H91 -> 6302.73
E93: =A87 -> CPU-14 | F93: PREÇO UNITÁRIO TOTAL: | H93: =H92 -> 6302.73 | I93: =H90 -> 5480.64
A95: CPU-15 | B95: CODEVASF | D95: AQUISIÇÃO DE EMULSÃO ASFÁLTICA RR-1C | E95: t | F95: COEF. | G95: PRECO UNITÁRIO (R$) | H95: TOTAL (R$)
A97: COMPOSIÇÃO | D97: EMULSÃO ASFÁLTICA RR-1C | E97: t | F97: 1 | G97: =RESUMO_Transp!V27 -> 3232.69 | H97: =TRUNC(F97*G97,2) -> 3232.69
E98: Sub total: | H98: =SUM(H97) -> 3232.69
F99: BDI | G99: 0.15 | H99: =TRUNC(H98*G99,2) -> 484.9
G100: Total Serviços: | H100: =H98+H99 -> 3717.59
E101: =A95 -> CPU-15 | F101: PREÇO UNITÁRIO TOTAL: | H101: =H100 -> 3717.59 | I101: =H98 -> 3232.69
A103: CPU-16 | B103: CODEVASF | D103: SERVIÇOS TOPOGRÁFICOS PARA PAVIMENTAÇÃO, INCLUSIVE NOTAS DE SERVIÇOS, ACOMPANHAMENTO E GREIDE | E103: M² | F103: COEF. | G103: PRECO UNITÁRIO (R$) | H103: TOTAL (R$)
A105: Composição | B105: SINAPI | C105: ="90781" -> 90781 | D105: =VLOOKUP(C105,'COMP Sint. Sinapi'!G:K,2,0) -> TOPOGRAFO COM ENCARGOS COMPLEMENTARES | E105: h | F105: 0.0025 | G105: =IFERROR(VLOOKUP(C105,'INSUMOS SINAPI'!A:E,5,FALSE),VLOOKUP(C105,'COMP Sint. Sinapi'!G:K,5,FALSE)) -> 29,90 | H105: =TRUNC(F105*G105,2) -> 0.07
A106: Insumo | B106: SINAPI | C106: 20206 | D106: =VLOOKUP(C106,'INSUMOS SINAPI'!A:E,2,0) -> SARRAFO APARELHADO *2 X 10* CM, EM MACARANDUBA/MASSARANDUBA, ANGELIM OU EQUIVALENTE DA REGIAO | E106: m | F106: 0.002886 | G106: =IFERROR(VLOOKUP(C106,'INSUMOS SINAPI'!A:E,5,FALSE),VLOOKUP(C106,'COMP Sint. Sinapi'!G:K,5,FALSE)) -> 10,65 | H106: =TRUNC(F106*G106,2) -> 0.03
A107: Composição | B107: SINAPI | C107: ="88253" -> 88253 | D107: =VLOOKUP(C107,'COMP Sint. Sinapi'!G:K,2,0) -> AUXILIAR DE TOPÓGRAFO COM ENCARGOS COMPLEMENTARES | E107: h | F107: 0.0025 | G107: =IFERROR(VLOOKUP(C107,'INSUMOS SINAPI'!A:E,5,FALSE),VLOOKUP(C107,'COMP Sint. Sinapi'!G:K,5,FALSE)) -> 14,48 | H107: 0.03
A108: Composição | B108: SINAPI | C108: ="88288" -> 88288 | D108: =VLOOKUP(C108,'COMP Sint. Sinapi'!G:K,2,0) -> NIVELADOR COM ENCARGOS COMPLEMENTARES | E108: h | F108: 0.0025 | G108: =IFERROR(VLOOKUP(C108,'INSUMOS SINAPI'!A:E,5,FALSE),VLOOKUP(C108,'COMP Sint. Sinapi'!G:K,5,FALSE)) -> 17,97 | H108: 0.04
A109: Composição | B109: SINAPI | C109: ="88316" -> 88316 | D109: =VLOOKUP(C109,'COMP Sint. Sinapi'!G:K,2,0) -> SERVENTE COM ENCARGOS COMPLEMENTARES | E109: h | F109: 0.0075 | G109: =IFERROR(VLOOKUP(C109,'INSUMOS SINAPI'!A:E,5,FALSE),VLOOKUP(C109,'COMP Sint. Sinapi'!G:K,5,FALSE)) -> 21,28 | H109: 0.15
A110: Composição | B110: SINAPI | C110: ="88597" -> 88597 | D110: =VLOOKUP(C110,'COMP Sint. Sinapi'!G:K,2,0) -> DESENHISTA DETALHISTA COM ENCARGOS COMPLEMENTARES | E110: h | F110: 0.002 | G110: =IFERROR(VLOOKUP(C110,'INSUMOS SINAPI'!A:E,5,FALSE),VLOOKUP(C110,'COMP Sint. Sinapi'!G:K,5,FALSE)) -> 31,40 | H110: 0.06
A111: Composição | B111: SINAPI | C111: ="92145" -> 92145 | D111: =VLOOKUP(C111,'COMP Sint. Sinapi'!G:K,2,0) -> CAMINHONETE CABINE SIMPLES COM MOTOR 1.6 FLEX, CÂMBIO MANUAL, POTÊNCIA 101/104 CV, 2 PORTAS - CHP DIURNO. AF_11/2015 | E111: chp | F111: 0.001 | G111: =IFERROR(VLOOKUP(C111,'INSUMOS SINAPI'!A:E,5,FALSE),VLOOKUP(C111,'COMP Sint. Sinapi'!G:K,5,FALSE)) -> 74,50 | H111: 0.07
E112: Sub total: | H112: =SUM(H105:H111) -> 0.45
F113: BDI | G113: =BDI!$C$17 -> 0.2339 | H113: =TRUNC(H112*G113,2) -> 0.1
G114: Total Serviços: | H114: =H112+H113 -> 0.55
E115: =A103 -> CPU-16 | F115: PREÇO UNITÁRIO TOTAL: | H115: =H114 -> 0.55 | I115: =H112 -> 0.45
A117: CPU-17 | B117: CODEVASF | D117: TRANSPORTE DE CIMENTO ASFALTICO CAP 50/70 | E117: t | F117: COEF. | G117: PRECO UNITÁRIO (R$) | H117: TOTAL (R$)
D119: TRANSPORTE DE CIMENTO ASFALTICO 50/70 | E119: t | F119: 1 | G119: =RESUMO_Transp!U17 -> 583.76 | H119: =TRUNC(F119*G119,2) -> 583.76
E120: Sub total: | H120: =SUM(H119) -> 583.76
F121: BDI | G121: 0.15 | H121: =TRUNC(H120*G121,2) -> 87.56
G122: Total Serviços: | H122: =H120+H121 -> 671.32
E123: =A117 -> CPU-17 | F123: PREÇO UNITÁRIO TOTAL: | H123: =H122 -> 671.32 | I123: =H120 -> 583.76
A125: CPU-18 | B125: CODEVASF | D125: TRANSPORTE DE CM-30 | E125: t | F125: COEF. | G125: PRECO UNITÁRIO (R$) | H125: TOTAL (R$)
D127: TRANSPORTE DE CM-30 | E127: t | F127: 1 | G127: =RESUMO_Transp!U22 -> 466.97 | H127: =TRUNC(F127*G127,2) -> 466.97
E128: Sub total: | H128: =SUM(H127) -> 466.97
F129: BDI | G129: 0.15 | H129: =TRUNC(H128*G129,2) -> 70.04
G130: Total Serviços: | H130: =H128+H129 -> 537.01
E131: =A125 -> CPU-18 | F131: PREÇO UNITÁRIO TOTAL: | H131: =H130 -> 537.01 | I131: =H128 -> 466.97
A133: CPU-19 | B133: CODEVASF | D133: TRANSPORTE DE EMULSÃO ASFÁLTICA RR-1C | E133: t | F133: COEF. | G133: PRECO UNITÁRIO (R$) | H133: TOTAL (R$)
D135: TRANSPORTE DE EMULSÃO ASFÁLTICA RR-1C | E135: t | F135: 1 | G135: =RESUMO_Transp!U27 -> 577.03 | H135: =TRUNC(F135*G135,2) -> 577.03
E136: Sub total: | H136: =SUM(H135) -> 577.03
F137: BDI | G137: 0.15 | H137: =TRUNC(H136*G137,2) -> 86.55
G138: Total Serviços: | H138: =H136+H137 -> 663.58
E139: =A133 -> CPU-19 | F139: PREÇO UNITÁRIO TOTAL: | H139: =H138 -> 663.58 | I139: =H136 -> 577.03
A141: CPU-20 | B141: CODEVASF | D141: PROJETO EXECUTIVO | E141: m² | F141: COEF. | G141: PRECO UNITÁRIO (R$) | H141: TOTAL (R$)
A143: Composição | B143: SINAPI | C143: 100306 | D143: Engenheiro | E143: h | F143: =20*'MC MODULO'!C77/'MC MODULO'!$G$77 -> 0.0019143 | G143: =IFERROR(VLOOKUP(C143,'[4]INSUMOS SINAPI'!A:E,5,FALSE),VLOOKUP(C143,'[4]COMP Sint. Sinapi'!G:K,5,FALSE))*1 -> 129.2 | H143: =TRUNC(F143*G143,4) -> 0.2473
A144: Composição | B144: SINAPI | C144: 90781 | D144: Topógrafo | E144: h | F144: =10*'MC MODULO'!$C$77/'MC MODULO'!$G$77 -> 0.0009571 | G144: =IFERROR(VLOOKUP(C144,'[4]INSUMOS SINAPI'!A:E,5,FALSE),VLOOKUP(C144,'[4]COMP Sint. Sinapi'!G:K,5,FALSE))*1 -> 41.89 | H144: =TRUNC(F144*G144,4) -> 0.04
A145: Composição | B145: SINAPI | C145: 88253 | D145: Auxiliar de topógrafo | E145: h | F145: =10*'MC MODULO'!$C$77/'MC MODULO'!$G$77 -> 0.0009571 | G145: =IFERROR(VLOOKUP(C145,'[4]INSUMOS SINAPI'!A:E,5,FALSE),VLOOKUP(C145,'[4]COMP Sint. Sinapi'!G:K,5,FALSE))*1 -> 19.92 | H145: =TRUNC(F145*G145,4) -> 0.019
A146: Composição | B146: SINAPI | C146: 90775 | D146: Cadista/calculista | E146: h | F146: =20*'MC MODULO'!$C$77/'MC MODULO'!$G$77 -> 0.0019143 | G146: =IFERROR(VLOOKUP(C146,'[4]INSUMOS SINAPI'!A:E,5,FALSE),VLOOKUP(C146,'[4]COMP Sint. Sinapi'!G:K,5,FALSE))*1 -> 29.46 | H146: 0.0563
A147: Mao de Obra | B147: SICRO | C147: P9858 | D147: Laboratorista | E147: mês | F147: =('MC MODULO'!$C$77/'MC MODULO'!$G$77) -> 9.57e-05 | G147: ='MO Sicro'!F49 -> 6939.06 | H147: 0.664
A148: Mao de Obra | B148: SICRO | C148: P9833 | D148: Auxiliar de Laboratório | E148: mês | F148: =('MC MODULO'!$C$77/'MC MODULO'!$G$77) -> 9.57e-05 | G148: ='MO Sicro'!F29 -> 5376.08 | H148: 0.5144
A149: Insumo | B149: Taxa 3% Eq. Técnica | C149: - | D149: MATERIAIS DE CONSUMO | E149: % | F149: 1 | G149: 0.03 | H149: 0.03
A150: Insumo | B150: SINAPI | C150: 92144 | D150: VEÍCULOS | E150: h | F150: =8*'MC MODULO'!$C$77/'MC MODULO'!$G$77 -> 0.0007657 | G150: =IFERROR(VLOOKUP(C150,'[4]INSUMOS SINAPI'!A:E,5,FALSE),VLOOKUP(C150,'[4]COMP Sint. Sinapi'!G:K,5,FALSE)) -> 38,33 | H150: 0.0293
A151: Insumo | B151: SINAPI | C151: 4221 | D151: COMBUSTÍVEL | E151: L | F151: =5*'MC MODULO'!$C$77/'MC MODULO'!$G$77 -> 0.0004786 | G151: =IFERROR(VLOOKUP(C151,'[4]INSUMOS SINAPI'!A:E,5,FALSE),VLOOKUP(C151,'[4]COMP Sint. Sinapi'!G:K,5,FALSE)) -> 6,18 | H151: 0.0029
A152: Composição | B152: SINAPI | C152: 7247 | D152: EQUIPAMENTOS, INSTALAÇÕES E MOBILIÁRIO | E152: h | F152: =16*'MC MODULO'!$C$77/'MC MODULO'!$G$77 -> 0.0015314 | G152: =IFERROR(VLOOKUP(C152,'[4]INSUMOS SINAPI'!A:E,5,FALSE),VLOOKUP(C152,'[4]COMP Sint. Sinapi'!G:K,5,FALSE)) -> 2,25 | H152: 0.0034
A153: Eng. Consultiva | B153: SICRO | C153: *B8957 | D153: Laboratório de Solos | E153: mês | F153: ='MC MODULO'!$C$77/'MC MODULO'!$G$77 -> 9.57e-05 | G153: ='Consult SICRO'!G20 -> 4235.59 | H153: 0.4053
A154: Eng. Consultiva | B154: SICRO | C154: *B8955 | D154: Laboratório de Asfalto | E154: mês | F154: =('MC MODULO'!$C$77/'MC MODULO'!$G$77) -> 9.57e-05 | G154: ='Consult SICRO'!G18 -> 5144.99 | H154: 0.4923
B155: *Relatório de Custos Gerais do DNIT, página 1 | E155: Sub total: | H155: =SUM(H143:H154) -> 2.5042
F156: BDI | G156: =BDI!$C$17 -> 0.2339 | H156: =TRUNC(H155*G156,4) -> 0.5857
E157: CPU-20 | F157: PREÇO UNITÁRIO TOTAL: | H157: =H155+H156 -> 3.09 | I157: =H155 -> 2.5
A159: CPU-21 | B159: CODEVASF | D159: CONTROLE TECNOLÓGICO - OBRA | E159: m² | F159: COEF. | G159: PRECO UNITÁRIO (R$) | H159: TOTAL (R$)
A161: Composição | B161: SINAPI | C161: 90781 | D161: Topógrafo | E161: h | F161: =10*('MC MODULO'!$C$82/'MC MODULO'!$G$82) -> 0.0019 | G161: =IFERROR(VLOOKUP(C161,'[4]INSUMOS SINAPI'!A:E,5,FALSE),VLOOKUP(C161,'[4]COMP Sint. Sinapi'!G:K,5,FALSE))*1 -> 41.89 | H161: =TRUNC(F161*G161,4) -> 0.0795
A162: Composição | B162: SINAPI | C162: 88253 | D162: Auxiliar de topógrafo | E162: h | F162: =10*('MC MODULO'!$C$82/'MC MODULO'!$G$82) -> 0.0019 | G162: =IFERROR(VLOOKUP(C162,'[4]INSUMOS SINAPI'!A:E,5,FALSE),VLOOKUP(C162,'[4]COMP Sint. Sinapi'!G:K,5,FALSE))*1 -> 19.92 | H162: =TRUNC(F162*G162,4) -> 0.0378
A163: Composição | B163: SINAPI | C163: 90775 | D163: Cadista/calculista | E163: h | F163: =20*('MC MODULO'!$C$82/'MC MODULO'!$G$82) -> 0.0038 | G163: =IFERROR(VLOOKUP(C163,'[4]INSUMOS SINAPI'!A:E,5,FALSE),VLOOKUP(C163,'[4]COMP Sint. Sinapi'!G:K,5,FALSE))*1 -> 29.46 | H163: =TRUNC(F163*G163,4) -> 0.1119
A164: Mao de Obra | B164: SICRO | C164: P9858 | D164: Laboratorista | E164: mês | F164: =('MC MODULO'!$C$82/'MC MODULO'!$G$82) -> 0.00019 | G164: ='MO Sicro'!F49 -> 6939.06 | H164: 1.3184
A165: Mao de Obra | B165: SICRO | C165: P9833 | D165: Auxiliar de Laboratório | E165: mês | F165: =('MC MODULO'!$C$82/'MC MODULO'!$G$82) -> 0.00019 | G165: ='MO Sicro'!F29 -> 5376.08 | H165: 1.0214
A166: Insumo | B166: Taxa 3% Eq. Técnica | C166: - | D166: MATERIAIS DE CONSUMO | E166: % | F166: 1 | G166: 0.03 | H166: 0.03
A167: Insumo | B167: SINAPI | C167: 92144 | D167: VEÍCULOS | E167: h | F167: =8*('MC MODULO'!$C$82/'MC MODULO'!$G$82) -> 0.00152 | G167: =IFERROR(VLOOKUP(C167,'[4]INSUMOS SINAPI'!A:E,5,FALSE),VLOOKUP(C167,'[4]COMP Sint. Sinapi'!G:K,5,FALSE)) -> 38,33 | H167: 0.0582
A168: Insumo | B168: SINAPI | C168: 4221 | D168: COMBUSTÍVEL | E168: L | F168: =5*('MC MODULO'!$C$82/'MC MODULO'!$G$82) -> 0.00095 | G168: =IFERROR(VLOOKUP(C168,'[4]INSUMOS SINAPI'!A:E,5,FALSE),VLOOKUP(C168,'[4]COMP Sint. Sinapi'!G:K,5,FALSE)) -> 6,18 | H168: 0.0058
A169: Composição | B169: SINAPI | C169: 7247 | D169: EQUIPAMENTOS, INSTALAÇÕES E MOBILIÁRIO | E169: h | F169: =16*('MC MODULO'!$C$82/'MC MODULO'!$G$82) -> 0.00304 | G169: =IFERROR(VLOOKUP(C169,'[4]INSUMOS SINAPI'!A:E,5,FALSE),VLOOKUP(C169,'[4]COMP Sint. Sinapi'!G:K,5,FALSE)) -> 2,25 | H169: =TRUNC(F169*G169,4) -> 0.0068
A170: Eng. Consultiva | B170: SICRO | C170: *B8957 | D170: Laboratório de Solos | E170: mês | F170: =('MC MODULO'!$C$82/'MC MODULO'!$G$82) -> 0.00019 | G170: ='Consult SICRO'!G20 -> 4235.59 | H170: 0.8047
A171: Eng. Consultiva | B171: SICRO | C171: *B8955 | D171: Laboratório de Asfalto | E171: mês | F171: =('MC MODULO'!$C$82/'MC MODULO'!$G$82) -> 0.00019 | G171: 5400.53 | H171: 1.0261
B172: *Relatório de Custos Gerais do DNIT, página 1 | E172: Sub total: | H172: =SUM(H161:H171) -> 4.5006
F173: BDI | G173: =BDI!$C$17 -> 0.2339 | H173: =TRUNC(H172*G173,4) -> 1.0526
E174: CPU-21 | F174: PREÇO UNITÁRIO TOTAL: | H174: =H172+H173 -> 5.55 | I174: =H172 -> 4.5
A176: CPU-22 | B176: CODEVASF | D176: FORNECIMENTO E MONTAGEM DE TELA DE SINALIZAÇÃO LARANJA (H=1,2M) FIXADA EM MONTANTES DE FERRO DE 1/2 POL. OU EM BARROTES DE MADEIRA 3X3 POL. COLOCADOS SOBRE BASE DE CONCRETO TRAÇO 1:4:8, ESPAÇADOS A CADA 2 M, INCLUSIVE POSTERIOR RETIRADA E REAPROVEITAMENTO. | E176: M | F176: COEF. | G176: PRECO UNITÁRIO (R$) | H176: TOTAL (R$)
A178: INS. SINAPI | B178: SINAPI | C178: 1379 | D178: =IFERROR(VLOOKUP(C178,'INSUMOS SINAPI'!A:E,2,FALSE),VLOOKUP(C178,'COMP Sint. Sinapi'!G:K,2,FALSE)) -> CIMENTO PORTLAND COMPOSTO CP II-32 | E178: =IFERROR(VLOOKUP(C178,'INSUMOS SINAPI'!A:E,3,FALSE),VLOOKUP(C178,'COMP Sint. Sinapi'!G:K,3,FALSE)) -> KG | F178: 1.134 | G178: =IFERROR(VLOOKUP(C178,'INSUMOS SINAPI'!A:E,5,FALSE),VLOOKUP(C178,'COMP Sint. Sinapi'!G:K,5,FALSE)) -> 0,70 | H178: =TRUNC(F178*G178,2) -> 0.79
A179: INS. SINAPI | B179: SINAPI | C179: 367 | D179: =IFERROR(VLOOKUP(C179,'INSUMOS SINAPI'!A:E,2,FALSE),VLOOKUP(C179,'COMP Sint. Sinapi'!G:K,2,FALSE)) -> AREIA GROSSA - POSTO JAZIDA/FORNECEDOR (RETIRADO NA JAZIDA, SEM TRANSPORTE) | E179: =IFERROR(VLOOKUP(C179,'INSUMOS SINAPI'!A:E,3,FALSE),VLOOKUP(C179,'COMP Sint. Sinapi'!G:K,3,FALSE)) -> M3 | F179: 0.004 | G179: =IFERROR(VLOOKUP(C179,'INSUMOS SINAPI'!A:E,5,FALSE),VLOOKUP(C179,'COMP Sint. Sinapi'!G:K,5,FALSE)) -> 131,69 | H179: =TRUNC(F179*G179,2) -> 0.52
A180: INS. SINAPI | B180: SINAPI | C180: 4718 | D180: =IFERROR(VLOOKUP(C180,'INSUMOS SINAPI'!A:E,2,FALSE),VLOOKUP(C180,'COMP Sint. Sinapi'!G:K,2,FALSE)) -> PEDRA BRITADA N. 2 (19 A 38 MM) POSTO PEDREIRA/FORNECEDOR, SEM FRETE | E180: =IFERROR(VLOOKUP(C180,'INSUMOS SINAPI'!A:E,3,FALSE),VLOOKUP(C180,'COMP Sint. Sinapi'!G:K,3,FALSE)) -> M3 | F180: 0.005 | G180: =IFERROR(VLOOKUP(C180,'INSUMOS SINAPI'!A:E,5,FALSE),VLOOKUP(C180,'COMP Sint. Sinapi'!G:K,5,FALSE)) -> 105,03 | H180: =TRUNC(F180*G180,2) -> 0.52
A181: INS. SINAPI | B181: SINAPI | C181: 5061 | D181: =IFERROR(VLOOKUP(C181,'INSUMOS SINAPI'!A:E,2,FALSE),VLOOKUP(C181,'COMP Sint. Sinapi'!G:K,2,FALSE)) -> PREGO DE ACO POLIDO COM CABECA 18 X 27 (2 1/2 X 10) | E181: =IFERROR(VLOOKUP(C181,'INSUMOS SINAPI'!A:E,3,FALSE),VLOOKUP(C181,'COMP Sint. Sinapi'!G:K,3,FALSE)) -> KG | F181: 0.01 | G181: =IFERROR(VLOOKUP(C181,'INSUMOS SINAPI'!A:E,5,FALSE),VLOOKUP(C181,'COMP Sint. Sinapi'!G:K,5,FALSE)) -> 18,00 | H181: =TRUNC(F181*G181,2) -> 0.18
A182: INS. SINAPI | B182: SINAPI | C182: 43055 | D182: =IFERROR(VLOOKUP(C182,'INSUMOS SINAPI'!A:E,2,FALSE),VLOOKUP(C182,'COMP Sint. Sinapi'!G:K,2,FALSE)) -> ACO CA-50, 12,5 MM OU 16,0 MM, VERGALHAO | E182: =IFERROR(VLOOKUP(C182,'INSUMOS SINAPI'!A:E,3,FALSE),VLOOKUP(C182,'COMP Sint. Sinapi'!G:K,3,FALSE)) -> KG | F182: 0.277 | G182: =IFERROR(VLOOKUP(C182,'INSUMOS SINAPI'!A:E,5,FALSE),VLOOKUP(C182,'COMP Sint. Sinapi'!G:K,5,FALSE)) -> 8,52 | H182: 2.36
A183: INS. SINAPI | B183: SINAPI | C183: 4491 | D183: =IFERROR(VLOOKUP(C183,'INSUMOS SINAPI'!A:E,2,FALSE),VLOOKUP(C183,'COMP Sint. Sinapi'!G:K,2,FALSE)) -> PONTALETE *7,5 X 7,5* CM EM PINUS, MISTA OU EQUIVALENTE DA REGIAO - BRUTA | E183: =IFERROR(VLOOKUP(C183,'INSUMOS SINAPI'!A:E,3,FALSE),VLOOKUP(C183,'COMP Sint. Sinapi'!G:K,3,FALSE)) -> M | F183: 0.28 | G183: =IFERROR(VLOOKUP(C183,'INSUMOS SINAPI'!A:E,5,FALSE),VLOOKUP(C183,'COMP Sint. Sinapi'!G:K,5,FALSE)) -> 10,58 | H183: 2.96
A184: INS. SINAPI | B184: SINAPI | C184: 37524 | D184: =IFERROR(VLOOKUP(C184,'INSUMOS SINAPI'!A:E,2,FALSE),VLOOKUP(C184,'COMP Sint. Sinapi'!G:K,2,FALSE)) -> TELA PLASTICA LARANJA, TIPO TAPUME PARA SINALIZACAO, MALHA RETANGULAR, ROLO 1.20 X 50 M (L X C) | E184: =IFERROR(VLOOKUP(C184,'INSUMOS SINAPI'!A:E,3,FALSE),VLOOKUP(C184,'COMP Sint. Sinapi'!G:K,3,FALSE)) -> M | F184: 0.24 | G184: =IFERROR(VLOOKUP(C184,'INSUMOS SINAPI'!A:E,5,FALSE),VLOOKUP(C184,'COMP Sint. Sinapi'!G:K,5,FALSE)) -> 3,18 | H184: 0.76
A185: COMP. SINAPI | B185: SINAPI | C185: ="88309" -> 88309 | D185: =IFERROR(VLOOKUP(C185,'INSUMOS SINAPI'!A:E,2,FALSE),VLOOKUP(C185,'COMP Sint. Sinapi'!G:K,2,FALSE)) -> PEDREIRO COM ENCARGOS COMPLEMENTARES | E185: =IFERROR(VLOOKUP(C185,'INSUMOS SINAPI'!A:E,3,FALSE),VLOOKUP(C185,'COMP Sint. Sinapi'!G:K,3,FALSE)) -> H | F185: 0.011 | G185: =IFERROR(VLOOKUP(C185,'INSUMOS SINAPI'!A:E,5,FALSE),VLOOKUP(C185,'COMP Sint. Sinapi'!G:K,5,FALSE)) -> 26,51 | H185: 0.29
A186: COMP. SINAPI | B186: SINAPI | C186: ="88316" -> 88316 | D186: =IFERROR(VLOOKUP(C186,'INSUMOS SINAPI'!A:E,2,FALSE),VLOOKUP(C186,'COMP Sint. Sinapi'!G:K,2,FALSE)) -> SERVENTE COM ENCARGOS COMPLEMENTARES | E186: =IFERROR(VLOOKUP(C186,'INSUMOS SINAPI'!A:E,3,FALSE),VLOOKUP(C186,'COMP Sint. Sinapi'!G:K,3,FALSE)) -> H | F186: 0.365 | G186: =IFERROR(VLOOKUP(C186,'INSUMOS SINAPI'!A:E,5,FALSE),VLOOKUP(C186,'COMP Sint. Sinapi'!G:K,5,FALSE)) -> 21,28 | H186: 7.76
E187: Sub total: | H187: =SUM(H178:H186) -> 16.14
F188: BDI | G188: =BDI!$C$17 -> 0.2339 | H188: =TRUNC(H187*G188,2) -> 3.77
G189: Total Serviços: | H189: =H187+H188 -> 19.91
E190: =A176 -> CPU-22 | F190: PREÇO UNITÁRIO TOTAL: | H190: =H189 -> 19.91 | I190: =H187 -> 16.14
A192: CPU-23 | B192: CODEVASF | D192: FORNECIMENTO E IMPLANTAÇÃO DE CAVALETE DE OBRA DE FERRO SINALIZAÇÃO DE OBRAS EM VIAS PUBLICAS COM LOGOMARCA DA EMLURB, CONFORME AV. 042/2000. CONSIDERADO REUTILIZAÇÃO DE 10 VEZES, INCLUSIVE FORNECIMENTO, COLOCAÇÃO E TRANSPORTE. | E192: unid | F192: COEF. | G192: PRECO UNITÁRIO (R$) | H192: TOTAL (R$)
A194: INSUMO | B194: ORSE | C194: 11284 | D194: CAVALETE DE FERRO | E194: unid | F194: 0.1 | G194: 111.37 | H194: =TRUNC(F194*G194,2) -> 11.13
A195: COMP. SINAPI | B195: SINAPI | C195: ="88316" -> 88316 | D195: =IFERROR(VLOOKUP(C195,'INSUMOS SINAPI'!A:E,2,FALSE),VLOOKUP(C195,'COMP Sint. Sinapi'!G:K,2,FALSE)) -> SERVENTE COM ENCARGOS COMPLEMENTARES | E195: =IFERROR(VLOOKUP(C195,'INSUMOS SINAPI'!A:E,3,FALSE),VLOOKUP(C195,'COMP Sint. Sinapi'!G:K,3,FALSE)) -> H | F195: 0.13 | G195: =IFERROR(VLOOKUP(C195,'INSUMOS SINAPI'!A:E,5,FALSE),VLOOKUP(C195,'COMP Sint. Sinapi'!G:K,5,FALSE)) -> 21,28 | H195: 2.76
E196: Sub total: | H196: =SUM(H194:H195) -> 13.89
F197: BDI | G197: =BDI!$C$17 -> 0.2339 | H197: =TRUNC(H196*G197,2) -> 3.24
G198: Total Serviços: | H198: =H196+H197 -> 17.13
E199: =A192 -> CPU-23 | F199: PREÇO UNITÁRIO TOTAL: | H199: =H198 -> 17.13 | I199: =H196 -> 13.89
A201: CPU-24 | B201: CODEVASF | D201: CONE DE SINALIZACAO ABNT 15071 EM PVC RIGIDO COM FAIXA REFLETIVA, H = 70 / 76 CM , CONSIDERADO REUTILIZAÇÃO DE 10 VEZES CONFORME ORIENTAÇÃO DO CADERNO TÉCNICO DE SINALIZAÇÃO DO SICRO VOL. 10, CONT. 03, PAG. 48 E 49, INCLUSIVE FORNECIMENTO, TRANSPORTE E COLOCAÇÃO. | E201: unid | F201: COEF. | G201: PRECO UNITÁRIO (R$) | H201: TOTAL (R$)
A203: INS. SINAPI | B203: SINAPI | C203: 13244 | D203: =IFERROR(VLOOKUP(C203,'INSUMOS SINAPI'!A:E,2,FALSE),VLOOKUP(C203,'COMP Sint. Sinapi'!G:K,2,FALSE)) -> CONE DE SINALIZACAO EM PVC RIGIDO COM FAIXA REFLETIVA, H = 70 / 76 CM | E203: =IFERROR(VLOOKUP(C203,'INSUMOS SINAPI'!A:E,3,FALSE),VLOOKUP(C203,'COMP Sint. Sinapi'!G:K,3,FALSE)) -> UN | F203: 0.1 | G203: =IFERROR(VLOOKUP(C203,'INSUMOS SINAPI'!A:E,5,FALSE),VLOOKUP(C203,'COMP Sint. Sinapi'!G:K,5,FALSE)) -> 55,50 | H203: =TRUNC(F203*G203,2) -> 5.55
A204: COMP. SINAPI | B204: SINAPI | C204: ="88316" -> 88316 | D204: =IFERROR(VLOOKUP(C204,'INSUMOS SINAPI'!A:E,2,FALSE),VLOOKUP(C204,'COMP Sint. Sinapi'!G:K,2,FALSE)) -> SERVENTE COM ENCARGOS COMPLEMENTARES | E204: =IFERROR(VLOOKUP(C204,'INSUMOS SINAPI'!A:E,3,FALSE),VLOOKUP(C204,'COMP Sint. Sinapi'!G:K,3,FALSE)) -> H | F204: 0.13 | G204: =IFERROR(VLOOKUP(C204,'INSUMOS SINAPI'!A:E,5,FALSE),VLOOKUP(C204,'COMP Sint. Sinapi'!G:K,5,FALSE)) -> 21,28 | H204: =TRUNC(F204*G204,2) -> 2.76
E205: Sub total: | H205: =SUM(H203:H204) -> 8.31
F206: BDI | G206: =BDI!$C$17 -> 0.2339 | H206: =TRUNC(H205*G206,2) -> 1.94
G207: Total Serviços: | H207: =H205+H206 -> 10.25
E208: =A201 -> CPU-24 | F208: PREÇO UNITÁRIO TOTAL: | H208: =H207 -> 10.25 | I208: =H205 -> 8.31
A210: CPU-25 | B210: CODEVASF | D210: CAIXA COM GRELHA DE FIBRA DE VIDRO (PRFV) SIMPLES RETANGULAR, ALVENARIA COM BLOCO DE CONCRETO 22X11X8CM, DE UMA VEZ, DIMENSÕES INTERNAS DE 0,72X0,30X1,00M. | E210: unid | F210: COEF. | G210: PRECO UNITÁRIO (R$) | H210: TOTAL (R$)
A212: COMP.SINAPI | B212: SINAPI | C212: ="101616" -> 101616 | D212: =IFERROR(VLOOKUP(C212,'INSUMOS SINAPI'!A:E,2,FALSE),VLOOKUP(C212,'COMP Sint. Sinapi'!G:K,2,FALSE)) -> PREPARO DE FUNDO DE VALA COM LARGURA MENOR QUE 1,5 M (ACERTO DO SOLO NATURAL). AF_08/2020 | E212: M2 | F212: 1.188 | G212: =IFERROR(VLOOKUP(C212,'INSUMOS SINAPI'!A:E,5,FALSE),VLOOKUP(C212,'COMP Sint. Sinapi'!G:K,5,FALSE)) -> 6,21 | H212: =TRUNC(F212*G212,2) -> 7.37
A213: COMP.SINAPI | B213: SINAPI | C213: ="96536" -> 96536 | D213: =IFERROR(VLOOKUP(C213,'INSUMOS SINAPI'!A:E,2,FALSE),VLOOKUP(C213,'COMP Sint. Sinapi'!G:K,2,FALSE)) -> FABRICAÇÃO, MONTAGEM E DESMONTAGEM DE FÔRMA PARA VIGA BALDRAME, EM MADEIRA SERRADA, E=25 MM, 4 UTILIZAÇÕES. AF_06/2017 | E213: M2 | F213: 1.226 | G213: =IFERROR(VLOOKUP(C213,'INSUMOS SINAPI'!A:E,5,FALSE),VLOOKUP(C213,'COMP Sint. Sinapi'!G:K,5,FALSE)) -> 82,96 | H213: =TRUNC(F213*G213,2) -> 101.7
A214: COMP.SINAPI | B214: SINAPI | C214: ="96620" -> 96620 | D214: =IFERROR(VLOOKUP(C214,'INSUMOS SINAPI'!A:E,2,FALSE),VLOOKUP(C214,'COMP Sint. Sinapi'!G:K,2,FALSE)) -> LASTRO DE CONCRETO MAGRO, APLICADO EM PISOS, LAJES SOBRE SOLO OU RADIERS. AF_08/2017 | E214: M3 | F214: 0.0594 | G214: =IFERROR(VLOOKUP(C214,'INSUMOS SINAPI'!A:E,5,FALSE),VLOOKUP(C214,'COMP Sint. Sinapi'!G:K,5,FALSE)) -> 634,15 | H214: 37.66
A215: COMP.AUX | B215: AUX | C215: AUX.009 | D215: =IF(A215="comp.Aux",VLOOKUP(C215,'CPUs Auxs'!A:F,2,0),IF('CPU CODEVASF'!A215="comp.Sinapi",VLOOKUP('CPU CODEVASF'!C215,'COMP Sint. Sinapi'!G:K,2,0),)) -> CONCRETAGEM DE RADIER, PISO DE CONCRETO OU LAJE SOBRE SOLO, FCK 25 MPA - LANÇAMENTO, ADENSAMENTO E ACABAMENTO. | E215: =IF(A215="comp.Aux",VLOOKUP(C215,'CPUs Auxs'!A:F,3,0),IF('CPU CODEVASF'!A215="comp.Sinapi",VLOOKUP('CPU CODEVASF'!C215,'COMP Sint. Sinapi'!G:K,3,0),)) -> M3 | F215: 0.16572 | G215: =IF(A215="comp.Aux",VLOOKUP(C215,'CPUs Auxs'!A:F,6,0),IF('CPU CODEVASF'!A215="comp.Sinapi",VLOOKUP('CPU CODEVASF'!C215,'COMP Sint. Sinapi'!G:K,5,0),)) -> 543.79 | H215: 90.11
A216: COMP.AUX | B216: AUX | C216: AUX.010 | D216: =IF(A216="comp.Aux",VLOOKUP(C216,'CPUs Auxs'!A:F,2,0),IF('CPU CODEVASF'!A216="comp.Sinapi",VLOOKUP('CPU CODEVASF'!C216,'COMP Sint. Sinapi'!G:K,2,0),)) -> ALVENARIA DE VEDAÇÃO DE BLOCOS DE CONCRETO MACIÇOS DE 22X11X8CM (ESPESSURA 8CM), DE UMA VEZ, E ARGAMASSA DE ASSENTAMENTO COM PREPARO EM BETONEIRA. | E216: M2 | F216: 2.19181 | G216: =IF(A216="comp.Aux",VLOOKUP(C216,'CPUs Auxs'!A:F,6,0),IF('CPU CODEVASF'!A216="comp.Sinapi",VLOOKUP('CPU CODEVASF'!C216,'COMP Sint. Sinapi'!G:K,5,0),)) -> 224.64 | H216: 492.36
A217: COTAÇÃO | C217: COT.023 | D217: =IF(A217="comp.Aux",VLOOKUP(C217,'CPUs Auxs'!A:F,2,0),IF('CPU CODEVASF'!A217="comp.Sinapi",VLOOKUP('CPU CODEVASF'!C217,'COMP Sint. Sinapi'!G:K,2,0),IF(A217="COTAÇÃO",VLOOKUP(C217,COTAÇÕES!A:E,2,0),))) -> GRADE DE FIBRA DE VIDRO COM CAIXILHO, 0,90X0,30X0,07M CAP. CARGA DE 25T. | E217: UN | F217: 1 | G217: =IF(A217="comp.Aux",VLOOKUP(C217,'CPUs Auxs'!A:F,6,0),IF('CPU CODEVASF'!A217="comp.Sinapi",VLOOKUP('CPU CODEVASF'!C217,'COMP Sint. Sinapi'!G:K,5,0),IF(A217="COTAÇÃO",VLOOKUP(C217,COTAÇÕES!A:E,5,0),))) -> 1020 | H217: 1020
A218: COMP.SINAPI | B218: SINAPI | C218: ="87879" -> 87879 | D218: =IFERROR(VLOOKUP(C218,'INSUMOS SINAPI'!A:E,2,FALSE),VLOOKUP(C218,'COMP Sint. Sinapi'!G:K,2,FALSE)) -> CHAPISCO APLICADO EM ALVENARIAS E ESTRUTURAS DE CONCRETO INTERNAS, COM COLHER DE PEDREIRO. ARGAMASSA TRAÇO 1:3 COM PREPARO EM BETONEIRA 400L. AF_10/2022 | E218: M2 | F218: 1.53181 | G218: =IFERROR(VLOOKUP(C218,'INSUMOS SINAPI'!A:E,5,FALSE),VLOOKUP(C218,'COMP Sint. Sinapi'!G:K,5,FALSE)) -> 4,36 | H218: 6.67
A219: COMP.SINAPI | B219: SINAPI | C219: ="87777" -> 87777 | D219: =IFERROR(VLOOKUP(C219,'INSUMOS SINAPI'!A:E,2,FALSE),VLOOKUP(C219,'COMP Sint. Sinapi'!G:K,2,FALSE)) -> EMBOÇO OU MASSA ÚNICA EM ARGAMASSA TRAÇO 1:2:8, PREPARO MANUAL, APLICADA MANUALMENTE EM PANOS DE FACHADA COM PRESENÇA DE VÃOS, ESPESSURA DE 25 MM. AF_08/2022 | E219: M2 | F219: 1.53181 | G219: =IFERROR(VLOOKUP(C219,'INSUMOS SINAPI'!A:E,5,FALSE),VLOOKUP(C219,'COMP Sint. Sinapi'!G:K,5,FALSE)) -> 58,98 | H219: 90.34
A220: COMP.AUX | B220: AUX | C220: AUX.013 | D220: =IF(A220="comp.Aux",VLOOKUP(C220,'CPUs Auxs'!A:F,2,0),IF('CPU CODEVASF'!A220="comp.Sinapi",VLOOKUP('CPU CODEVASF'!C220,'COMP Sint. Sinapi'!G:K,2,0),)) -> ARMAÇÃO DE CINTA DE ALVENARIA ESTRUTURAL; DIÂMETRO DE 5,0 MM | E220: KG | F220: 2 | G220: =IF(A220="comp.Aux",VLOOKUP(C220,'CPUs Auxs'!A:F,6,0),IF('CPU CODEVASF'!A220="comp.Sinapi",VLOOKUP('CPU CODEVASF'!C220,'COMP Sint. Sinapi'!G:K,5,0),)) -> 10.29 | H220: 20.58
A221: COMP.AUX | B221: AUX | C221: AUX.014 | D221: =IF(A221="comp.Aux",VLOOKUP(C221,'CPUs Auxs'!A:F,2,0),IF('CPU CODEVASF'!A221="comp.Sinapi",VLOOKUP('CPU CODEVASF'!C221,'COMP Sint. Sinapi'!G:K,2,0),)) -> ARMAÇÃO DE CINTA DE ALVENARIA ESTRUTURAL; DIÂMETRO DE 6,3 MM | E221: KG | F221: 3 | G221: =IF(A221="comp.Aux",VLOOKUP(C221,'CPUs Auxs'!A:F,6,0),IF('CPU CODEVASF'!A221="comp.Sinapi",VLOOKUP('CPU CODEVASF'!C221,'COMP Sint. Sinapi'!G:K,5,0),)) -> 11.61 | H221: 34.83
E222: Sub total: | H222: =SUM(H212:H221) -> 1901.62
F223: BDI | G223: =BDI!$C$17 -> 0.2339 | H223: =TRUNC(H222*G223,2) -> 444.78
G224: Total Serviços: | H224: =H222+H223 -> 2346.4
E225: =A210 -> CPU-25 | F225: PREÇO UNITÁRIO TOTAL: | H225: =H224 -> 2346.4 | I225: =H222 -> 1901.62
A228: CPU-26 | B228: CODEVASF | C228: 92399 SINAPI ADAPTADA | D228: EXECUÇÃO DE VIA EM PISO INTERTRAVADO, COM BLOCO RETANGULAR COR NATURAL DE 20 X 10 CM, ESPESSURA 8 CM. AF_12/2015 - EXCLUSIVE FORNECIMENTO DE BLOQUETE | E228: M2 | F228: COEF. | G228: PRECO UNITÁRIO (R$) | H228: TOTAL (R$)
A230: INS. SINAPI | B230: SINAPI | C230: 370 | D230: AREIA MEDIA - POSTO JAZIDA/FORNECEDOR (RETIRADO NA JAZIDA, SEM TRANSPORTE) | E230: M3 | F230: 0.0568 | G230: =IFERROR(VLOOKUP(C230,'INSUMOS SINAPI'!A:E,5,FALSE),VLOOKUP(C230,'COMP Sint. Sinapi'!G:K,5,FALSE)) -> 130,00 | H230: =TRUNC(TRUNC(F230,5)*TRUNC(G230,2),2) -> 7.38
A231: INS. SINAPI | B231: SINAPI | C231: 4741 | D231: PO DE PEDRA (POSTO PEDREIRA/FORNECEDOR, SEM FRETE) | E231: M3 | F231: 0.0087 | G231: =IFERROR(VLOOKUP(C231,'INSUMOS SINAPI'!A:E,5,FALSE),VLOOKUP(C231,'COMP Sint. Sinapi'!G:K,5,FALSE)) -> 98,69 | H231: =TRUNC(TRUNC(F231,5)*TRUNC(G231,2),2) -> 0.85
A232: INS. SINAPI | B232: SINAPI | C232: 36170 | D232: BLOQUETE/PISO INTERTRAVADO DE CONCRETO - MODELO ONDA/16 FACES/RETANGULAR/T IJOLINHO/PAVER/HOLANDES/PARALELEPIPEDO, *22 CM X 11* CM, E = 8 CM, RESISTENCIA DE 35 MPA (NBR 9781), COR NATURAL | E232: M2 | F232: 1.0131 | H232: =ROUND(ROUND(F232,5)*ROUND(G232,2),2) -> 0
A233: COMP.SINAPI | B233: SINAPI | C233: ="88260" -> 88260 | D233: CALCETEIRO COM ENCARGOS COMPLEMENTARES | E233: H | F233: 0.2703 | G233: =IFERROR(VLOOKUP(C233,'INSUMOS SINAPI'!A:E,5,FALSE),VLOOKUP(C233,'COMP Sint. Sinapi'!G:K,5,FALSE)) -> 26,31 | H233: =TRUNC(TRUNC(F233,5)*TRUNC(G233,2),2) -> 7.11
A234: COMP.SINAPI | B234: SINAPI | C234: ="88316" -> 88316 | D234: SERVENTE COM ENCARGOS COMPLEMENTARES | E234: H | F234: 0.2703 | G234: =IFERROR(VLOOKUP(C234,'INSUMOS SINAPI'!A:E,5,FALSE),VLOOKUP(C234,'COMP Sint. Sinapi'!G:K,5,FALSE)) -> 21,28 | H234: 5.75
A235: COMP.SINAPI | B235: SINAPI | C235: ="91277" -> 91277 | D235: PLACA VIBRATÓRIA REVERSÍVEL COM MOTOR 4 TEMPOS A GASOLINA, FORÇA CENTRÍFUG A DE 25 KN (2500 KGF), POTÊNCIA 5,5 CV - CHP DIURNO. AF_08/2015 | E235: CHP | F235: 0.0055 | G235: =IFERROR(VLOOKUP(C235,'INSUMOS SINAPI'!A:E,5,FALSE),VLOOKUP(C235,'COMP Sint. Sinapi'!G:K,5,FALSE)) -> 9,94 | H235: 0.05
A236: COMP.SINAPI | B236: SINAPI | C236: ="91278" -> 91278 | D236: PLACA VIBRATÓRIA REVERSÍVEL COM MOTOR 4 TEMPOS A GASOLINA, FORÇA CENTRÍFUG A DE 25 KN (2500 KGF), POTÊNCIA 5,5 CV - CHI DIURNO. AF_08/2015 | E236: CHI | F236: 0.1297 | G236: =IFERROR(VLOOKUP(C236,'INSUMOS SINAPI'!A:E,5,FALSE),VLOOKUP(C236,'COMP Sint. Sinapi'!G:K,5,FALSE)) -> 0,69 | H236: 0.08
A237: COMP.SINAPI | B237: SINAPI | C237: ="91283" -> 91283 | D237: CORTADORA DE PISO COM MOTOR 4 TEMPOS A GASOLINA, POTÊNCIA DE 13 HP, COM DISCO DE CORTE DIAMANTADO SEGMENTADO PARA CONCRETO, DIÂMETRO DE 350 MM, FURO DE 1" (14 X 1") - CHP DIURNO. AF_08/2015 | E237: CHP | F237: 0.0135 | G237: =IFERROR(VLOOKUP(C237,'INSUMOS SINAPI'!A:E,5,FALSE),VLOOKUP(C237,'COMP Sint. Sinapi'!G:K,5,FALSE)) -> 10,49 | H237: 0.14
A238: COMP.SINAPI | B238: SINAPI | C238: ="91285" -> 91285 | D238: CORTADORA DE PISO COM MOTOR 4 TEMPOS A GASOLINA, POTÊNCIA DE 13 HP, COM DISCO DE CORTE DIAMANTADO SEGMENTADO PARA CONCRETO, DIÂMETRO DE 350 MM, FURO DE 1" (14 X 1") - CHI DIURNO. AF_08/2015 | E238: CHI | F238: 0.1217 | G238: =IFERROR(VLOOKUP(C238,'INSUMOS SINAPI'!A:E,5,FALSE),VLOOKUP(C238,'COMP Sint. Sinapi'!G:K,5,FALSE)) -> 0,92 | H238: 0.11
E239: Sub total: | H239: =SUM(H230:H238) -> 21.47
F240: BDI | G240: =BDI!$C$17 -> 0.2339 | H240: =TRUNC(H239*G240,2) -> 5.02
E242: =A228 -> CPU-26 | F242: PREÇO UNITÁRIO TOTAL: | H242: =H239+H240 -> 26.49 | I242: =H239 -> 21.47
A244: CPU-27 | B244: CODEVASF | C244: 101169 SINAPI ADAPTADA | D244: EXECUÇÃO DE PAVIMENTO EM PARALELEPÍPEDOS, REJUNTAMENTO COM ARGAMASSA TRAÇO 1:3 (CIMENTO E AREIA). AF_05/2020 | E244: M2 | F244: COEF. | G244: PRECO UNITÁRIO (R$) | H244: TOTAL (R$)
... 23 more rows

Sheet Codevasf.Aux
B1: COMPOSIÇÕES "Codevasf.Aux"
B6: COMPOSIÇÕES | F6: DESONERADAS | H6: ONERADAS | J6: C/bdi
B7: CPU 002 | C7: FORNECIMENTO E INSTALAÇÃO DE PLACA DE SINALIZAÇÃO EM CHAPA DE AÇO EM SUPORTE DE MADEIRA. | D7: M2 | G7: =TRUNC(SUM(G10:G13),2) -> 600.72 | I7: =TRUNC(SUM(I10:I13),2) -> 603.28 | J7: =TRUNC(I7*(1+BDI!$C$17),2) -> 744.38
B8: BASEADA NA COMPOSIÇÃO 103701 SINAPI AGOSTO/2022 - CADERNO TÉCNICO
B9: CÓDIGO | C9: DESCRIÇÃO | D9: UN | E9: COEF. | F9: PREÇO | G9: TOTAL | H9: PREÇO | I9: TOTAL
B10: 5069 | C10: =IFERROR(VLOOKUP(B10,Sinapi,2,0),IFERROR(VLOOKUP(B10,Auxiliar,2,0),IFERROR(VLOOKUP(B10,Auxiliar,2,0),IFERROR(VLOOKUP(B10,MAPA,2,0), )))) -> PREGO DE ACO POLIDO COM CABECA 17 X 27 (2 1/2 X 11) | D10: =IFERROR(VLOOKUP(B10,Sinapi,3,0),IFERROR(VLOOKUP(B10,Auxiliar,3,0),IFERROR(VLOOKUP(B10,Auxiliar,3,0),IFERROR(VLOOKUP(B10,MAPA,3,0), )))) -> KG | E10: 0.0303 | F10: =IFERROR(VLOOKUP(B10,Sinapi,4,0),IFERROR(VLOOKUP(B10,Auxiliar,6,0),IFERROR(VLOOKUP(B10,MAPA,5,0),))) -> 19.18 | G10: =TRUNC(E10*F10,2) -> 0.58 | H10: =IFERROR(VLOOKUP(B10,Sinapi,5,0),IFERROR(VLOOKUP(B10,Auxiliar,8,0),IFERROR(VLOOKUP(B10,MAPA,5,0),))) -> 19.18 | I10: =TRUNC(E10*H10,2) -> 0.58
B11: 34723 | C11: =IFERROR(VLOOKUP(B11,Sinapi,2,0),IFERROR(VLOOKUP(B11,Auxiliar,2,0),IFERROR(VLOOKUP(B11,Auxiliar,2,0),IFERROR(VLOOKUP(B11,MAPA,2,0), )))) -> PLACA DE SINALIZACAO EM CHAPA DE ACO NUM 16 COM PINTURA REFLETIVA | D11: =IFERROR(VLOOKUP(B11,Sinapi,3,0),IFERROR(VLOOKUP(B11,Auxiliar,3,0),IFERROR(VLOOKUP(B11,Auxiliar,3,0),IFERROR(VLOOKUP(B11,MAPA,3,0), )))) -> M2 | E11: 1 | F11: =IFERROR(VLOOKUP(B11,Sinapi,4,0),IFERROR(VLOOKUP(B11,Auxiliar,6,0),IFERROR(VLOOKUP(B11,MAPA,5,0),))) -> 577.5 | G11: 577.5 | H11: =IFERROR(VLOOKUP(B11,Sinapi,5,0),IFERROR(VLOOKUP(B11,Auxiliar,8,0),IFERROR(VLOOKUP(B11,MAPA,5,0),))) -> 577.5 | I11: 577.5
B12: 88309 | C12: =IFERROR(VLOOKUP(B12,Sinapi,2,0),IFERROR(VLOOKUP(B12,Auxiliar,2,0),IFERROR(VLOOKUP(B12,Auxiliar,2,0),IFERROR(VLOOKUP(B12,MAPA,2,0), )))) -> PEDREIRO COM ENCARGOS COMPLEMENTARES | D12: =IFERROR(VLOOKUP(B12,Sinapi,3,0),IFERROR(VLOOKUP(B12,Auxiliar,3,0),IFERROR(VLOOKUP(B12,Auxiliar,3,0),IFERROR(VLOOKUP(B12,MAPA,3,0), )))) -> H | E12: 0.2791 | F12: =IFERROR(VLOOKUP(B12,Sinapi,4,0),IFERROR(VLOOKUP(B12,Auxiliar,6,0),IFERROR(VLOOKUP(B12,MAPA,5,0),))) -> 23.69 | G12: 6.61 | H12: =IFERROR(VLOOKUP(B12,Sinapi,5,0),IFERROR(VLOOKUP(B12,Auxiliar,8,0),IFERROR(VLOOKUP(B12,MAPA,5,0),))) -> 26.51 | I12: 7.39
B13: 88316 | C13: =IFERROR(VLOOKUP(B13,Sinapi,2,0),IFERROR(VLOOKUP(B13,Auxiliar,2,0),IFERROR(VLOOKUP(B13,Auxiliar,2,0),IFERROR(VLOOKUP(B13,MAPA,2,0), )))) -> SERVENTE COM ENCARGOS COMPLEMENTARES | D13: =IFERROR(VLOOKUP(B13,Sinapi,3,0),IFERROR(VLOOKUP(B13,Auxiliar,3,0),IFERROR(VLOOKUP(B13,Auxiliar,3,0),IFERROR(VLOOKUP(B13,MAPA,3,0), )))) -> H | E13: 0.8373 | F13: =IFERROR(VLOOKUP(B13,Sinapi,4,0),IFERROR(VLOOKUP(B13,Auxiliar,6,0),IFERROR(VLOOKUP(B13,MAPA,5,0),))) -> 19.15 | G13: 16.03 | H13: =IFERROR(VLOOKUP(B13,Sinapi,5,0),IFERROR(VLOOKUP(B13,Auxiliar,8,0),IFERROR(VLOOKUP(B13,MAPA,5,0),))) -> 21.28 | I13: 17.81
A14: =IF(OR(COUNTBLANK(B14)=0,(COUNTBLANK(C14)=0),(COUNTBLANK(D14)=0)),"imprimir","") -> imprimir | B14: CPU-036 | C14: CAIXA COM GRELHA DE FIBRA DE VIDRO (PRFV) SIMPLES RETANGULAR, ALVENARIA COM BLOCO DE CONCRETO 22X11X8CM, DE UMA VEZ, DIMENSÕES INTERNAS DE 0,72X0,30X1,00M. | D14: UN | G14: =TRUNC(SUM(G18:G27),2) -> 1862.3 | I14: =TRUNC(SUM(I18:I27),2) -> 1896.55 | J14: =TRUNC(I14*(1+BDI!$C$17),2) -> 2340.15
A15: imprimir | B15: REFERÊNCIA SINAPI 97953 AGO/2022
A16: imprimir | B16: CONFORME PROJETO DETALHE DE CAIXA COM GRELHA
A17: imprimir | B17: CÓDIGO | C17: DESCRIÇÃO | D17: UN | E17: COEF. | F17: PREÇO | G17: TOTAL | H17: PREÇO | I17: TOTAL
A18: imprimir | B18: 101616 | C18: =IFERROR(VLOOKUP(B18,Sinapi,2,0),IFERROR(VLOOKUP(B18,Auxiliar,2,0),IFERROR(VLOOKUP(B18,Auxiliar,2,0),IFERROR(VLOOKUP(B18,MAPA,2,0), )))) -> PREPARO DE FUNDO DE VALA COM LARGURA MENOR QUE 1,5 M (ACERTO DO SOLO NATURAL). AF_08/2020 | D18: =IFERROR(VLOOKUP(B18,Sinapi,3,0),IFERROR(VLOOKUP(B18,Auxiliar,3,0),IFERROR(VLOOKUP(B18,Auxiliar,3,0),IFERROR(VLOOKUP(B18,MAPA,3,0), )))) -> M2 | E18: =1.32*0.9 -> 1.188 | F18: =IFERROR(VLOOKUP(B18,Sinapi,4,0),IFERROR(VLOOKUP(B18,Auxiliar,6,0),IFERROR(VLOOKUP(B18,MAPA,5,0),))) -> 5.57 | G18: =TRUNC(E18*F18,2) -> 6.61 | H18: =IFERROR(VLOOKUP(B18,Sinapi,5,0),IFERROR(VLOOKUP(B18,Auxiliar,8,0),IFERROR(VLOOKUP(B18,MAPA,5,0),))) -> 6.21 | I18: =TRUNC(E18*H18,2) -> 7.37
A19: imprimir | B19: 96536 | C19: FABRICAÇÃO, MONTAGEM E DESMONTAGEM DE FÔRMA PARA VIGA BALDRAME, EM MADEIRA SERRADA, E=25 MM, 4 UTILIZAÇÕES. AF_06/2017 | D19: M2 | E19: =(1.22*0.1*2)+(0.8*0.1*2)+(1.12*0.15*2)+(0.7*0.15*2)+(0.08*0.67*2)+(0.08*0.25*2)+(0.07*0.67*2)+(0.07*0.25*2) -> 1.226 | F19: =IFERROR(VLOOKUP(B19,Sinapi,4,0),IFERROR(VLOOKUP(B19,Auxiliar,6,0),IFERROR(VLOOKUP(B19,MAPA,5,0),))) -> 78.53 | G19: 96.27 | H19: =IFERROR(VLOOKUP(B19,Sinapi,5,0),IFERROR(VLOOKUP(B19,Auxiliar,8,0),IFERROR(VLOOKUP(B19,MAPA,5,0),))) -> 82.85 | I19: 101.57
A20: imprimir | B20: 96620 | C20: LASTRO DE CONCRETO MAGRO, APLICADO EM PISOS, LAJES SOBRE SOLO OU RADIERS. AF_08/2017 | D20: =IFERROR(VLOOKUP(B20,Sinapi,3,0),IFERROR(VLOOKUP(B20,Auxiliar,3,0),IFERROR(VLOOKUP(B20,Auxiliar,3,0),IFERROR(VLOOKUP(B20,MAPA,3,0), )))) -> M3 | E20: =0.9*1.32*0.05 -> 0.0594 | F20: =IFERROR(VLOOKUP(B20,Sinapi,4,0),IFERROR(VLOOKUP(B20,Auxiliar,6,0),IFERROR(VLOOKUP(B20,MAPA,5,0),))) -> 601.91 | G20: 35.75 | H20: =IFERROR(VLOOKUP(B20,Sinapi,5,0),IFERROR(VLOOKUP(B20,Auxiliar,8,0),IFERROR(VLOOKUP(B20,MAPA,5,0),))) -> 630.31 | I20: 37.44
A21: imprimir | B21: AUX.009 | C21: CONCRETAGEM DE RADIER, PISO DE CONCRETO OU LAJE SOBRE SOLO, FCK 25 MPA - LANÇAMENTO, ADENSAMENTO E ACABAMENTO. | D21: M3 | E21: =(0.8*1.22*0.1)+((1.12*0.7*0.15)-(0.92*0.5*0.07)-(0.72*0.3*0.08)) -> 0.1657 | F21: 529.36 | G21: 87.71 | H21: 540.11 | I21: 89.49
A22: imprimir | B22: AUX.010 | C22: ALVENARIA DE VEDAÇÃO DE BLOCOS DE CONCRETO MACIÇOS DE 22X11X8CM (ESPESSURA 8CM), DE UMA VEZ, E ARGAMASSA DE ASSENTAMENTO COM PREPARO EM BETONEIRA. | D22: M2 | E22: =((1.12*0.85)-(PI()*((0.46/2)^2)))+(1.12*0.8)+(0.3*0.85*2) -> 2.1918 | F22: 213.99 | G22: 469.02 | H22: 221.94 | I22: 486.44
A23: imprimir | B23: COT.023 | C23: GRADE DE FIBRA DE VIDRO COM CAIXILHO, 0,90X0,30X0,07M CAP. CARGA DE 25T. | D23: UN | E23: 1 | F23: 1020 | G23: 1020 | H23: 1020 | I23: 1020
A24: imprimir | B24: 87879 | C24: CHAPISCO APLICADO EM ALVENARIAS E ESTRUTURAS DE CONCRETO INTERNAS, COM COLHER DE PEDREIRO. ARGAMASSA TRAÇO 1:3 COM PREPARO EM BETONEIRA 400L. AF_10/2022 | D24: M2 | E24: =(0.3*0.85*2)+(0.72*0.8)+((0.72*0.85)-(PI()*((0.46/2)^2))) -> 1.5318 | F24: 4.06 | G24: 6.21 | H24: 4.36 | I24: 6.67
A25: imprimir | B25: 87777 | C25: EMBOÇO OU MASSA ÚNICA EM ARGAMASSA TRAÇO 1:2:8, PREPARO MANUAL, APLICADA MANUALMENTE EM PANOS DE FACHADA COM PRESENÇA DE VÃOS, ESPESSURA DE 25 MM. AF_08/2022 | D25: M2 | E25: =E24 -> 1.5318 | F25: 54.9 | G25: 84.09 | H25: 59 | I25: 90.37
A26: imprimir | B26: AUX.013 | C26: =IFERROR(VLOOKUP(B26,Sinapi,2,0),IFERROR(VLOOKUP(B26,Auxiliar,2,0),IFERROR(VLOOKUP(B26,Auxiliar,2,0),IFERROR(VLOOKUP(B26,MAPA,2,0), )))) -> ARMAÇÃO DE CINTA DE ALVENARIA ESTRUTURAL; DIÂMETRO DE 5,0 MM | D26: =IFERROR(VLOOKUP(B26,Sinapi,3,0),IFERROR(VLOOKUP(B26,Auxiliar,3,0),IFERROR(VLOOKUP(B26,Auxiliar,3,0),IFERROR(VLOOKUP(B26,MAPA,3,0), )))) -> KG | E26: 2 | F26: =IFERROR(VLOOKUP(B26,Sinapi,4,0),IFERROR(VLOOKUP(B26,Auxiliar,6,0),IFERROR(VLOOKUP(B26,MAPA,5,0),))) -> 10.53 | G26: 21.06 | H26: =IFERROR(VLOOKUP(B26,Sinapi,5,0),IFERROR(VLOOKUP(B26,Auxiliar,8,0),IFERROR(VLOOKUP(B26,MAPA,5,0),))) -> 10.63 | I26: 21.26
A27: imprimir | B27: AUX.014 | C27: =IFERROR(VLOOKUP(B27,Sinapi,2,0),IFERROR(VLOOKUP(B27,Auxiliar,2,0),IFERROR(VLOOKUP(B27,MAPA,2,0), ))) -> ARMAÇÃO DE CINTA DE ALVENARIA ESTRUTURAL; DIÂMETRO DE 6,3 MM | D27: =IFERROR(VLOOKUP(B27,Sinapi,3,0),IFERROR(VLOOKUP(B27,Auxiliar,3,0),IFERROR(VLOOKUP(B27,MAPA,3,0), ))) -> KG | E27: 3 | F27: =IFERROR(VLOOKUP(B27,Sinapi,4,0),IFERROR(VLOOKUP(B27,Auxiliar,6,0),IFERROR(VLOOKUP(B27,MAPA,5,0),))) -> 11.86 | G27: 35.58 | H27: =IFERROR(VLOOKUP(B27,Sinapi,5,0),IFERROR(VLOOKUP(B27,Auxiliar,8,0),IFERROR(VLOOKUP(B27,MAPA,5,0),))) -> 11.98 | I27: 35.94
A28: =IF(OR(COUNTBLANK(B28)=0,(COUNTBLANK(C28)=0),(COUNTBLANK(D28)=0)),"imprimir","") -> imprimir | B28: CPU 041 | C28: ASSENTAMENTO DE GUIA (MEIO-FIO) EM TRECHO RETO, CONFECCIONADA EM CONCRETO PRÉ-FABRICADO, DIMENSÕES 100x15x30 CM (COMPRIMENTO X BASE INFERIOR X BASE SUPERIOR X ALTURA). | D28: M | G28: =TRUNC(SUM(G31:G35),2) -> 74.64 | I28: =TRUNC(SUM(I31:I35),2) -> 77.63 | J28: =TRUNC(I28*(1+BDI!$C$17),2) -> 95.78
A29: imprimir | B29: BASEADA NA COMPOSIÇÃO 94277 SINAPI JUL/2022
A30: imprimir | B30: CÓDIGO | C30: DESCRIÇÃO | D30: UN | E30: COEF. | F30: PREÇO | G30: TOTAL | H30: PREÇO | I30: TOTAL
A31: imprimir | B31: 370 | C31: =IFERROR(VLOOKUP(B31,Sinapi,2,0),IFERROR(VLOOKUP(B31,Auxiliar,2,0),IFERROR(VLOOKUP(B31,Auxiliar,2,0),IFERROR(VLOOKUP(B31,MAPA,2,0), )))) -> AREIA MEDIA - POSTO JAZIDA/FORNECEDOR (RETIRADO NA JAZIDA, SEM TRANSPORTE) | D31: =IFERROR(VLOOKUP(B31,Sinapi,3,0),IFERROR(VLOOKUP(B31,Auxiliar,3,0),IFERROR(VLOOKUP(B31,Auxiliar,3,0),IFERROR(VLOOKUP(B31,MAPA,3,0), )))) -> M3 | E31: =(0.007*(0.15*1))/(0.08*0.8) -> 0.0164 | F31: =IFERROR(VLOOKUP(B31,Sinapi,4,0),IFERROR(VLOOKUP(B31,Auxiliar,6,0),IFERROR(VLOOKUP(B31,MAPA,5,0),))) -> 130 | G31: =TRUNC(E31*F31,2) -> 2.13 | H31: =IFERROR(VLOOKUP(B31,Sinapi,5,0),IFERROR(VLOOKUP(B31,Auxiliar,8,0),IFERROR(VLOOKUP(B31,MAPA,5,0),))) -> 130 | I31: =TRUNC(E31*H31,2) -> 2.13
A32: imprimir | B32: 4062 | C32: =IFERROR(VLOOKUP(B32,Sinapi,2,0),IFERROR(VLOOKUP(B32,Auxiliar,2,0),IFERROR(VLOOKUP(B32,Auxiliar,2,0),IFERROR(VLOOKUP(B32,MAPA,2,0), )))) -> MEIO-FIO OU GUIA DE CONCRETO, PRE-MOLDADO, COMP 1 M, *30 X 15* CM (H X L) | D32: =IFERROR(VLOOKUP(B32,Sinapi,3,0),IFERROR(VLOOKUP(B32,Auxiliar,3,0),IFERROR(VLOOKUP(B32,Auxiliar,3,0),IFERROR(VLOOKUP(B32,MAPA,3,0), )))) -> UN | E32: 1.005 | F32: =IFERROR(VLOOKUP(B32,Sinapi,4,0),IFERROR(VLOOKUP(B32,Auxiliar,6,0),IFERROR(VLOOKUP(B32,MAPA,5,0),))) -> 45.55 | G32: 45.77 | H32: =IFERROR(VLOOKUP(B32,Sinapi,5,0),IFERROR(VLOOKUP(B32,Auxiliar,8,0),IFERROR(VLOOKUP(B32,MAPA,5,0),))) -> 45.55 | I32: 45.77
A33: imprimir | B33: 88309 | C33: =IFERROR(VLOOKUP(B33,Sinapi,2,0),IFERROR(VLOOKUP(B33,Auxiliar,2,0),IFERROR(VLOOKUP(B33,Auxiliar,2,0),IFERROR(VLOOKUP(B33,MAPA,2,0), )))) -> PEDREIRO COM ENCARGOS COMPLEMENTARES | D33: =IFERROR(VLOOKUP(B33,Sinapi,3,0),IFERROR(VLOOKUP(B33,Auxiliar,3,0),IFERROR(VLOOKUP(B33,Auxiliar,3,0),IFERROR(VLOOKUP(B33,MAPA,3,0), )))) -> H | E33: =(0.332*E35)/0.001 -> 0.5976 | F33: =IFERROR(VLOOKUP(B33,Sinapi,4,0),IFERROR(VLOOKUP(B33,Auxiliar,6,0),IFERROR(VLOOKUP(B33,MAPA,5,0),))) -> 23.69 | G33: 14.15 | H33: =IFERROR(VLOOKUP(B33,Sinapi,5,0),IFERROR(VLOOKUP(B33,Auxiliar,8,0),IFERROR(VLOOKUP(B33,MAPA,5,0),))) -> 26.51 | I33: 15.84
A34: imprimir | B34: 88316 | C34: =IFERROR(VLOOKUP(B34,Sinapi,2,0),IFERROR(VLOOKUP(B34,Auxiliar,2,0),IFERROR(VLOOKUP(B34,Auxiliar,2,0),IFERROR(VLOOKUP(B34,MAPA,2,0), )))) -> SERVENTE COM ENCARGOS COMPLEMENTARES | D34: =IFERROR(VLOOKUP(B34,Sinapi,3,0),IFERROR(VLOOKUP(B34,Auxiliar,3,0),IFERROR(VLOOKUP(B34,Auxiliar,3,0),IFERROR(VLOOKUP(B34,MAPA,3,0), )))) -> H | E34: =(0.332*E35)/0.001 -> 0.5976 | F34: =IFERROR(VLOOKUP(B34,Sinapi,4,0),IFERROR(VLOOKUP(B34,Auxiliar,6,0),IFERROR(VLOOKUP(B34,MAPA,5,0),))) -> 19.15 | G34: 11.44 | H34: =IFERROR(VLOOKUP(B34,Sinapi,5,0),IFERROR(VLOOKUP(B34,Auxiliar,8,0),IFERROR(VLOOKUP(B34,MAPA,5,0),))) -> 21.28 | I34: 12.71
A35: imprimir | B35: 88629 | C35: =IFERROR(VLOOKUP(B35,Sinapi,2,0),IFERROR(VLOOKUP(B35,Auxiliar,2,0),IFERROR(VLOOKUP(B35,Auxiliar,2,0),IFERROR(VLOOKUP(B35,MAPA,2,0), )))) -> ARGAMASSA TRAÇO 1:3 (EM VOLUME DE CIMENTO E AREIA MÉDIA ÚMIDA), PREPARO MANUAL. AF_08/2019 | D35: =IFERROR(VLOOKUP(B35,Sinapi,3,0),IFERROR(VLOOKUP(B35,Auxiliar,3,0),IFERROR(VLOOKUP(B35,Auxiliar,3,0),IFERROR(VLOOKUP(B35,MAPA,3,0), )))) -> M3 | E35: =0.001*(0.15*0.3)/((0.08*0.25)*(1/0.8)) -> 0.0018 | F35: =IFERROR(VLOOKUP(B35,Sinapi,4,0),IFERROR(VLOOKUP(B35,Auxiliar,6,0),IFERROR(VLOOKUP(B35,MAPA,5,0),))) -> 641.28 | G35: 1.15 | H35: =IFERROR(VLOOKUP(B35,Sinapi,5,0),IFERROR(VLOOKUP(B35,Auxiliar,8,0),IFERROR(VLOOKUP(B35,MAPA,5,0),))) -> 659.53 | I35: 1.18
A36: imprimir | B36: CPU 043 | C36: REBAIXAMENTO DE PENA D'ÁGUA, INCLUINDO COMPLEMENTO DE TUBULAÇÃO, CONEXÕES, ESCAVAÇÃO E REATERRO. | D36: UN | G36: =TRUNC(SUM(G39:G44),2) -> 88.33 | I36: =TRUNC(SUM(I39:I44),2) -> 97.53 | J36: =TRUNC(I36*(1+BDI!$C$17),2) -> 120.34
A37: imprimir | B37: BASEADA NA COMPOSIÇÃO EMLURB 19.07.580
A38: imprimir | B38: CÓDIGO | C38: DESCRIÇÃO | D38: UN | E38: COEF. | F38: PREÇO | G38: TOTAL | H38: PREÇO | I38: TOTAL
A39: imprimir | B39: 9868 | C39: =IFERROR(VLOOKUP(B39,Sinapi,2,0),IFERROR(VLOOKUP(B39,Auxiliar,2,0),IFERROR(VLOOKUP(B39,Auxiliar,2,0),IFERROR(VLOOKUP(B39,MAPA,2,0), )))) -> TUBO PVC, SOLDAVEL, DE 25 MM, AGUA FRIA (NBR-5648) | D39: =IFERROR(VLOOKUP(B39,Sinapi,3,0),IFERROR(VLOOKUP(B39,Auxiliar,3,0),IFERROR(VLOOKUP(B39,Auxiliar,3,0),IFERROR(VLOOKUP(B39,MAPA,3,0), )))) -> M | E39: 1 | F39: =IFERROR(VLOOKUP(B39,Sinapi,4,0),IFERROR(VLOOKUP(B39,Auxiliar,6,0),IFERROR(VLOOKUP(B39,MAPA,5,0),))) -> 4.41 | G39: =TRUNC(E39*F39,2) -> 4.41 | H39: =IFERROR(VLOOKUP(B39,Sinapi,5,0),IFERROR(VLOOKUP(B39,Auxiliar,8,0),IFERROR(VLOOKUP(B39,MAPA,5,0),))) -> 4.41 | I39: =TRUNC(E39*H39,2) -> 4.41
A40: imprimir | B40: 3529 | C40: JOELHO PVC, SOLDAVEL, 90 GRAUS, 25 MM, COR MARROM, PARA AGUA FRIA PREDIAL | D40: UN | E40: 3 | F40: 0.77 | G40: 2.31 | H40: 0.77 | I40: 2.31
A41: imprimir | B41: 122 | C41: ADESIVO PLASTICO PARA PVC, FRASCO COM *850* GR | D41: UN | E41: 0.0075 | F41: 57.7 | G41: 0.43 | H41: 57.7 | I41: 0.43
A42: imprimir | B42: 20083 | C42: SOLUCAO PREPARADORA / LIMPADORA PARA PVC, FRASCO COM 1000 CM3 | D42: UN | E42: 0.012 | F42: 65.38 | G42: 0.78 | H42: 65.38 | I42: 0.78
A43: imprimir | B43: 88316 | C43: SERVENTE COM ENCARGOS COMPLEMENTARES | D43: H | E43: 3 | F43: 19.15 | G43: 57.45 | H43: 21.28 | I43: 63.84
A44: imprimir | B44: 88267 | C44: ENCANADOR OU BOMBEIRO HIDRÁULICO COM ENCARGOS COMPLEMENTARES | D44: H | E44: 1 | F44: 22.95 | G44: 22.95 | H44: 25.76 | I44: 25.76
A45: imprimir | B45: CPU 044 | C45: IMPLANTAÇÃO DE DISTRIBUIDOR, INCLUSIVE TUBULAÇÃO DE 50MM, CONEXÕES, ESCAVAÇÃO, ESCORAMENTO E ATERRO. | D45: M | G45: =TRUNC(SUM(G48:G54),2) -> 80.94 | I45: =TRUNC(SUM(I48:I54),2) -> 84.48 | J45: =TRUNC(I45*(1+BDI!$C$17),2) -> 104.23
A46: =IF(OR(COUNTBLANK(B46)=0,(COUNTBLANK(C46)=0),(COUNTBLANK(D46)=0)),"imprimir","") -> imprimir | B46: BASEADA NA COMPOSIÇÃO EMLURB 19.07.600
A47: imprimir | B47: CÓDIGO | C47: DESCRIÇÃO | D47: UN | E47: COEF. | F47: PREÇO | G47: TOTAL | H47: PREÇO | I47: TOTAL
A48: imprimir | B48: 6212 | C48: =IFERROR(VLOOKUP(B48,Sinapi,2,0),IFERROR(VLOOKUP(B48,Auxiliar,2,0),IFERROR(VLOOKUP(B48,Auxiliar,2,0),IFERROR(VLOOKUP(B48,MAPA,2,0), )))) -> TABUA *2,5 X 30 CM EM PINUS, MISTA OU EQUIVALENTE DA REGIAO - BRUTA | D48: =IFERROR(VLOOKUP(B48,Sinapi,3,0),IFERROR(VLOOKUP(B48,Auxiliar,3,0),IFERROR(VLOOKUP(B48,Auxiliar,3,0),IFERROR(VLOOKUP(B48,MAPA,3,0), )))) -> M | E48: 0.8 | F48: =IFERROR(VLOOKUP(B48,Sinapi,4,0),IFERROR(VLOOKUP(B48,Auxiliar,6,0),IFERROR(VLOOKUP(B48,MAPA,5,0),))) -> 17.24 | G48: =TRUNC(E48*F48,2) -> 13.79 | H48: =IFERROR(VLOOKUP(B48,Sinapi,5,0),IFERROR(VLOOKUP(B48,Auxiliar,8,0),IFERROR(VLOOKUP(B48,MAPA,5,0),))) -> 17.24 | I48: =TRUNC(E48*H48,2) -> 13.79
A49: imprimir | B49: 9875 | C49: TUBO PVC, SOLDAVEL, DE 50 MM, AGUA FRIA (NBR-5648) | D49: M | E49: 1 | F49: 16.39 | G49: 16.39 | H49: 16.39 | I49: 16.39
A50: imprimir | B50: 122 | C50: ADESIVO PLASTICO PARA PVC, FRASCO COM *850* GR | D50: UN | E50: 0.12 | F50: 57.7 | G50: 6.92 | H50: 57.7 | I50: 6.92
A51: imprimir | B51: 20083 | C51: SOLUCAO PREPARADORA / LIMPADORA PARA PVC, FRASCO COM 1000 CM3 | D51: UN | E51: 0.184 | F51: 65.38 | G51: 12.02 | H51: 65.38 | I51: 12.02
A52: imprimir | B52: 2745 | C52: PONTALETE ROLIÇO SEM TRATAMENTO, D = 8 A 11 CM, H = 3 M, EM EUCALIPTO OU EQUIVALENTE DA REGIAO - BRUTA (PARA ESCORAMENTO) | D52: M | E52: 0.3 | F52: 4.01 | G52: 1.2 | H52: 4.01 | I52: 1.2
A53: imprimir | B53: 88316 | C53: SERVENTE COM ENCARGOS COMPLEMENTARES | D53: H | E53: 1 | F53: 19.15 | G53: 19.15 | H53: 21.28 | I53: 21.28
A54: imprimir | B54: 88267 | C54: ENCANADOR OU BOMBEIRO HIDRÁULICO COM ENCARGOS COMPLEMENTARES | D54: H | E54: 0.5 | F54: 22.95 | G54: 11.47 | H54: 25.76 | I54: 12.88
A55: imprimir | B55: CPU 045 | C55: PISO TÁTIL DIRECIONAL E/OU ALERTA, DE CONCRETO, NA COR NATURAL, P/PORTADORES DE DEFICIÊNCIA MOTORA OU VISUAL, DIMENSÕES 40X40CM, APLICADO COM ARGAMASSA INDUSTRIALIZADA AC-II, REJUNTADO, EXCLUSIVE REGULARIZAÇÃO DE BASE. | D55: M2 | G55: =TRUNC(SUM(G58:G62),2) -> 114.06 | I55: =TRUNC(SUM(I58:I62),2) -> 118.02 | J55: =TRUNC(I55*(1+BDI!$C$17),2) -> 145.62
A56: imprimir | B56: BASEADA NA COMPOSIÇÃO 12039/ORSE JUL/2022
A57: imprimir | B57: CÓDIGO | C57: DESCRIÇÃO | D57: UN | E57: COEF. | F57: PREÇO | G57: TOTAL | H57: PREÇO | I57: TOTAL
A58: imprimir | B58: 88316 | C58: =IFERROR(VLOOKUP(B58,Sinapi,2,0),IFERROR(VLOOKUP(B58,Auxiliar,2,0),IFERROR(VLOOKUP(B58,Auxiliar,2,0),IFERROR(VLOOKUP(B58,MAPA,2,0), )))) -> SERVENTE COM ENCARGOS COMPLEMENTARES | D58: =IFERROR(VLOOKUP(B58,Sinapi,3,0),IFERROR(VLOOKUP(B58,Auxiliar,3,0),IFERROR(VLOOKUP(B58,Auxiliar,3,0),IFERROR(VLOOKUP(B58,MAPA,3,0), )))) -> H | E58: 1.2 | F58: =IFERROR(VLOOKUP(B58,Sinapi,4,0),IFERROR(VLOOKUP(B58,Auxiliar,6,0),IFERROR(VLOOKUP(B58,MAPA,5,0),))) -> 19.15 | G58: =TRUNC(E58*F58,2) -> 22.98 | H58: =IFERROR(VLOOKUP(B58,Sinapi,5,0),IFERROR(VLOOKUP(B58,Auxiliar,8,0),IFERROR(VLOOKUP(B58,MAPA,5,0),))) -> 21.28 | I58: =TRUNC(E58*H58,2) -> 25.53
A59: imprimir | B59: 88309 | C59: =IFERROR(VLOOKUP(B59,Sinapi,2,0),IFERROR(VLOOKUP(B59,Auxiliar,2,0),IFERROR(VLOOKUP(B59,Auxiliar,2,0),IFERROR(VLOOKUP(B59,MAPA,2,0), )))) -> PEDREIRO COM ENCARGOS COMPLEMENTARES | D59: =IFERROR(VLOOKUP(B59,Sinapi,3,0),IFERROR(VLOOKUP(B59,Auxiliar,3,0),IFERROR(VLOOKUP(B59,Auxiliar,3,0),IFERROR(VLOOKUP(B59,MAPA,3,0), )))) -> H | E59: 0.5 | F59: =IFERROR(VLOOKUP(B59,Sinapi,4,0),IFERROR(VLOOKUP(B59,Auxiliar,6,0),IFERROR(VLOOKUP(B59,MAPA,5,0),))) -> 23.69 | G59: 11.84 | H59: =IFERROR(VLOOKUP(B59,Sinapi,5,0),IFERROR(VLOOKUP(B59,Auxiliar,8,0),IFERROR(VLOOKUP(B59,MAPA,5,0),))) -> 26.51 | I59: 13.25
A60: imprimir | B60: 34353 | C60: =IFERROR(VLOOKUP(B60,Sinapi,2,0),IFERROR(VLOOKUP(B60,Auxiliar,2,0),IFERROR(VLOOKUP(B60,Auxiliar,2,0),IFERROR(VLOOKUP(B60,MAPA,2,0), )))) -> ARGAMASSA COLANTE AC II | D60: =IFERROR(VLOOKUP(B60,Sinapi,3,0),IFERROR(VLOOKUP(B60,Auxiliar,3,0),IFERROR(VLOOKUP(B60,Auxiliar,3,0),IFERROR(VLOOKUP(B60,MAPA,3,0), )))) -> KG | E60: 4 | F60: =IFERROR(VLOOKUP(B60,Sinapi,4,0),IFERROR(VLOOKUP(B60,Auxiliar,6,0),IFERROR(VLOOKUP(B60,MAPA,5,0),))) -> 1.76 | G60: 7.04 | H60: =IFERROR(VLOOKUP(B60,Sinapi,5,0),IFERROR(VLOOKUP(B60,Auxiliar,8,0),IFERROR(VLOOKUP(B60,MAPA,5,0),))) -> 1.76 | I60: 7.04
A61: imprimir | B61: 34357 | C61: =IFERROR(VLOOKUP(B61,Sinapi,2,0),IFERROR(VLOOKUP(B61,Auxiliar,2,0),IFERROR(VLOOKUP(B61,Auxiliar,2,0),IFERROR(VLOOKUP(B61,MAPA,2,0), )))) -> REJUNTE CIMENTICIO, QUALQUER COR | D61: =IFERROR(VLOOKUP(B61,Sinapi,3,0),IFERROR(VLOOKUP(B61,Auxiliar,3,0),IFERROR(VLOOKUP(B61,Auxiliar,3,0),IFERROR(VLOOKUP(B61,MAPA,3,0), )))) -> KG | E61: 0.33 | F61: =IFERROR(VLOOKUP(B61,Sinapi,4,0),IFERROR(VLOOKUP(B61,Auxiliar,6,0),IFERROR(VLOOKUP(B61,MAPA,5,0),))) -> 5.57 | G61: 1.83 | H61: =IFERROR(VLOOKUP(B61,Sinapi,5,0),IFERROR(VLOOKUP(B61,Auxiliar,8,0),IFERROR(VLOOKUP(B61,MAPA,5,0),))) -> 5.57 | I61: 1.83
A62: imprimir | B62: 36178 | C62: =IFERROR(VLOOKUP(B62,Sinapi,2,0),IFERROR(VLOOKUP(B62,Auxiliar,2,0),IFERROR(VLOOKUP(B62,Auxiliar,2,0),IFERROR(VLOOKUP(B62,MAPA,2,0), )))) -> PISO PODOTATIL DE CONCRETO - DIRECIONAL E ALERTA, *40 X 40 X 2,5* CM | D62: =IFERROR(VLOOKUP(B62,Sinapi,3,0),IFERROR(VLOOKUP(B62,Auxiliar,3,0),IFERROR(VLOOKUP(B62,Auxiliar,3,0),IFERROR(VLOOKUP(B62,MAPA,3,0), )))) -> UN | E62: =1/(0.4*0.4) -> 6.25 | F62: =IFERROR(VLOOKUP(B62,Sinapi,4,0),IFERROR(VLOOKUP(B62,Auxiliar,6,0),IFERROR(VLOOKUP(B62,MAPA,5,0),))) -> 11.26 | G62: 70.37 | H62: =IFERROR(VLOOKUP(B62,Sinapi,5,0),IFERROR(VLOOKUP(B62,Auxiliar,8,0),IFERROR(VLOOKUP(B62,MAPA,5,0),))) -> 11.26 | I62: 70.37
A63: imprimir | B63: CPU 046 | C63: PISO TÁTIL DIRECIONAL E/OU ALERTA, DE CONCRETO, NA COR NATURAL P/PORTADORES DE DEFICIÊNCIA MOTORA OU VISUAL, DIMENSÕES 25X25CM, APLICADO COM ARGAMASSA INDUSTRIALIZADA AC-II, REJUNTADO, EXCLUSIVE REGULARIZAÇÃO DE BASE. | D63: M2 | G63: =TRUNC(SUM(G66:G70),2) -> 126.08 | I63: =TRUNC(SUM(I66:I70),2) -> 130.04 | J63: =TRUNC(I63*(1+BDI!$C$17),2) -> 160.45
A64: imprimir | B64: BASEADA NA COMPOSIÇÃO 07324/ORSE JUL/2022 9418
A65: imprimir | B65: CÓDIGO | C65: DESCRIÇÃO | D65: UN | E65: COEF. | F65: PREÇO | G65: TOTAL | H65: PREÇO | I65: TOTAL
A66: imprimir | B66: 88316 | C66: =IFERROR(VLOOKUP(B66,Sinapi,2,0),IFERROR(VLOOKUP(B66,Auxiliar,2,0),IFERROR(VLOOKUP(B66,Auxiliar,2,0),IFERROR(VLOOKUP(B66,MAPA,2,0), )))) -> SERVENTE COM ENCARGOS COMPLEMENTARES | D66: =IFERROR(VLOOKUP(B66,Sinapi,3,0),IFERROR(VLOOKUP(B66,Auxiliar,3,0),IFERROR(VLOOKUP(B66,Auxiliar,3,0),IFERROR(VLOOKUP(B66,MAPA,3,0), )))) -> H | E66: 1.2 | F66: =IFERROR(VLOOKUP(B66,Sinapi,4,0),IFERROR(VLOOKUP(B66,Auxiliar,6,0),IFERROR(VLOOKUP(B66,MAPA,5,0),))) -> 19.15 | G66: =TRUNC(E66*F66,2) -> 22.98 | H66: =IFERROR(VLOOKUP(B66,Sinapi,5,0),IFERROR(VLOOKUP(B66,Auxiliar,8,0),IFERROR(VLOOKUP(B66,MAPA,5,0),))) -> 21.28 | I66: =TRUNC(E66*H66,2) -> 25.53
A67: imprimir | B67: 88309 | C67: =IFERROR(VLOOKUP(B67,Sinapi,2,0),IFERROR(VLOOKUP(B67,Auxiliar,2,0),IFERROR(VLOOKUP(B67,Auxiliar,2,0),IFERROR(VLOOKUP(B67,MAPA,2,0), )))) -> PEDREIRO COM ENCARGOS COMPLEMENTARES | D67: =IFERROR(VLOOKUP(B67,Sinapi,3,0),IFERROR(VLOOKUP(B67,Auxiliar,3,0),IFERROR(VLOOKUP(B67,Auxiliar,3,0),IFERROR(VLOOKUP(B67,MAPA,3,0), )))) -> H | E67: 0.5 | F67: =IFERROR(VLOOKUP(B67,Sinapi,4,0),IFERROR(VLOOKUP(B67,Auxiliar,6,0),IFERROR(VLOOKUP(B67,MAPA,5,0),))) -> 23.69 | G67: 11.84 | H67: =IFERROR(VLOOKUP(B67,Sinapi,5,0),IFERROR(VLOOKUP(B67,Auxiliar,8,0),IFERROR(VLOOKUP(B67,MAPA,5,0),))) -> 26.51 | I67: 13.25
A68: imprimir | B68: 34353 | C68: =IFERROR(VLOOKUP(B68,Sinapi,2,0),IFERROR(VLOOKUP(B68,Auxiliar,2,0),IFERROR(VLOOKUP(B68,Auxiliar,2,0),IFERROR(VLOOKUP(B68,MAPA,2,0), )))) -> ARGAMASSA COLANTE AC II | D68: =IFERROR(VLOOKUP(B68,Sinapi,3,0),IFERROR(VLOOKUP(B68,Auxiliar,3,0),IFERROR(VLOOKUP(B68,Auxiliar,3,0),IFERROR(VLOOKUP(B68,MAPA,3,0), )))) -> KG | E68: 4 | F68: =IFERROR(VLOOKUP(B68,Sinapi,4,0),IFERROR(VLOOKUP(B68,Auxiliar,6,0),IFERROR(VLOOKUP(B68,MAPA,5,0),))) -> 1.76 | G68: 7.04 | H68: =IFERROR(VLOOKUP(B68,Sinapi,5,0),IFERROR(VLOOKUP(B68,Auxiliar,8,0),IFERROR(VLOOKUP(B68,MAPA,5,0),))) -> 1.76 | I68: 7.04
A69: imprimir | B69: 34357 | C69: =IFERROR(VLOOKUP(B69,Sinapi,2,0),IFERROR(VLOOKUP(B69,Auxiliar,2,0),IFERROR(VLOOKUP(B69,Auxiliar,2,0),IFERROR(VLOOKUP(B69,MAPA,2,0), )))) -> REJUNTE CIMENTICIO, QUALQUER COR | D69: =IFERROR(VLOOKUP(B69,Sinapi,3,0),IFERROR(VLOOKUP(B69,Auxiliar,3,0),IFERROR(VLOOKUP(B69,Auxiliar,3,0),IFERROR(VLOOKUP(B69,MAPA,3,0), )))) -> KG | E69: 0.52 | F69: =IFERROR(VLOOKUP(B69,Sinapi,4,0),IFERROR(VLOOKUP(B69,Auxiliar,6,0),IFERROR(VLOOKUP(B69,MAPA,5,0),))) -> 5.57 | G69: 2.89 | H69: =IFERROR(VLOOKUP(B69,Sinapi,5,0),IFERROR(VLOOKUP(B69,Auxiliar,8,0),IFERROR(VLOOKUP(B69,MAPA,5,0),))) -> 5.57 | I69: 2.89
A70: imprimir | B70: COT.027 | C70: =IFERROR(VLOOKUP(B70,Sinapi,2,0),IFERROR(VLOOKUP(B70,Auxiliar,2,0),IFERROR(VLOOKUP(B70,Auxiliar,2,0),IFERROR(VLOOKUP(B70,MAPA,2,0), )))) -> PISO TÁTIL DIRECIONAL E/OU ALERTA DE CONCRETO DIM 25X25X0,25 CM, PARA PESSOA COM DEFICIÊNCIA VISUAL., POSTO OBRA. | D70: =IFERROR(VLOOKUP(B70,Sinapi,3,0),IFERROR(VLOOKUP(B70,Auxiliar,3,0),IFERROR(VLOOKUP(B70,Auxiliar,3,0),IFERROR(VLOOKUP(B70,MAPA,3,0), )))) -> M2 | E70: 1.05 | F70: =IFERROR(VLOOKUP(B70,Sinapi,4,0),IFERROR(VLOOKUP(B70,Auxiliar,6,0),IFERROR(VLOOKUP(B70,MAPA,5,0),))) -> 77.46 | G70: 81.33 | H70: =IFERROR(VLOOKUP(B70,Sinapi,5,0),IFERROR(VLOOKUP(B70,Auxiliar,8,0),IFERROR(VLOOKUP(B70,MAPA,5,0),))) -> 77.46 | I70: 81.33
A71: imprimir | B71: CPU 048 | C71: EXECUÇÃO DE CAIXA DE LIGAÇÃO PARA CANALETA EM ALVENARIA DE BLOCO DE CONCRETO 20X10X10, ASSENTADOS SOBRE LAJE DE CONCRETO ARMADO FCK 15 MPA, DIMENSÕES INTERNAS DE 40X40CM, REVESTIDO COM CHAPISCO E EMBOÇO, COM FUNDO EM LASTRO DE CONCRETO. | D71: UN | G71: =TRUNC(SUM(G74:G88),2) -> 1440.14 | I71: =TRUNC(SUM(I74:I88),2) -> 1478.66 | J71: =TRUNC(I71*(1+BDI!$C$17),2) -> 1824.51
A72: imprimir | B72: REFERÊNCIA DETALHE PROJETO
A73: imprimir | B73: CÓDIGO | C73: DESCRIÇÃO | D73: UN | E73: COEF. | F73: PREÇO | G73: TOTAL | H73: PREÇO | I73: TOTAL
A74: imprimir | B74: AUX.009 | C74: =IFERROR(VLOOKUP(B74,Sinapi,2,0),IFERROR(VLOOKUP(B74,Auxiliar,2,0),IFERROR(VLOOKUP(B74,Auxiliar,2,0),IFERROR(VLOOKUP(B74,MAPA,2,0),)))) -> CONCRETAGEM DE RADIER, PISO DE CONCRETO OU LAJE SOBRE SOLO, FCK 25 MPA - LANÇAMENTO, ADENSAMENTO E ACABAMENTO. | D74: =IFERROR(VLOOKUP(B74,Sinapi,3,0),IFERROR(VLOOKUP(B74,Auxiliar,3,0),IFERROR(VLOOKUP(B74,Auxiliar,3,0),IFERROR(VLOOKUP(B74,MAPA,3,0),)))) -> M3 | E74: =1.5*1.5*0.7 -> 1.575 | F74: =IFERROR(VLOOKUP(B74,Sinapi,4,0),IFERROR(VLOOKUP(B74,Auxiliar,6,0),IFERROR(VLOOKUP(B74,MAPA,5,0),))) -> 529.36 | G74: =TRUNC(E74*F74,2) -> 833.74 | H74: =IFERROR(VLOOKUP(B74,Sinapi,5,0),IFERROR(VLOOKUP(B74,Auxiliar,8,0),IFERROR(VLOOKUP(B74,MAPA,5,0),))) -> 540.11 | I74: =TRUNC(E74*H74,2) -> 850.67
B75: 96995 | C75: REATERRO MANUAL APILOADO COM SOQUETE. AF_10/2017 | D75: M3 | E75: =E74-(0.8*0.8*0.7) -> 1.127 | F75: 45.93 | G75: 51.76 | H75: 51.04 | I75: 57.52
B76: 368 | C76: AREIA PARA ATERRO - POSTO JAZIDA/FORNECEDOR (RETIRADO NA JAZIDA, SEM TRANSPORTE) | D76: M3 | E76: =E75 -> 1.127 | F76: 65 | G76: 73.25 | H76: 65 | I76: 73.25
B77: 100974 | C77: CARGA, MANOBRA E DESCARGA DE SOLOS E MATERIAIS GRANULARES EM CAMINHÃO BASCULANTE 10 M³ - CARGA COM PÁ CARREGADEIRA (CAÇAMBA DE 1,7 A 2,8 M³ / 128 HP) E DESCARGA LIVRE (UNIDADE: M3). AF_07/2020 | D77: M3 | E77: =E74*1.25 -> 1.9688 | F77: 7.81 | G77: 15.37 | H77: 7.98 | I77: 15.71
B78: 95875 | C78: TRANSPORTE COM CAMINHÃO BASCULANTE DE 10 M³, EM VIA URBANA PAVIMENTADA, DMT ATÉ 30 KM (UNIDADE: M3XKM). AF_07/2020 | D78: M3XKM | E78: =E77*15 -> 29.532 | F78: 2.14 | G78: 63.19 | H78: 2.17 | I78: 64.08
B79: AUX.012 | C79: EMBOÇO C/ ARGAMASSA DE CIMENTO E AREIA S/ PENEIRAR, TRAÇO 1:3. | D79: M2 | E79: =1*1 -> 1 | F79: 39.48 | G79: 39.48 | H79: 42.87 | I79: 42.87
B80: 94969 | C80: CONCRETO FCK = 15MPA, TRAÇO 1:3,4:3,5 (EM MASSA SECA DE CIMENTO/ AREIA MÉDIA/ BRITA 1) - PREPARO MECÂNICO COM BETONEIRA 600 L. AF_05/2021 | D80: M3 | E80: =E79*0.1 -> 0.1 | F80: 429.75 | G80: 42.97 | H80: 438.19 | I80: 43.81
B81: 103670 | C81: LANÇAMENTO COM USO DE BALDES, ADENSAMENTO E ACABAMENTO DE CONCRETO EM ESTRUTURAS. AF_02/2022 | D81: M3 | E81: =E80 -> 0.1 | F81: 258.81 | G81: 25.88 | H81: 288.35 | I81: 28.83
B82: 92915 | C82: ARMAÇÃO DE ESTRUTURAS DIVERSAS DE CONCRETO ARMADO, EXCETO VIGAS, PILARES, LAJES E FUNDAÇÕES, UTILIZANDO AÇO CA-60 DE 5,0 MM - MONTAGEM. AF_06/2022 | D82: KG | E82: =(CONVERT(40,"cm","m")*0.154) -> 0.0616 | F82: 17.84 | G82: 1.09 | H82: 18.63 | I82: 1.14
B83: 92919 | C83: ARMAÇÃO DE ESTRUTURAS DIVERSAS DE CONCRETO ARMADO, EXCETO VIGAS, PILARES, LAJES E FUNDAÇÕES, UTILIZANDO AÇO CA-50 DE 10,0 MM - MONTAGEM. AF_06/2022 | D83: KG | E83: =(CONVERT(80,"cm","m")*0.617)+10 -> 10.4936 | F83: 14.13 | G83: 148.27 | H83: 14.38 | I83: 150.89
B84: 92921 | C84: ARMAÇÃO DE ESTRUTURAS DIVERSAS DE CONCRETO ARMADO, EXCETO VIGAS, PILARES, LAJES E FUNDAÇÕES, UTILIZANDO AÇO CA-50 DE 12,5 MM - MONTAGEM. AF_06/2022 | D84: KG | E84: =(CONVERT(90,"cm","m")*0.963) -> 0.8667 | F84: 11.84 | G84: 10.26 | H84: 12 | I84: 10.4
B85: 97086 | C85: FABRICAÇÃO, MONTAGEM E DESMONTAGEM DE FORMA PARA RADIER, PISO DE CONCRETO OU LAJE SOBRE SOLO, EM MADEIRA SERRADA, 4 UTILIZAÇÕES. AF_09/2021 | D85: M2 | E85: =0.8*0.8*0.1+0.8*0.8*0.2 -> 0.192 | F85: 120 | G85: 23.04 | H85: 129.63 | I85: 24.88
B86: 87878 | C86: CHAPISCO APLICADO EM ALVENARIAS E ESTRUTURAS DE CONCRETO INTERNAS, COM COLHER DE PEDREIRO. ARGAMASSA TRAÇO 1:3 COM PREPARO MANUAL. AF_10/2022 | D86: M2 | E86: =0.4*0.4*2*2 -> 0.64 | F86: 4.42 | G86: 2.82 | H86: 4.76 | I86: 3.04
B87: AUX.010 | C87: ALVENARIA DE VEDAÇÃO DE BLOCOS DE CONCRETO MACIÇOS DE 22X11X8CM (ESPESSURA 8CM), DE UMA VEZ, E ARGAMASSA DE ASSENTAMENTO COM PREPARO EM BETONEIRA. | D87: M2 | E87: =0.4*0.4*2 -> 0.32 | F87: 213.99 | G87: 68.47 | H87: 221.94 | I87: 71.02
B88: 40524 | C88: BLOQUETE/PISO INTERTRAVADO DE CONCRETO - MODELO ONDA/16 FACES/RETANGULAR/TIJOLINHO/PAVER/HOLANDES/PARALELEPIPEDO, 20 CM X 10 CM, E = 10 CM, RESISTENCIA DE 35 MPA (NBR 9781), COR NATURAL | D88: M2 | E88: =0.4*0.4*2*2 -> 0.64 | F88: 63.37 | G88: 40.55 | H88: 63.37 | I88: 40.55
A89: =IF(OR(COUNTBLANK(B89)=0,(COUNTBLANK(C89)=0),(COUNTBLANK(D89)=0)),"imprimir","") -> imprimir | B89: CPU 051 | C89: CANALETA EM CONCRETO ARMADO NAS DIMENSÕES 0,40M X 0,40, INCLUINDO LAJE DE TAMPA COM 20CM, CONFORME PROJETO DE CÁLCULO ESTRUTURAL (LINHA D'ÁGUA - TAMPA COM FUROS DN 50MM) | D89: M | G89: =TRUNC(SUM(G92:G100),2) -> 1100.05 | I89: =TRUNC(SUM(I92:I100),2) -> 1137.24 | J89: =TRUNC(I89*(1+BDI!$C$17),2) -> 1403.24
A90: imprimir | B90: CANALETA EM CONCRETO DIMENSÕES INTERNAS 0,40X0,40M, NA LINHA D'ÁGUA
A91: imprimir | B91: CÓDIGO | C91: DESCRIÇÃO | D91: UN | E91: COEF. | F91: PREÇO | G91: TOTAL | H91: PREÇO | I91: TOTAL
A92: imprimir | B92: 101616 | C92: =IFERROR(VLOOKUP(B92,Sinapi,2,0),IFERROR(VLOOKUP(B92,Auxiliar,2,0),IFERROR(VLOOKUP(B92,Auxiliar,2,0),IFERROR(VLOOKUP(B92,MAPA,2,0), )))) -> PREPARO DE FUNDO DE VALA COM LARGURA MENOR QUE 1,5 M (ACERTO DO SOLO NATURAL). AF_08/2020 | D92: =IFERROR(VLOOKUP(B92,Sinapi,3,0),IFERROR(VLOOKUP(B92,Auxiliar,3,0),IFERROR(VLOOKUP(B92,Auxiliar,3,0),IFERROR(VLOOKUP(B92,MAPA,3,0),)))) -> M2 | E92: =1*1 -> 1 | F92: =IFERROR(VLOOKUP(B92,Sinapi,4,0),IFERROR(VLOOKUP(B92,Auxiliar,6,0),IFERROR(VLOOKUP(B92,MAPA,5,0),))) -> 5.57 | G92: =TRUNC(E92*F92,2) -> 5.57 | H92: =IFERROR(VLOOKUP(B92,Sinapi,5,0),IFERROR(VLOOKUP(B92,Auxiliar,8,0),IFERROR(VLOOKUP(B92,MAPA,5,0),))) -> 6.21 | I92: =TRUNC(E92*H92,2) -> 6.21
A93: imprimir | B93: 96620 | C93: =IFERROR(VLOOKUP(B93,Sinapi,2,0),IFERROR(VLOOKUP(B93,Auxiliar,2,0),IFERROR(VLOOKUP(B93,Auxiliar,2,0),IFERROR(VLOOKUP(B93,MAPA,2,0), )))) -> LASTRO DE CONCRETO MAGRO, APLICADO EM PISOS, LAJES SOBRE SOLO OU RADIERS. AF_08/2017 | D93: =IFERROR(VLOOKUP(B93,Sinapi,3,0),IFERROR(VLOOKUP(B93,Auxiliar,3,0),IFERROR(VLOOKUP(B93,Auxiliar,3,0),IFERROR(VLOOKUP(B93,MAPA,3,0),)))) -> M3 | E93: =1*0.05*1 -> 0.05 | F93: =IFERROR(VLOOKUP(B93,Sinapi,4,0),IFERROR(VLOOKUP(B93,Auxiliar,6,0),IFERROR(VLOOKUP(B93,MAPA,5,0),))) -> 601.91 | G93: 30.09 | H93: =IFERROR(VLOOKUP(B93,Sinapi,5,0),IFERROR(VLOOKUP(B93,Auxiliar,8,0),IFERROR(VLOOKUP(B93,MAPA,5,0),))) -> 630.31 | I93: 31.51
A94: imprimir | B94: 96536 | C94: FABRICAÇÃO, MONTAGEM E DESMONTAGEM DE FÔRMA PARA VIGA BALDRAME, EM MADEIRA SERRADA, E=25 MM, 4 UTILIZAÇÕES. AF_06/2017 | D94: =IFERROR(VLOOKUP(B94,Sinapi,3,0),IFERROR(VLOOKUP(B94,Auxiliar,3,0),IFERROR(VLOOKUP(B94,Auxiliar,3,0),IFERROR(VLOOKUP(B94,MAPA,3,0), )))) -> M2 | E94: =0.6*1*4+(1*0.8)+(0.2*1*2)+(0.2*0.8*2) -> 3.92 | F94: =IFERROR(VLOOKUP(B94,Sinapi,4,0),IFERROR(VLOOKUP(B94,Auxiliar,6,0),IFERROR(VLOOKUP(B94,MAPA,5,0),))) -> 78.53 | G94: 307.83 | H94: =IFERROR(VLOOKUP(B94,Sinapi,5,0),IFERROR(VLOOKUP(B94,Auxiliar,8,0),IFERROR(VLOOKUP(B94,MAPA,5,0),))) -> 82.85 | I94: 324.77
A95: imprimir | B95: 96544 | C95: ARMAÇÃO DE BLOCO, VIGA BALDRAME OU SAPATA UTILIZANDO AÇO CA-50 DE 6,3 MM - MONTAGEM. AF_06/2017 | D95: KG | E95: =3.7+2.29+1.84+1.38 -> 9.21 | F95: 17.63 | G95: 162.37 | H95: 18.26 | I95: 168.17
A96: imprimir | B96: 96545 | C96: ARMAÇÃO DE BLOCO, VIGA BALDRAME OU SAPATA UTILIZANDO AÇO CA-50 DE 8 MM - MONTAGEM. AF_06/2017 | D96: KG | E96: 4.46 | F96: 16.59 | G96: 73.99 | H96: 17.04 | I96: 75.99
A97: imprimir | B97: 92921 | C97: ARMAÇÃO DE ESTRUTURAS DIVERSAS DE CONCRETO ARMADO, EXCETO VIGAS, PILARES, LAJES E FUNDAÇÕES, UTILIZANDO AÇO CA-50 DE 12,5 MM - MONTAGEM. AF_06/2022 | D97: KG | E97: =8.86+8.23 -> 17.09 | F97: 11.84 | G97: 202.34 | H97: 12 | I97: 205.08
A98: imprimir | B98: AUX.018 | C98: =IFERROR(VLOOKUP(B98,Sinapi,2,0),IFERROR(VLOOKUP(B98,INSUMOS,2,0),IFERROR(VLOOKUP(B98,Auxiliar,2,0),IFERROR(VLOOKUP(B98,MAPA,2,0), )))) -> CONCRETAGEM DE BLOCOS DE COROAMENTO E VIGAS BALDRAME, FCK 25 MPA, COM USO DE JERICA  LANÇAMENTO, ADENSAMENTO E ACABAMENTO. | D98: =IFERROR(VLOOKUP(B98,Sinapi,3,0),IFERROR(VLOOKUP(B98,INSUMOS,3,0),IFERROR(VLOOKUP(B98,Auxiliar,3,0),IFERROR(VLOOKUP(B98,MAPA,3,0), )))) -> M3 | E98: =(0.6*0.2*1*2) -> 0.24 | F98: =IFERROR(VLOOKUP(B98,Sinapi,4,0),IFERROR(VLOOKUP(B98,INSUMOS,4,0),IFERROR(VLOOKUP(B98,Auxiliar,6,0),IFERROR(VLOOKUP(B98,MAPA,5,0), )))) -> 659.34 | G98: 158.24 | H98: =IFERROR(VLOOKUP(B98,Sinapi,5,0),IFERROR(VLOOKUP(B98,INSUMOS,5,0),IFERROR(VLOOKUP(B98,Auxiliar,8,0),IFERROR(VLOOKUP(B98,MAPA,5,0), )))) -> 680.76 | I98: 163.38
A99: imprimir | B99: AUX.009 | C99: CONCRETAGEM DE RADIER, PISO DE CONCRETO OU LAJE SOBRE SOLO, FCK 25 MPA - LANÇAMENTO, ADENSAMENTO E ACABAMENTO. | D99: M3 | E99: =((1*0.8*0.2)-(3.14*0.025^2*15*0.2))+(0.4*0.2*1) -> 0.2341 | F99: 529.36 | G99: 123.92 | H99: 540.11 | I99: 126.43
A100: imprimir | B100: 9838 | C100: TUBO PVC SERIE NORMAL, DN 50 MM, PARA ESGOTO PREDIAL (NBR 5688) | D100: M | E100: 3 | F100: 11.9 | G100: 35.7 | H100: 11.9 | I100: 35.7
A101: imprimir | B101: CPU 055 | C101: DRENO BARBACÃ, DN 100 MM. | D101: M | G101: =TRUNC(SUM(G104:G108),2) -> 31.96 | I101: =TRUNC(SUM(I104:I108),2) -> 32.22 | J101: =TRUNC(I101*(1+BDI!$C$17),2) -> 39.75
A102: imprimir | B102: REFERÊNCIA SINAPI 102723 E 102724 SET/22
A103: imprimir | B103: CÓDIGO | C103: DESCRIÇÃO | D103: UN | E103: COEF. | F103: PREÇO | G103: TOTAL | H103: PREÇO | I103: TOTAL
A104: imprimir | B104: 345 | C104: =IFERROR(VLOOKUP(B104,Sinapi,2,0),IFERROR(VLOOKUP(B104,Auxiliar,2,0),IFERROR(VLOOKUP(B104,Auxiliar,2,0),IFERROR(VLOOKUP(B104,MAPA,2,0), )))) -> ARAME GALVANIZADO 18 BWG, D = 1,24MM (0,009 KG/M) | D104: =IFERROR(VLOOKUP(B104,Sinapi,3,0),IFERROR(VLOOKUP(B104,Auxiliar,3,0),IFERROR(VLOOKUP(B104,Auxiliar,3,0),IFERROR(VLOOKUP(B104,MAPA,3,0),)))) -> KG | E104: 0.017 | F104: =IFERROR(VLOOKUP(B104,Sinapi,4,0),IFERROR(VLOOKUP(B104,Auxiliar,6,0),IFERROR(VLOOKUP(B104,MAPA,5,0),))) -> 36.37 | G104: =TRUNC(E104*F104,2) -> 0.61 | H104: =IFERROR(VLOOKUP(B104,Sinapi,5,0),IFERROR(VLOOKUP(B104,Auxiliar,8,0),IFERROR(VLOOKUP(B104,MAPA,5,0),))) -> 36.37 | I104: =TRUNC(E104*H104,2) -> 0.61
B105: 4013 | C105: GEOTEXTIL NAO TECIDO AGULHADO DE FILAMENTOS CONTINUOS 100% POLIESTER, RESITENCIA A TRACAO = 09 KN/M | D105: =IFERROR(VLOOKUP(B105,Sinapi,3,0),IFERROR(VLOOKUP(B105,Auxiliar,3,0),IFERROR(VLOOKUP(B105,Auxiliar,3,0),IFERROR(VLOOKUP(B105,MAPA,3,0),)))) -> M2 | E105: 1.06 | F105: =IFERROR(VLOOKUP(B105,Sinapi,4,0),IFERROR(VLOOKUP(B105,Auxiliar,6,0),IFERROR(VLOOKUP(B105,MAPA,5,0),))) -> 8.33 | G105: 8.82 | H105: =IFERROR(VLOOKUP(B105,Sinapi,5,0),IFERROR(VLOOKUP(B105,Auxiliar,8,0),IFERROR(VLOOKUP(B105,MAPA,5,0),))) -> 8.33 | I105: 8.82
B106: 4720 | C106: PEDRA BRITADA N. 0, OU PEDRISCO (4,8 A 9,5 MM) POSTO PEDREIRA/FORNECEDOR, SEM FRETE | D106: =IFERROR(VLOOKUP(B106,Sinapi,3,0),IFERROR(VLOOKUP(B106,Auxiliar,3,0),IFERROR(VLOOKUP(B106,Auxiliar,3,0),IFERROR(VLOOKUP(B106,MAPA,3,0),)))) -> M3 | E106: 0.0254 | F106: =IFERROR(VLOOKUP(B106,Sinapi,4,0),IFERROR(VLOOKUP(B106,Auxiliar,6,0),IFERROR(VLOOKUP(B106,MAPA,5,0),))) -> 114.37 | G106: 2.9 | H106: =IFERROR(VLOOKUP(B106,Sinapi,5,0),IFERROR(VLOOKUP(B106,Auxiliar,8,0),IFERROR(VLOOKUP(B106,MAPA,5,0),))) -> 114.37 | I106: 2.9
A107: imprimir | B107: 9836 | C107: TUBO PVC SERIE NORMAL, DN 100 MM, PARA ESGOTO PREDIAL (NBR 5688) | D107: =IFERROR(VLOOKUP(B107,Sinapi,3,0),IFERROR(VLOOKUP(B107,Auxiliar,3,0),IFERROR(VLOOKUP(B107,Auxiliar,3,0),IFERROR(VLOOKUP(B107,MAPA,3,0), )))) -> M | E107: 1.05 | F107: =IFERROR(VLOOKUP(B107,Sinapi,4,0),IFERROR(VLOOKUP(B107,Auxiliar,6,0),IFERROR(VLOOKUP(B107,MAPA,5,0),))) -> 16.5 | G107: 17.32 | H107: =IFERROR(VLOOKUP(B107,Sinapi,5,0),IFERROR(VLOOKUP(B107,Auxiliar,8,0),IFERROR(VLOOKUP(B107,MAPA,5,0),))) -> 16.5 | I107: 17.32
A108: imprimir | B108: 88316 | C108: SERVENTE COM ENCARGOS COMPLEMENTARES | D108: H | E108: 0.1211 | F108: 19.15 | G108: 2.31 | H108: 21.28 | I108: 2.57
B109: CPU 079 | C109: EXECUÇÃO E COMPACTAÇÃO DE BASE E OU SUB BASE PARA PAVIMENTAÇÃO DE MACADAME HIDRÁULICO - EXCLUSIVE CARGA E TRANSPORTE. | D109: M3 | G109: =TRUNC(SUM(G112:G122),2) -> 154.42 | I109: =TRUNC(SUM(I112:I122),2) -> 155.53 | J109: =TRUNC(I109*(1+BDI!$C$17),2) -> 191.9 | K109: =171.59*(1+'RESUMO MODULO TOTAL'!F6) -> 211.724901
B110: REFERÊNCIA SINAPI 96400 NOV/2022
B111: CÓDIGO | C111: DESCRIÇÃO | D111: UN | E111: COEF. | F111: PREÇO | G111: TOTAL | H111: PREÇO | I111: TOTAL
B112: 5631 | C112: =IFERROR(VLOOKUP(B112,Sinapi,2,0),IFERROR(VLOOKUP(B112,Auxiliar,2,0),IFERROR(VLOOKUP(B112,Auxiliar,2,0),IFERROR(VLOOKUP(B112,MAPA,2,0), )))) -> ESCAVADEIRA HIDRÁULICA SOBRE ESTEIRAS, CAÇAMBA 0,80 M3, PESO OPERACIONAL 17 T, POTENCIA BRUTA 111 HP - CHP DIURNO. AF_06/2014 | D112: =IFERROR(VLOOKUP(B112,Sinapi,3,0),IFERROR(VLOOKUP(B112,Auxiliar,3,0),IFERROR(VLOOKUP(B112,Auxiliar,3,0),IFERROR(VLOOKUP(B112,MAPA,3,0),)))) -> CHP | E112: 0.019 | F112: =IFERROR(VLOOKUP(B112,Sinapi,4,0),IFERROR(VLOOKUP(B112,Auxiliar,6,0),IFERROR(VLOOKUP(B112,MAPA,5,0),))) -> 193.6 | G112: =TRUNC(E112*F112,2) -> 3.67 | H112: =IFERROR(VLOOKUP(B112,Sinapi,5,0),IFERROR(VLOOKUP(B112,Auxiliar,8,0),IFERROR(VLOOKUP(B112,MAPA,5,0),))) -> 198.11 | I112: =TRUNC(E112*H112,2) -> 3.76
B113: 5632 | C113: ESCAVADEIRA HIDRÁULICA SOBRE ESTEIRAS, CAÇAMBA 0,80 M3, PESO OPERACIONAL 17 T, POTENCIA BRUTA 111 HP - CHI DIURNO. AF_06/2014 | D113: CHI | E113: 0.045 | F113: 85.31 | G113: 3.83 | H113: 89.82 | I113: 4.04
B114: 5684 | C114: ROLO COMPACTADOR VIBRATÓRIO DE UM CILINDRO AÇO LISO, POTÊNCIA 80 HP, PESO OPERACIONAL MÁXIMO 8,1 T, IMPACTO DINÂMICO 16,15 / 9,5 T, LARGURA DE TRABALHO 1,68 M - CHP DIURNO. AF_06/2014 | D114: CHP | E114: 0.009 | F114: 152.93 | G114: 1.37 | H114: 157.39 | I114: 1.41
B115: 5685 | C115: ROLO COMPACTADOR VIBRATÓRIO DE UM CILINDRO AÇO LISO, POTÊNCIA 80 HP, PESO OPERACIONAL MÁXIMO 8,1 T, IMPACTO DINÂMICO 16,15 / 9,5 T, LARGURA DE TRABALHO 1,68 M - CHI DIURNO. AF_06/2014 | D115: CHI | E115: 0.055 | F115: 68.59 | G115: 3.77 | H115: 73.05 | I115: 4.01
B116: 5932 | C116: MOTONIVELADORA POTÊNCIA BÁSICA LÍQUIDA (PRIMEIRA MARCHA) 125 HP, PESO BRUTO 13032 KG, LARGURA DA LÂMINA DE 3,7 M - CHP DIURNO. AF_06/2014 | D116: CHP | E116: 0.011 | F116: 249.59 | G116: 2.74 | H116: 254.71 | I116: 2.8
B117: 5934 | C117: MOTONIVELADORA POTÊNCIA BÁSICA LÍQUIDA (PRIMEIRA MARCHA) 125 HP, PESO BRUTO 13032 KG, LARGURA DA LÂMINA DE 3,7 M - CHI DIURNO. AF_06/2014 | D117: CHI | E117: 0.053 | F117: 98.99 | G117: 5.24 | H117: 104.11 | I117: 5.51
B118: 88316 | C118: SERVENTE COM ENCARGOS COMPLEMENTARES | D118: H | E118: 0.064 | F118: 19.15 | G118: 1.22 | H118: 21.28 | I118: 1.36
B119: 4730 | C119: PEDRA DE MAO OU PEDRA RACHAO PARA ARRIMO/FUNDACAO (POSTO PEDREIRA/FORNECEDOR, SEM FRETE) | D119: M3 | E119: 1.1 | F119: 93.12 | G119: 102.43 | H119: 93.12 | I119: 102.43
B120: 4741 | C120: =IFERROR(VLOOKUP(B120,Sinapi,2,0),IFERROR(VLOOKUP(B120,Auxiliar,2,0),IFERROR(VLOOKUP(B120,Auxiliar,2,0),IFERROR(VLOOKUP(B120,MAPA,2,0), )))) -> PO DE PEDRA (POSTO PEDREIRA/FORNECEDOR, SEM FRETE) | D120: M3 | E120: 0.3 | F120: 93.58 | G120: 28.07 | H120: 93.58 | I120: 28.07
B121: 5901 | C121: CAMINHÃO PIPA 10.000 L TRUCADO, PESO BRUTO TOTAL 23.000 KG, CARGA ÚTIL MÁXIMA 15.935 KG, DISTÂNCIA ENTRE EIXOS 4,8 M, POTÊNCIA 230 CV, INCLUSIVE TANQUE DE AÇO PARA TRANSPORTE DE ÁGUA - CHP DIURNO. AF_06/2014 | D121: CHP | E121: 0.004 | F121: 269.45 | G121: 1.07 | H121: 272.22 | I121: 1.08
B122: 5903 | C122: CAMINHÃO PIPA 10.000 L TRUCADO, PESO BRUTO TOTAL 23.000 KG, CARGA ÚTIL MÁXIMA 15.935 KG, DISTÂNCIA ENTRE EIXOS 4,8 M, POTÊNCIA 230 CV, INCLUSIVE TANQUE DE AÇO PARA TRANSPORTE DE ÁGUA - CHI DIURNO. AF_06/2014 | D122: CHI | E122: 0.016 | F122: 63.59 | G122: 1.01 | H122: 66.36 | I122: 1.06
B123: CPU 080 | C123: CAIXA ENTERRADA HIDRÁULICA RETANGULAR, EM ALVENARIA COM BLOCOS DE CONCRETO, DIMENSÕES INTERNAS: 0,4X0,4X0,4 M PARA REDE DE ESGOTO. | D123: UN | G123: =TRUNC(SUM(G126:G141),2) -> 254.62 | I123: =TRUNC(SUM(I126:I141),2) -> 268.9 | J123: =TRUNC(I123*(1+BDI!$C$17),2) -> 331.79
B124: REFERÊNCIA SINAPI 97905 JAN/2023
B125: CÓDIGO | C125: DESCRIÇÃO | D125: UN | E125: COEF. | F125: PREÇO | G125: TOTAL | H125: PREÇO | I125: TOTAL
B126: 650 | C126: =IFERROR(VLOOKUP(B126,Sinapi,2,0),IFERROR(VLOOKUP(B126,Auxiliar,2,0),IFERROR(VLOOKUP(B126,Auxiliar,2,0),IFERROR(VLOOKUP(B126,MAPA,2,0), )))) -> BLOCO DE VEDACAO DE CONCRETO, 9 X 19 X 39 CM (CLASSE C - NBR 6136) | D126: =IFERROR(VLOOKUP(B126,Sinapi,3,0),IFERROR(VLOOKUP(B126,Auxiliar,3,0),IFERROR(VLOOKUP(B126,Auxiliar,3,0),IFERROR(VLOOKUP(B126,MAPA,3,0),)))) -> UN | E126: 10.0361 | F126: =IFERROR(VLOOKUP(B126,Sinapi,4,0),IFERROR(VLOOKUP(B126,Auxiliar,6,0),IFERROR(VLOOKUP(B126,MAPA,5,0),))) -> 2.5 | G126: =TRUNC(E126*F126,2) -> 25.09 | H126: =IFERROR(VLOOKUP(B126,Sinapi,5,0),IFERROR(VLOOKUP(B126,Auxiliar,8,0),IFERROR(VLOOKUP(B126,MAPA,5,0),))) -> 2.5 | I126: =TRUNC(E126*H126,2) -> 25.09
B127: 2692 | C127: DESMOLDANTE PROTETOR PARA FORMAS DE MADEIRA, DE BASE OLEOSA EMULSIONADA EM AGUA | D127: L | E127: 0.0041 | F127: 7.5 | G127: 0.03 | H127: 7.5 | I127: 0.03
B128: 4491 | C128: PONTALETE *7,5 X 7,5* CM EM PINUS, MISTA OU EQUIVALENTE DA REGIAO - BRUTA | D128: M | E128: 0.0888 | F128: 10.4 | G128: 0.92 | H128: 10.4 | I128: 0.92
B129: 4517 | C129: SARRAFO *2,5 X 7,5* CM EM PINUS, MISTA OU EQUIVALENTE DA REGIAO - BRUTA | D129: M | E129: 0.1056 | F129: 3.64 | G129: 0.38 | H129: 3.64 | I129: 0.38
B130: 5069 | C130: PREGO DE ACO POLIDO COM CABECA 17 X 27 (2 1/2 X 11) | D130: KG | E130: 0.0094 | F130: 19.18 | G130: 0.18 | H130: 19.18 | I130: 0.18
B131: 6193 | C131: TABUA NAO APARELHADA *2,5 X 20* CM, EM MACARANDUBA, ANGELIM OU EQUIVALENTE DA REGIAO - BRUTA | D131: M | E131: 0.3312 | F131: 21.9 | G131: 7.25 | H131: 21.9 | I131: 7.25
B132: 87316 | C132: ARGAMASSA TRAÇO 1:4 (EM VOLUME DE CIMENTO E AREIA GROSSA ÚMIDA) PARA CHAPISCO CONVENCIONAL, PREPARO MECÂNICO COM BETONEIRA 400 L. AF_08/2019 | D132: M3 | E132: 0.0071 | F132: 493.81 | G132: 3.5 | H132: 508.75 | I132: 3.61
B133: 88309 | C133: PEDREIRO COM ENCARGOS COMPLEMENTARES | D133: H | E133: 1.7093 | F133: 23.69 | G133: 40.49 | H133: 26.51 | I133: 45.31
B134: 88316 | C134: SERVENTE COM ENCARGOS COMPLEMENTARES | D134: H | E134: 1.343 | F134: 19.15 | G134: 25.71 | H134: 21.28 | I134: 28.57
B135: 94970 | C135: CONCRETO FCK = 20MPA, TRAÇO 1:2,7:3 (EM MASSA SECA DE CIMENTO/ AREIA MÉDIA/ BRITA 1) - PREPARO MECÂNICO COM BETONEIRA 600 L. AF_05/2021 | D135: M3 | E135: 0.0419 | F135: 460.29 | G135: 19.28 | H135: 468.71 | I135: 19.63
B136: 97734 | C136: PEÇA RETANGULAR PRÉ-MOLDADA, VOLUME DE CONCRETO DE 10 A 30 LITROS, TAXA DE AÇO APROXIMADA DE 30KG/M³. AF_01/2018 | D136: M3 | E136: 0.0252 | F136: 2732.12 | G136: 68.84 | H136: 2938.51 | I136: 74.05
B137: 100475 | C137: =IFERROR(VLOOKUP(B137,Sinapi,2,0),IFERROR(VLOOKUP(B137,Auxiliar,2,0),IFERROR(VLOOKUP(B137,Auxiliar,2,0),IFERROR(VLOOKUP(B137,MAPA,2,0), )))) -> ARGAMASSA TRAÇO 1:3 (EM VOLUME DE CIMENTO E AREIA MÉDIA ÚMIDA) COM ADIÇÃO DE IMPERMEABILIZANTE, PREPARO MECÂNICO COM BETONEIRA 400 L. AF_08/2019 | D137: =IFERROR(VLOOKUP(B137,Sinapi,3,0),IFERROR(VLOOKUP(B137,Auxiliar,3,0),IFERROR(VLOOKUP(B137,Auxiliar,3,0),IFERROR(VLOOKUP(B137,MAPA,3,0),)))) -> M3 | E137: 0.0327 | F137: =IFERROR(VLOOKUP(B137,Sinapi,4,0),IFERROR(VLOOKUP(B137,Auxiliar,6,0),IFERROR(VLOOKUP(B137,MAPA,5,0),))) -> 728.62 | G137: 23.82 | H137: =IFERROR(VLOOKUP(B137,Sinapi,5,0),IFERROR(VLOOKUP(B137,Auxiliar,8,0),IFERROR(VLOOKUP(B137,MAPA,5,0),))) -> 740.69 | I137: 24.22
B138: 101616 | C138: PREPARO DE FUNDO DE VALA COM LARGURA MENOR QUE 1,5 M (ACERTO DO SOLO NATURAL). AF_08/2020 | D138: M2 | E138: 0.49 | F138: 5.57 | G138: 2.72 | H138: 6.21 | I138: 3.04
B139: 3899 | C139: =IFERROR(VLOOKUP(B139,Sinapi,2,0),IFERROR(VLOOKUP(B139,Auxiliar,2,0),IFERROR(VLOOKUP(B139,Auxiliar,2,0),IFERROR(VLOOKUP(B139,MAPA,2,0), )))) -> LUVA SIMPLES, PVC, SOLDAVEL, DN 100 MM, SERIE NORMAL, PARA ESGOTO PREDIAL | D139: =IFERROR(VLOOKUP(B139,Sinapi,3,0),IFERROR(VLOOKUP(B139,Auxiliar,3,0),IFERROR(VLOOKUP(B139,Auxiliar,3,0),IFERROR(VLOOKUP(B139,MAPA,3,0),)))) -> UN | E139: 1 | F139: =IFERROR(VLOOKUP(B139,Sinapi,4,0),IFERROR(VLOOKUP(B139,Auxiliar,6,0),IFERROR(VLOOKUP(B139,MAPA,5,0),))) -> 7.26 | G139: 7.26 | H139: =IFERROR(VLOOKUP(B139,Sinapi,5,0),IFERROR(VLOOKUP(B139,Auxiliar,8,0),IFERROR(VLOOKUP(B139,MAPA,5,0),))) -> 7.26 | I139: 7.26
B140: 301 | C140: ANEL BORRACHA PARA TUBO ESGOTO PREDIAL, DN 100 MM (NBR 5688) | D140: UN | E140: 1 | F140: 4 | G140: 4 | H140: 4 | I140: 4
B141: 90694 | C141: TUBO DE PVC PARA REDE COLETORA DE ESGOTO DE PAREDE MACIÇA, DN 100 MM, JUNTA ELÁSTICA - FORNECIMENTO E ASSENTAMENTO. AF_01/2021 | D141: M | E141: 0.5 | F141: 50.31 | G141: 25.15 | H141: 50.73 | I141: 25.36
B142: CPU 097 | C142: CONSTRUÇÃO DE POÇO DE VISITA EM ALVENARIA DE BLOCOS ESTRUTURAL DE CONCRETO 4,5 MPA, NAS DIMENSÕES INTERNAS 1,00 X 1,00 X 1,00 M INCLUINDO LAJE DE CONCRETO ARMADO DE 1,40 X 1,40 COM CHAMINÉ E LAJE DE TOPO EM CONCRETO ARMADO, COM APLICAÇÃO DE CHAPISCO E EMBOÇO NAS FACES EXTERNAS E INTERNAS, INCLUSIVE TAMPÃO DE FIBRA DE VIDRO DE DN 600MM. | D142: UN | G142: =TRUNC(SUM(G145:G161),2) -> 4652.03 | I142: =TRUNC(SUM(I145:I161),2) -> 4789.76 | J142: =TRUNC(I142*(1+BDI!$C$17),2) -> 5910.08
B143: REFERENCIA: CONFORME PROJETO ESTRUTURAL PVCR-EST-080523-P31-R02-01_05
B144: CÓDIGO | C144: DESCRIÇÃO | D144: UN | E144: COEF. | F144: PREÇO | G144: TOTAL | H144: PREÇO | I144: TOTAL
B145: 101617 | C145: =IFERROR(VLOOKUP(B145,Sinapi,2,0),IFERROR(VLOOKUP(B145,Auxiliar,2,0),IFERROR(VLOOKUP(B145,Auxiliar,2,0),IFERROR(VLOOKUP(B145,MAPA,2,0), )))) -> PREPARO DE FUNDO DE VALA COM LARGURA MAIOR OU IGUAL A 1,5 M E MENOR QUE 2,5 M (ACERTO DO SOLO NATURAL). AF_08/2020 | D145: =IFERROR(VLOOKUP(B145,Sinapi,3,0),IFERROR(VLOOKUP(B145,Auxiliar,3,0),IFERROR(VLOOKUP(B145,Auxiliar,3,0),IFERROR(VLOOKUP(B145,MAPA,3,0),)))) -> M2 | E145: 2.56 | F145: =IFERROR(VLOOKUP(B145,Sinapi,4,0),IFERROR(VLOOKUP(B145,Auxiliar,6,0),IFERROR(VLOOKUP(B145,MAPA,5,0),))) -> 2.74 | G145: =TRUNC(E145*F145,2) -> 7.01 | H145: =IFERROR(VLOOKUP(B145,Sinapi,5,0),IFERROR(VLOOKUP(B145,Auxiliar,8,0),IFERROR(VLOOKUP(B145,MAPA,5,0),))) -> 3.06 | I145: =TRUNC(E145*H145,2) -> 7.83
B146: 95241 | C146: LASTRO DE CONCRETO MAGRO, APLICADO EM PISOS, LAJES SOBRE SOLO OU RADIERS, ESPESSURA DE 5 CM. AF_07/2016 | D146: M2 | E146: =E145 -> 2.56 | F146: 30.07 | G146: 76.97 | H146: 31.5 | I146: 80.64
B147: AUX.021 | C147: FABRICAÇÃO, MONTAGEM E DESMONTAGEM DE FÔRMA PARA VIGA BALDRAME, EM MADEIRA SERRADA, E=25 MM, 4 UTILIZAÇÕES. | D147: M2 | E147: 7.09153 | F147: 67.7 | G147: 480.09 | H147: 72.02 | I147: 510.73
B148: AUX.022 | C148: ARMAÇÃO PARA EXECUÇÃO DE RADIER, PISO DE CONCRETO OU LAJE SOBRE SOLO, COM USO DE TELA Q-283. | D148: KG | E148: =5.88+5.92 -> 11.8 | F148: 16.83 | G148: 198.59 | H148: 17.34 | I148: 204.61
B149: 94970 | C149: =IFERROR(VLOOKUP(B149,Sinapi,2,0),IFERROR(VLOOKUP(B149,Auxiliar,2,0),IFERROR(VLOOKUP(B149,Auxiliar,2,0),IFERROR(VLOOKUP(B149,MAPA,2,0), )))) -> CONCRETO FCK = 20MPA, TRAÇO 1:2,7:3 (EM MASSA SECA DE CIMENTO/ AREIA MÉDIA/ BRITA 1) - PREPARO MECÂNICO COM BETONEIRA 600 L. AF_05/2021 | D149: =IFERROR(VLOOKUP(B149,Sinapi,3,0),IFERROR(VLOOKUP(B149,Auxiliar,3,0),IFERROR(VLOOKUP(B149,Auxiliar,3,0),IFERROR(VLOOKUP(B149,MAPA,3,0),)))) -> M3 | E149: =0.07+0.22+0.24+0.12 -> 0.65 | F149: =IFERROR(VLOOKUP(B149,Sinapi,4,0),IFERROR(VLOOKUP(B149,Auxiliar,6,0),IFERROR(VLOOKUP(B149,MAPA,5,0),))) -> 460.29 | G149: 299.18 | H149: =IFERROR(VLOOKUP(B149,Sinapi,5,0),IFERROR(VLOOKUP(B149,Auxiliar,8,0),IFERROR(VLOOKUP(B149,MAPA,5,0),))) -> 468.71 | I149: 304.66
B150: 103670 | C150: LANÇAMENTO COM USO DE BALDES, ADENSAMENTO E ACABAMENTO DE CONCRETO EM ESTRUTURAS. AF_02/2022 | D150: M3 | E150: =E149 -> 0.65 | F150: 258.81 | G150: 168.22 | H150: 288.35 | I150: 187.42
B151: AUX.026 | C151: CINTA DE AMARRAÇÃO DE ALVENARIA MOLDADA IN LOCO COM UTILIZAÇÃO DE BLOCOS CANALETA. | D151: M | E151: 4.8 | F151: 31.28 | G151: 150.14 | H151: 32.5 | I151: 156
B152: 89993 | C152: GRAUTEAMENTO VERTICAL EM ALVENARIA ESTRUTURAL. AF_09/2021 | D152: M3 | E152: 0.02 | F152: 972.22 | G152: 19.44 | H152: 1020.16 | I152: 20.4
B153: 87904 | C153: CHAPISCO APLICADO EM ALVENARIA (COM PRESENÇA DE VÃOS) E ESTRUTURAS DE CONCRETO DE FACHADA, COM COLHER DE PEDREIRO. ARGAMASSA TRAÇO 1:3 COM PREPARO MANUAL. AF_10/2022 | D153: M2 | E153: 7.90354 | F153: 7.51 | G153: 59.35 | H153: 8.21 | I153: 64.88
B154: AUX.023 | C154: ALVENARIA DE BLOCOS DE CONCRETO ESTRUTURAL 19X19X39 CM (ESPESSURA 14 CM), FBK = 4,5 MPA, UTILIZANDO COLHER DE PEDREIRO. | D154: M2 | E154: 3.95177 | F154: 82.32 | G154: 325.3 | H154: 85.62 | I154: 338.35
B155: AUX.024 | C155: EMBOÇO OU MASSA ÚNICA EM ARGAMASSA TRAÇO 1:3, PREPARO COM BETONEIRA 400L, APLICADA MANUALMENTE EM PANOS DE FACHADA COM PRESENÇA DE VÃOS, ESPESSURA DE 25 MM. | D155: M2 | E155: =E153 -> 7.90354 | F155: 46.04 | G155: 363.87 | H155: 49.73 | I155: 393.04
B156: 92769 | C156: ARMAÇÃO DE LAJE DE ESTRUTURA CONVENCIONAL DE CONCRETO ARMADO UTILIZANDO AÇO CA-50 DE 6,3 MM - MONTAGEM. AF_06/2022 | D156: KG | E156: =(9.02+2.27+2.88)+(1.32+0.69+0.7+0.77+0.79+0.91+0.98+10) -> 30.33 | F156: 14.75 | G156: 447.36 | H156: 15.04 | I156: 456.16
B157: 92771 | C157: ARMAÇÃO DE LAJE DE ESTRUTURA CONVENCIONAL DE CONCRETO ARMADO UTILIZANDO AÇO CA-50 DE 10,0 MM - MONTAGEM. AF_06/2022 | D157: KG | E157: =2.92+3.7+2*1.87+2*2.17+36.63 -> 51.33 | F157: 12.9 | G157: 662.15 | H157: 13.01 | I157: 667.8
B158: 89996 | C158: ARMAÇÃO VERTICAL DE ALVENARIA ESTRUTURAL; DIÂMETRO DE 10,0 MM. AF_09/2021 | D158: KG | E158: 5.86 | F158: 12.41 | G158: 72.72 | H158: 12.67 | I158: 74.24
B159: COT.020 | C159: TAMPÃO EM POLIESTER REFORÇADO EM FIBRA DE VIDRO, COM DIÂMETRO DE 600MM E CAPACIDADE DE CARGA DE 40T E TEMP. 180°C | D159: UN | E159: 1 | F159: 1294.43 | G159: 1294.43 | H159: 1294.43 | I159: 1294.43
B160: 5678 | C160: RETROESCAVADEIRA SOBRE RODAS COM CARREGADEIRA, TRAÇÃO 4X4, POTÊNCIA LÍQ. 88 HP, CAÇAMBA CARREG. CAP. MÍN. 1 M3, CAÇAMBA RETRO CAP. 0,26 M3, PESO OPERACIONAL MÍN. 6.674 KG, PROFUNDIDADE ESCAVAÇÃO MÁX. 4,37 M - CHP DIURNO. AF_06/2014 | D160: CHP | E160: 0.0993 | F160: 141.02 | G160: 14 | H160: 145.53 | I160: 14.45
B161: 5679 | C161: RETROESCAVADEIRA SOBRE RODAS COM CARREGADEIRA, TRAÇÃO 4X4, POTÊNCIA LÍQ. 88 HP, CAÇAMBA CARREG. CAP. MÍN. 1 M3, CAÇAMBA RETRO CAP. 0,26 M3, PESO OPERACIONAL MÍN. 6.674 KG, PROFUNDIDADE ESCAVAÇÃO MÁX. 4,37 M - CHI DIURNO. AF_06/2014 | D161: CHI | E161: 0.2024 | F161: 65.3 | G161: 13.21 | H161: 69.81 | I161: 14.12
B162: CPU 102 | C162: CONSTRUÇÃO DE CAIXA COLETORA GAVETA EM ALVENARIA DE BLOCOS ESTRUTURAL DE CONCRETO 4,5 MPA, NAS DIMENSÕES INTERNAS 1,00 X 1,00 X 1,00 M, COM APLICAÇÃO DE CHAPISCO E EMBOÇO NAS FACES EXTERNAS E INTERNAS, INCLUINDO LAJE DE CONCRETO ARMADO DE 1,40 X 1,40 COM TAMPA REMOVÍVEL DE 0,80 X 0,80 M E CANTONEIRA DE AÇO, INCLUSIVE MEIO FIO DRENANTE CONFORME PROJETO. TIPO PARA VIAS LOCAIS. | D162: UN | G162: =TRUNC(SUM(G165:G183),2) -> 2883.73 | I162: =TRUNC(SUM(I165:I183),2) -> 3017.09 | J162: =TRUNC(I162*(1+BDI!$C$17),2) -> 3722.78
B163: CONFORME PROJETO ESTRUTURAL PVVL-EST-110523-P31-R02-01_05
B164: CÓDIGO | C164: DESCRIÇÃO | D164: UN | E164: COEF. | F164: PREÇO | G164: TOTAL | H164: PREÇO | I164: TOTAL
B165: 101617 | C165: =IFERROR(VLOOKUP(B165,Sinapi,2,0),IFERROR(VLOOKUP(B165,Auxiliar,2,0),IFERROR(VLOOKUP(B165,Auxiliar,2,0),IFERROR(VLOOKUP(B165,MAPA,2,0), )))) -> PREPARO DE FUNDO DE VALA COM LARGURA MAIOR OU IGUAL A 1,5 M E MENOR QUE 2,5 M (ACERTO DO SOLO NATURAL). AF_08/2020 | D165: =IFERROR(VLOOKUP(B165,Sinapi,3,0),IFERROR(VLOOKUP(B165,Auxiliar,3,0),IFERROR(VLOOKUP(B165,Auxiliar,3,0),IFERROR(VLOOKUP(B165,MAPA,3,0),)))) -> M2 | E165: 2.56 | F165: =IFERROR(VLOOKUP(B165,Sinapi,4,0),IFERROR(VLOOKUP(B165,Auxiliar,6,0),IFERROR(VLOOKUP(B165,MAPA,5,0),))) -> 2.74 | G165: =TRUNC(E165*F165,2) -> 7.01 | H165: =IFERROR(VLOOKUP(B165,Sinapi,5,0),IFERROR(VLOOKUP(B165,Auxiliar,8,0),IFERROR(VLOOKUP(B165,MAPA,5,0),))) -> 3.06 | I165: =TRUNC(E165*H165,2) -> 7.83
B166: 95241 | C166: LASTRO DE CONCRETO MAGRO, APLICADO EM PISOS, LAJES SOBRE SOLO OU RADIERS, ESPESSURA DE 5 CM. AF_07/2016 | D166: M2 | E166: =E165 -> 2.56 | F166: 30.07 | G166: 76.97 | H166: 31.5 | I166: 80.64
B167: AUX.021 | C167: =IFERROR(VLOOKUP(B167,Sinapi,2,0),IFERROR(VLOOKUP(B167,Auxiliar,2,0),IFERROR(VLOOKUP(B167,Auxiliar,2,0),IFERROR(VLOOKUP(B167,MAPA,2,0), )))) -> FABRICAÇÃO, MONTAGEM E DESMONTAGEM DE FÔRMA PARA VIGA BALDRAME, EM MADEIRA SERRADA, E=25 MM, 4 UTILIZAÇÕES. | D167: =IFERROR(VLOOKUP(B167,Sinapi,3,0),IFERROR(VLOOKUP(B167,Auxiliar,3,0),IFERROR(VLOOKUP(B167,Auxiliar,3,0),IFERROR(VLOOKUP(B167,MAPA,3,0),)))) -> M2 | E167: 3.624 | F167: =IFERROR(VLOOKUP(B167,Sinapi,4,0),IFERROR(VLOOKUP(B167,Auxiliar,6,0),IFERROR(VLOOKUP(B167,MAPA,5,0),))) -> 67.7 | G167: 245.34 | H167: =IFERROR(VLOOKUP(B167,Sinapi,5,0),IFERROR(VLOOKUP(B167,Auxiliar,8,0),IFERROR(VLOOKUP(B167,MAPA,5,0),))) -> 72.02 | I167: 261
B168: AUX.022 | C168: ARMAÇÃO PARA EXECUÇÃO DE RADIER, PISO DE CONCRETO OU LAJE SOBRE SOLO, COM USO DE TELA Q-283. | D168: KG | E168: =5.88+5.91+3.22 -> 15.01 | F168: 16.83 | G168: 252.61 | H168: 17.34 | I168: 260.27
B169: 94970 | C169: CONCRETO FCK = 20MPA, TRAÇO 1:2,7:3 (EM MASSA SECA DE CIMENTO/ AREIA MÉDIA/ BRITA 1) - PREPARO MECÂNICO COM BETONEIRA 600 L. AF_05/2021 | D169: M3 | E169: =0.01+0.22+0.19+0.04 -> 0.46 | F169: 460.29 | G169: 211.73 | H169: 468.71 | I169: 215.6
B170: 103670 | C170: LANÇAMENTO COM USO DE BALDES, ADENSAMENTO E ACABAMENTO DE CONCRETO EM ESTRUTURAS. AF_02/2022 | D170: M3 | E170: =E169 -> 0.46 | F170: 258.81 | G170: 119.05 | H170: 288.35 | I170: 132.64
B171: AUX.026 | C171: CINTA DE AMARRAÇÃO DE ALVENARIA MOLDADA IN LOCO COM UTILIZAÇÃO DE BLOCOS CANALETA. | D171: M | E171: 4.8 | F171: 31.28 | G171: 150.14 | H171: 32.5 | I171: 156
B172: 89993 | C172: GRAUTEAMENTO VERTICAL EM ALVENARIA ESTRUTURAL. AF_09/2021 | D172: M3 | E172: 0.02 | F172: 972.22 | G172: 19.44 | H172: 1020.16 | I172: 20.4
B173: 87904 | C173: CHAPISCO APLICADO EM ALVENARIA (COM PRESENÇA DE VÃOS) E ESTRUTURAS DE CONCRETO DE FACHADA, COM COLHER DE PEDREIRO. ARGAMASSA TRAÇO 1:3 COM PREPARO MANUAL. AF_10/2022 | D173: M2 | E173: 11.66867 | F173: 7.51 | G173: 87.63 | H173: 8.21 | I173: 95.79
B174: AUX.023 | C174: ALVENARIA DE BLOCOS DE CONCRETO ESTRUTURAL 19X19X39 CM (ESPESSURA 14 CM), FBK = 4,5 MPA, UTILIZANDO COLHER DE PEDREIRO. | D174: M2 | E174: 5.03434 | F174: 82.32 | G174: 414.42 | H174: 85.62 | I174: 431.04
B175: AUX.024 | C175: EMBOÇO OU MASSA ÚNICA EM ARGAMASSA TRAÇO 1:3, PREPARO COM BETONEIRA 400L, APLICADA MANUALMENTE EM PANOS DE FACHADA COM PRESENÇA DE VÃOS, ESPESSURA DE 25 MM. | D175: M2 | E175: =E173 -> 11.66867 | F175: 46.04 | G175: 537.22 | H175: 49.73 | I175: 580.28
B176: 92770 | C176: ARMAÇÃO DE LAJE DE ESTRUTURA CONVENCIONAL DE CONCRETO ARMADO UTILIZANDO AÇO CA-50 DE 8,0 MM - MONTAGEM. AF_06/2022 | D176: KG | E176: =1.98+2*2.87+3.12+18.88 -> 29.72 | F176: 14.23 | G176: 422.91 | H176: 14.42 | I176: 428.56
B177: 92772 | C177: ARMAÇÃO DE LAJE DE ESTRUTURA CONVENCIONAL DE CONCRETO ARMADO UTILIZANDO AÇO CA-50 DE 12,5 MM - MONTAGEM. AF_06/2022 | D177: KG | E177: 0.87 | F177: 10.94 | G177: 9.51 | H177: 10.99 | I177: 9.56
B178: 92768 | C178: ARMAÇÃO DE LAJE DE ESTRUTURA CONVENCIONAL DE CONCRETO ARMADO UTILIZANDO AÇO CA-60 DE 5,0 MM - MONTAGEM. AF_06/2022 | D178: KG | E178: 1.21 | F178: 15.09 | G178: 18.25 | H178: 15.52 | I178: 18.77
B179: 89996 | C179: ARMAÇÃO VERTICAL DE ALVENARIA ESTRUTURAL; DIÂMETRO DE 10,0 MM. AF_09/2021 | D179: KG | E179: 5.86 | F179: 12.41 | G179: 72.72 | H179: 12.67 | I179: 74.24
B180: 4777 | C180: CANTONEIRA ACO ABAS IGUAIS (QUALQUER BITOLA), ESPESSURA ENTRE 1/8" E 1/4" | D180: KG | E180: 11.61 | F180: 10.25 | G180: 119 | H180: 10.25 | I180: 119
B181: AUX.025 | C181: MEIO-FIO OU GUIA DE CONCRETO PRE-MOLDADO, TIPO CHAPEU PARA BOCA DE LOBO, DIMENSOES *1,20* X 0,15 X 0,30 M. | D181: M | E181: 1 | F181: 92.57 | G181: 92.57 | H181: 96.9 | I181: 96.9
B182: 5678 | C182: RETROESCAVADEIRA SOBRE RODAS COM CARREGADEIRA, TRAÇÃO 4X4, POTÊNCIA LÍQ. 88 HP, CAÇAMBA CARREG. CAP. MÍN. 1 M3, CAÇAMBA RETRO CAP. 0,26 M3, PESO OPERACIONAL MÍN. 6.674 KG, PROFUNDIDADE ESCAVAÇÃO MÁX. 4,37 M - CHP DIURNO. AF_06/2014 | D182: CHP | E182: 0.0993 | F182: 141.02 | G182: 14 | H182: 145.53 | I182: 14.45
B183: 5679 | C183: RETROESCAVADEIRA SOBRE RODAS COM CARREGADEIRA, TRAÇÃO 4X4, POTÊNCIA LÍQ. 88 HP, CAÇAMBA CARREG. CAP. MÍN. 1 M3, CAÇAMBA RETRO CAP. 0,26 M3, PESO OPERACIONAL MÍN. 6.674 KG, PROFUNDIDADE ESCAVAÇÃO MÁX. 4,37 M - CHI DIURNO. AF_06/2014 | D183: CHI | E183: 0.2024 | F183: 65.3 | G183: 13.21 | H183: 69.81 | I183: 14.12
B184: CPU 112 | C184: ACRÉSCIMO PARA POÇO DE VISITA RETANGULAR PARA DRENAGEM, EM ALVENARIA COM BLOCOS DE CONCRETO, DIMENSÕES INTERNAS = 1,0X1,0M. | D184: M | G184: =TRUNC(SUM(G187:G191),2) -> 987.71 | I184: =TRUNC(SUM(I187:I191),2) -> 1047.88 | J184: =TRUNC(I184*(1+BDI!$C$17),2) -> 1292.97
B185: CONFORME PROJETO ESTRUTURAL ACDD-EST-080523-P31-R00-01_05
B186: CÓDIGO | C186: DESCRIÇÃO | D186: UN | E186: COEF. | F186: PREÇO | G186: TOTAL | H186: PREÇO | I186: TOTAL
B187: 89993 | C187: =IFERROR(VLOOKUP(B187,Sinapi,2,0),IFERROR(VLOOKUP(B187,Auxiliar,2,0),IFERROR(VLOOKUP(B187,Auxiliar,2,0),IFERROR(VLOOKUP(B187,MAPA,2,0), )))) -> GRAUTEAMENTO VERTICAL EM ALVENARIA ESTRUTURAL. AF_09/2021 | D187: =IFERROR(VLOOKUP(B187,Sinapi,3,0),IFERROR(VLOOKUP(B187,Auxiliar,3,0),IFERROR(VLOOKUP(B187,Auxiliar,3,0),IFERROR(VLOOKUP(B187,MAPA,3,0),)))) -> M3 | E187: 0.02 | F187: =IFERROR(VLOOKUP(B187,Sinapi,4,0),IFERROR(VLOOKUP(B187,Auxiliar,6,0),IFERROR(VLOOKUP(B187,MAPA,5,0),))) -> 972.22 | G187: =TRUNC(E187*F187,2) -> 19.44 | H187: =IFERROR(VLOOKUP(B187,Sinapi,5,0),IFERROR(VLOOKUP(B187,Auxiliar,8,0),IFERROR(VLOOKUP(B187,MAPA,5,0),))) -> 1020.16 | I187: =TRUNC(E187*H187,2) -> 20.4
B188: 87904 | C188: CHAPISCO APLICADO EM ALVENARIA (COM PRESENÇA DE VÃOS) E ESTRUTURAS DE CONCRETO DE FACHADA, COM COLHER DE PEDREIRO. ARGAMASSA TRAÇO 1:3 COM PREPARO MANUAL. AF_10/2022 | D188: M2 | E188: =(4*1.4*1)+(4*1*1) -> 9.6 | F188: 7.51 | G188: 72.09 | H188: 8.21 | I188: 78.81
B189: AUX.023 | C189: ALVENARIA DE BLOCOS DE CONCRETO ESTRUTURAL 19X19X39 CM (ESPESSURA 14 CM), FBK = 4,5 MPA, UTILIZANDO COLHER DE PEDREIRO. | D189: M2 | E189: =4*1.2*1 -> 4.8 | F189: 82.32 | G189: 395.13 | H189: 85.62 | I189: 410.97
B190: AUX.024 | C190: EMBOÇO OU MASSA ÚNICA EM ARGAMASSA TRAÇO 1:3, PREPARO COM BETONEIRA 400L, APLICADA MANUALMENTE EM PANOS DE FACHADA COM PRESENÇA DE VÃOS, ESPESSURA DE 25 MM. | D190: M2 | E190: =E188 -> 9.6 | F190: 46.04 | G190: 441.98 | H190: 49.73 | I190: 477.4
B191: 89996 | C191: ARMAÇÃO VERTICAL DE ALVENARIA ESTRUTURAL; DIÂMETRO DE 10,0 MM. AF_09/2021 | D191: KG | E191: 4.76 | F191: 12.41 | G191: 59.07 | H191: 12.67 | I191: 60.3
B192: CPU 132 | C192: INSTALAÇÃO E FORNECIMENTO DE PLACA PARA IDENTIFICAÇÃO DE LOGRADOURO EM CHAPA METÁLICA, NA COR AZUL, COM DIMENSÕES 45 X 20CM. | D192: UN | G192: =TRUNC(SUM(G195:G198),2) -> 92.42 | I192: =TRUNC(SUM(I195:I198),2) -> 93.41 | J192: =TRUNC(I192*(1+BDI!$C$17),2) -> 115.25
B193: REFERÊNCIA: BASEADA NA COMPOSIÇÃO 2555 ORSE/SE 04/2023
B194: CÓDIGO | C194: DESCRIÇÃO | D194: UN | E194: COEF. | F194: PREÇO | G194: TOTAL | H194: PREÇO | I194: TOTAL
B195: 13521 | C195: =IFERROR(VLOOKUP(B195,Sinapi,2,0),IFERROR(VLOOKUP(B195,Auxiliar,2,0),IFERROR(VLOOKUP(B195,Auxiliar,2,0),IFERROR(VLOOKUP(B195,MAPA,2,0), )))) -> PLACA DE ACO ESMALTADA PARA IDENTIFICACAO DE RUA, *45 CM X 20* CM | D195: =IFERROR(VLOOKUP(B195,Sinapi,3,0),IFERROR(VLOOKUP(B195,Auxiliar,3,0),IFERROR(VLOOKUP(B195,Auxiliar,3,0),IFERROR(VLOOKUP(B195,MAPA,3,0), )))) -> UN | E195: 1 | F195: =IFERROR(VLOOKUP(B195,Sinapi,4,0),IFERROR(VLOOKUP(B195,Auxiliar,6,0),IFERROR(VLOOKUP(B195,MAPA,5,0),))) -> 82.5 | G195: =TRUNC(E195*F195,2) -> 82.5 | H195: =IFERROR(VLOOKUP(B195,Sinapi,5,0),IFERROR(VLOOKUP(B195,Auxiliar,8,0),IFERROR(VLOOKUP(B195,MAPA,5,0),))) -> 82.5 | I195: =TRUNC(E195*H195,2) -> 82.5
B196: COT.035 | C196: =IFERROR(VLOOKUP(B196,Sinapi,2,0),IFERROR(VLOOKUP(B196,Auxiliar,2,0),IFERROR(VLOOKUP(B196,Auxiliar,2,0),IFERROR(VLOOKUP(B196,MAPA,2,0), )))) -> PARAFUSO SEXTAVADO ROSCA SOBERBA 1/4" X 30MM DE FERRO ZINCADO. | D196: =IFERROR(VLOOKUP(B196,Sinapi,3,0),IFERROR(VLOOKUP(B196,Auxiliar,3,0),IFERROR(VLOOKUP(B196,Auxiliar,3,0),IFERROR(VLOOKUP(B196,MAPA,3,0), )))) -> UN | E196: 4 | F196: =IFERROR(VLOOKUP(B196,Sinapi,4,0),IFERROR(VLOOKUP(B196,Auxiliar,6,0),IFERROR(VLOOKUP(B196,MAPA,5,0),))) -> 0.34 | G196: 1.36 | H196: =IFERROR(VLOOKUP(B196,Sinapi,5,0),IFERROR(VLOOKUP(B196,Auxiliar,8,0),IFERROR(VLOOKUP(B196,MAPA,5,0),))) -> 0.34 | I196: 1.36
B197: 88309 | C197: PEDREIRO COM ENCARGOS COMPLEMENTARES | D197: H | E197: 0.2 | F197: 23.69 | G197: 4.73 | H197: 26.51 | I197: 5.3
B198: 88316 | C198: SERVENTE COM ENCARGOS COMPLEMENTARES | D198: H | E198: 0.2 | F198: 19.15 | G198: 3.83 | H198: 21.28 | I198: 4.25
B199: 90695 | C199: TUBO DE PVC PARA REDE COLETORA DE ESGOTO DE PAREDE MACIÇA, DN 150 MM, JUNTA ELÁSTICA - ASSENTAMENTO. | D199: m | G199: =TRUNC(SUM(G202:G205),2) -> 95.81 | I199: =TRUNC(SUM(I202:I205),2) -> 4.81 | J199: =TRUNC(I199*(1+BDI!$C$17),2) -> 5.93
B200: sinapi
B201: CÓDIGO | C201: DESCRIÇÃO | D201: UN | E201: COEF. | F201: PREÇO | G201: TOTAL | H201: PREÇO | I201: TOTAL
B202: 88246 | C202: =IFERROR(VLOOKUP(B202,Sinapi,2,0),IFERROR(VLOOKUP(B202,Auxiliar,2,0),IFERROR(VLOOKUP(B202,Auxiliar,2,0),IFERROR(VLOOKUP(B202,MAPA,2,0), )))) -> ASSENTADOR DE TUBOS COM ENCARGOS COMPLEMENTARES | D202: =IFERROR(VLOOKUP(B202,Sinapi,3,0),IFERROR(VLOOKUP(B202,Auxiliar,3,0),IFERROR(VLOOKUP(B202,Auxiliar,3,0),IFERROR(VLOOKUP(B202,MAPA,3,0), )))) -> H | E202: 0.09 | F202: =IFERROR(VLOOKUP(B202,Sinapi,4,0),IFERROR(VLOOKUP(B202,Auxiliar,6,0),IFERROR(VLOOKUP(B202,MAPA,5,0),))) -> 26.26 | G202: =TRUNC(E202*F202,2) -> 2.36 | H202: =IFERROR(VLOOKUP(B202,Sinapi,5,0),IFERROR(VLOOKUP(B202,Auxiliar,8,0),IFERROR(VLOOKUP(B202,MAPA,5,0),))) -> 29.68 | I202: =TRUNC(E202*H202,2) -> 2.67
B203: 88316 | C203: SERVENTE COM ENCARGOS COMPLEMENTARES | D203: H | E203: 0.09 | F203: 19.15 | G203: 1.72 | H203: 21.28 | I203: 1.91
B204: 20078 | C204: PASTA LUBRIFICANTE PARA TUBOS E CONEXOES COM JUNTA ELASTICA, EMBALAGEM DE *400* GR (USO EM PVC, ACO, POLIETILENO E OUTROS) | D204: UN | E204: 0.01 | F204: 23.81 | G204: 0.23 | H204: 23.81 | I204: 0.23
... 1 more rows

Sheet CURVA
A1: CONTRATAÇÃO DE EXECUÇÃO DE PAVIMENTO ASFÁLTICO COM CBUQ, EM VIAS DE DIVERSOS MUNICÍPIOS DA REGIÃO METROPOLITANA DE RECIFE/PE, ÁREA DE ATUAÇÃO DA 15ª SUPERINTENDÊNCIA REGIONAL DA CODEVASF.
G2: SICRO: | H2: Pernambuco - Abril/2023
G3: SINAPI: | H3: 08/2023
G4: Data Base do Orçamento | H4: 2023-09-01
A5: CONTRATAÇÃO DE EXECUÇÃO DE PAVIMENTO ASFÁLTICO COM CBUQ, EM VIAS DE DIVERSOS MUNICÍPIOS DA REGIÃO METROPOLITANA DE RECIFE/PE, ÁREA DE ATUAÇÃO DA 15ª SUPERINTENDÊNCIA REGIONAL DA CODEVASF.
A6: ITEM | B6: ORIGEM COMPOSIÇÃO | C6: CÓDIGO COMPOSIÇÃO | D6: DISCRIMINAÇÃO DOS SERVIÇOS | E6: BDI % = | F6: 0.2339 | G6: BDI DIFERENCIADO% = | H6: 0.15
E7: UND | F7: QTDE | G7: PREÇO UNITÁRIO COM BDI | H7: PREÇO TOTAL COM BDI | I7: % | J7: % ACM
A8: 1 | B8: SICRO | C8: 5914389 | D8: Transporte com caminhão basculante de 10 m³ - rodovia pavimentada | E8: tkm | F8: 2964583.91 | G8: 0.95 | H8: =TRUNC(F8*G8,2) -> 2816354.71 | I8: =H8/$H$105 -> 0.1198134443 | J8: =I8 -> 0.1198134
A9: 2 | B9: SINAPI INS. | C9: 41782 | D9: TUBO CORRUGADO PEAD, PAREDE DUPLA, INTERNA LISA, JEI, DN/DI 600 MM, PARA SANEAMENTO (DRENAGEM/ESGOTO) | E9: m | F9: 1347.02 | G9: 1778.87 | H9: 2396173.46 | I9: 0.1019380813 | J9: =I9+J8 -> 0.2217515
A10: 3 | B10: SINAPI | C10: 95876 | D10: TRANSPORTE COM CAMINHÃO BASCULANTE DE 14 M³, EM VIA URBANA PAVIMENTADA, DMT ATÉ 30 KM | E10: m³xkm | F10: 863224.77 | G10: 2.64 | H10: 2278913.39 | I10: 0.09694959995 | J10: =I10+J9 -> 0.3187011
A11: 4 | B11: SICRO | C11: 2003939 | D11: Meio-fio de concreto - MFC 01 moldado no local com extrusora e concreto usinado - areia e brita comerciais | E11: m | F11: 14436.58 | G11: 87.64 | H11: 1265221.87 | I11: 0.05382510572 | J11: 0.3725262
A12: 5 | B12: SINAPI | C12: 96396 | D12: EXECUÇÃO E COMPACTAÇÃO DE BASE E OU SUB BASE PARA PAVIMENTAÇÃO DE BRITA GRADUADA SIMPLES - EXCLUSIVE CARGA E TRANSPORTE. AF_11/2019 | E12: m³ | F12: 5554.99 | G12: 214.19 | H12: 1189823.3 | I12: 0.05061749755 | J12: 0.4231437
A13: 6 | B13: Codevasf | C13: CPU-03 | D13: Administração Local | E13: % | F13: 1 | G13: 1089513.47 | H13: 1089513.47 | I13: 0.04635011384 | J13: 0.4694938
A14: 7 | B14: Codevasf.Aux | C14: CPU 079 | D14: EXECUÇÃO E COMPACTAÇÃO DE BASE E OU SUB BASE PARA PAVIMENTAÇÃO DE MACADAME HIDRÁULICO - EXCLUSIVE CARGA E TRANSPORTE. | E14: m³ | F14: 4578.26 | G14: 236.79 | H14: 1084086.18 | I14: 0.04611922591 | J14: 0.515613
A15: 8 | B15: SINAPI | C15: 94991 | D15: EXECUÇÃO DE PASSEIO (CALÇADA) OU PISO DE CONCRETO COM CONCRETO MOLDADO IN LOCO, USINADO C20, ACABAMENTO CONVENCIONAL, NÃO ARMADO. AF_08/2022 | E15: m³ | F15: 1176.2 | G15: 841.93 | H15: 990278.06 | I15: 0.04212843813 | J15: 0.5577414
A16: 9 | B16: CODEVASF | C16: CPU-13 | D16: AQUISIÇÃO DE CIMENTO ASFALTICO CAP 50/70 | E16: t | F16: 175.27 | G16: 5096.76 | H16: 893309.12 | I16: 0.03800318265 | J16: 0.5957446
A17: 10 | B17: Codevasf.Aux | C17: CPU 044 | D17: IMPLANTAÇÃO DE DISTRIBUIDOR, INCLUSIVE TUBULAÇÃO DE 50MM, CONEXÕES, ESCAVAÇÃO, ESCORAMENTO E ATERRO. | E17: M | F17: 6099.69 | G17: 128.61 | H17: 784481.13 | I17: 0.03337341913 | J17: 0.629118
A18: 11 | B18: SINAPI | C18: 92745 | D18: MURO DE GABIÃO, ENCHIMENTO COM PEDRA DE MÃO TIPO RACHÃO, DE GRAVIDADE, COM GAIOLAS DE COMPRIMENTO IGUAL A 2 M, PARA MUROS COM ALTURA MAIOR QUE 4 M E MENOR OU IGUAL A 6 M  FORNECIMENTO E EXECUÇÃO. AF_12/2015 | E18: M3 | F18: 708.98 | G18: 1022.64 | H18: 725031.3 | I18: 0.03084430272 | J18: 0.6599623
A19: 12 | B19: Codevasf.Aux | C19: CPU 051 | D19: CANALETA EM CONCRETO ARMADO NAS DIMENSÕES 0,40M X 0,40, INCLUINDO LAJE DE TAMPA COM 20CM, CONFORME PROJETO DE CÁLCULO ESTRUTURAL (LINHA D'ÁGUA - TAMPA COM FUROS DN 50MM) | E19: m | F19: 386.73 | G19: 1731.46 | H19: 669607.52 | I19: 0.02848646266 | J19: 0.6884488
A20: 13 | B20: SICRO | C20: 4011463 | D20: Execução de pavimento com aplicação de concreto asfáltico - faixa C - areia e brita comerciais | E20: t | F20: 2772 | G20: 235.7 | H20: 653360.4 | I20: 0.02779527721 | J20: 0.7162441
A21: 14 | B21: SINAPI INS. | C21: 41936 | D21: 'TUBO DE PVC PARA REDE COLETORA DE ESGOTO DE PAREDE MACIÇA, DN 150 MM, JUNTA ELÁSTICA - FORNECIMENTO | F21: 6159.44 | G21: 100.22 | H21: 617299.07 | I21: 0.02626115505 | J21: 0.7425053
A22: 15 | B22: SINAPI | C22: 94342 | D22: ATERRO MANUAL DE VALAS COM AREIA PARA ATERRO E COMPACTAÇÃO MECANIZADA. AF_05/2016 | E22: m³ | F22: 3990.23 | G22: 144.17 | H22: 575271.45 | I22: 0.02447321482 | J22: 0.7669785
A23: 16 | B23: Codevasf | C23: CPU-04 | D23: Canteiro de Obras e Almoxarifado | E23: % | F23: 1 | G23: 539392.47 | H23: 539392.47 | I23: 0.0229468502 | J23: 0.7899254
A24: 17 | B24: Codevasf.Aux | C24: CPU 102 | D24: CONSTRUÇÃO DE CAIXA COLETORA GAVETA EM ALVENARIA DE BLOCOS ESTRUTURAL DE CONCRETO 4,5 MPA, NAS DIMENSÕES INTERNAS 1,00 X 1,00 X 1,00 M, COM APLICAÇÃO DE CHAPISCO E EMBOÇO NAS FACES EXTERNAS E INTERNAS, INCLUINDO LAJE DE CONCRETO ARMADO DE 1,40 X 1,40 COM TAMPA REMOVÍVEL DE 0,80 X 0,80 M E CANTONEIRA DE AÇO, INCLUSIVE MEIO FIO DRENANTE CONFORME PROJETO. TIPO PARA VIAS LOCAIS. | E24: und | F24: 84 | G24: 4593.54 | H24: 385857.36 | I24: 0.01641515507 | J24: 0.8063406
A25: 18 | B25: SINAPI | C25: 95874 | D25: TRANSPORTE COM CAMINHÃO BASCULANTE DE 14 M³, EM VIA URBANA PAVIMENTADA, DMT ATÉ 30 KM (UNIDADE: M3XKM). AF_07/2020 | E25: M3XKM | F25: 29288.4 | G25: 12.49 | H25: 365812.11 | I25: 0.01556238946 | J25: =I25+J24 -> 0.821903
A26: 19 | B26: SINAPI | C26: 100983 | D26: CARGA, MANOBRA E DESCARGA DE ENTULHO EM CAMINHÃO BASCULANTE 14 M³ | E26: m³ | F26: 28723.89 | G26: 11.27 | H26: 323718.24 | I26: 0.01377163081 | J26: 0.8356746
A27: 20 | B27: Codevasf.Aux | C27: CPU 097 | D27: CONSTRUÇÃO DE CAIXA COLETORA GAVETA EM ALVENARIA DE BLOCOS ESTRUTURAL DE CONCRETO 4,5 MPA, NAS DIMENSÕES INTERNAS 1,00 X 1,00 X 1,00 M, COM APLICAÇÃO DE CHAPISCO E EMBOÇO NAS FACES EXTERNAS E INTERNAS, INCLUINDO LAJE DE CONCRETO ARMADO DE 1,40 X 1,40 COM TAMPA REMOVÍVEL DE 0,80 X 0,80 M E CANTONEIRA DE AÇO, INCLUSIVE MEIO FIO DRENANTE CONFORME PROJETO. TIPO PARA VIAS LOCAIS. | E27: und | F27: 41 | G27: 7292.45 | H27: 298990.45 | I27: 0.01271966045 | J27: 0.8483943
A28: 21 | B28: Codevasf.Aux | C28: CPU 055 | D28: DRENO BARBACÃ, DN 100 MM. | E28: M | F28: 5649.73 | G28: 49.05 | H28: 277119.25 | I28: 0.01178921522 | J28: 0.8601835
A29: 22 | B29: SINAPI | C29: 101572 | D29: ESCORAMENTO DE VALA, TIPO PONTALETEAMENTO, COM PROFUNDIDADE DE 1,5 A 3,0 M, LARGURA MENOR QUE 1,5 M. AF_08/2020 | E29: m² | F29: 11097.78 | G29: 23.23 | H29: 257801.42 | I29: 0.01096739553 | J29: 0.8711509
A30: 23 | B30: Codevasf.Aux | C30: CPU-036 | D30: CAIXA COM GRELHA DE FIBRA DE VIDRO (PRFV) SIMPLES RETANGULAR, ALVENARIA COM BLOCO DE CONCRETO 22X11X8CM, DE UMA VEZ, DIMENSÕES INTERNAS DE 0,72X0,30X1,00M | E30: und | F30: 79 | G30: 2887.51 | H30: 228113.29 | I30: 0.00970440224 | J30: 0.8808553
A31: 24 | B31: SINAPI INS. | C31: 41781 | D31: TUBO CORRUGADO PEAD, PAREDE DUPLA, INTERNA LISA, JEI, DN/DI *400* MM, PARA SANEAMENTO (DRENAGEM/ESGOTO) | E31: m | F31: 281.37 | G31: 804.82 | H31: 226452.2 | I31: 0.0096337361 | J31: =I31+J40 -> 0.9495349
A32: 25 | B32: Codevasf | C32: CPU-22 | D32: Fornecimento e montagem de tela de sinalização laranja (H=1,20m) | E32: m | F32: 9884.69 | G32: 19.81 | H32: 195815.7 | I32: 0.00833039722 | J32: =I32+J30 -> 0.8891857
A33: 26 | B33: Codevasf.Aux | C33: CPU 080 | D33: CAIXA ENTERRADA HIDRÁULICA RETANGULAR, EM ALVENARIA COM BLOCOS DE CONCRETO, DIMENSÕES INTERNAS: 0,4X0,4X0,4 M PARA REDE DE ESGOTO. | E33: UN | F33: 476 | G33: 409.4 | H33: 194874.4 | I33: 0.00829035241 | J33: 0.8974761
A34: 27 | B34: Codevasf.Aux | C34: CPU 041 | D34: ASSENTAMENTO DE GUIA (MEIO-FIO) EM TRECHO RETO, CONFECCIONADA EM CONCRETO PRÉ-FABRICADO, DIMENSÕES 100x15x30 CM (COMPRIMENTO X BASE INFERIOR X BASE SUPERIOR X ALTURA). | E34: M | F34: 1485.6 | G34: 118.18 | H34: 175568.2 | I34: 0.00746902749 | J34: 0.9049451
A35: 28 | B35: CODEVASF | C35: CPU-27 | D35: EXECUÇÃO DE PAVIMENTO EM PARALELEPÍPEDOS, REJUNTAMENTO COM ARGAMASSA TRAÇO 1:3 (CIMENTO E AREIA) - exclusive paralelo | E35: m² | F35: 3140.86 | G35: 55.22 | H35: 173438.28 | I35: 0.00737841637 | J35: 0.9123235
A36: 29 | B36: CODEVASF | C36: CPU-14 | D36: AQUISIÇÃO DE CM-30 | E36: t | F36: 25.5 | G36: 6302.73 | H36: 160719.61 | I36: 0.00683733834 | J36: 0.9191608
A37: 30 | B37: SICRO | C37: 5502166 | D37: Escavação, carga e transporte de material de 1ª categoria - DMT de 1.000 a 1.200 m - caminho de serviço pavimentado- com escavadeira e caminhão basculante de 14 m³ | E37: m³ | F37: 18711.42 | G37: 7.79 | H37: 145761.96 | I37: 0.00620100956 | J37: 0.9253618
A38: 31 | B38: CODEVASF | C38: CPU-17 | D38: TRANSPORTE CAP 50/70 | E38: t | F38: 175.27 | G38: 671.89 | H38: 117762.16 | I38: 0.00500984125 | J38: 0.9303716
A39: 32 | B39: Codevasf.Aux | C39: CPU 002 | D39: Suporte metálico galvanizado para placa de advertência ou regulamentação - lado ou diâmetro de 0,60 m - fornecimento e implantação | E39: m² | F39: 123.01 | G39: 918.49 | H39: 112983.45 | I39: 0.00480654523 | J39: 0.9351781
A40: 33 | B40: SINAPI INS. | C40: 4385 | D40: PARALELEPIPEDO GRANITICO OU BASALTICO, PARA PAVIMENTACAO, SEM FRETE (VARIACAO REGIONAL DE PECAS POR M2) | E40: mil | F40: 103.65 | G40: 1071.12 | H40: 111021.58 | I40: =H40/$H$105 -> 0.0047230833 | J40: 0.9399012
A41: 34 | B41: SINAPI INS. | C41: 41780 | D41: TUBO CORRUGADO PEAD, PAREDE DUPLA, INTERNA LISA, JEI, DN/DI 300 MM, PARA SANEAMENTO (DRENAGEM/ESGOTO) | E41: m | F41: 221.24 | G41: 496.59 | H41: 109865.57 | I41: 0.00467390429 | J41: =I41+J52 -> 0.9794053
A42: 35 | B42: SINAPI INS. | C42: 368 | D42: AREIA PARA ATERRO - POSTO JAZIDA/FORNECEDOR (RETIRADO NA JAZIDA, SEM TRANSPORTE) | E42: m³ | F42: 1127.64 | G42: 74.75 | H42: =TRUNC(F42*G42,2) -> 84291.09 | I42: 0.00358591401 | J42: =I42+J31 -> 0.9531208
A43: 36 | B43: Codevasf.Aux | C43: CPU 043 | D43: REBAIXAMENTO DE PENA D'ÁGUA, INCLUINDO COMPLEMENTO DE TUBULAÇÃO, CONEXÕES, ESCAVAÇÃO E REATERRO. | E43: UN | F43: 476 | G43: 148.49 | H43: 70681.24 | I43: 0.00300692337 | J43: 0.9561277
A44: 37 | B44: SICRO | C44: 5914351 | D44: Carga, manobra e descarga de agregados ou solos em caminhão basculante de 14 m³ - carga com carregadeira de 3,40 m³ e descarga livre | E44: t | F44: 22424.6 | G44: 3.08 | H44: 69067.76 | I44: 0.00293828266 | J44: 0.959066
A45: 38 | B45: SINAPI | C45: 102512 | D45: PINTURA DE EIXO VIÁRIO SOBRE ASFALTO COM TINTA RETRORREFLETIVA A BASE DE RESINA ACRÍLICA COM MICROESFERAS DE VIDRO, APLICAÇÃO MECÂNICA COM DEMARCADORA AUTOPROPELIDA. AF_05/2021 | E45: m | F45: 8504.39 | G45: 7.02 | H45: 59700.81 | I45: 0.0025397936 | J45: 0.9616058
A46: 39 | B46: Codevasf.Aux | C46: CPU 046 | D46: PISO TÁTIL DIRECIONAL E/OU ALERTA, DE CONCRETO, NA COR NATURAL P/PORTADORES DE DEFICIÊNCIA MOTORA OU VISUAL, DIMENSÕES 25X25CM, APLICADO COM ARGAMASSA INDUSTRIALIZADA AC-II, REJUNTADO, EXCLUSIVE REGULARIZAÇÃO DE BASE. | E46: M2 | F46: 282.03 | G46: 197.98 | H46: 55836.29 | I46: 0.00237538908 | J46: 0.9639812
A47: 40 | B47: Codevasf | C47: CPU-02 | D47: Atualização do projeto de drenagem e pavimentação - as built final | E47: m | F47: 4067.42 | G47: 13.3 | H47: 54096.68 | I47: 0.00230138254 | J47: 0.9662826
A48: 41 | B48: Codevasf.Aux | C48: 90695 | D48: TUBO DE PVC PARA REDE COLETORA DE ESGOTO DE PAREDE MACIÇA, DN 150 MM, JUNTA ELÁSTICA - ASSENTAMENTO. AF_01/2021 | E48: M | F48: 5866.13 | G48: 7.32 | H48: 42940.07 | I48: 0.00182675771 | J48: 0.9681094
A49: 42 | B49: Codevasf.Aux | C49: CPU 045 | D49: PISO TÁTIL DIRECIONAL E/OU ALERTA, DE CONCRETO, NA COR NATURAL, P/PORTADORES DE DEFICIÊNCIA MOTORA OU VISUAL, DIMENSÕES 40X40CM, APLICADO COM ARGAMASSA INDUSTRIALIZADA AC-II, REJUNTADO, EXCLUSIVE REGULARIZAÇÃO DE BASE. | E49: M2 | F49: 229.02 | G49: 179.68 | H49: 41150.31 | I49: 0.00175061769 | J49: 0.96986
A50: 43 | B50: SICRO | C50: 4011209 | D50: Reguarização e compactação so subleito | E50: m² | F50: 29818.53 | G50: 1.36 | H50: 40553.2 | I50: 0.00172521542 | J50: 0.9715852
A51: 44 | B51: SICRO | C51: 5213400 | D51: Pintura de faixa com tinta acrílica - espessura de 0,4 mm | E51: m² | F51: 971.97 | G51: 38.12 | H51: 37051.49 | I51: 0.00157624557 | J51: 0.9731614
A52: 45 | B52: SINAPI | C52: 90106 | D52: ESCAVAÇÃO MECANIZADA DE VALA COM PROFUNDIDADE ATÉ 1,5 M (MÉDIA MONTANTE E JUSANTE/UMA COMPOSIÇÃO POR TRECHO), RETROESCAV. (0,26 M3), LARGURA DE 0,8 M A 1,5 M, EM SOLO DE 1A CATEGORIA, LOCAIS COM BAIXO NÍVEL DE INTERFERÊNCIA. AF_02/2021 | E52: m³ | F52: 3650.25 | G52: 10.11 | H52: 36904.02 | I52: 0.0015699719 | J52: 0.9747314
A53: 46 | B53: CODEVASF | C53: CPU-15 | D53: AQUISIÇÃO DE EMULSÃO ASFÁLTICA RR-1C | E53: t | F53: 9.24 | G53: 3717.59 | H53: 34350.53 | I53: 0.00146134125 | J53: =I53+J41 -> 0.9808666
A54: 47 | B54: SINAPI | C54: 103696 | D54: FORNECIMENTO E INSTALAÇÃO DE SUPORTE DE MADEIRA PARA PLACAS DE SINALIZAÇÃO EM CONCRETO, COM H= DE 2,5 M E SEÇÃO DE 7,5 X 7,5 CM. AF_03/2022 | E54: und | F54: 193 | G54: 165.93 | H54: 32024.49 | I54: 0.00136238679 | J54: 0.982229
A55: 48 | B55: ORSE | C55: 9182 | D55: Demolição de concreto com martelete e compressor | E55: m³ | F55: 258.73 | G55: 117.8 | H55: 30478.39 | I55: 0.00129661256 | J55: 0.9835256
A56: 49 | B56: SINAPI | C56: 90747 | D56: ASSENTAMENTO DE TUBO DE PEAD CORRUGADO DE DUPLA PAREDE, DN 600 MM, JUNTA ELÁSTICA INTEGRADA (NÃO INCLUI FORNECIMENTO). AF_01/2021 | E56: m | F56: 1282.88 | G56: 22.84 | H56: 29300.97 | I56: 0.00124652272 | J56: 0.9847721
A57: 50 | B57: Codevasf | C57: CPU-16 | D57: Serviços topográficos para pavimentação, inclusive notas de serviços, acompanhamento e greide | E57: m² | F57: 44047.5 | G57: 0.55 | H57: 24226.12 | I57: 0.0010306283 | J57: 0.9858027
A58: 51 | B58: SINAPI | C58: 100974 | D58: CARGA, MANOBRA E DESCARGA DE SOLOS E MATERIAIS GRANULARES EM CAMINHÃO BASCULANTE 10 M³ - CARGA COM PÁ CARREGADEIRA (CAÇAMBA DE 1,7 A 2,8 M³ / 128 HP) E DESCARGA LIVRE (UNIDADE: M3). AF_07/2020 | E58: M3 | F58: 1952.56 | G58: 11.19 | H58: 21849.14 | I58: 0.00092950675 | J58: 0.9867322
A59: 52 | B59: SINAPI | C59: 97624 | D59: Demolição manual de alvenaria de tijolo maciço (s/ reaproveitamento) | E59: m³ | F59: 162.83 | G59: 128.58 | H59: 20936.68 | I59: 0.00089068885 | J59: 0.9876229
A60: 53 | B60: Codevasf | C60: CPU-01 | D60: Placa de Obra em Chapa de Aço Galvanizado | E60: und | F60: 14 | G60: 1387.73 | H60: 19428.22 | I60: 0.0008265159 | J60: 0.9884494
A61: 54 | B61: SINAPI INS. | C61: 36170 | D61: BLOQUETE/PISO INTERTRAVADO DE CONCRETO - MODELO ONDA/16 FACES/RETANGULAR/TIJOLINHO/PAVER/HOLANDES/PARALELEPIPEDO, *22 CM X 11* CM, E = 8 CM, RESISTENCIA DE 35 MPA (NBR 9781), COR NATURAL | E61: m² | F61: 279.33 | G61: 62.8 | H61: 17541.92 | I61: 0.00074626887 | J61: 0.9891957
A62: 55 | B62: SINAPI | C62: 97084 | D62: COMPACTAÇÃO MECÂNICA DE SOLO PARA EXECUÇÃO DE RADIER, PISO DE CONCRETO OU LAJE SOBRE SOLO, COM COMPACTADOR DE SOLOS TIPO PLACA VIBRATÓRIA. AF_09/2021 | E62: m² | F62: 19965.8 | G62: 0.83 | H62: 16571.61 | I62: 0.00070498992 | J62: 0.9899007
A63: 56 | B63: SINAPI | C63: 97906 | D63: CAIXA ENTERRADA HIDRÁULICA RETANGULAR, EM ALVENARIA COM BLOCOS DE CONCRETO, DIMENSÕES INTERNAS: 0,6X0,6X0,6 M PARA REDE DE ESGOTO. AF_12/2020 | E63: UN | F63: 29 | G63: 536.39 | H63: 15555.31 | I63: 0.00066175445 | J63: 0.9905625
A64: 57 | B64: ORSE | C64: 21 | D64: Demolição de meio-fio granítico ou pre-moldado | E64: m | F64: 1086.14 | G64: 14.26 | H64: 15488.35 | I64: 0.00065890584 | J64: 0.9912214
A65: 58 | B65: CODEVASF | C65: CPU-18 | D65: TRANSPORTE DE CM-30 | E65: t | F65: 25.5 | G65: 536.75 | H65: 13687.12 | I65: 0.00058227786 | J65: 0.9918037
A66: 59 | B66: SINAPI | C66: 90105 | D66: ESCAVAÇÃO MECANIZADA DE VALA COM PROFUNDIDADE ATÉ 1,5 M (MÉDIA MONTANTE E JUSANTE/UMA COMPOSIÇÃO POR TRECHO), RETROESCAV. (0,26 M3), LARGURA MENOR QUE 0,8 M, EM SOLO DE 1A CATEGORIA, LOCAIS COM BAIXO NÍVEL DE INTERFERÊNCIA. AF_02/2021 | E66: M3 | F66: 1034 | G66: 11.87 | H66: 12273.58 | I66: 0.000522143 | J66: 0.9923258
A67: 60 | B67: SINAPI | C67: 102716 | D67: ENCHIMENTO DE AREIA PARA DRENO, LANÇAMENTO MECANIZADO. AF_07/2021 | E67: M3 | F67: 57.04 | G67: 212.32 | H67: 12110.73 | I67: 0.00051521503 | J67: 0.992841
A68: 61 | B68: SINAPI | C68: 90091 | D68: ESCAVAÇÃO MECANIZADA DE VALA COM PROF. ATÉ 1,5 M (MÉDIA MONTANTE E JUSANTE/UMA COMPOSIÇÃO POR TRECHO), ESCAVADEIRA (0,8 M3), LARG. DE 1,5 M A 2,5 M, EM SOLO DE 1A CATEGORIA, LOCAIS COM BAIXO NÍVEL DE INTERFERÊNCIA. AF_02/2021 | E68: m³ | F68: 1353.72 | G68: 7.96 | H68: 10775.61 | I68: 0.00045841632 | J68: 0.9932994
A69: 62 | B69: SICRO | C69: 4011351 | D69: Imprimação com asfalto diluído | E69: m² | F69: 23100 | G69: 0.46 | H69: 10626 | I69: 0.0004520516 | J69: 0.9937515
A70: 63 | B70: SINAPI | C70: 96386 | D70: EXECUÇÃO E COMPACTAÇÃO DE ATERRO COM SOLO PREDOMINANTEMENTE ARENOSO - EXCLUSIVE SOLO, ESCAVAÇÃO, CARGA E TRANSPORTE. AF_11/2019 | E70: m³ | F70: 902.11 | G70: 11.55 | H70: 10419.37 | I70: 0.00044326114 | J70: 0.9941948
A71: 64 | B71: SINAPI | C71: 102717 | D71: ENCHIMENTO DE BRITA PARA DRENO, LANÇAMENTO MECANIZADO. AF_07/2021 | E71: M3 | F71: 57.04 | G71: 169.8 | H71: 9685.39 | I71: 0.00041203614 | J71: 0.9946068
A72: 65 | B72: Codevasf.Aux | C72: CPU 112 | D72: ACRÉSCIMO PARA POÇO DE VISITA RETANGULAR PARA DRENAGEM, EM ALVENARIA COM BLOCOS DE CONCRETO, DIMENSÕES INTERNAS = 1,0X1,0M. | E72: m | F72: 5.7 | G72: 1595.4 | H72: =TRUNC(F72*G72,2) -> 9093.78 | I72: =H72/$H$105 -> 0.00038686785 | J72: 0.9949937
A73: 66 | B73: Codevasf.Aux | C73: CPU 048 | D73: EXECUÇÃO DE CAIXA DE LIGAÇÃO PARA CANALETA EM ALVENARIA DE BLOCO DE CONCRETO 20X10X10, ASSENTADOS SOBRE LAJE DE CONCRETO ARMADO FCK 15 MPA, DIMENSÕES INTERNAS DE 40X40CM, REVESTIDO COM CHAPISCO E EMBOÇO, COM FUNDO EM LASTRO DE CONCRETO. | E73: und | F73: 4 | G73: 2251.26 | H73: 9005.04 | I73: 0.00038309267 | J73: 0.9953768
A74: 67 | B74: SICRO | C74: 4011353 | D74: Pintura de ligação | E74: m² | F74: 23100 | G74: 0.35 | H74: 8085 | I74: =H74/$H$105 -> 0.00034395231 | J74: =I74+J73 -> 0.9957208
A75: 68 | B75: CODEVASF | C75: CPU-26 | D75: EXECUÇÃO DE PAVIMENTO EM PISO INTERTRAVADO | E75: m² | F75: 275.72 | G75: 26.46 | H75: 7295.55 | I75: 0.0003103675 | J75: 0.9960312
A76: 69 | B76: SINAPI | C76: 94968 | D76: CONCRETO MAGRO PARA LASTRO, TRAÇO 1:4,5:4,5 (EM MASSA SECA DE CIMENTO/ AREIA MÉDIA/ BRITA 1) - PREPARO MECÂNICO COM BETONEIRA 600 L. AF_05/2021 | E76: M3 | F76: 14.63 | G76: 497.01 | H76: 7271.25 | I76: 0.00030933373 | J76: 0.9963405
A77: 70 | B77: ORSE | C77: 3258 | D77: Demolição de piso em lajota | E77: m² | F77: 375.14 | G77: 18.37 | H77: 6891.32 | I77: 0.00029317074 | J77: 0.9966337
A78: 71 | B78: SICRO | C78: 5914366 | D78: Transporte de cimento ou cal hidratada a granel com caminhão silo de 30 m³ - rodovia pavimentada | E78: tkm | F78: 9534.13 | G78: 0.72 | H78: 6864.57 | I78: 0.00029203274 | J78: 0.9969257
A79: 72 | B79: Codevasf.Aux | C79: CPU 132 | D79: INSTALAÇÃO E FORNECIMENTO DE PLACA PARA IDENTIFICAÇÃO DE LOGRADOURO EM CHAPA METÁLICA, NA COR AZUL, COM DIMENSÕES 45 X 20CM. | E79: und | F79: 48 | G79: 142.21 | H79: 6826.08 | I79: 0.00029039529 | J79: 0.9972161
A80: 73 | B80: SINAPI | C80: 99061 | D80: LOCAÇÃO COM CAVALETE COM ALTURA DE 0,50 M - 2 UTILIZAÇÕES. AF_10/2018 | E80: UND | F80: 48 | G80: 133 | H80: 6384 | I80: 0.00027158831 | J80: 0.9974877
A81: 74 | B81: SINAPI | C81: 101586 | D81: ESCORAMENTO DE VALA, TIPO CONTÍNUO, COM PROFUNDIDADE DE 3,0 A 4,5 M, LARGURA MENOR QUE 1,5 M. AF_08/2020 | E81: M2 | F81: 97.79 | G81: 64.13 | H81: 6271.27 | I81: 0.00026679255 | J81: 0.9977545
A82: 75 | B82: CODEVASF | C82: CPU-19 | D82: TRANSPORTE RR-1C | E82: t | F82: 9.24 | G82: 676.86 | H82: 6254.18 | I82: 0.00026606551 | J82: 0.9980206
A83: 76 | B83: SINAPI | C83: 102738 | D83: BOCA PARA BUEIRO SIMPLES TUBULAR D = 60 CM EM CONCRETO, ALAS COM ESCONSIDADE DE 0°, INCLUINDO FÔRMAS E MATERIAIS. AF_07/2021 | E83: und | F83: 2 | G83: 2800.37 | H83: 5600.74 | I83: 0.00023826684 | J83: 0.9982589
A84: 77 | B84: CODEVASF | C84: CPU-28 | D84: TRANSPORTE COM CAMINHÃO CARROCERIA COM GUINDAUTO (MUNCK), MOMENTO MÁXIMO DE CARGA 11,7 TM, EM VIA URBANA PAVIMENTADA, DMT ATÉ 30KM (UNIDADE: TXKM). AF_07/2020 | E84: TXKM | F84: 1320 | G84: 3.57 | H84: 4712.4 | I84: 0.00020047506 | J84: 0.9984594
A85: 78 | B85: ORSE | C85: 7989 | D85: Demolição de pavimentação em paralelepípedo sem reaproveitamento | E85: m² | F85: 237.34 | G85: 17.09 | H85: 4056.14 | I85: 0.00017255643 | J85: 0.998632
A86: 79 | B86: SINAPI | C86: 102312 | D86: ESCAVAÇÃO MECANIZADA DE VALA COM PROF. DE 3,0 M ATÉ 4,5 M (MÉDIA MONTANTE E JUSANTE/UMA COMPOSIÇÃO POR TRECHO), ESCAVADEIRA (1,2 M3), LARG. DE 1,5 M A 2,5 M, EM SOLO DE 2A CATEGORIA, EM LOCAIS COM ALTO NÍVEL DE INTERFERÊNCIA. AF_02/2021 | E86: M3 | F86: 250.6 | G86: 15.37 | H86: 3851.72 | I86: 0.00016385998 | J86: 0.9987959
A87: 80 | B87: SINAPI | C87: 100974 | D87: CARGA, MANOBRA E DESCARGA DE SOLOS E MATERIAIS GRANULARES EM CAMINHÃO BASCULANTE 10 M³ - CARGA COM PÁ CARREGADEIRA (CAÇAMBA DE 1,7 A 2,8 M³ / 128 HP) E DESCARGA LIVRE (UNIDADE: M3). AF_07/2020 | E87: M3 | F87: 324.89 | G87: 11.19 | H87: 3635.51 | I87: 0.00015466197 | J87: 0.9989506
A88: 81 | B88: SINAPI | C88: 97634 | D88: Demolição de revestimento cerâmico com martele (sem reaproveitamento) | E88: m² | F88: 212.69 | G88: 15.88 | H88: 3377.51 | I88: 0.00014368613 | J88: 0.9990943
A89: 82 | B89: SINAPI | C89: 97629 | D89: Demolição de lajes com martele (sem reaproveitamento) | E89: m³ | F89: 19.17 | G89: 172.39 | H89: 3304.71 | I89: 0.00014058907 | J89: 0.9992349
A90: 83 | B90: SINAPI | C90: 96620 | D90: LASTRO DE CONCRETO MAGRO, APLICADO EM PISOS, LAJES SOBRE SOLO OU RADIERS. AF_08/2017 | E90: M3 | F90: 3.48 | G90: 778.39 | H90: 2708.79 | I90: 0.00011523742 | J90: 0.9993501
A91: 84 | B91: SINAPI | C91: 98504 | D91: PLANTIO DE GRAMA BATATAIS EM PLACAS. AF_05/2018 | E91: M2 | F91: 141.09 | G91: 18.89 | H91: 2665.19 | I91: 0.00011338259 | J91: 0.9994635
A92: 85 | B92: SINAPI | C92: 101584 | D92: ESCORAMENTO DE VALA, TIPO CONTÍNUO, COM PROFUNDIDADE DE 1,5 M A 3,0 M, LARGURA MENOR QUE 1,5 M. AF_08/2020 | E92: M2 | F92: 33.15 | G92: 73.26 | H92: 2428.56 | I92: 0.00010331587 | J92: 0.9995668
A93: 86 | B93: SICRO | C93: 5503041 | D93: Compactação de aterros a 100% do Proctor intermediário | E93: m³ | F93: 210.41 | G93: 9.98 | H93: 2099.89 | I93: 8.933358e-05 | J93: 0.9996561
A94: 87 | B94: ORSE | C94: 4801 | D94: Demolição de piso em pedra calcárea | E94: m² | F94: 39.94 | G94: 37.04 | H94: 1479.37 | I94: 6.29354e-05 | J94: 0.999719
A95: 88 | B95: SINAPI | C95: 90746 | D95: ASSENTAMENTO DE TUBO DE PEAD CORRUGADO DE DUPLA PAREDE, DN 450 MM, JUNTA ELÁSTICA INTEGRADA (NÃO INCLUI FORNECIMENTO). AF_01/2021 | E95: m | F95: 267.97 | G95: 5.11 | H95: 1369.32 | I95: 5.825365e-05 | J95: 0.9997773
A96: 89 | B96: SICRO | C96: 5213383 | D96: Cavalete zebrado | E96: unid.dia | F96: 836 | G96: 1.04 | H96: 869.44 | I96: 3.698774e-05 | J96: 0.9998143
A97: 90 | B97: SICRO | C97: 5213835 | D97: Cone plastico para sinalização | E97: unid.dia | F97: 836 | G97: 1.01 | H97: 844.36 | I97: 3.592079e-05 | J97: 0.9998502
A98: 91 | B98: SINAPI | C98: 93382 | D98: REATERRO MANUAL DE VALAS COM COMPACTAÇÃO MECANIZADA. AF_04/2016 | E98: M3 | F98: 23.77 | G98: 32.78 | H98: 779.18 | I98: 3.31479e-05 | J98: 0.9998833
A99: 92 | B99: SINAPI | C99: 94872 | D99: ASSENTAMENTO DE TUBO DE PEAD CORRUGADO DE DUPLA PAREDE, DN 300 MM, JUNTA ELÁSTICA INTEGRADA (NÃO INCLUI FORNECIMENTO). AF_01/2021 | E99: m | F99: 210.7 | G99: 3.41 | H99: 718.48 | I99: 3.05656e-05 | J99: 0.9999139
A100: 93 | B100: SINAPI | C100: 98520 | D100: APLICAÇÃO DE ADUBO EM SOLO. AF_05/2018 | E100: M2 | F100: 141.16 | G100: 5.05 | H100: 712.85 | I100: 3.032609e-05 | J100: 0.9999442
A101: 94 | B101: Codevasf | C101: CPU-23 | D101: Fornecimento e implantação de cavalete de sinalização de obras | E101: UND | F101: 35 | G101: 17.13 | H101: 599.55 | I101: 2.550607e-05 | J101: 0.9999697
A102: 95 | B102: SINAPI | C102: 90102 | D102: ESCAVAÇÃO MECANIZADA DE VALA COM PROF. MAIOR QUE 1,5 M ATÉ 3,0 M (MÉDIA MONTANTE E JUSANTE/UMA COMPOSIÇÃO POR TRECHO), RETROESCAV. (0,26 M3), LARGURA DE 0,8 M A 1,5 M, EM SOLO DE 1A CATEGORIA, EM LOCAIS COM ALTO NÍVEL DE INTERFERÊNCIA. AF_02/2021 | E102: M3 | F102: 33.08 | G102: 16.46 | H102: 544.49 | I102: 2.316371e-05 | J102: 0.9999929
A103: 96 | B103: SINAPI | C103: 98530 | D103: Corte raso e recorte de árvore | E103: und | F103: 1 | G103: 152.74 | H103: 152.74 | I103: 6.49787e-06 | J103: 0.9999994
A104: 97 | B104: SICRO | C104: 5914479 | D104: Transporte com caminhão carroceria de 15 t - rodovia pavimentada | E104: tkm | F104: 20.96 | G104: 0.88 | H104: =TRUNC(F104*G104,2) -> 18.44 | I104: 7.8448e-07 | J104: 1.0000002
A105: VALOR TOTAL DO SRP | H105: =INT(SUM(H8:H104)) -> 23506166

Sheet MOMENTO DE TRANSPORTE - PRINC
B1: ESTADO: | C1: Pernambuco | D1: DATA BASE: | E1: 2023-09-01
D3: TIPO (P, RP ou LN) | E3: DMT ESTIMADA
D4: P | E4: 80
C5: RESUMO DO TRANSPORTE PRINCIPAL
B6: CODIGO | C6: DESCRIÇÃO | D6: TKM
B7: 5914359 | C7: =VLOOKUP(B7,'[5]SINTÉTICO SICRO'!$A:$D,2,0) -> Transporte com caminhão basculante de 10 m³ - rodovia em leito natural | D7: =ROUND(SUMIF('MOMENTO DE TRANSPORTE - PRINC'!A:A,B7,'MOMENTO DE TRANSPORTE - PRINC'!K:K),2) -> 0
B8: 5914374 | C8: =VLOOKUP(B8,'[5]SINTÉTICO SICRO'!$A:$D,2,0) -> Transporte com caminhão basculante de 10 m³ - rodovia em revestimento primário | D8: =ROUND(SUMIF('MOMENTO DE TRANSPORTE - PRINC'!A:A,B8,'MOMENTO DE TRANSPORTE - PRINC'!K:K),2) -> 0
B9: 5914389 | C9: =VLOOKUP(B9,'[5]SINTÉTICO SICRO'!$A:$D,2,0) -> Transporte com caminhão basculante de 10 m³ - rodovia pavimentada | D9: =ROUND(SUMIF('MOMENTO DE TRANSPORTE - PRINC'!A:A,B9,'MOMENTO DE TRANSPORTE - PRINC'!K:K),2) -> 3780158
B10: 5914449 | C10: =VLOOKUP(B10,'[5]SINTÉTICO SICRO'!$A:$D,2,0) -> Transporte com caminhão carroceria de 15 t - rodovia em leito natural | D10: =ROUND(SUMIF('MOMENTO DE TRANSPORTE - PRINC'!A:A,B10,'MOMENTO DE TRANSPORTE - PRINC'!K:K),2) -> 0
B11: 5914464 | C11: =VLOOKUP(B11,'[5]SINTÉTICO SICRO'!$A:$D,2,0) -> Transporte com caminhão carroceria de 15 t - rodovia em revestimento primário | D11: =ROUND(SUMIF('MOMENTO DE TRANSPORTE - PRINC'!A:A,B11,'MOMENTO DE TRANSPORTE - PRINC'!K:K),2) -> 0
B12: 5914479 | C12: =VLOOKUP(B12,'[5]SINTÉTICO SICRO'!$A:$D,2,0) -> Transporte com caminhão carroceria de 15 t - rodovia pavimentada | D12: =ROUND(SUMIF('MOMENTO DE TRANSPORTE - PRINC'!A:A,B12,'MOMENTO DE TRANSPORTE - PRINC'!K:K),2) -> 0
B13: 5914364 | C13: =VLOOKUP(B13,'[5]SINTÉTICO SICRO'!$A:$D,2,0) -> Transporte de cimento ou cal hidratada a granel com caminhão silo de 30 m³ - rodovia em leito natural | D13: =ROUND(SUMIF('MOMENTO DE TRANSPORTE - PRINC'!A:A,B13,'MOMENTO DE TRANSPORTE - PRINC'!K:K),2) -> 0
B14: 5914365 | C14: =VLOOKUP(B14,'[5]SINTÉTICO SICRO'!$A:$D,2,0) -> Transporte de cimento ou cal hidratada a granel com caminhão silo de 30 m³ - rodovia em revestimento primário | D14: =ROUND(SUMIF('MOMENTO DE TRANSPORTE - PRINC'!A:A,B14,'MOMENTO DE TRANSPORTE - PRINC'!K:K),2) -> 0
B15: 5914366 | C15: =VLOOKUP(B15,'[5]SINTÉTICO SICRO'!$A:$D,2,0) -> Transporte de cimento ou cal hidratada a granel com caminhão silo de 30 m³ - rodovia pavimentada | D15: =ROUND(SUMIF('MOMENTO DE TRANSPORTE - PRINC'!A:A,B15,'MOMENTO DE TRANSPORTE - PRINC'!K:K),2) -> 0
B17: PRINCIPAL
B19: SISTEMA DE CUSTOS REFERENCIAIS DE OBRAS - SICRO | E19: =$C$1 -> Pernambuco
B20: Custo Unitário de Referência | E20: =$E$1 -> 2023-09-01 | I20: Quantitativo | K20: t
B21: 4011463 | C21: Concreto asfáltico - faixa C - areia e brita comerciais | I21: =SUMIF('RESUMO MODULO TOTAL'!C:C,B21,'RESUMO MODULO TOTAL'!F:F) -> 5285.7
B22: D - ATIVIDADES AUXILIARES | D22: Quantidade | E22: Unidade
B23: 6416078 | C23: Usinagem de concreto asfáltico - faixa C - areia e brita comerciais | D23: 1.02 | E23: t
B25: F - MOMENTO DE TRANSPORTE | D25: Quantidade | E25: Unidade | F25: CÓDIGO TRANSPORTE
F26: LN | G26: RP | H26: P | I26: TIPO (P, RP ou LN) | J26: DMT ESTIMADA (km) | K26: QUANTITATIVO TOTAL DE TRANSPORTE (tkm)
A27: =IF(I27="P",H27,IF(I27="RP",G27,IF(I27="LN",F27,""))) -> 5914389 | B27: 6416078 | C27: Usinagem de concreto asfáltico - faixa C - areia e brita comerciais - Caminhão basculante 10 m³ | D27: 1.02 | E27: tkm | F27: 5914359 | G27: 5914374 | H27: 5914389 | I27: P | J27: =E4 -> 80 | K27: =IF(ISBLANK(J27),"",J27*D27)*I21 -> 431313.12
B29: Obs.
B32: SISTEMA DE CUSTOS REFERENCIAIS DE OBRAS - SICRO | E32: =$C$1 -> Pernambuco
B33: Custo Unitário de Referência | E33: =$E$1 -> 2023-09-01 | I33: Quantitativo | K33: m³
B34: 4011256 | C34: Base estabilizada granulometricamente com mistura solo brita (70% - 30%) na pista com material de jazida e brita comercial | I34: =SUMIF('RESUMO MODULO TOTAL'!C:C,B34,'RESUMO MODULO TOTAL'!F:F) -> 0
B35: D - ATIVIDADES AUXILIARES | D35: Quantidade | E35: Unidade
B36: 4016096 | C36: Escavação e carga de material de jazida com escavadeira hidráulica de 1,56 m³ | D36: 0.77019 | E36: m³
B38: F - MOMENTO DE TRANSPORTE | D38: Quantidade | E38: Unidade | F38: CÓDIGO TRANSPORTE
F39: LN | G39: RP | H39: P | I39: TIPO (P, RP ou LN) | J39: DMT ESTIMADA (km) | K39: QUANTITATIVO TOTAL DE TRANSPORTE (tkm)
A40: =IF(I40="P",H40,IF(I40="RP",G40,IF(I40="LN",F40,""))) -> 5914389 | B40: 4016096 | C40: Escavação e carga de material de jazida com escavadeira hidráulica de 1,56 m³ - Caminhão basculante 10 m³ | D40: 1.44411 | E40: tkm | F40: 5914359 | G40: 5914374 | H40: 5914389 | I40: P | J40: =E4 -> 80 | K40: =IF(ISBLANK(J40),"",J40*D40)*$I$34 -> 0
A41: =IF(I41="P",H41,IF(I41="RP",G41,IF(I41="LN",F41,""))) -> 5914389 | B41: M0191 | C41: Brita 1 - Caminhão basculante 10 m³ | D41: 0.6189 | E41: tkm | F41: 5914359 | G41: 5914374 | H41: 5914389 | I41: P | J41: =E4 -> 80 | K41: =IF(ISBLANK(J41),"",J41*D41)*$I$34 -> 0
B42: Obs.
B44: SISTEMA DE CUSTOS REFERENCIAIS DE OBRAS - SICRO | E44: =$C$1 -> Pernambuco
B45: Custo Unitário de Referência | E45: =$E$1 -> 2023-09-01 | I45: Quantitativo | K45: m³
B46: 5914351 | C46: Carga, manobra e descarga de agregados ou solos em caminhão basculante de 14 m³ - carga com carregadeira de 3,40 m³ e descarga livre | I46: =SUMIF('RESUMO MODULO TOTAL'!C:C,B46,'RESUMO MODULO TOTAL'!F:F) -> 22424.6
B47: D - ATIVIDADES AUXILIARES | D47: Quantidade | E47: Unidade
B48: 4016096 | C48: Escavação e carga de material de jazida com escavadeira hidráulica de 1,56 m³ | D48: 0.77019 | E48: m³
B50: F - MOMENTO DE TRANSPORTE | D50: Quantidade | E50: Unidade | F50: CÓDIGO TRANSPORTE
F51: LN | G51: RP | H51: P | I51: TIPO (P, RP ou LN) | J51: DMT ESTIMADA (km) | K51: QUANTITATIVO TOTAL DE TRANSPORTE (tkm)
A52: =IF(I52="P",H52,IF(I52="RP",G52,IF(I52="LN",F52,""))) -> 5914389 | B52: 4016096 | C52: Escavação e carga de material de jazida com escavadeira hidráulica de 1,56 m³ - Caminhão basculante 10 m³ | D52: 1.44411 | E52: tkm | F52: 5914359 | G52: 5914374 | H52: 5914389 | I52: P | J52: =E4 -> 80 | K52: =IF(ISBLANK(J52),"",J52*D52)*I46 -> 2590687.13
A53: =IF(I53="P",H53,IF(I53="RP",G53,IF(I53="LN",F53,""))) -> 5914389 | B53: M0191 | C53: Brita 1 - Caminhão basculante 10 m³ | D53: 0.6189 | E53: tkm | F53: 5914359 | G53: 5914374 | H53: 5914389 | I53: P | J53: =E4 -> 80 | K53: 758157.75
B54: Obs.
B56: SISTEMA DE CUSTOS REFERENCIAIS DE OBRAS - SICRO | E56: =$C$1 -> Pernambuco
B57: Custo Unitário de Referência | E57: =$E$1 -> 2023-09-01 | I57: Quantitativo | K57: m
B58: 2003939 | C58: Meio-fio de concreto - MFC 01 moldado no local com extrusora e concreto usinado - areia e brita comerciais | I58: =SUMIF('RESUMO MODULO TOTAL'!C:C,B58,'RESUMO MODULO TOTAL'!F:F) -> 14436.58
B59: D - ATIVIDADES AUXILIARES | D59: Quantidade | E59: Unidade
B60: 1107928 | C60: Concreto fck = 20 MPa - confecção em betoneira e lançamento manual - areia e brita comerciais | D60: 0.1025 | E60: m³
B61: 2003842 | C61: Enchimento de junta de concreto com argamassa asfáltica de densidade 1.700 kg/m³ - espessura de 1 cm | D61: 0.1452 | E61: kg
B62: 4805750 | C62: Escavação manual em material de 1ª categoria na profundidade de até 1 m | D62: 0.0975 | E62: m³
B65: F - MOMENTO DE TRANSPORTE | D65: Quantidade | E65: Unidade | F65: CÓDIGO TRANSPORTE
F66: LN | G66: RP | H66: P | I66: TIPO (P, RP ou LN) | J66: DMT ESTIMADA (km) | K66: QUANTITATIVO TOTAL DE TRANSPORTE (tkm)

Sheet MOMENTO DE TRANSPORTE - AUX
B2: AUXILIAR | D2: 30
B3: RESUMO DO TRANSPORTE AUXILIAR
B4: CODIGO | C4: DESCRIÇÃO | D4: TKM
B5: 5914359 | C5: =VLOOKUP(B5,'[5]SINTÉTICO SICRO'!$A:$D,2,0) -> Transporte com caminhão basculante de 10 m³ - rodovia em leito natural | D5: =ROUND(SUMIF(A:A,B5,K:K),2) -> 0
B6: 5914374 | C6: =VLOOKUP(B6,'[5]SINTÉTICO SICRO'!$A:$D,2,0) -> Transporte com caminhão basculante de 10 m³ - rodovia em revestimento primário | D6: 0
B7: 5914389 | C7: =VLOOKUP(B7,'[5]SINTÉTICO SICRO'!$A:$D,2,0) -> Transporte com caminhão basculante de 10 m³ - rodovia pavimentada | D7: 273743.12
B8: 5914449 | C8: =VLOOKUP(B8,'[5]SINTÉTICO SICRO'!$A:$D,2,0) -> Transporte com caminhão carroceria de 15 t - rodovia em leito natural | D8: 0
B9: 5914464 | C9: =VLOOKUP(B9,'[5]SINTÉTICO SICRO'!$A:$D,2,0) -> Transporte com caminhão carroceria de 15 t - rodovia em revestimento primário | D9: 0
B10: 5914479 | C10: =VLOOKUP(B10,'[5]SINTÉTICO SICRO'!$A:$D,2,0) -> Transporte com caminhão carroceria de 15 t - rodovia pavimentada | D10: 62.89
B11: 5914364 | C11: =VLOOKUP(B11,'[5]SINTÉTICO SICRO'!$A:$D,2,0) -> Transporte de cimento ou cal hidratada a granel com caminhão silo de 30 m³ - rodovia em leito natural | D11: 0
B12: 5914365 | C12: =VLOOKUP(B12,'[5]SINTÉTICO SICRO'!$A:$D,2,0) -> Transporte de cimento ou cal hidratada a granel com caminhão silo de 30 m³ - rodovia em revestimento primário | D12: 0
B13: 5914366 | C13: =VLOOKUP(B13,'[5]SINTÉTICO SICRO'!$A:$D,2,0) -> Transporte de cimento ou cal hidratada a granel com caminhão silo de 30 m³ - rodovia pavimentada | D13: 24239.8
B15: SISTEMA DE CUSTOS REFERENCIAIS DE OBRAS - SICRO | E15: ='MOMENTO DE TRANSPORTE - PRINC'!$C$1 -> Pernambuco | I15: Quantitivo
B16: Custo Unitário de Referência | E16: ='MOMENTO DE TRANSPORTE - PRINC'!$E$1 -> 2023-09-01 | I16: (Coeficiente na composição principal) x (quantidade da principal no orçamento) | K16: t
B17: 6416078 | C17: Usinagem de concreto asfáltico - faixa C - areia e brita comerciais | I17: ='MOMENTO DE TRANSPORTE - PRINC'!D23*VLOOKUP(C26,'RESUMO MODULO TOTAL'!C:H,4,FALSE) -> 5391.414
B18: F - MOMENTO DE TRANSPORTE | D18: Quantidade | E18: Unidade | F18: DMT
F19: LN | G19: RP | H19: P | I19: TIPO (P, RP ou LN) | J19: DMT ESTIMADA (km) | K19: QUANTITATIVO TOTAL DE TRANSPORTE DE MATERIAL (tkm)
A20: =IF(I20="P",H20,IF(I20="RP",G20,IF(I20="LN",F20,""))) -> 5914389 | B20: M0028 | C20: Areia média - Caminhão basculante 10 m³ | D20: 0.48713 | E20: tkm | F20: 5914359 | G20: 5914374 | H20: 5914389 | I20: P | J20: ='MOMENTO DE TRANSPORTE - PRINC'!E4 -> 80 | K20: =IF(ISBLANK(J20),"",J20*(D20*$I$17)) -> 210105.5601
A21: =IF(I21="P",H21,IF(I21="RP",G21,IF(I21="LN",F21,""))) -> 5914389 | B21: M0005 | C21: Brita 0 - Caminhão basculante 10 m³ | D21: 0.09368 | E21: tkm | F21: 5914359 | G21: 5914374 | H21: 5914389 | I21: P | J21: =$D$2 -> 30 | K21: =IF(ISBLANK(J21),"",J21*(D21*$I$17)) -> 15152.0299
A22: 5914389 | B22: M0191 | C22: Brita 1 - Caminhão basculante 10 m³ | D22: 0.09368 | E22: tkm | F22: 5914359 | G22: 5914374 | H22: 5914389 | I22: P | J22: =$D$2 -> 30 | K22: 15152.0299
A23: 5914366 | B23: M0344 | C23: Cal hidratada - a granel - Caminhão silo 30 m³ | D23: 0.0562 | E23: tkm | F23: 5914364 | G23: 5914365 | H23: 5914366 | I23: P | J23: ='MOMENTO DE TRANSPORTE - PRINC'!E4 -> 80 | K23: 24239.7973
A24: 5914389 | B24: M1103 | C24: Pedrisco - Caminhão basculante 10 m³ | D24: 0.20609 | E24: tkm | F24: 5914359 | G24: 5914374 | H24: 5914389 | I24: P | J24: 30 | K24: 33333.4953
B26: PRINCIPAL: | C26: 4011463
B29: SISTEMA DE CUSTOS REFERENCIAIS DE OBRAS - SICRO | E29: ='MOMENTO DE TRANSPORTE - PRINC'!$C$1 -> Pernambuco | I29: Quantitivo
B30: Custo Unitário de Referência | E30: ='MOMENTO DE TRANSPORTE - PRINC'!$E$1 -> 2023-09-01 | I30: (Coeficiente na composição principal) x (quantidade da principal no orçamento) | K30: m³
B31: 1107928 | C31: Concreto fck = 20 MPa - confecção em betoneira e lançamento manual - areia e brita comerciais | I31: ='MOMENTO DE TRANSPORTE - PRINC'!D37*VLOOKUP(C40,'RESUMO MODULO TOTAL'!C:H,4,FALSE) -> 0
B32: F - MOMENTO DE TRANSPORTE | D32: Quantidade | E32: Unidade | F32: DMT
F33: LN | G33: RP | H33: P | I33: TIPO (P, RP ou LN) | J33: DMT ESTIMADA (km) | K33: QUANTITATIVO TOTAL DE TRANSPORTE DE MATERIAL (tkm)
A34: =IF(I34="P",H34,IF(I34="RP",G34,IF(I34="LN",F34,""))) -> 5914479 | B34: M0030 | C34: Aditivo plastificante e retardador de pega para concreto e argamassa - Caminhão carroceria 15 t | D34: 0.00082 | E34: tkm | F34: 5914449 | G34: 5914464 | H34: 5914479 | I34: P | J34: =$D$2 -> 30 | K34: =IF(ISBLANK(J34),"",J34*(D34*$I$31)) -> 0
A35: =IF(I35="P",H35,IF(I35="RP",G35,IF(I35="LN",F35,""))) -> 5914389 | B35: M0082 | C35: Areia média lavada - Caminhão basculante 10 m³ | D35: 0.95639 | E35: tkm | F35: 5914359 | G35: 5914374 | H35: 5914389 | I35: P | J35: =J20 -> 80 | K35: =IF(ISBLANK(J35),"",J35*(D35*$I$31)) -> 0
A36: 5914389 | B36: M0191 | C36: Brita 1 - Caminhão basculante 10 m³ | D36: 0.55131 | E36: tkm | F36: 5914359 | G36: 5914374 | H36: 5914389 | I36: P | J36: =$D$2 -> 30 | K36: =IF(ISBLANK(J36),"",J36*(D36*$I$31)) -> 0
A37: 5914389 | B37: M0192 | C37: Brita 2 - Caminhão basculante 10 m³ | D37: 0.55131 | E37: tkm | F37: 5914359 | G37: 5914374 | H37: 5914389 | I37: P | J37: 30 | K37: =IF(ISBLANK(J37),"",J37*(D37*$I$31)) -> 0
A38: 5914479 | B38: M0424 | C38: Cimento Portland CP II - 32 - saco - Caminhão carroceria 15 t | D38: 0.27464 | E38: tkm | F38: 5914449 | G38: 5914464 | H38: 5914479 | I38: P | J38: 30 | K38: =IF(ISBLANK(J38),"",J38*(D38*$I$31)) -> 0
B40: PRINCIPAL: | C40: 2003939
B42: SISTEMA DE CUSTOS REFERENCIAIS DE OBRAS - SICRO | E42: ='MOMENTO DE TRANSPORTE - PRINC'!$C$1 -> Pernambuco | I42: Quantitivo
B43: Custo Unitário de Referência | E43: ='MOMENTO DE TRANSPORTE - PRINC'!$E$1 -> 2023-09-01 | I43: (Coeficiente na composição principal) x (quantidade da principal no orçamento) | K43: kg
B44: 2003842 | C44: Enchimento de junta de concreto com argamassa asfáltica de densidade 1.700 kg/m³ - espessura de 1 cm | I44: ='MOMENTO DE TRANSPORTE - PRINC'!D61*VLOOKUP(C49,'RESUMO MODULO TOTAL'!C:H,4,FALSE) -> 2096.1914
B45: F - MOMENTO DE TRANSPORTE | D45: Quantidade | E45: Unidade | F45: DMT
F46: LN | G46: RP | H46: P | I46: TIPO (P, RP ou LN) | J46: DMT ESTIMADA (km) | K46: QUANTITATIVO TOTAL DE TRANSPORTE DE MATERIAL (tkm)
A47: =IF(I47="P",H47,IF(I47="RP",G47,IF(I47="LN",F47,""))) -> 5914479 | B47: M2158 | C47: Argamassa asfáltica - Caminhão carroceria com capacidade de 15 t - 188 Kw | D47: 0.001 | E47: tkm | F47: 5914449 | G47: 5914464 | H47: 5914479 | I47: P | J47: =$D$2 -> 30 | K47: =IF(ISBLANK(J47),"",J47*(D47*$I$44)) -> 62.8857
B49: PRINCIPAL: | C49: 2003939

Sheet MC MODULO
M1: SICRO: | N1: ='RESUMO MODULO TOTAL'!H2 -> Pernambuco - Julho/2023
M2: SINAPI: | N2: ='RESUMO MODULO TOTAL'!H3 -> 09/2023
M3: Data base do orçamento: | N3: 2023-10-01
B4: ='RESUMO MODULO TOTAL'!A1 -> CONTRATAÇÃO DE EXECUÇÃO DE PAVIMENTO ASFÁLTICO COM CBUQ, EM VIAS URBANAS DE RECIFE/PE, ÁREA DE ATUAÇÃO DA 15ª SUPERINTENDÊNCIA REGIONAL DA CODEVASF.
B5: Memória de Cálculo - MÓDULO MÍNIMO | I5: =CONCATENATE(B5," x",N7) -> Memória de Cálculo - MÓDULO MÍNIMO x6,2925
B6: Extensão: | C6: 1000 | D6: metros | E6: Nº DE MESES: | G6: =(N6/N7)*1 -> 2 | I6: Extensão: | J6: ='RESUMO MODULO TOTAL'!F15/7 -> 6292.5 | K6: m | M6: Nº DE MESES: | N6: =N7*2 -> 12.585
B7: Largura: | C7: 7 | D7: metros | E7: Nº DE MODULOS: | G7: 1 | I7: Largura: | J7: 7 | K7: m | M7: Nº DE MODULOS: | N7: =(J6*J7)/G10 -> 6.2925 | R7: 22000
B8: ITEM | C8: DISCRIMINAÇÃO DOS CÁLCULOS | G8: Qtd total | I8: ITEM | J8: DESCRIÇÃO | N8: Qtd total
C9: MOBILIZAÇÃO | J9: MOBILIZAÇÃO
B10: 1 | C10: Mobilizações e Desmobilizações (m²) | G10: =C6*C7 -> 7000 | I10: 1 | J10: Mobilizações e Desmobilizações (m²) | N10: =N7*G10 -> 44047.5
B11: 2 | C11: Administração da obra (m²) | G11: =C7*C6 -> 7000 | I11: 2 | J11: Administração da obra | N11: =N7*G11 -> 44047.5
B12: 3 | C12: Canteiro de Obras e Almoxarifado (mês) | G12: =N6/N7 -> 2 | I12: 3 | J12: Canteiro de Obras e Almoxarifado | N12: =G12*N7 -> 12.59
B13: 4 | C13: Placa de Obra em Chapa de Aço Galvanizado (und) | G13: 1 | I13: 4 | J13: Placa de Obra em Chapa de Aço Galvanizado | N13: =G13*N7 -> 6.29
C14: ='RESUMO MODULO TOTAL'!D24 -> DEMOLIÇÕES | J14: =C14 -> DEMOLIÇÕES
B15: 5 | C15: ='RESUMO MODULO TOTAL'!D25 -> Demolição de meio-fio granítico ou pre-moldado | I15: =B15 -> 5 | J15: =C15 -> Demolição de meio-fio granítico ou pre-moldado
C16: Extensão (m) | D16: Largura (m) | G16: Area (m²) | J16: Extensão (m) | K16: Largura (m) | N16: Area (m²)
C17: =C6 -> 1000 | D17: =C7 -> 7 | G17: =C17*D17 -> 7000 | J17: =C17*N7 -> 6292.5 | K17: =D17 -> 7 | N17: =J17*K17 -> 44047.5
B19: 6 | C19: ='RESUMO MODULO TOTAL'!D41 -> TRANSPORTE COM CAMINHÃO BASCULANTE DE 14 M³, EM VIA URBANA PAVIMENTADA, DMT ATÉ 30 KM | I19: =B19 -> 6 | J19: =C19 -> TRANSPORTE COM CAMINHÃO BASCULANTE DE 14 M³, EM VIA URBANA PAVIMENTADA, DMT ATÉ 30 KM
C20: Extensão (m) | D20: Largura (m) | E20: Espessura (m) | G20: Volume (m3) | J20: Extensão (m) | K20: Largura (m) | L20: Espessura (m) | N20: Volume (m3)
C21: =C6 -> 1000 | D21: =C7 -> 7 | E21: 0.35 | G21: =C21*D21*E21 -> 2450 | J21: =C21*N7 -> 6292.5 | K21: =D21 -> 7 | L21: =E21 -> 0.35 | N21: =J21*K21*L21 -> 15416.625
B23: 7 | C23: ='RESUMO MODULO TOTAL'!#REF! ->  | I23: =B23 -> 7 | J23: =C23 -> 
C24: Extensão (m) | D24: Largura (m) | E24: Espessura (m) | F24: Empolamento | G24: Volume (m3) | J24: Extensão (m) | K24: Largura (m) | L24: Espessura (m) | M24: Empolamento | N24: Volume (m3)
C25: =C6 -> 1000 | D25: =C7 -> 7 | E25: 0.35 | F25: 1.2 | G25: =C25*D25*E25*F25 -> 2940 | J25: =J6 -> 6292.5 | K25: =J7 -> 7 | L25: 0.35 | M25: 1.2 | N25: =J25*K25*L25*M25 -> 18499.95
C27: PAVIMENTAÇÃO | J27: PAVIMENTAÇÃO
B28: 8 | C28: ='RESUMO MODULO TOTAL'!#REF! ->  | I28: 8 | J28: Concreto asfáltico - faixa C - areia e brita comerciais
C29: Extensão (m) | D29: Largura (m) | E29: Espessura (m) | F29: Densidade (t/m³) | G29: Massa(t) | J29: Extensão (m) | K29: Largura (m) | L29: Espessura (m) | M29: Densidade (t/m³) | N29: Massa (t)
C30: =C6 -> 1000 | D30: =C7 -> 7 | E30: 0.05 | F30: 2.4 | G30: =C30*D30*E30*F30 -> 840 | J30: =C30*N7 -> 6292.5 | K30: =D30 -> 7 | L30: 0.05 | M30: 2.4 | N30: =J30*K30*L30*M30 -> 5285.7
B32: 9 | C32: ='RESUMO MODULO TOTAL'!#REF! ->  | I32: 9 | J32: =C32 -> 
C33: Extensão (m) | E33: Largura (m) | G33: Área (m2) | J33: Extensão (m) | L33: Largura (m) | N33: area (m2)
C34: =C6 -> 1000 | E34: =C7 -> 7 | G34: =C34*E34 -> 7000 | J34: =C34*N7 -> 6292.5 | L34: =E34 -> 7 | N34: =J34*L34 -> 44047.5
B36: 10 | C36: ='RESUMO MODULO TOTAL'!#REF! ->  | I36: 10 | J36: =C36 -> 
C37: Extensão (m) | E37: Largura (m) | G37: Área (m2) | J37: Extensão (m) | L37: Largura (m) | N37: area (m2)
C38: =C6 -> 1000 | E38: 7 | G38: =C38*E38 -> 7000 | J38: =C38*N7 -> 6292.5 | L38: =E38 -> 7 | N38: =J38*L38 -> 44047.5
B40: 11 | C40: ='RESUMO MODULO TOTAL'!#REF! ->  | I40: 11 | J40: =C40 -> 
C41: Comprimento (m) | D41: Largura (m) | E41: profundidade (m) | G41: Vol.(m3) | J41: Comprimento (m) | K41: Largura (m) | L41: profundidade (m) | N41: Volume (m3)
C42: =C6 -> 1000 | D42: =C7 -> 7 | E42: 0.15 | G42: =C42*D42*E42 -> 1050 | J42: =C42*N7 -> 6292.5 | K42: =D42 -> 7 | L42: =E42 -> 0.15 | N42: =J42*K42*L42 -> 6607.13
B44: 12 | C44: ='RESUMO MODULO TOTAL'!#REF! ->  | I44: 12 | J44: =C44 -> 
C45: Comprimento (m) | D45: Largura (m) | E45: profundidade (m) | G45: Vol.(m3) | J45: Comprimento (m) | K45: Largura (m) | L45: profundidade (m) | N45: Volume (m3)
C46: =C6 -> 1000 | D46: =C7 -> 7 | E46: 0.15 | G46: =C46*D46*E46 -> 1050 | J46: =C46*N7 -> 6292.5 | K46: =D46 -> 7 | L46: 0.15 | N46: =J46*K46*L46 -> 6607.13
B48: 13 | C48: ='RESUMO MODULO TOTAL'!#REF! ->  | I48: =B48 -> 13 | J48: =C48 -> 
C49: Comprimento (m) | D49: Largura (m) | G49: Área (m2) | J49: Comprimento (m) | K49: Largura (m) | N49: area (m2)
C50: =C6 -> 1000 | D50: =C7 -> 7 | G50: =C50*D50 -> 7000 | J50: =C50*N7 -> 6292.5 | K50: =D50 -> 7 | N50: =J50*K50 -> 44047.5
C51: SINALIZAÇÃO | J51: SINALIZAÇÃO
B52: 20 | C52: Placa de regulamentação em aço D = 0,60 m - película retrorrefletiva tipo I + SI | I52: 20 | J52: =C52 -> Placa de regulamentação em aço D = 0,60 m - película retrorrefletiva tipo I + SI
C53: Extensão (km) | E53: Quant. (un) por mão | G53: Quant. (un) | J53: Extensão (km) | L53: Quant. (un) | N53: Quant. (un)
C54: =C6/1000 -> 1 | E54: 8 | G54: =C54*E54 -> 8 | J54: =C54*N7 -> 6.29 | L54: =E54 -> 8 | N54: =J54*L54 -> 50.32
B56: 21 | C56: Suporte metálico galvanizado para placa de regulamentação - D = 0,60 m | I56: 21 | J56: =C56 -> Suporte metálico galvanizado para placa de regulamentação - D = 0,60 m
C57: Extensão (km) | E57: Quant. (un) por mão | G57: Quant. (un) | J57: Extensão (km) | L57: Quant. (un) | N57: Quant. (un)
C58: =C6/1000 -> 1 | E58: 8 | G58: =C58*E58 -> 8 | J58: =C58*N7 -> 6.29 | L58: =E58 -> 8 | N58: =J58*L58 -> 50.32
B60: 22 | C60: Pintura de faixa com tinta acrílica - espessura de 0,4 mm (bordos) | I60: 22 | J60: Pintura de faixa com tinta acrílica - espessura de 0,4 mm (bordos)
C61: Extensão (m) | D61: Espessura (m) | E61: nº de linhas faixas | G61: Quant. (m²) | J61: Extensão (m) | L61: Espessura (m) | M61: nº de linhas faixas | N61: Quant. (m²)
C62: =C6 -> 1000 | D62: 0.1 | E62: 3 | G62: =C62*D62*E62 -> 300 | J62: =C6*N7 -> 6292.5 | L62: 0.1 | M62: 3 | N62: =J62*L62*M62 -> 1887.75
C64: DRENAGEM | J64: DRENAGEM
B65: 23 | C65: ='RESUMO MODULO TOTAL'!#REF! ->  | I65: 23 | J65: Limpeza de sarjeta e meio-fio
C66: Extensão (m) | E66: Quant. (un) | G66: Extensão(m) | J66: Extensão (m) | L66: Quant. (un) | N66: Extensão(m)
C67: =C6 -> 1000 | E67: 2 | G67: =C67*E67 -> 2000 | J67: =C67*N7 -> 6292.5 | L67: 2 | M67: = | N67: =J67*L67 -> 12585
C69: SERVIÇOS COMPLEMENTARES | J69: SERVIÇOS COMPLEMENTARES
B70: 24 | C70: Conserto de ramal rompido | I70: 24 | J70: =C70 -> Conserto de ramal rompido
C71: extensão de tubulação rompida | D71: qtd | G71: extensão (m) | J71: extensão de tubulação rompida | K71: qtd | N71: extensão (m)
C72: 7 | D72: =N7 -> 6.29 | G72: =C72*D72 -> 44.03 | J72: 7 | K72: =D72*N7 -> 39.58 | N72: =J72*K72 -> 277.06
C74: PROJETO EXECUTIVO | J74: PROJETO EXECUTIVO
B75: 25 | C75: Projeto Executivo | I75: 25 | J75: Projeto Executivo
C76: Meses | D76: área (m2) | G76: Área (m2) | J76: Meses | K76: área (m2) | N76: área (m2)
C77: =G6*(1/3) -> 0.67 | D77: =C6*C7 -> 7000 | G77: =D77 -> 7000 | J77: =C77*N7 -> 4.22 | K77: =D77*N7 -> 44047.5 | N77: =G77*N7 -> 44047.5
C79: CONTROLE TECNOLOGICO - OBRA | J79: CONTROLE TECNOLOGICO - OBRA
B80: 26 | C80: Projeto Executivo | I80: 26 | J80: Projeto Executivo
C81: Meses | D81: área (m2) | F81: Quant. (un) | G81: Área (m2) | J81: Meses | K81: área (m2) | N81: área (m2)
C82: =G6*(2/3) -> 1.33 | D82: =C6*C7 -> 7000 | G82: =D82 -> 7000 | J82: =C82*N7 -> 8.37 | K82: =D82*N7 -> 44047.5 | N82: =G82*N7 -> 44047.5

Sheet ORSE
D1: R$/unit | E1: R$ c/ BDI
A2: ="21" -> 21 | B2: Demolição de meio-fio granítico ou pre-moldado | C2: m | D2: 9.37 | E2: =TRUNC(D2*(1+BDI!$C$17),2) -> 11.56
A3: 9182 | B3: Demolição de concreto com martelete e compressor | C3: m³ | D3: 77.38 | E3: =TRUNC(D3*(1+BDI!$C$17),2) -> 95.47
A4: 7989 | B4: Demolição de pavimentação em paralelepípedo sem reaproveitamento | C4: m² | D4: 11.23 | E4: =TRUNC(D4*(1+BDI!$C$17),2) -> 13.85
A5: 3258 | B5: Demolição de piso em lajota | C5: m² | D5: 12.07 | E5: =TRUNC(D5*(1+BDI!$C$17),2) -> 14.89
A6: 4801 | B6: Demolição de piso em pedra calcárea | C6: m² | D6: 24.33 | E6: =TRUNC(D6*(1+BDI!$C$17),2) -> 30.02

Sheet CPUs Auxs
A1: AUX.009 | B1: CONCRETAGEM DE RADIER, PISO DE CONCRETO OU LAJE SOBRE SOLO, FCK 25 MPA - LANÇAMENTO, ADENSAMENTO E ACABAMENTO. | C1: M3 | F1: =TRUNC(SUM(F4:F8),2) -> 543.79
A2: REFERÊNCIA SINAPI 97096 SET/22
A3: CÓDIGO | B3: DESCRIÇÃO | C3: UN | D3: COEF. | E3: PREÇO | F3: TOTAL
A4: ="94971" -> 94971 | B4: =IFERROR(VLOOKUP(A4,'INSUMOS SINAPI'!A:E,2,0),IFERROR(VLOOKUP('CPUs Auxs'!A4,'SINTÉTICO SICRO'!A:D,2,0),IFERROR(VLOOKUP('CPUs Auxs'!A4,'COMP Sint. Sinapi'!G:K,2,0),))) -> CONCRETO FCK = 25MPA, TRAÇO 1:2,3:2,7 (EM MASSA SECA DE CIMENTO/ AREIA MÉDIA/ BRITA 1) - PREPARO MECÂNICO COM BETONEIRA 600 L. AF_05/2021 | C4: =IFERROR(VLOOKUP(A4,'INSUMOS SINAPI'!A:E,3,0),IFERROR(VLOOKUP('CPUs Auxs'!A4,'SINTÉTICO SICRO'!A:D,3,0),IFERROR(VLOOKUP('CPUs Auxs'!A4,'COMP Sint. Sinapi'!G:K,3,0),))) -> M3 | D4: 1.06 | E4: =IFERROR(VLOOKUP(A4,'INSUMOS SINAPI'!A:E,5,0),IFERROR(VLOOKUP('CPUs Auxs'!A4,'SINTÉTICO SICRO'!A:D,4,0),IFERROR(VLOOKUP('CPUs Auxs'!A4,'COMP Sint. Sinapi'!G:K,5,0),))) -> 494,42 | F4: =TRUNC(D4*E4,2) -> 524.08
A5: ="88309" -> 88309 | B5: =IFERROR(VLOOKUP(A5,'INSUMOS SINAPI'!A:E,2,0),IFERROR(VLOOKUP('CPUs Auxs'!A5,'SINTÉTICO SICRO'!A:D,2,0),IFERROR(VLOOKUP('CPUs Auxs'!A5,'COMP Sint. Sinapi'!G:K,2,0),))) -> PEDREIRO COM ENCARGOS COMPLEMENTARES | C5: =IFERROR(VLOOKUP(A5,'INSUMOS SINAPI'!A:E,3,0),IFERROR(VLOOKUP('CPUs Auxs'!A5,'SINTÉTICO SICRO'!A:D,3,0),IFERROR(VLOOKUP('CPUs Auxs'!A5,'COMP Sint. Sinapi'!G:K,3,0),))) -> H | D5: 0.411 | E5: =IFERROR(VLOOKUP(A5,'INSUMOS SINAPI'!A:E,5,0),IFERROR(VLOOKUP('CPUs Auxs'!A5,'SINTÉTICO SICRO'!A:D,4,0),IFERROR(VLOOKUP('CPUs Auxs'!A5,'COMP Sint. Sinapi'!G:K,5,0),))) -> 26,51 | F5: =TRUNC(D5*E5,2) -> 10.89
A6: ="88316" -> 88316 | B6: =IFERROR(VLOOKUP(A6,'INSUMOS SINAPI'!A:E,2,0),IFERROR(VLOOKUP('CPUs Auxs'!A6,'SINTÉTICO SICRO'!A:D,2,0),IFERROR(VLOOKUP('CPUs Auxs'!A6,'COMP Sint. Sinapi'!G:K,2,0),))) -> SERVENTE COM ENCARGOS COMPLEMENTARES | C6: =IFERROR(VLOOKUP(A6,'INSUMOS SINAPI'!A:E,3,0),IFERROR(VLOOKUP('CPUs Auxs'!A6,'SINTÉTICO SICRO'!A:D,3,0),IFERROR(VLOOKUP('CPUs Auxs'!A6,'COMP Sint. Sinapi'!G:K,3,0),))) -> H | D6: 0.411 | E6: =IFERROR(VLOOKUP(A6,'INSUMOS SINAPI'!A:E,5,0),IFERROR(VLOOKUP('CPUs Auxs'!A6,'SINTÉTICO SICRO'!A:D,4,0),IFERROR(VLOOKUP('CPUs Auxs'!A6,'COMP Sint. Sinapi'!G:K,5,0),))) -> 21,28 | F6: =TRUNC(D6*E6,2) -> 8.74
A7: ="90586" -> 90586 | B7: =IFERROR(VLOOKUP(A7,'INSUMOS SINAPI'!A:E,2,0),IFERROR(VLOOKUP('CPUs Auxs'!A7,'SINTÉTICO SICRO'!A:D,2,0),IFERROR(VLOOKUP('CPUs Auxs'!A7,'COMP Sint. Sinapi'!G:K,2,0),))) -> VIBRADOR DE IMERSÃO, DIÂMETRO DE PONTEIRA 45MM, MOTOR ELÉTRICO TRIFÁSICO POTÊNCIA DE 2 CV - CHP DIURNO. AF_06/2015 | C7: =IFERROR(VLOOKUP(A7,'INSUMOS SINAPI'!A:E,3,0),IFERROR(VLOOKUP('CPUs Auxs'!A7,'SINTÉTICO SICRO'!A:D,3,0),IFERROR(VLOOKUP('CPUs Auxs'!A7,'COMP Sint. Sinapi'!G:K,3,0),))) -> CHP | D7: 0.053 | E7: =IFERROR(VLOOKUP(A7,'INSUMOS SINAPI'!A:E,5,0),IFERROR(VLOOKUP('CPUs Auxs'!A7,'SINTÉTICO SICRO'!A:D,4,0),IFERROR(VLOOKUP('CPUs Auxs'!A7,'COMP Sint. Sinapi'!G:K,5,0),))) -> 1,31 | F7: 0.06
A8: ="90587" -> 90587 | B8: =IFERROR(VLOOKUP(A8,'INSUMOS SINAPI'!A:E,2,0),IFERROR(VLOOKUP('CPUs Auxs'!A8,'SINTÉTICO SICRO'!A:D,2,0),IFERROR(VLOOKUP('CPUs Auxs'!A8,'COMP Sint. Sinapi'!G:K,2,0),))) -> VIBRADOR DE IMERSÃO, DIÂMETRO DE PONTEIRA 45MM, MOTOR ELÉTRICO TRIFÁSICO POTÊNCIA DE 2 CV - CHI DIURNO. AF_06/2015 | C8: =IFERROR(VLOOKUP(A8,'INSUMOS SINAPI'!A:E,3,0),IFERROR(VLOOKUP('CPUs Auxs'!A8,'SINTÉTICO SICRO'!A:D,3,0),IFERROR(VLOOKUP('CPUs Auxs'!A8,'COMP Sint. Sinapi'!G:K,3,0),))) -> CHI | D8: 0.049 | E8: =IFERROR(VLOOKUP(A8,'INSUMOS SINAPI'!A:E,5,0),IFERROR(VLOOKUP('CPUs Auxs'!A8,'SINTÉTICO SICRO'!A:D,4,0),IFERROR(VLOOKUP('CPUs Auxs'!A8,'COMP Sint. Sinapi'!G:K,5,0),))) -> 0,50 | F8: 0.02
A9: AUX.010 | B9: ALVENARIA DE VEDAÇÃO DE BLOCOS DE CONCRETO MACIÇOS DE 22X11X8CM (ESPESSURA 8CM), DE UMA VEZ, E ARGAMASSA DE ASSENTAMENTO COM PREPARO EM BETONEIRA. | C9: M2 | F9: =TRUNC(SUM(F12:F15),2) -> 224.64
A10: REFERÊNCIA SINAPI 101159 SET/22
A11: CÓDIGO | B11: DESCRIÇÃO | C11: UN | D11: COEF. | E11: PREÇO | F11: TOTAL
A12: ="88309" -> 88309 | B12: =IFERROR(VLOOKUP(A12,'INSUMOS SINAPI'!A:E,2,0),IFERROR(VLOOKUP('CPUs Auxs'!A12,'SINTÉTICO SICRO'!A:D,2,0),IFERROR(VLOOKUP('CPUs Auxs'!A12,'COMP Sint. Sinapi'!G:K,2,0),))) -> PEDREIRO COM ENCARGOS COMPLEMENTARES | C12: =IFERROR(VLOOKUP(A12,'INSUMOS SINAPI'!A:E,3,0),IFERROR(VLOOKUP('CPUs Auxs'!A12,'SINTÉTICO SICRO'!A:D,3,0),IFERROR(VLOOKUP('CPUs Auxs'!A12,'COMP Sint. Sinapi'!G:K,3,0),))) -> H | D12: 1.939 | E12: =IFERROR(VLOOKUP(A12,'INSUMOS SINAPI'!A:E,5,0),IFERROR(VLOOKUP('CPUs Auxs'!A12,'SINTÉTICO SICRO'!A:D,4,0),IFERROR(VLOOKUP('CPUs Auxs'!A12,'COMP Sint. Sinapi'!G:K,5,0),))) -> 26,51 | F12: =TRUNC(D12*E12,2) -> 51.4
A13: ="88316" -> 88316 | B13: =IFERROR(VLOOKUP(A13,'INSUMOS SINAPI'!A:E,2,0),IFERROR(VLOOKUP('CPUs Auxs'!A13,'SINTÉTICO SICRO'!A:D,2,0),IFERROR(VLOOKUP('CPUs Auxs'!A13,'COMP Sint. Sinapi'!G:K,2,0),))) -> SERVENTE COM ENCARGOS COMPLEMENTARES | C13: =IFERROR(VLOOKUP(A13,'INSUMOS SINAPI'!A:E,3,0),IFERROR(VLOOKUP('CPUs Auxs'!A13,'SINTÉTICO SICRO'!A:D,3,0),IFERROR(VLOOKUP('CPUs Auxs'!A13,'COMP Sint. Sinapi'!G:K,3,0),))) -> H | D13: 0.97 | E13: =IFERROR(VLOOKUP(A13,'INSUMOS SINAPI'!A:E,5,0),IFERROR(VLOOKUP('CPUs Auxs'!A13,'SINTÉTICO SICRO'!A:D,4,0),IFERROR(VLOOKUP('CPUs Auxs'!A13,'COMP Sint. Sinapi'!G:K,5,0),))) -> 21,28 | F13: =TRUNC(D13*E13,2) -> 20.64
A14: =36170 -> 36170 | B14: =IFERROR(VLOOKUP(A14,'INSUMOS SINAPI'!A:E,2,0),IFERROR(VLOOKUP('CPUs Auxs'!A14,'SINTÉTICO SICRO'!A:D,2,0),IFERROR(VLOOKUP('CPUs Auxs'!A14,'COMP Sint. Sinapi'!G:K,2,0),))) -> BLOQUETE/PISO INTERTRAVADO DE CONCRETO - MODELO ONDA/16 FACES/RETANGULAR/TIJOLINHO/PAVER/HOLANDES/PARALELEPIPEDO, *22 CM X 11* CM, E = 8 CM, RESISTENCIA DE 35 MPA (NBR 9781), COR NATURAL | C14: =IFERROR(VLOOKUP(A14,'INSUMOS SINAPI'!A:E,3,0),IFERROR(VLOOKUP('CPUs Auxs'!A14,'SINTÉTICO SICRO'!A:D,3,0),IFERROR(VLOOKUP('CPUs Auxs'!A14,'COMP Sint. Sinapi'!G:K,3,0),))) -> M2 | D14: =(1/(0.09*0.11))*(0.22*0.11) -> 2.4444 | E14: =IFERROR(VLOOKUP(A14,'INSUMOS SINAPI'!A:E,5,0),IFERROR(VLOOKUP('CPUs Auxs'!A14,'SINTÉTICO SICRO'!A:D,4,0),IFERROR(VLOOKUP('CPUs Auxs'!A14,'COMP Sint. Sinapi'!G:K,5,0),))) -> 54,75 | F14: =TRUNC(D14*E14,2) -> 133.83
A15: ="87292" -> 87292 | B15: =IFERROR(VLOOKUP(A15,'INSUMOS SINAPI'!A:E,2,0),IFERROR(VLOOKUP('CPUs Auxs'!A15,'SINTÉTICO SICRO'!A:D,2,0),IFERROR(VLOOKUP('CPUs Auxs'!A15,'COMP Sint. Sinapi'!G:K,2,0),))) -> ARGAMASSA TRAÇO 1:2:8 (EM VOLUME DE CIMENTO, CAL E AREIA MÉDIA ÚMIDA) PARA EMBOÇO/MASSA ÚNICA/ASSENTAMENTO DE ALVENARIA DE VEDAÇÃO, PREPARO MECÂNICO COM BETONEIRA 400 L. AF_08/2019 | C15: =IFERROR(VLOOKUP(A15,'INSUMOS SINAPI'!A:E,3,0),IFERROR(VLOOKUP('CPUs Auxs'!A15,'SINTÉTICO SICRO'!A:D,3,0),IFERROR(VLOOKUP('CPUs Auxs'!A15,'COMP Sint. Sinapi'!G:K,3,0),))) -> M3 | D15: 0.028 | E15: =IFERROR(VLOOKUP(A15,'INSUMOS SINAPI'!A:E,5,0),IFERROR(VLOOKUP('CPUs Auxs'!A15,'SINTÉTICO SICRO'!A:D,4,0),IFERROR(VLOOKUP('CPUs Auxs'!A15,'COMP Sint. Sinapi'!G:K,5,0),))) -> 670,49 | F15: =TRUNC(D15*E15,2) -> 18.77
A16: AUX.013 | B16: ARMAÇÃO DE CINTA DE ALVENARIA ESTRUTURAL; DIÂMETRO DE 5,0 MM | C16: KG | F16: =TRUNC(SUM(F19:F21),2) -> 10.29
A17: REFERÊNCIA SINAPI 89998 / 96543
A18: CÓDIGO | B18: DESCRIÇÃO | C18: UN | D18: COEF. | E18: PREÇO | F18: TOTAL
A19: 43059 | B19: =IFERROR(VLOOKUP(A19,'INSUMOS SINAPI'!A:E,2,0),IFERROR(VLOOKUP('CPUs Auxs'!A19,'SINTÉTICO SICRO'!A:D,2,0),IFERROR(VLOOKUP('CPUs Auxs'!A19,'COMP Sint. Sinapi'!G:K,2,0),))) -> ACO CA-60, 4,2 MM, OU 5,0 MM, OU 6,0 MM, OU 7,0 MM, VERGALHAO | C19: =IFERROR(VLOOKUP(A19,'INSUMOS SINAPI'!A:E,3,0),IFERROR(VLOOKUP('CPUs Auxs'!A19,'SINTÉTICO SICRO'!A:D,3,0),IFERROR(VLOOKUP('CPUs Auxs'!A19,'COMP Sint. Sinapi'!G:K,3,0),))) -> KG | D19: 1 | E19: =IFERROR(VLOOKUP(A19,'INSUMOS SINAPI'!A:E,5,0),IFERROR(VLOOKUP('CPUs Auxs'!A19,'SINTÉTICO SICRO'!A:D,4,0),IFERROR(VLOOKUP('CPUs Auxs'!A19,'COMP Sint. Sinapi'!G:K,5,0),))) -> 9,31 | F19: =TRUNC(D19*E19,2) -> 9.31
A20: ="88238" -> 88238 | B20: =IFERROR(VLOOKUP(A20,'INSUMOS SINAPI'!A:E,2,0),IFERROR(VLOOKUP('CPUs Auxs'!A20,'SINTÉTICO SICRO'!A:D,2,0),IFERROR(VLOOKUP('CPUs Auxs'!A20,'COMP Sint. Sinapi'!G:K,2,0),))) -> AJUDANTE DE ARMADOR COM ENCARGOS COMPLEMENTARES | C20: =IFERROR(VLOOKUP(A20,'INSUMOS SINAPI'!A:E,3,0),IFERROR(VLOOKUP('CPUs Auxs'!A20,'SINTÉTICO SICRO'!A:D,3,0),IFERROR(VLOOKUP('CPUs Auxs'!A20,'COMP Sint. Sinapi'!G:K,3,0),))) -> H | D20: 0.0163 | E20: =IFERROR(VLOOKUP(A20,'INSUMOS SINAPI'!A:E,5,0),IFERROR(VLOOKUP('CPUs Auxs'!A20,'SINTÉTICO SICRO'!A:D,4,0),IFERROR(VLOOKUP('CPUs Auxs'!A20,'COMP Sint. Sinapi'!G:K,5,0),))) -> 21,28 | F20: =TRUNC(D20*E20,2) -> 0.34
A21: ="88245" -> 88245 | B21: =IFERROR(VLOOKUP(A21,'INSUMOS SINAPI'!A:E,2,0),IFERROR(VLOOKUP('CPUs Auxs'!A21,'SINTÉTICO SICRO'!A:D,2,0),IFERROR(VLOOKUP('CPUs Auxs'!A21,'COMP Sint. Sinapi'!G:K,2,0),))) -> ARMADOR COM ENCARGOS COMPLEMENTARES | C21: =IFERROR(VLOOKUP(A21,'INSUMOS SINAPI'!A:E,3,0),IFERROR(VLOOKUP('CPUs Auxs'!A21,'SINTÉTICO SICRO'!A:D,3,0),IFERROR(VLOOKUP('CPUs Auxs'!A21,'COMP Sint. Sinapi'!G:K,3,0),))) -> H | D21: 0.0244 | E21: =IFERROR(VLOOKUP(A21,'INSUMOS SINAPI'!A:E,5,0),IFERROR(VLOOKUP('CPUs Auxs'!A21,'SINTÉTICO SICRO'!A:D,4,0),IFERROR(VLOOKUP('CPUs Auxs'!A21,'COMP Sint. Sinapi'!G:K,5,0),))) -> 26,31 | F21: =TRUNC(D21*E21,2) -> 0.64
A22: AUX.014 | B22: ARMAÇÃO DE CINTA DE ALVENARIA ESTRUTURAL; DIÂMETRO DE 6,3 MM | C22: KG | F22: =TRUNC(SUM(F25:F27),2) -> 11.61
A23: REFERÊNCIA SINAPI 89998 / 96544
A24: CÓDIGO | B24: DESCRIÇÃO | C24: UN | D24: COEF. | E24: PREÇO | F24: TOTAL
A25: 32 | B25: =IFERROR(VLOOKUP(A25,'INSUMOS SINAPI'!A:E,2,0),IFERROR(VLOOKUP('CPUs Auxs'!A25,'SINTÉTICO SICRO'!A:D,2,0),IFERROR(VLOOKUP('CPUs Auxs'!A25,'COMP Sint. Sinapi'!G:K,2,0),))) -> ACO CA-50, 6,3 MM, VERGALHAO | C25: =IFERROR(VLOOKUP(A25,'INSUMOS SINAPI'!A:E,3,0),IFERROR(VLOOKUP('CPUs Auxs'!A25,'SINTÉTICO SICRO'!A:D,3,0),IFERROR(VLOOKUP('CPUs Auxs'!A25,'COMP Sint. Sinapi'!G:K,3,0),))) -> KG | D25: 1 | E25: =IFERROR(VLOOKUP(A25,'INSUMOS SINAPI'!A:E,5,0),IFERROR(VLOOKUP('CPUs Auxs'!A25,'SINTÉTICO SICRO'!A:D,4,0),IFERROR(VLOOKUP('CPUs Auxs'!A25,'COMP Sint. Sinapi'!G:K,5,0),))) -> 10,38 | F25: =TRUNC(D25*E25,2) -> 10.38
A26: ="88238" -> 88238 | B26: =IFERROR(VLOOKUP(A26,'INSUMOS SINAPI'!A:E,2,0),IFERROR(VLOOKUP('CPUs Auxs'!A26,'SINTÉTICO SICRO'!A:D,2,0),IFERROR(VLOOKUP('CPUs Auxs'!A26,'COMP Sint. Sinapi'!G:K,2,0),))) -> AJUDANTE DE ARMADOR COM ENCARGOS COMPLEMENTARES | C26: =IFERROR(VLOOKUP(A26,'INSUMOS SINAPI'!A:E,3,0),IFERROR(VLOOKUP('CPUs Auxs'!A26,'SINTÉTICO SICRO'!A:D,3,0),IFERROR(VLOOKUP('CPUs Auxs'!A26,'COMP Sint. Sinapi'!G:K,3,0),))) -> H | D26: 0.0205 | E26: =IFERROR(VLOOKUP(A26,'INSUMOS SINAPI'!A:E,5,0),IFERROR(VLOOKUP('CPUs Auxs'!A26,'SINTÉTICO SICRO'!A:D,4,0),IFERROR(VLOOKUP('CPUs Auxs'!A26,'COMP Sint. Sinapi'!G:K,5,0),))) -> 21,28 | F26: =TRUNC(D26*E26,2) -> 0.43
A27: ="88245" -> 88245 | B27: =IFERROR(VLOOKUP(A27,'INSUMOS SINAPI'!A:E,2,0),IFERROR(VLOOKUP('CPUs Auxs'!A27,'SINTÉTICO SICRO'!A:D,2,0),IFERROR(VLOOKUP('CPUs Auxs'!A27,'COMP Sint. Sinapi'!G:K,2,0),))) -> ARMADOR COM ENCARGOS COMPLEMENTARES | C27: =IFERROR(VLOOKUP(A27,'INSUMOS SINAPI'!A:E,3,0),IFERROR(VLOOKUP('CPUs Auxs'!A27,'SINTÉTICO SICRO'!A:D,3,0),IFERROR(VLOOKUP('CPUs Auxs'!A27,'COMP Sint. Sinapi'!G:K,3,0),))) -> H | D27: 0.0307 | E27: =IFERROR(VLOOKUP(A27,'INSUMOS SINAPI'!A:E,5,0),IFERROR(VLOOKUP('CPUs Auxs'!A27,'SINTÉTICO SICRO'!A:D,4,0),IFERROR(VLOOKUP('CPUs Auxs'!A27,'COMP Sint. Sinapi'!G:K,5,0),))) -> 26,31 | F27: =TRUNC(D27*E27,2) -> 0.8

Sheet COTAÇÕES
A5: OBRA:
A6: LOCAL:
A8: MAPA DE COTAÇÕES
A10: COT.020 | B10: TAMPÃO EM POLIESTER REFORÇADO EM FIBRA DE VIDRO, COM DIÂMETRO DE 600MM E CAPACIDADE DE CARGA DE 40T E TEMP. 180°C | C10: UN | E10: =ROUND((AVERAGE(E11:E13)),2) -> 1294.43 | F10: 2023-05-25
A11: EMPRESA 1 | B11: ECOLOGICA ENGENHARIA SUSTENTAVEL | C11: (71) 99192-0179 | D11: Jackson Mazzei | E11: 1590
A12: EMPRESA 2 | B12: RTC EC | C12: (71) 98717-0962 | D12: José Pedro | E12: 998.85
A14: COT.023 | B14: GRADE DE FIBRA DE VIDRO COM CAIXILHO, 0,90X0,30X0,07M CAP. CARGA DE 25T. | C14: UN | E14: =AVERAGE(E15:E16) -> 1020
A15: EMPRESA 1 | B15: MADEIRA.COM INDUSTRIA E COMERCIO LTDA | C15: (11) 4035-5241 | E15: 850 | F15: 2023-05-18
A16: EMPRESA 2 | B16: ECOLOGICA ENGENHARIA SUSTENTAVEL | C16: (71) 99192-0179 | D16: Jackson Mazzei | E16: 1190 | F16: 2023-05-26
A17: COT.027 | B17: PISO TÁTIL DIRECIONAL E/OU ALERTA DE CONCRETO DIM 25X25X0,25 CM, PARA PESSOA COM DEFICIÊNCIA VISUAL., POSTO OBRA. | C17: M2 | E17: =ROUND((AVERAGE(E18:E21)),2) -> 77.46 | F17: 2023-06-29
A18: EMPRESA 1 | B18: FÁBRICA DO FORTE | C18: (81) 3227-2990 / 3228-2380 fabricadoforte@gmail.com | D18: EDMILSON | E18: =3.8*(1/(0.25*0.25)) -> 60.8
A19: EMPRESA 2 | B19: LAJES TIMBÍ | C19: (81) 3458-1211 | D19: CRISTIANE | E19: =37+(400/(6.92*2)) -> 65.9
A20: EMPRESA 3 | B20: ISO PRÉ MOLDADOS | C20: (81)3132-6757/ isoengenharia@yahoo.com.br | D20: RISOMAR | E20: =84+(300/(6.92*2)) -> 105.68
A21: EMPRESA 4 | B21: PREMACIL
A22: COT.035 | B22: PARAFUSO SEXTAVADO ROSCA SOBERBA 1/4" X 30MM DE FERRO ZINCADO. | C22: UN | E22: =ROUND((AVERAGE(E23:E25)),2) -> 0.29 | F22: 2023-07-20
A23: EMPRESA 1 | B23: ATLAS PARAFUSO | C23: https://www.atlasparafusos.com.br/ | D23: SITE | E23: 0.27
A24: EMPRESA 2 | B24: CASA DOS PARAFUSOS FRANCA | C24: https://www.casadosparafusosfranca.com.br/?gad=1&gclid=CjwKCAjwtuOlBhBREiwA7agf1kFh0jW2rpoLRKjRzXHBhuVcUHe3g4UA4mGObYGGkAIXY53Vzih2HhoCzbIQAvD_BwE | D24: SITE | E24: 0.26
A25: EMPRESA 3 | B25: CCP PARAFUSOS E FERRAMENTAS | C25: https://www.ccpvirtual.com.br/ | D25: SITE | E25: =17.66/50 -> 0.3532
A26: EMPRESA 4 | B26: JOFEPAR | C26: https://www.jofepar.com.br/ | D26: SITE | E26: 0.47

Sheet CRONOGRAMA TOTAL
A2: ='RESUMO MODULO TOTAL'!A1 -> CONTRATAÇÃO DE EXECUÇÃO DE PAVIMENTO ASFÁLTICO COM CBUQ, EM VIAS URBANAS DE RECIFE/PE, ÁREA DE ATUAÇÃO DA 15ª SUPERINTENDÊNCIA REGIONAL DA CODEVASF.
A3: Cronograma Físico e Financeiro
A4: Item | B4: Descrição | C4: Total Por Etapa | D4: 15 DIAS | E4: 30 DIAS | F4: 45 DIAS | G4: 60 DIAS | H4: 75 DIAS | I4: 90 DIAS | J4: 105 DIAS | K4: 120 DIAS | L4: 135 DIAS | M4: 150 DIAS | N4: 165 DIAS | O4: 180 DIAS
B5: ='RESUMO MODULO TOTAL'!D8 -> ADMINISTRAÇÃO DA OBRA | C5: 1 | F5: =$C$5/10 -> 0.1 | G5: =$C$5/10 -> 0.1 | H5: 0.1 | I5: 0.1 | J5: 0.1 | K5: 0.1 | L5: 0.1 | M5: 0.1 | N5: 0.1 | O5: 0.1 | Q5: =SUM(D5:O5) -> 1
C6: =SUM('RESUMO MODULO TOTAL'!H10:H12) -> 994843.63 | F6: =$C$6*F5 -> 99484.36 | G6: 99484.36 | H6: 99484.36 | I6: 99484.36 | J6: 99484.36 | K6: 99484.36 | L6: 99484.36 | M6: 99484.36 | N6: 99484.36 | O6: 99484.36 | Q6: =SUM(D6:O6) -> 994843.6 | R6: =C6 -> 994843.63 | S6: =Q6-R6 -> -0.03
B7: ='RESUMO MODULO TOTAL'!D24 -> DEMOLIÇÕES | C7: 1 | F7: 0.1667 | G7: 0.1667 | H7: 0.1667 | I7: 0.1667 | J7: 0.1667 | K7: =16.67%-0.0002 -> 0.1665 | Q7: =SUM(F7:O7) -> 1
C8: =SUM('RESUMO MODULO TOTAL'!H25:H41) -> 1534913.98 | F8: =$C$8*F7 -> 255870.16 | G8: =$C$8*G7 -> 255870.16 | H8: 255870.16 | I8: 255870.16 | J8: 255870.16 | K8: 255563.18 | Q8: 1534913.98 | R8: =C8 -> 1534913.98 | S8: =Q8-R8 -> 0
B9: ='RESUMO MODULO TOTAL'!D62 -> PAVIMENTAÇÃO | C9: 1 | I9: 0.1429 | J9: 0.1429 | K9: 0.1429 | L9: 0.1429 | M9: 0.1429 | N9: 0.1429 | O9: =14.29%-0.0003 -> 0.1426 | Q9: =SUM(F9:O9) -> 1
C10: =SUM('RESUMO MODULO TOTAL'!#REF!) ->  | I10: =$C$10*I9 ->  | R10: =C10 ->  | S10: =Q10-R10 -> 
B11: ='RESUMO MODULO TOTAL'!D89 -> SINALIZAÇÃO | C11: 1 | N11: 0.5 | O11: 0.5 | Q11: 1
C12: =SUM('RESUMO MODULO TOTAL'!H90:H92) -> 152003.86 | N12: =$C$12*N11 -> 76001.93 | O12: 76001.93 | Q12: 152003.86 | R12: =C12 -> 152003.86 | S12: 0
B13: ='RESUMO MODULO TOTAL'!#REF! ->  | C13: 1 | N13: 0.5 | O13: 0.5 | Q13: =SUM(D13:O13) -> 1
C14: ='RESUMO MODULO TOTAL'!#REF! ->  | N14: =$C$14*N13 ->  | R14: =C14 -> 
B15: AQUISIÇÃO E TRANSPORTE DE MATERIAL BETUMINOSO | C15: 1 | I15: 0.1429 | J15: 0.1429 | K15: 0.1429 | L15: 0.1429 | M15: 0.1429 | N15: 0.1429 | O15: 0.1426
C16: =SUM('RESUMO MODULO TOTAL'!H80:H85) -> 2337620.43 | I16: =$C$16*I15 -> 334045.96 | J16: 334045.96 | K16: 334045.96 | L16: 334045.96 | M16: 334045.96 | N16: 334045.96 | O16: 333344.67
B17: ='RESUMO MODULO TOTAL'!D95 -> SERVIÇOS COMPLEMENTARES | C17: 1 | F17: 0.1 | G17: 0.1 | H17: 0.1 | I17: 0.1 | J17: 0.1 | K17: 0.1 | L17: 0.1 | M17: 0.1 | N17: 0.1 | O17: 0.1 | Q17: =SUM(D17:O17) -> 1
C18: =SUM('RESUMO MODULO TOTAL'!H96) -> 41150.31 | F18: =$C$18*F17 -> 4115.03 | G18: =$C$18*G17 -> 4115.03 | H18: 4115.03 | I18: 4115.03 | J18: 4115.03 | K18: 4115.03 | L18: 4115.03 | M18: 4115.03 | N18: 4115.03 | O18: 4115.03 | Q18: 41150.3 | R18: =C18 -> 41150.31 | S18: =Q18-R18 -> -0.01
B19: ='RESUMO MODULO TOTAL'!D112 -> CONSTRUÇÃO DE MURO DE ARRIMO | C19: 1 | D19: 0.5 | E19: 0.5 | Q19: 1
C20: =SUM('RESUMO MODULO TOTAL'!#REF!) ->  | D20: =$C$20*D19 ->  | E20: =$C$20*E19 ->  | R20: =C20 ->  | S20: =Q20-R20 -> 
B21: ='RESUMO MODULO TOTAL'!#REF! ->  | C21: 1 | D21: 0.0834 | E21: 0.0834 | F21: 0.0834 | G21: 0.0834 | H21: 0.0834 | I21: 0.0834 | J21: 0.0834 | K21: 0.0834 | L21: 0.0834 | M21: 0.0834 | N21: 0.0834 | O21: =8.34%-0.0008 -> 0.0826 | Q21: =SUM(D21:O21) -> 1
C22: =SUM('RESUMO MODULO TOTAL'!#REF!) ->  | D22: =$C$22*D21 ->  | R22: =C22 ->  | S22: =Q22-R22 -> 
B23: ='RESUMO MODULO TOTAL'!D128 -> MOMENTO DE TRANSPORTE | C23: 1 | F23: 0.1 | G23: 0.1 | H23: 0.1 | I23: 0.1 | J23: 0.1 | K23: 0.1 | L23: 0.1 | M23: 0.1 | N23: 0.1 | O23: 0.1 | Q23: =SUM(D23:O23) -> 1
C24: =SUM('RESUMO MODULO TOTAL'!H129:H131) -> 3623778.8 | F24: =$C$24*F23 -> 362377.88 | G24: =$C$24*G23 -> 362377.88 | H24: 362377.88 | I24: 362377.88 | J24: 362377.88 | K24: 362377.88 | L24: 362377.88 | M24: 362377.88 | N24: 362377.88 | O24: 362377.88 | Q24: 3623778.8 | R24: =C24 -> 3623778.8 | S24: =Q24-R24 -> 0
A26: Porcentagem | D26: =SUM(D6+D10+D12+D14+D16+D8+D18+D20+D22)/$O$31 ->  | E26: =SUM(E6+E10+E12+E14+E16+E8+E18+E20+E22)/$O$31 ->  | F26: =SUM(F6+F10+F12+F14+F16+F18+F20+F22+F8+F24)/$O$31 ->  | G26: =SUM(G6+G10+G12+G14+G16+G18+G20+G22+G8+G24)/$O$31 -> 
A27: Custo | D27: =$O$31*D26 ->  | E27: =$O$31*E26 ->  | F27: =$O$31*F26 -> 
A28: Porcentagem Acumulado | D28: =D26 ->  | E28: =D28+E26 ->  | F28: =E28+F26 -> 
A29: Custo Acumulado | D29: =D27 ->  | E29: =D29+E27 -> 
D31: Total Geral | N31: R$ | O31: ='RESUMO MODULO TOTAL'!$H$132 -> 25847943.32

Sheet CONSUMO DE MAT. B TOTAL
B3: CONSUMO DO MATERIAL BETUMINOSO TOTAL
B5: TRECHO | D5: QUANTIDADES | M5: MAT. BETUMINOSO
B6: Inicio (km) | C6: Fim (km) | D6: Extensão (m) | E6: Largura (m) | F6: Espess. (m) | G6: Área (m2) | H6: Volume (m3) | I6: Densidade (t/m3) | J6: Massa (t) | K6: Unid | L6: Quant. | M6: Tipo | N6: Consumo Taxa de Aplicação | O6: Unid. | P6: Quant.
B7: IMPRIMAÇÃO
F8: 1 | G8: ='MC MODULO'!N38 -> 44047.5 | I8: 0.92 | M8: CM-30 | N8: 1,2 l/m2 | O8: t | P8: =ROUND(I8*(G8*LEFT(N8,3))/1000,2) -> 48.63
B9: PINTURA DE LIGAÇÃO
F10: 1 | G10: ='MC MODULO'!N34 -> 44047.5 | I10: 1 | M10: RR-1C | N10: 0,40 l/m2 | O10: t | P10: =ROUND((G10*LEFT(N10,4))/1000,2) -> 17.62
B11: CBUQ FAIXA "C"
F12: ='MC MODULO'!L30 -> 0.05 | G12: ='MC MODULO'!J30*'MC MODULO'!K30 -> 44047.5 | H12: =G12*F12 -> 2202.38 | I12: ='MC MODULO'!M30 -> 2.4 | J12: =H12*I12 -> 5285.71 | M12: CAP-50/70 | N12: 0,06323 t/m3 | O12: t | P12: =J12*0.06323 -> 334.215
C29: Caderno Técnico - Usinagem (Out/2022)

Sheet Mob e Desmob
A5: ='RESUMO MODULO TOTAL'!A1 -> CONTRATAÇÃO DE EXECUÇÃO DE PAVIMENTO ASFÁLTICO COM CBUQ, EM VIAS URBANAS DE RECIFE/PE, ÁREA DE ATUAÇÃO DA 15ª SUPERINTENDÊNCIA REGIONAL DA CODEVASF.
A7: MEMÓRIA DE CÁLCULO DOS MOMENTOS DE TRANSPORTE PARA MOBILIZAÇÕES E DESMOBILIZAÇÕES
A9: Deslocamento Patrulha de Serviço:
C10: Distancia méd. (Km) | D10: Qtde. | E10: Subtotal (Km)
A11: Mobilização da Usina: | C11: 80 | D11: 1 | E11: =C11*D11 -> 80
A12: Desmobilização da Usina: | C12: =C11 -> 80 | D12: 1 | E12: =C12*D12 -> 80
A13: Mobilização (entre os trechos de serviço): | C13: 3 | D13: =ROUND(D14*2,) -> 13 | E13: =C13*D13 -> 39 | G13: - Considerado quantidade média de 2 mobin p/ cada 2 Módulos mínimos
A14: Mobilização inter-municipal (entre as localidades): | C14: 60 | D14: ='MC MODULO'!N7 -> 6.2925 | E14: =C14*D14 -> 377.55 | G14: - Considerado quantidade média de 1 mob/desmob a cada 2 módulos mínimos
A15: Desmobilização inter-municipal (entre as localidades): | C15: 60 | D15: 1 | E15: =C15*D15 -> 60
A16: Mobilização da Patrulha de Serviço (km) | E16: =E13+E14 -> 416.55
A17: Desmobilização da Patrulha de Serviço (km) | E17: =E15 -> 60
A19: Peso das máquinas:
E20: USINA FIXA
E21: Pá carregadeira | H21: 10.1 | I21: ton
E22: Usina misturadora | H22: 20 | I22: ton
E23: Tanque de Armazenamento 30 ton | H23: 5 | I23: ton
E24: Total | H24: =ROUND(SUM(H21:H23),2) -> 35.1 | I24: ton
E25: PATRULHA DE SERVIÇO
E26: Motoniveladora | H26: 12.47 | I26: ton
E27: Trator de pneus | H27: 2.8 | I27: ton
E28: Grade de disco | H28: 1 | I28: ton
E29: Acabadora | H29: 12.6 | I29: ton
E30: Rolo Vibratório de Pneus | H30: 27 | I30: ton
E31: Rolo Liso Tandem grande | H31: 10.4 | I31: ton
E32: Rolo compactador pé de carneiro vibratório | H32: 11.6
E33: Caminhão Basculannte | I33: ton
E34: Caminhão Espagidor | I34: ton
E35: Caminhão de Apoio | I35: ton
E36: Total | H36: =ROUND(SUM(H26:H35),2) -> 77.87 | I36: ton
A38: Portanto: | B38: Portanto
A39: Mobilizações - Total | E39: =E16*H36+H24*E11 -> 35244.75 | F39: t x km
A40: Desmobilizações - Total | E40: =E17*H36+H24*E12 -> 7480.2 | F40: t x km
A44: E9010 | B44: Balança plataforma digital com mesa de 75 x 75 cm com capacidade de 500 kg | I44: Caminhão carroceria
A45: E9064 | B45: Transportador manual gerica com capacidade de 180 l | I45: Caminhão carroceria
A46: E9066 | B46: Grupo gerador - 13/14 kVA | I46: Caminhão carroceria
A47: E9071 | B47: Transportador manual carrinho de mão com capacidade de 80 l | I47: Caminhão carroceria
A48: E9076 | B48: Equipamento de pintura com cabine de 7,00 kW e estufa de 80.000 kCal para pintura eletrostática | I48: Caminhão carroceria
A49: E9519 | B49: Betoneira com motor a gasolina com capacidade de 600 l - 10 kW | I49: Caminhão carroceria
A50: E9521 | B50: Grupo gerador - 2,5/3 kVA | I50: Caminhão carroceria
A51: E9568 | B51: Furadeira de impacto de 12,5 mm - 0,8 kW | I51: Caminhão carroceria
A52: E9622 | B52: Máquina de bancada universal para corte de chapa - 1,5 kW | I52: Caminhão carroceria
A53: E9623 | B53: Máquina de bancada guilhotina - 4 kW | I53: Caminhão carroceria
A54: E9675 | B54: Martelete perfurador/rompedor elétrico - 1,5 kW | I54: Caminhão carroceria
A55: E9779 | B55: Grupo gerador - 100/110 kVA | I55: Caminhão carroceria
A58: E9506 | B58: Caminhão basculante com capacidade de 6 m³ - 136 kW | I58: Rodoviario
A59: E9571 | B59: Caminhão tanque com capacidade de 10.000 l - 188 kW | I59: Rodoviario
A60: E9579 | B60: Caminhão basculante com capacidade de 10 m³ - 188 kW | I60: Rodoviario
A61: E9592 | B61: Caminhão carroceria com capacidade de 15 t - 188 kW | I61: Rodoviario
A62: E9644 | B62: Caminhão demarcador de faixas com sistema de pintura a frio - 28 kW/115 kW | I62: Rodoviario
A63: E9686 | B63: Caminhão carroceria com guindauto com capacidade de 20 t.m - 136 kW | I63: Rodoviario
A64: E9687 | B64: Caminhão carroceria com capacidade de 5 t - 115 kW | I64: Rodoviario
A65: E9514 | B65: Distribuidor de agregados autopropelido - 130 kW | I65: Rodoviario
A67: E9511 | B67: Carregadeira de pneus com capacidade de 3,40 m³ - 195 kW | I67: TRANSPORTE COM CAVALO MECÂNICO COM SEMIRREBOQUE COM CAPACIDADE DE 30 T - RODOVIA PAVIMENTADA
A68: E9524 | B68: Motoniveladora - 93 kW | I68: TRANSPORTE COM CAVALO MECÂNICO COM SEMIRREBOQUE COM CAPACIDADE DE 30 T - RODOVIA PAVIMENTADA
A69: E9530 | B69: Rolo compactador liso autopropelido vibratório de 11 t - 97 kW | I69: TRANSPORTE COM CAVALO MECÂNICO COM SEMIRREBOQUE COM CAPACIDADE DE 30 T - RODOVIA PAVIMENTADA
A70: E9577 | B70: Trator agrícola - 77 kW | I70: TRANSPORTE COM CAVALO MECÂNICO COM SEMIRREBOQUE COM CAPACIDADE DE 30 T - RODOVIA PAVIMENTADA
A71: E9685 | B71: Rolo compactador pé de carneiro vibratório autopropelido de 11,6 t - 82 kW | I71: TRANSPORTE COM CAVALO MECÂNICO COM SEMIRREBOQUE COM CAPACIDADE DE 30 T - RODOVIA PAVIMENTADA
A72: E9762 | B72: Rolo compactador de pneus autopropelido de 27 t - 85 kW | I72: TRANSPORTE COM CAVALO MECÂNICO COM SEMIRREBOQUE COM CAPACIDADE DE 30 T - RODOVIA PAVIMENTADA
A73: E9518 | B73: Grade de 24 discos rebocável de 24" | I73: TRANSPORTE COM CAVALO MECÂNICO COM SEMIRREBOQUE COM CAPACIDADE DE 30 T - RODOVIA PAVIMENTADA
A74: E9615 | B74: Usina misturadora de solos com capacidade de 300 t/h | I74: TRANSPORTE COM CAVALO MECÂNICO COM SEMIRREBOQUE COM CAPACIDADE DE 30 T - RODOVIA PAVIMENTADA

Sheet BDI
A2: OBRA:
A3: LOCAL:
A4: DATA BASE:
A5: DETALHAMENTO DO BDI - SEM DESONERAÇÃO
A6: ='RESUMO MODULO TOTAL'!A1 -> CONTRATAÇÃO DE EXECUÇÃO DE PAVIMENTO ASFÁLTICO COM CBUQ, EM VIAS URBANAS DE RECIFE/PE, ÁREA DE ATUAÇÃO DA 15ª SUPERINTENDÊNCIA REGIONAL DA CODEVASF.
A7: DESCRIÇÃO DOS SERVIÇOS | B7: PREÇO DE VENDA (%) | C7: CUSTO DIRETO (%)
A8: ADMINISTRAÇÃO CENTRAL | C8: 0.06
A9: DESPESA FINANCEIRAS | B9: 0.0102
A10: SEGUROS E GARANTIAS CONTRATUAIS | B10: 0.0025
A11: RISCOS | B11: 0.005
A12: LUCRO OPERACIONAL | C12: 0.07
A13: PIS | B13: 0.0065
A14: COFINS | B14: 0.03
A15: ISSQN | B15: 0.03
A16: Contribuição Previdenciaria | B16: 0
B17: BDI | C17: =ROUND((1+(C8+C12))/(1-(B9+B10+B11+B13+B14+B15+B16))-1,4) -> 0.2339
A18: Observação: O percentual de ISSQN aqui utilizado consiste apenas em um referencial médio.
A19: O valor real do ISSQN a ser adotado deve ser aquele proveniente das alíquotas dos municípios situados na área de
A20: influência das obras.
A52: DETALHAMENTO DO BDI DIFERENCIADO - SEM DESONERAÇÃO
A53: ='RESUMO MODULO TOTAL'!A1 -> CONTRATAÇÃO DE EXECUÇÃO DE PAVIMENTO ASFÁLTICO COM CBUQ, EM VIAS URBANAS DE RECIFE/PE, ÁREA DE ATUAÇÃO DA 15ª SUPERINTENDÊNCIA REGIONAL DA CODEVASF.
A55: DESCRIÇÃO DOS SERVIÇOS | B55: PREÇO DE VENDA (%) | C55: CUSTO DIRETO (%)
A56: ADMINISTRAÇÃO CENTRAL | C56: 0.0377
A57: DESPESA FINANCEIRAS | B57: 0.0102
A58: SEGUROS E GARANTIAS CONTRATUAIS | B58: 0.0025
A59: RISCOS | B59: 0.005
A60: LUCRO OPERACIONAL | C60: 0.05
A61: PIS | B61: 0.0065
A62: COFINS | B62: 0.03
A63: ISSQN | B63: 0
A64: Contribuição Previdenciaria | B64: 0
B65: BDI | C65: =ROUND((1+(C56+C60))/(1-(B57+B58+B59+B61+B62+B63+B64))-1,4) -> 0.15
A66: Fonte da composição, valores de referência e fórmula do BDI: Instrução Normativa N° 62/DNIT SEDE

Sheet Transporte Cap 50-70
C2: MEMÓRIA DE CÁLCULO
C7: REAJUSTE | F7: TIPOLOGIA DO MATERIAL | I7: CIMENTOS ASFÁLTICOS CAP-50-70 | M7: IMPOSTOS | N7: COFINS (BDI DIF) | O7: 0.0065 | P7: 0.0065
G8: ÍNDICE DE PAVIMENTAÇÃO DNIT | H8: 2014-07-01 | I8: ÍNDICE INICIAL | J8: 270.237 | N8: PIS | O8: 0.03 | P8: 0.03 | T8: LEGENDA | AC8: As empresas tributadas pelo Lucro Presumido pagam 0,65% de PIS e 3% de COFINS
H9: 2023-10-01 | I9: ÍNDICE FINAL | J9: 557.543 | N9: ICMS | O9: 0.18 | P9: 0.18 | Q9: =1-(O9/1) -> 0.82 | R9: =1-(P9/1) -> 0.82 | S9: =1-(Q9/1) -> 0.18 | T9: ENTRADA DE DADOS | AC9: As empresas tributadas pelo Lucro Real pagam 1,65% de PIS e 7,60% de COFINS
F10: CAP50/70 | G10: Data ANP | H10: 2023-10-01
C11: DATA-BASE | D11: PRODUTOS | E11: LOCALIDADES | J11: CUSTO ANP (R$/Kg) | L11: CUSTO ANP | M11: IMPOSTOS DO PRODUTO | N11: CUSTO DO PRODUTO COM IMPOSTOS | O11: DMT's | P11: DMT's FLUVIAL | Q11: CUSTO DO TRANSPORTE RODOVIA PAVIMENTADA | R11: CUSTO DO TRANSPORTE FLUVIAL | S11: CUSTO DO TRANSPORTE TOTAL | T11: ICMS | U11: ATUALIZAÇÃO DO CUSTO DE TRANSPORTE | V11: CUSTO DO TRANSPORTE RODOVIA PAVIMENTADA COM IMPOSTOS E ATUALIZAÇÃO MONETÁRIA | W11: PEDÁGIO | Y11: TOTAL TRANSPORTE | Z11: AQUISIÇÃO DO PRODUTO | AA11: TOTAL GERAL ( TRANSP + AQUISIÇÃO) | AC11: 1 | AD11: 2 | AE11: 3
C12: =H9 -> 2023-10-01 | E12: REFINARIAS | F12: ENDEREÇO | G12: ESTADO | H12: CIDADE | I12: DESTINO | J12: ESTADO | K12: REGIÃO | L12: R$/t | M12: R$/t | N12: R$/t | O12: KM | P12: KM | Q12: R$/t | R12: R$/t | S12: R$/t | T12: R$/t | U12: R$/t | V12: R$/t | W12: CUSTO | X12: R$/t | Y12: R$/t | Z12: R$/t | AA12: R$/t | AC12: TOTAL GERAL ( TRANSP + AQUISIÇÃO) | AD12: TOTAL TRANSPORTE | AE12: AQUISIÇÃO DO PRODUTO
B13: =AA13 -> 5164.38 | C13: 1 | D13: =I7 -> CIMENTOS ASFÁLTICOS CAP-50-70 | E13: ASFALTOS NORDESTE LTDA. | F13: Avenida Parque Sul, 1998 - Maracanau - CE CEP:61939-000 | G13: Ceará | H13: Maracanau /CE | I13: Recife - PE | J13: =VLOOKUP('Transporte Cap 50-70'!G13,OFFSET('ANP ESTADO'!$A$1,MATCH('Transporte Cap 50-70'!$I$7,'ANP ESTADO'!B:B,0)+MATCH('Transporte Cap 50-70'!$H$10,OFFSET('ANP ESTADO'!$A$1,MATCH('Transporte Cap 50-70'!$I$7,'ANP ESTADO'!B:B,0),0,100000,1),0),2,100000,2),2,FALSE) -> 3.68092 | K13: =VLOOKUP($H$10,OFFSET('ANP REGIÃO'!$A$9,MATCH('Transporte Cap 50-70'!$I$7,'ANP REGIÃO'!A:A,0),1,10000,10000),MATCH('Transporte Cap 50-70'!AH13,'ANP REGIÃO'!$B$8:$G$8,0),FALSE) -> 3.61546 | L13: =IF(AND(J13="-",K13="-"),"",IF(AND(J13<>0,K13="-"),J13*1000,IF(AND(J13="-",K13<>0),K13*1000,IF(AND(J13<>0,K13<>0),J13*1000,"")))) -> 3680.92 | M13: =ROUND(((L13/(1-$O$7-$O$8-$O$9))-L13),2) -> 1017.13 | N13: =L13+M13 -> 4698.05 | O13: 778.5 | Q13: =ROUND((26.939+0.253*O13),2) -> 223.9 | S13: =Q13+R13 -> 223.9 | T13: 0 | U13: =TRUNC(IF($J$8="","",(($J$9-$J$8)/$J$8)*(S13+T13)),2) -> 238.04 | V13: =S13+T13+U13 -> 461.94 | W13: 61.2 | X13: =EVEN(' CONSUMO DE MAT. B TOTAL'!$P$12*2/28)*W13/' CONSUMO DE MAT. B TOTAL'!$P$12 -> 4.39 | Y13: =IF(AND(Q13="",T13=""),"",V13+X13) -> 466.33 | Z13: =IF(OR(L13="",M13=""),"",L13+M13) -> 4698.05 | AA13: =IF(OR(Y13="",Z13=""),"",Y13+Z13) -> 5164.38 | AC13: =AA13 -> 5164.38 | AD13: =Y13 -> 466.33 | AE13: 4698.05 | AH13: =IF(OR(G13=$D$42,G13=$D$43,G13=$D$45,G13=$D$51,G13=$D$35,G13=$D$31,G13=$D$27,G13=$D$40,G13=$D$30),"NORDESTE",IF(OR(G13=$D$26,G13=$D$28,G13=$D$29,G13=$D$39,G13=$D$47,G13=$D$48,G13=$D$52),"NORTE",IF(OR(G13=$D$32,G13=$D$34,G13=$D$36,G13=$D$37),"CENTRO-OESTE",IF(OR(G13=$D$50,G13=$D$44,G13=$D$38,G13=$D$33),"SUDESTE",IF(OR(G13=$D$49,G13=$D$41,G13=$D$46),"SUL",""))))) -> NORDESTE
B14: =AA14 -> 5275.05 | C14: 2 | E14: EMAM - EMULSÕES E TRANSPORTES LTDA. | F14: RODOVIA CE 060, KM 11,5 - Pacatuba - CE CEP:61800-000 | G14: Ceará | H14: Pacatuba/CE | I14: Recife - PE | J14: =VLOOKUP('Transporte Cap 50-70'!G14,OFFSET('ANP ESTADO'!$A$1,MATCH('Transporte Cap 50-70'!$I$7,'ANP ESTADO'!B:B,0)+MATCH('Transporte Cap 50-70'!$H$10,OFFSET('ANP ESTADO'!$A$1,MATCH('Transporte Cap 50-70'!$I$7,'ANP ESTADO'!B:B,0),0,100000,1),0),2,100000,2),2,FALSE) -> 3.68092 | K14: =VLOOKUP($H$10,OFFSET('ANP REGIÃO'!$A$9,MATCH('Transporte Cap 50-70'!$I$7,'ANP REGIÃO'!A:A,0),1,10000,10000),MATCH('Transporte Cap 50-70'!AH14,'ANP REGIÃO'!$B$8:$G$8,0),FALSE) -> 3.61546 | L14: =IF(AND(J14="-",K14=""),"",IF(AND(J14<>0,K14=""),J14*1000,IF(AND(J14="-",K14<>0),K14*1000,IF(AND(J14<>0,K14<>0),J14*1000,"")))) -> 3680.92 | M14: =ROUND(((L14/(1-$O$7-$O$8-$O$9))-L14),2) -> 1017.13 | N14: =L14+M14 -> 4698.05 | O14: 780 | Q14: =ROUND((26.939+0.253*O14),2) -> 224.28 | S14: =Q14+R14 -> 224.28 | T14: =TRUNC(S14*($O$9/(1-$O$9)),2) -> 49.23 | U14: =TRUNC(IF($J$8="","",(($J$9-$J$8)/$J$8)*(S14+T14)),2) -> 290.78 | V14: =S14+T14+U14 -> 564.29 | W14: 177 | X14: =EVEN(' CONSUMO DE MAT. B TOTAL'!$P$12*2/28)*W14/' CONSUMO DE MAT. B TOTAL'!$P$12 -> 12.71 | Y14: =IF(AND(Q14="",T14=""),"",V14+X14) -> 577 | Z14: =IF(OR(L14="",M14=""),"",L14+M14) -> 4698.05 | AA14: =IF(OR(Y14="",Z14=""),"",Y14+Z14) -> 5275.05 | AC14: =AA14 -> 5275.05 | AD14: 577 | AE14: 4698.05 | AH14: =IF(OR(G14=$D$42,G14=$D$43,G14=$D$45,G14=$D$51,G14=$D$35,G14=$D$31,G14=$D$27,G14=$D$40,G14=$D$30),"NORDESTE",IF(OR(G14=$D$26,G14=$D$28,G14=$D$29,G14=$D$39,G14=$D$47,G14=$D$48,G14=$D$52),"NORTE",IF(OR(G14=$D$32,G14=$D$34,G14=$D$36,G14=$D$37),"CENTRO-OESTE",IF(OR(G14=$D$50,G14=$D$44,G14=$D$38,G14=$D$33),"SUDESTE",IF(OR(G14=$D$49,G14=$D$41,G14=$D$46),"SUL",""))))) -> NORDESTE
B15: =AA15 -> 5015.73 | C15: 3 | E15: CBAA - ASFALTOS LTDA | F15: Avenida Banco do Nordeste, S/N – Feira de Santana - BA CEP:44063-640 | G15: Bahia | H15: Feira de Santana - BA | I15: Recife - PE | J15: =VLOOKUP('Transporte Cap 50-70'!G15,OFFSET('ANP ESTADO'!$A$1,MATCH('Transporte Cap 50-70'!$I$7,'ANP ESTADO'!B:B,0)+MATCH('Transporte Cap 50-70'!$H$10,OFFSET('ANP ESTADO'!$A$1,MATCH('Transporte Cap 50-70'!$I$7,'ANP ESTADO'!B:B,0),0,100000,1),0),2,100000,2),2,FALSE) -> 3.47245 | K15: =VLOOKUP($H$10,OFFSET('ANP REGIÃO'!$A$9,MATCH('Transporte Cap 50-70'!$I$7,'ANP REGIÃO'!A:A,0),1,10000,10000),MATCH('Transporte Cap 50-70'!AH15,'ANP REGIÃO'!$B$8:$G$8,0),FALSE) -> 3.61546 | L15: =IF(AND(J15="-",K15=""),"",IF(AND(J15<>0,K15=""),J15*1000,IF(AND(J15="-",K15<>0),K15*1000,IF(AND(J15<>0,K15<>0),J15*1000,"")))) -> 3472.45 | M15: =ROUND(((L15/(1-$O$7-$O$8-$O$9))-L15),2) -> 959.52 | N15: =L15+M15 -> 4431.97 | O15: 803.7 | Q15: =ROUND((26.939+0.253*O15),2) -> 230.28 | S15: =Q15+R15 -> 230.28 | T15: =TRUNC(S15*($O$9/(1-$O$9)),2) -> 50.54 | U15: =TRUNC(IF($J$8="","",(($J$9-$J$8)/$J$8)*(S15+T15)),2) -> 298.55 | V15: =S15+T15+U15 -> 579.37 | W15: 61.2 | X15: =EVEN(' CONSUMO DE MAT. B TOTAL'!$P$12*2/28)*W15/' CONSUMO DE MAT. B TOTAL'!$P$12 -> 4.39 | Y15: =IF(AND(Q15="",T15=""),"",V15+X15) -> 583.76 | Z15: =IF(OR(L15="",M15=""),"",L15+M15) -> 4431.97 | AA15: =IF(OR(Y15="",Z15=""),"",Y15+Z15) -> 5015.73 | AC15: =AA15 -> 5015.73 | AD15: 583.76 | AE15: 4431.97 | AH15: =IF(OR(G15=$D$42,G15=$D$43,G15=$D$45,G15=$D$51,G15=$D$35,G15=$D$31,G15=$D$27,G15=$D$40,G15=$D$30),"NORDESTE",IF(OR(G15=$D$26,G15=$D$28,G15=$D$29,G15=$D$39,G15=$D$47,G15=$D$48,G15=$D$52),"NORTE",IF(OR(G15=$D$32,G15=$D$34,G15=$D$36,G15=$D$37),"CENTRO-OESTE",IF(OR(G15=$D$50,G15=$D$44,G15=$D$38,G15=$D$33),"SUDESTE",IF(OR(G15=$D$49,G15=$D$41,G15=$D$46),"SUL",""))))) -> NORDESTE
